Workbook

Sheet Dane klienta (hidden)
C3: Dane do przygotowania oferty.
C6: Kalkulator standardowy
B8: 1. | C8: Nr. szansy sprzedaży ARG: | D8: 1234
C10: Dane klienta
B11: 1. | C11: Imię i nazwisko: | D11: Andrzej Nowak
B12: 2. | C12: Nazwa firmy:
B13: 3. | C13: Ulica, nr. budynku: | D13: Podgórna 146
B14: 5. | C14: Pesel:
B15: 6. | C15: Imię i nazwisko pełnomocnika:
B16: 7. | C16: Data pełnomocnictwa:
B17: 8. | C17: Nr. telefonu:
B18: 9. | C18: E-mail:
B19: 4. | C19: Kod pocztowy, miejscowość: | D19: 87-300 Brodnica
C20: Dane klienta biznesowego
B21: 4. | C21: Imię i nazwisko: | D21: Jan Kowalski
B23: 6. | C23: Ulica, nr. budynku: | D23: Podgórna 14
B24: 7. | C24: Kod pocztowy, miejscowość: | D24: 87-300 Brodnicaa
B25: 14. | C25: NIP:
B26: 15. | C26: REGON:
B27: 16. | C27: Nr. telefonu:
B28: 17. | C28: E-mail:
B29: 18. | C29: KRS:
B30: 19. | C30: Sąd rejonowy (miejscowość):
B31: 20. | C31: Osoba reprezentująca:
B32: 21. | C32: Stanowisko:
C34: Punkt instalacji: wypełnić jeśli inny niż powyżej
B35: 8. | C35: Ulica, nr. budynku:
B36: 9. | C36: Kod pocztowy, miejscowość: | F36: 1
C37: Dane handlowca:
B38: 5. | C38: Imię i nazwisko: | D38: -
B39: 6. | C39: Nr. telefonu: | D39: -
B40: 7. | C40: Adres e-mail: | D40: -

Sheet Kalkulator doboru (hidden)
C1: ="Nr cennika: 01a/06/2024"&"-"&Koszty!BX1 -> Nr cennika: 01a/06/2024-2 | M1: 1 | N1: =D27&" "&D28 -> SPRSUN Monoblok CGK-025V3L-B 10kW | P1: =VLOOKUP(G31,N7:O12,2,0) -> 2 | Q1: =IF(AND(D28="Wycena indywidualna",C513="Wycena indywidualna",C525="Wycena indywidualna",C28="Wycena indywidualna",B513="Wycena indywidualna"),UruchomMojeMakro(),"Moc obliczeniowa poniżej 23kW") -> Moc obliczeniowa poniżej 23kW
F2: do wyboru | M2: 2 | N2: =B38&" "&B39 -> Piec na pellet FERROLI BIOPELLET PRO 12kw
M3: 3 | N3: =C38&" "&C39 -> Piec na pellet HEIZTECHNIK Q PELLET 12kw
M4: 4 | N4: =C27&" "&C28 -> Midea Monoblok M-Thermal Mono 8kW
B5: 1. Lokalizacja inwestycji | F5: 2.Obliczenie strat ciepła budynku | M5: 5 | N5: =B512&" "&B513 -> NEW ENERGY Monoblok NE-F90HCR5TINVM 9kW
B6: Miasto | C6: Zakopane | F6: 2.1. Na podstawie standardu budynku | M6: 6 | N6: =D38&" "&D39 -> Piec zgazowujący drewno FERROLI CGF PRO 22
B7: Strefa klimatyczna | C7: =VLOOKUP(C6,'Dane temperatur'!E3:H57,3,0) -> V | F7: Powierzchnia ogrzewana budynku | G7: 120 | H7: m2 | M7: 7 | N7: =B27&" "&B28 -> YORK Monoblok YKF07CNC 7kW
B8: Projektowa temperatura zewnętrzna | C8: =VLOOKUP(C6,'Dane temperatur'!E3:H57,4,0) -> -24 | D8: ˚C | F8: Dom z bardzo dobrą izolacją | G8: =VLOOKUP(F8,Tabela5[#All],4,0) -> Budynki od 2010 roku -Cegły, min. grubość 29 cm; min. 15 cm izolacji ściany zewnętrznej; min. 25 cm izolacji dachu; Współczynnik przewodności cieplnej okna-maks 1,0 | H8: =VLOOKUP(F8,Tabela5[#All],2,0) -> 40-50 W/m2 | N8: YORK Monoblok | O8: 7
B9: Średnia roczna temperatura zewnętrzna | C9: =VLOOKUP(C6,'Dane temperatur'!E5:F57,2,0) -> 5.5 | D9: ˚C | N9: Midea Monoblok | O9: 4
B10: Umiarkowana-normalne warunki | C10: =VLOOKUP(B10,Tabela3[#All],3,0) -> Klimat kontynentalny (dolny; zagłęnia i duże miasta na wysokości do 800 m n.p.m z minimalnymi temperaturami w zimie pomiędzy 12˚C a -16 ˚C) | N10: Piec na pellet FERROLI | O10: 2
B11: Liczba godzin ogrzewania | C11: =VLOOKUP(B10,Tabela3[#All],2,0) -> 1950 | D11: h | N11: Piec na pellet HEIZTECHNIK | O11: 3
B12: Punkt biwalentny | C12: =VLOOKUP(C7,Panasonic!A3:B7,2,0) -> -13 | D12: ˚C | N12: Piec zgazowujący drewno FERROLI | O12: 6
B13: Ilosc godzin pracy grzałki | C13: =VLOOKUP(C6,'Dane temperatur'!J5:K57,2,0) -> 346 | D13: h
F14: Wybrana wartość | G14: =VLOOKUP(H8,Tabele!B90:C97,2,0) -> 50 | H14: W/m2
B15: 3. Moc obliczeniowa | F15: Roczne zapotrzebowanie ciepła na ogrzewanie | G15: =(C11*G14)/1000 -> 97.5 | H15: kWh/m2 rok
B16: Typ użytkownika | C16: Zużycie na osobę | G16: =G15*G7 -> 11700 | H16: kWh/rok
B17: Zazwyczaj | C17: =VLOOKUP('Kalkulator doboru'!B17,Tabela4[#All],2,0) -> 60 | D17: l/os/dobę | F17: Temperatura dzienna | G17: 18 | H17: ˚C
B18: Ilość osób w budynku | C18: 4 | D18: osoby | F18: Temperatura nocna | G18: 16 | H18: ˚C
B19: Temperatura ciepłej wody | C19: 50 | D19: ˚C | F19: Moc obliczeniowa budynku | G19: =(G7*G14)/1000 -> 6 | H19: kW
B20: Temperatura zimnej wody | C20: 10 | D20: ˚C | F20: Czy wysokość kotłowni jest zgodna z ustawą i wynosi minimum 2,2m? | H20: Tak
B21: Zapotrzebowanie ciepła dla c.w.u. | C21: =(((C18*C17)*1*4.2*1.2*(C19-C20))*365)/3600 -> 4905.6 | D21: kWh/rok | F21: Czy powierzchnia przekroju komina wynosi minimum 150 cm2 (murowany komin min. 14x14 cm wewnątrz lub rura stalowa fi150)? | H21: Tak
B22: Roczne zapotrzebowanie ciepła na ogrzewanie | C22: =G16-IF(G29="tak",Mitsubishi!B189,0) -> 11700 | D22: kWh/rok | F22: Szerokość najwęższego przejścia wynosi min. 70cm i wymiary kotłowni min. 2mx2m? | H22: Tak
B23: Roczne zapotrzebowanie ciepła dla c.o. i c.w.u. | C23: =C22+C21 -> 16605.6 | D23: kWh/rok | F23: Czy powierzchnia przekroju komina wynosi minimum 250 cm2 (murowany komin min. 18x18 cm wewnątrz lub rura stalowa fi250)? | H23: Tak
B24: Moc obliczeniowa budynku | C24: =((G19-IF(G29="Nie",0,Mitsubishi!B186))+((G17-20)/40)*G19)+Panasonic!B12 -> 6.7 | D24: kW | F24: Szerokość najwęższego przejścia wynosi min. 80cm i wymiary kotłowni min. 4mx3m? | H24: Tak
B25: Moc obliczeniowa budynku bez c.w.u. | C25: =(G19+Panasonic!B12)-IF(G29="Nie",0,Mitsubishi!B186) -> 7 | D25: kW | F25: 4. Rodzaj ogrzewania | I25: 200L
C26: =IF(Mitsubishi!D51="Kaskada","Uwaga! Połączenie kaskadowe","") ->  | D26: =IF(Mitsubishi!D125="Kaskada","Uwaga! Połączenie kaskadowe","") ->  | F26: Ogrzewanie podłogowe | H26: 5. Kaskada
A27: 8. Dobrana pompa ciepła | B27: YORK Monoblok | C27: Midea Monoblok | D27: SPRSUN Monoblok | F27: 5. Zbiornik wody CWU pompy ciepła | H27: Zbiornik wody CWU pompy ciepła
A28: Model | B28: =IFERROR(Mitsubishi!A351,"-") -> YKF07CNC 7kW | C28: =IF(Mitsubishi!D51="Kaskada",Koszty!BG3,Mitsubishi!D51) -> M-Thermal Mono 8kW | D28: =IF(Mitsubishi!D125="Kaskada",Koszty!BG47,Mitsubishi!D125) -> CGK-025V3L-B 10kW | F28: Zbiornik CWU 200L
A29: Moc | B29: =IFERROR(VLOOKUP(B28,Mitsubishi!B367:D372,3,0),"-") -> 7kW | C29: =IFERROR(VLOOKUP(C28,Mitsubishi!B82:D103,3,0),"-") -> 8kW | D29: =IFERROR(VLOOKUP(D28,Mitsubishi!B157:D176,3,0),"-") -> 10 kw | F29: 6. Czy w budynku jest rekuperacja | G29: NIE
A30: SCOP | B30: =IFERROR(Tabele!Y62,"-") -> 5.05 | C30: =IFERROR(IF(Mitsubishi!D51="Kaskada",Tabele!AM62,Tabele!AE62),"-") -> 5.15 | D30: =IFERROR(IF(Mitsubishi!D125="Kaskada",Tabele!U56,Tabele!U62),"-") -> 4.56 | F30: 7. Ilość faz | G30: 3
A31: Zasilanie | B31: =IFERROR(VLOOKUP(B28,Mitsubishi!B367:E372,4,0),"-") -> 1~/220-240V/50Hz | C31: =IFERROR(VLOOKUP(C28,Mitsubishi!B82:E103,4,0),"-") -> 1~/220-240V/50Hz | D31: =IFERROR(VLOOKUP(D28,Mitsubishi!B157:E176,4,0),"-") -> 3~/380-415V/50Hz | F31: Wybrana pompa ciepła/piec | G31: Piec na pellet FERROLI | H31: =IF(G31="Piec na pellet DEFRO","Piec z rusztem","") -> 
A32: Zestaw: | B32: =IFERROR(VLOOKUP(B28,Mitsubishi!B367:C372,2,0),"-") -> YKF07CNC | C32: =IFERROR(VLOOKUP(C28,Mitsubishi!B82:C103,2,0),"-") -> MHC-V8W/D2N8-BE30 | D32: =VLOOKUP(D28,Mitsubishi!B157:C176,2,0) -> CGK-025V3L-B
A33: Jednostka wewnętrzna: | B33: =IFERROR(VLOOKUP(B28,Mitsubishi!B367:F372,5,0),"-") -> - | C33: =IFERROR(VLOOKUP(C28,Mitsubishi!B82:F103,5,0),"-") -> - | D33: =VLOOKUP(D28,Mitsubishi!B157:F176,5,0) -> - | F33: SCOP | G33: =IF(P1=1,D30,IF(OR(P1=2,P1=3),"",IF(P1=3,C527,IF(P1=4,C30,IF(P1=5,B515,B30))))) -> 
A34: Jednostka zewnętrzna: | B34: =IFERROR(VLOOKUP(B28,Mitsubishi!B367:H372,7,0),"-") -> YKF07CNC | C34: =IFERROR(VLOOKUP(C28,Mitsubishi!B82:H103,7,0),"-") -> MHC-V8W/D2N8-BE30 | D34: =VLOOKUP(D28,Mitsubishi!B157:H176,7,0) -> CGK-025V3L-B
A35: Bufor | B35: =IFERROR(VLOOKUP(B28,Mitsubishi!B367:I372,8,0),"-") -> nie mniejszy niż 100L | C35: =IFERROR(VLOOKUP(C28,Mitsubishi!B82:I103,8,0),"-") -> nie mniejszy niż 100L | D35: =VLOOKUP(D28,Mitsubishi!B157:I176,8,0) -> nie mniejszy niż 100L | F35: 10. Usługi i dodatki
A36: Zbiornik CWU | B36: =IFERROR(IF(Mitsubishi!D51="Kaskada",'Kalkulator doboru'!I25,VLOOKUP(F28,Panasonic!AA2:AD6,4,0)),"-") -> 200L | C36: =IFERROR(IF(Mitsubishi!D51="Kaskada",'Kalkulator doboru'!I25,VLOOKUP(F28,Panasonic!AA2:AD6,4,0)),"-") -> 200L | D36: =IFERROR(IF(Mitsubishi!D125="Kaskada",'Kalkulator doboru'!I25,(VLOOKUP(F28,Panasonic!AA2:AD6,4,0))),"-") -> 200L | F36: Bonus za pompę ciepła z Arago | G36: NIE
F37: Ubezpieczenie pompy ciepła | G37: Nie
A38: 9. Dobrany piec | B38: Piec na pellet FERROLI | C38: Piec na pellet HEIZTECHNIK | D38: Piec zgazowujący drewno FERROLI | F38: Przedłużenie gwarancji do 7 lat z zdalną opieką serwisową | G38: Nie
A39: Produkt | B39: =Mitsubishi!A247 -> BIOPELLET PRO 12kw | C39: =Mitsubishi!A293 -> Q PELLET 12kw | D39: =Mitsubishi!A315 -> CGF PRO 22 | F39: Certyfikat Efektywności Energetycznej | G39: Nie
A40: Moc | B40: =IFERROR(VLOOKUP(B39,Mitsubishi!C263:D266,2,0),"-") -> 12kw | C40: =IFERROR(VLOOKUP($C$39,Mitsubishi!$C$306:$H$309,2,0),"-") -> 12kw | D40: =IFERROR(VLOOKUP(D39,Mitsubishi!C325:D325,2,0),"-") -> 22kw | F40: Sterownik do sterowania zdalnego | G40: Nie
A41: Bufor | B41: - | C41: - | D41: =IF(Mitsubishi!A315="-","-","1000l") -> 1000l | F41: Płukanie instalacji | G41: Nie
A42: Zasilanie | B42: =IFERROR(VLOOKUP(B39,Mitsubishi!C263:E266,3,0),"-") -> 1/N/PE ~230 V / 50 Hz | C42: =IFERROR(VLOOKUP($C$39,Mitsubishi!$C$306:$H$309,3,0),"-") -> 1/N/PE ~230 V / 50 Hz | D42: =IFERROR(VLOOKUP(D39,Mitsubishi!C325:E325,3,0),"-") -> 1/N/PE ~230 V / 50 Hz | F42: Wycena indywidualna | G42: Nie | H42: Możliwość przedłużenia gwarancji pompy SPRSUN/NEW ENERGY
A43: Pojemność zasobnika | B43: =IFERROR(VLOOKUP(B39,Mitsubishi!C263:F266,4,0),"-") -> 105 kg | C43: =IFERROR(VLOOKUP($C$39,Mitsubishi!$C$306:$H$309,4,0),"-") -> 300 kg | D43: =IFERROR(VLOOKUP(D39,Mitsubishi!C325:F325,4,0),"-") -> 103l | F43: Wizja lokalna przed montażem | G43: Nie
A44: Pojemność wodna | B44: =IFERROR(VLOOKUP(B39,Mitsubishi!C263:G266,5,0),"-") -> 30l | C44: =IFERROR(VLOOKUP($C$39,Mitsubishi!$C$306:$H$309,5,0),"-") -> 73l | D44: =IFERROR(VLOOKUP(D39,Mitsubishi!C325:G325,5,0),"-") -> 120l | F44: Sprzęgło hydrauliczne do podłączenia ogrzewania mieszanego | G44: Nie
A45: Zbiornik CWU | B45: 150L | F45: Utylizacja pieca | G45: Nie
F46: Połączenie pompy ciepła ze starym źródłem ciepła w układzie otwartym | G46: Nie
B47: 11.Obliczenie rocznego zużycia energii elektrycznej
B48: Zużycie energii elektrycznej na c.w.u. | C48: =IFERROR(IF(F28="Zbiornik CWU - Nie",0,C21/G33),"-") -> - | D48: kWh | F48: Zamknięcie układu otwartego | G48: Nie | H48: =IF(AND(Mitsubishi!B248="tak",'Kalkulator doboru'!G44="nie",'Kalkulator doboru'!F26="mieszane"),"Wymagana usługa dodatkowa. Zmień opcję na Tak.","") -> 
B49: Zużycie energii elektrycznej na c.o. | C49: =IFERROR(C22/G33,"-") -> - | D49: kWh | F49: Grupa pompowa | G49: Nie
B50: Zużycie energii elektrycznej na grzałkę | C50: =VLOOKUP(C6,'Dane temperatur'!BO4:BV56,8,0) -> 198 | D50: kWh | F50: Stojak pod pompę ciepła ze stali nierdzewnej | G50: Nie
B51: Razem zużycie energii el. (c.w.u, c.o., grzałki) | C51: =IF(OR(AND(Mitsubishi!D51="Kaskada",P1=4),AND(P1=1,Mitsubishi!D125="Kaskada"),AND(Mitsubishi!A221="Kaskada",P1=5)),Tabele!AM52,SUM(C48:C50)) -> 198 | D51: kWh | F51: Niezależne sterowanie dwoma obiegami grzewczymi | G51: Nie
B52: Koszt energii elektrycznej c.w.u. | C52: =IFERROR(C48*G504,"-") -> - | D52: zł | F52: Zalanie układu pompy ciepła glikolem łącznie z zamontowaniem wymiennika ciepła | G52: Nie
B53: Koszt energii elektrycznej c.o. | C53: =IFERROR(C49*G504,"-") -> - | D53: zł
B54: Koszt energii grzałki | C54: =C50*G504 -> 198 | D54: zł | F54: Dodatkowy sterownik bezprzewodowy jednego obiegu | G54: Nie
B55: Koszt c.w.u. + c.o. + grzałki | C55: =IF(OR(AND(Mitsubishi!D51="Kaskada",P1=4),AND(P1=1,Mitsubishi!D125="Kaskada"),AND(Mitsubishi!A221="Kaskada",P1=5)),(Tabele!AM52*Tabele!AN43),SUM(C52:C54)) -> 198 | D55: zł | F55: Połączenie pompy ciepła z układem solarnym poprzez wymiennik ciepła | G55: Nie
B57: Poniższe dane dotyczące rodzaju ogrzewania oraz kosztu nie wpływają na dobór pomy ciepła. Na ich podstawie jest wyliczony zwrot inwestycji w ofercie. | F57: Napowietrzenie kotłowni | G57: Nie
B58: Rodzaj ogrzewania | C58: Piec węglowy tradycyjny | D58: Potencjalny wzrost cen: | F58: Audyt Energetyczny | G58: Nie | H58: =IF(OR(podb!R1="GF",podb!R1="ProEnergy"),"Ustawić Dodatkowy sterownik bezprzewodowy jednego obiegu na stałe na tak","") -> Ustawić Dodatkowy sterownik bezprzewodowy jednego obiegu na stałe na tak
B59: Roczny koszt zużycia paliwa na ogrzewanie: | C59: 8000 | D59: 0.15 | F59: Audyt Energetyczny | G59: =IF(OR(G62="podwyższony",G62="najwyższy"),"Tak","Nie") -> Nie
F60: Równoważenie instalacji | G60: Nie
B61: Czy obiekt budowlany, na którym ma zostać zamontowana pompa ciepła posiada powierzchnię użytkową większą niż 300 m2? | C61: NIE | F61: Dofinansowanie: | G61: Czyste Powietrze
F62: Jestem uprawniony do poziomu dofinansowania: | G62: Podstawowy
D63: =IF(C61="Tak","Uwaga! Vat mieszany","") ->  | F63: Kwota kosztów kwalifikowanych [zł] | G63: =Oferta!Q112 ->  | H63: Pokaż
B64: Powierzchnia użytkowa: | C64: 400 | D64: =IF(C61="Tak","<-- Wpisz ilość m2","") ->  | F64: Maksymalna / przewidywana kwota dotacji* | G64: =IF(H63="Ukryj",0,IF(G61="Mój Prąd 5.0",'Czyste Powietrze'!R5,IF(OR($C$58="Piec węglowy tradycyjny ",LEFT(C58,3)="gaz"),'Czyste Powietrze'!AB13,0))) -> 
B65: 12. Finansowanie/ ulga termomodernizacyjna/ dotacja Czyste Powietrze/ Mój Prąd | F65: Program Czyste Powietrze | G65: =Oferta!Q113 -> 
B66: Ilość lat kredytu: | C66: 6 | H66: =IF(LEFT($C$58,3)="gaz","Dotacja przysługuje, jeśli gaz jest alternatywnym źródłem ciepła i zużycie nie przekracza 5600 kwh","") -> 
B67: Wpłata własna: | C67: 1000 | F67: Podsumowanie: | G67: =VLOOKUP(P1,M1:N7,2,0) -> Piec na pellet FERROLI BIOPELLET PRO 12kw
B68: Próg podatkowy dla klientów indywidualnych: | C68: 0.12 | F68: Cena bazowa netto: | G68: =VLOOKUP(podb!$R$1,podb!$A$3:$F$79,6,0) -> 
F69: =IF(podb!R1="Orange","Id sieci w Kampus",(IF(podb!$T$2=TRUE,"MH:","Marża netto:"))) -> Marża netto: | G69: 0
F70: Razem netto: | G70: =IF(AND(G61="Mój Prąd 5.0",G60="tak"),#VALUE!,(IF(podb!$S$2="OBI",'Kalkulator doboru'!$G$68,IF(podb!$S$2="Standardowy",$G$68+$G$69,$G$68+podb!$AG$6)))) -> 
F71: Klient indywidualny Vat 8% | G71: =IF(F71="Klient indywidualny Vat 8%",G70*0.08,G70*0.23) -> 
F72: Razem brutto: | G72: =IF(AND($F$71="Klient indywidualny Vat 8%",$C$61="TAK"),Koszty!CF16,(SUM(G70:G71))) -> 
F76: Na wartość umowy składają się kwoty:
E77: a) | F77: =G72-F79 ->  | G77: brutto
F78: =G70-F80 ->  | G78: netto
E79: b) | F79: 22086 | G79: brutto
F80: 20450 | G80: netto
F495: Typ montażu | G495: Standard
F497: Rabat: | G497: Nie
B500: 10. W swojej instalacji grzewczej potrzebujesz następujacych elementów (Panasonic) | D500: Mitsubishi Split | E500: Do ukrycia
B501: Zestaw: | C501: =VLOOKUP(D28,Panasonic!M3:N11,2,0) ->  | D501: =C529 -> - + -
B502: Jednostka wewnętrzna: | C502: =VLOOKUP(D28,Panasonic!M3:Q11,5,0) ->  | D502: =C530 -> - | F502: Do ukrycia
B503: Jednostka zewnętrzna: | C503: =VLOOKUP(D28,Panasonic!M3:S11,7,0) ->  | D503: =C531 -> - | F503: Liczba godzin ogrzewania | G503: =C11 -> 1950
B504: Bufor: | C504: =VLOOKUP(D28,Panasonic!M3:T11,8,0) ->  | D504: =C532 -> - | F504: Cena energii elektrycznej | G504: =Dane!B64 -> 1
B505: Zbiornik wody CWU | F505: Koszt energii elektrycznej c.w.u. i c.o. | G505: =SUM(C48:C50)*G504 -> 198 | H505: h
B506: Osprzęt | H506: zł/kWh
B507: Jednostka bezpieczeństwa, przepona, orurowanie podłączenia pompy ciepła z instalacją c.o. oraz c.w.u. (komplet) | H507: zł
B508: Instalacja chłodnicza z osprzętem elektrycznym | F508: Marża dodatkowa | G508: 800 | H508: --> pole wyświetla się jeśli standard plus
B509: Podstawa jednostki zewnętrznej
F510: Karta paliwowa | G510: Nie
F511: 1.
B512: NEW ENERGY Monoblok | C512: Panasonic Split | F512: Podsumowanie: | G512: =VLOOKUP(P1,M1:N7,2,0) -> Piec na pellet FERROLI BIOPELLET PRO 12kw
B513: =IF(Mitsubishi!A221="Kaskada",Koszty!BG108,Mitsubishi!A221) -> NE-F90HCR5TINVM 9kW | C513: =IFERROR(IF(C512="Panasonic Split",Panasonic!A33,VLOOKUP(Panasonic!A33,Panasonic!A51:B53,2,0)),"-") -> - | G513: =VLOOKUP(podb!$R$1,podb!$A$3:$F$78,6,0) -> 
B514: =IFERROR(VLOOKUP(B513,Mitsubishi!B209:D218,3,0),"-") -> 9kW | C514: =IFERROR(VLOOKUP(C513,Panasonic!M3:O17,3,0),"-") -> - | F514: 950zł/Kw | G514: =SS!KH22 -> -
B515: =IFERROR(IF(Mitsubishi!A221="Kaskada",Tabele!AI68,Tabele!AI62),"-") -> 5.244 | C515: =IFERROR(Tabele!Y62,"-") -> 5.05 | F515: Razem netto: | G515: =IF(podb!$S$2="OBI",'Kalkulator doboru'!$G$513,IF(podb!$S$2="Standardowy",$G$513+$G$514,$G$513+podb!$AG$6)) -> 
B516: =IFERROR(VLOOKUP(B513,Mitsubishi!B209:E218,4,0),"-") -> 3~/380-415V/50Hz | C516: =IFERROR(VLOOKUP(C513,'Panasonic (2)'!M3:P17,4,0),"-") -> - | F516: Klient indywidualny Vat 8% | G516: =IF(F516="Klient indywidualny Vat 8%",G515*0.08,G515*0.23) -> 
B517: =IFERROR(VLOOKUP(B513,Mitsubishi!B209:C218,2,0),"-") -> NE-F90HCR5TINVM | C517: =IFERROR(VLOOKUP(C513,'Panasonic (2)'!M3:N17,2,0),"-") -> - | F517: Razem brutto: | G517: =IF(AND($F$516="Klient indywidualny Vat 8%",$C$61="TAK"),Koszty!CF16,(SUM(G515:G516))) -> 
B518: =IFERROR(VLOOKUP(B513,Mitsubishi!B209:F218,5,0),"-") -> - | C518: =IFERROR(VLOOKUP(C513,'Panasonic (2)'!M3:Q17,5,0),"-") -> -
B519: =IFERROR(VLOOKUP(B513,Mitsubishi!B209:H218,7,0),"-") -> NE-F90HCR5TINVM | C519: =IFERROR(VLOOKUP(C513,'Panasonic (2)'!M3:S17,7,0),"-") -> - | F519: 3.
B520: =IFERROR(VLOOKUP(B513,Mitsubishi!B209:I218,8,0),"-") -> nie mniejszy niż 100L | C520: =IFERROR(VLOOKUP(C513,Panasonic!M3:T17,8,0),"-") -> - | F520: Podsumowanie: | G520: =VLOOKUP(P1,M1:N5,2,0) -> Piec na pellet FERROLI BIOPELLET PRO 12kw
B521: =VLOOKUP(F28,Panasonic!AA2:AD6,4,0) -> 200L | C521: =IFERROR(VLOOKUP(F28,Panasonic!AA36:AD42,4,0),"-") -> - | G521: =VLOOKUP(podb!$R$1,podb!$A$3:$F$78,6,0) -> 
F522: Oferta | G522: =VLOOKUP(F522,SS!KC107:KD110,2,0) -> 8000
F523: Razem netto: | G523: =IF(podb!$S$2="OBI",'Kalkulator doboru'!$G$521,IF(podb!$S$2="Standardowy",$G$521+$G$522,$G$521+podb!$AG$6)) -> 
C524: Mitsubishi Split | F524: Klient indywidualny Vat 8% | G524: =IF(F524="Klient indywidualny Vat 8%",G523*0.08,G523*0.23) -> 
C525: =IFERROR(Mitsubishi!C28,"Wycena indywidualna") -> Wycena indywidualna | F525: Razem brutto: | G525: =IF(AND($F$524="Klient indywidualny Vat 8%",$C$61="TAK"),Koszty!CF16,(SUM(G523:G524))) -> 
C526: =IFERROR(VLOOKUP(Mitsubishi!D28,Mitsubishi!A9:G21,4,0),"-") -> -
C527: =IFERROR(IF(C515="-",D30,C515),"-") -> 5.05 | F527: 2.
C528: =IFERROR(VLOOKUP(C525,Mitsubishi!G15:H21,2,0),"-") -> - | F528: Podsumowanie: | G528: =VLOOKUP(P1,M1:N5,2,0) -> Piec na pellet FERROLI BIOPELLET PRO 12kw
C529: =IFERROR(C530&" + "&C531,"-") -> - + - | G529: =VLOOKUP(podb!$R$1,podb!$A$3:$F$78,6,0) -> 
C530: =IFERROR(Mitsubishi!D26,"-") -> - | F530: STANDARD | G530: =VLOOKUP(F530,SS!KF56:KG59,2,0) -> 15000
C531: =IFERROR(Mitsubishi!D28,"-") -> - | F531: Razem netto: | G531: =IF(podb!$S$2="OBI",'Kalkulator doboru'!$G$529,IF(podb!$S$2="Standardowy",$G$529+$G$530,$G$529+podb!$AG$6)) -> 
C532: =IFERROR(VLOOKUP(C525,Mitsubishi!G15:I21,3,0),"-") -> - | F532: Klient indywidualny Vat 8% | G532: =IF(F532="Klient indywidualny Vat 8%",G531*0.08,G531*0.23) -> 
C533: =IFERROR(VLOOKUP(F28,Panasonic!AA2:AD6,4,0),"-") -> 200L | F533: Razem brutto: | G533: =IF(AND($F$532="Klient indywidualny Vat 8%",$C$61="TAK"),Koszty!CF24,(SUM(G531:G532))) -> 

Sheet Dane_CRM_PC (hidden)
A1: Data utworzenia | B1: =TODAY() -> 2024-10-01
A2: Pompa Ciepła | B2: ='Kalkulator doboru'!G67 -> Piec na pellet FERROLI BIOPELLET PRO 12kw | C2: 1
A3: Zbiornik CWU | B3: =IF(Mitsubishi!D51="Kaskada",VLOOKUP('Kalkulator doboru'!I25,Koszty!BM20:BO25,3,0),IF('Kalkulator doboru'!F28="Zbiornik CWU - Nie","Bez zbiornika CWU",VLOOKUP('Kalkulator doboru'!F28,Panasonic!AA2:AE4,5,0))) -> Zbiornik CWU 200L | C3: 2
A4: Bonus Arago | B4: =VLOOKUP('Kalkulator doboru'!G36,'Panasonic (2)'!DX2:DY4,2,0) -> Bonus za fotowoltaikę z Arago - NIE | C4: 3
A5: Płukanie instalacji | B5: ='Kalkulator doboru'!G41 -> Nie | C5: 4
A6: Wycena indywidualna | B6: ='Kalkulator doboru'!G42 -> Nie | C6: 5
A7: Wizja lokalna przed montażem | B7: ='Kalkulator doboru'!G43 -> Nie | C7: 6
A8: Utylizacja pieca | B8: ='Kalkulator doboru'!G45 -> Nie | C8: 7
A9: Połączenie pompy ciepła ze starym źródłem ciepła w układzie otwartym | B9: ='Kalkulator doboru'!G46 -> Nie | C9: 8
A10: Zamknięcie układu otwartego | B10: ='Kalkulator doboru'!G48 -> Nie | C10: 9
A11: Grupa pompowa | B11: =Oferta!P99 -> Nie | C11: 10
A12: Stojak pod pompę ciepła ze stali nierdzewnej | B12: ='Kalkulator doboru'!G50 -> Nie | C12: 11
A13: Ubezpieczenie | B13: ='Kalkulator doboru'!G37 -> Nie | C13: 12
A14: Rozszerzona gwarancja | B14: ='Kalkulator doboru'!G38 -> Nie | C14: 13
A15: Powieżchnia użytkowa | C15: 14
A16: Niezależne sterowanie dwoma obiegami grzewczymi | B16: ='Kalkulator doboru'!G51 -> Nie | C16: 15
A17: Zalanie układu pompy ciepła glikolem łącznie z zamontowaniem wymiennika | B17: ='Kalkulator doboru'!G52 -> Nie | C17: 16
A18: Dodatkowy sterownik bezprzewodowy jednego obiegu | B18: ='Kalkulator doboru'!G54 -> Nie | C18: 17
A19: Podłączenie pompy ciepła z układem solarny poprzez wymiennik ciepła | B19: ='Kalkulator doboru'!G55 -> Nie | C19: 18
A20: Montaż expres | C20: 19
A21: Efektywność energetyczna | B21: ='Kalkulator doboru'!G39 -> Nie | C21: 20
A22: Karta paliwowa | B22: ='Kalkulator doboru'!G510 -> Nie | C22: 21
A24: Marża (Próg PC) | B24: ='Kalkulator doboru'!F514 -> 950zł/Kw | C24: zweryfikować poprawność formuły
A25: Marża 2 | B25: ='Kalkulator doboru'!G69+(IF('Kalkulator doboru'!F514="Standard Plus",'Kalkulator doboru'!G508,0)) -> 0 | C25: zweryfikować poprawność formuły
A26: Równoważenie | B26: =IF('Kalkulator doboru'!G60="TAK","yes","no") -> no | C26: sprawdzić czy działa na opcji bez równoważenia
A27: Czyste Powietrze | B27: =VLOOKUP('Kalkulator doboru'!G62,'Czyste Powietrze'!D16:H18,5,0) -> podstawowy | C27: sprawdzić czy działa na opcji bez równoważenia
A28: Razem netto | B28: ='Kalkulator doboru'!G70 -> 
A29: VAT 8% | B29: ='Kalkulator doboru'!G71 -> 
A30: Razem brutto | B30: ='Kalkulator doboru'!G72 -> 

Sheet Oferta (hidden)
B2: Oferta instalacji pompy ciepła
B4: Inwestor: | I4: Andrzej Nowak
B5: Adres instalacji: | I5: Podgórna 146, 87-300 Brodnica
B6: Data wykonania oferty : | I6: =NOW() -> 2024-10-01T18:11:41.600 | M6: Oferta ważna do: | S6: =Mitsubishi!J9 -> 2024-10-15T18:11:41.600 | Y6: 2023-07-07T12:05:16.030 | Z6: <- zmiana ważności oferty
B8: Przygotował: | I8: Jan Kowalski | N8: Email: | P8: j.kowalski@arago.green
N9: Telefon: | P9: 000-000-000
B58: Wszystkie zaproponowane Państwu rozwiązania składają się z podzespołów o wysokiej jakości oraz trwałości.
B59: Podstawowe dane
B60: Strefa | M60: ='Kalkulator doboru'!B10 -> Umiarkowana-normalne warunki
B61: Strefa klimatyczna | M61: ='Kalkulator doboru'!C7 -> V
B62: Miasto | M62: ='Kalkulator doboru'!C6 -> Zakopane
B63: Powierzchnia ogrzewana budynku | M63: ='Kalkulator doboru'!G7&" m2" -> 120 m2
B64: Typ budynku | M64: ='Kalkulator doboru'!F8 -> Dom z bardzo dobrą izolacją
B65: Rodzaj ogrzewania | M65: ='Kalkulator doboru'!F26 -> Ogrzewanie podłogowe
B66: Czy w budynku jest rekuperacja | M66: ='Kalkulator doboru'!G29 -> NIE
B67: Temperatura dzienna | M67: ='Kalkulator doboru'!G17 -> 18 | R67: ='Kalkulator doboru'!H17 -> ˚C
B68: Temperatura nocna | M68: ='Kalkulator doboru'!G18 -> 16 | R68: ='Kalkulator doboru'!H18 -> ˚C
B69: Zużycie wody na osobę | M69: ='Kalkulator doboru'!C17 -> 60 | R69: ='Kalkulator doboru'!D17 -> l/os/dobę
B70: Ilość osób w budynku | M70: ='Kalkulator doboru'!C18 -> 4
B71: Roczne zapotrzebowanie ciepła dla c.o. i c.w.u. | M71: ='Kalkulator doboru'!C23 -> 16605.6 | R71: kWh/rok
B72: Moc obliczeniowa budynku z c.w.u. | M72: ='Kalkulator doboru'!C24 -> 6.7 | R72: kW
B73: Razem zużycie energii elektrycznej | M73: ='Kalkulator doboru'!C51 -> 198 | R73: kWh/rok
B74: Koszt energii elektrycznej razem | M74: ='Kalkulator doboru'!C55 -> 198 | R74: PLN/rok
B75: Wysokość kotłowni jest zgodna z ustawą i wynosi minimum 2,2m? | R75: ='Kalkulator doboru'!H20 -> Tak
B76: =IF('Kalkulator doboru'!G31="Piec zgazowujący drewno FERROLI",'Kalkulator doboru'!F23,'Kalkulator doboru'!F21) -> Czy powierzchnia przekroju komina wynosi minimum 150 cm2 (murowany komin min. 14x14 cm wewnątrz lub rura stalowa fi150)? | R76: =IF('Kalkulator doboru'!G31="Piec zgazowujący drewno FERROLI",'Kalkulator doboru'!H23,'Kalkulator doboru'!H21) -> Tak
B78: =IF('Kalkulator doboru'!G31="Piec zgazowujący drewno FERROLI",'Kalkulator doboru'!F24,'Kalkulator doboru'!F22) -> Szerokość najwęższego przejścia wynosi min. 70cm i wymiary kotłowni min. 2mx2m? | R78: =IF('Kalkulator doboru'!G31="Piec zgazowujący drewno FERROLI",'Kalkulator doboru'!H24,'Kalkulator doboru'!H22) -> Tak
B79: Zastosowane urządzenia
B80: Zastosowane urządzenia
B81: =IF(Mitsubishi!B248="tak","Producent pieca","Producent pompy") -> Producent pieca | I81: =VLOOKUP('Kalkulator doboru'!P1,'Panasonic (2)'!ED1:EE10,2,0) -> FERROLI | P81: =VLOOKUP(I81,'Panasonic (2)'!EE1:EF10,2,0) -> gwarancja 5 lat
B82: Typ | I82: ='Kalkulator doboru'!G67 -> Piec na pellet FERROLI BIOPELLET PRO 12kw
B83: ='Kalkulator doboru'!B501 -> Zestaw: | I83: =IF('Kalkulator doboru'!P1=1,'Kalkulator doboru'!D32,IF('Kalkulator doboru'!P1=2,'Kalkulator doboru'!B39,IF('Kalkulator doboru'!P1=3,'Kalkulator doboru'!C39,IF('Kalkulator doboru'!P1=4,'Kalkulator doboru'!C32,IF('Kalkulator doboru'!P1=5,'Kalkulator doboru'!B517,IF('Kalkulator doboru'!P1=6,'Kalkulator doboru'!D39,'Kalkulator doboru'!B28)))))) -> BIOPELLET PRO 12kw | U83: kpl.
B84: =IF(Mitsubishi!B248="tak",'Kalkulator doboru'!A43,'Kalkulator doboru'!B502) -> Pojemność zasobnika | I84: =IF('Kalkulator doboru'!P1=1,'Kalkulator doboru'!D33,IF('Kalkulator doboru'!P1=2,'Kalkulator doboru'!B43,IF('Kalkulator doboru'!P1=3,'Kalkulator doboru'!C43,IF('Kalkulator doboru'!P1=4,'Kalkulator doboru'!C33,IF('Kalkulator doboru'!P1=5,'Kalkulator doboru'!B518,IF('Kalkulator doboru'!P1=6,'Kalkulator doboru'!D43,'Kalkulator doboru'!B33)))))) -> 105 kg | U84: =IF(I84="-","szt.","szt. 1") -> szt. 1
B85: =IF(Mitsubishi!B248="tak",'Kalkulator doboru'!A42,'Kalkulator doboru'!B503) -> Zasilanie | I85: =IF('Kalkulator doboru'!P1=1,'Kalkulator doboru'!D34,IF('Kalkulator doboru'!P1=2,'Kalkulator doboru'!B42,IF('Kalkulator doboru'!P1=3,'Kalkulator doboru'!C42,IF('Kalkulator doboru'!P1=4,'Kalkulator doboru'!C34,IF('Kalkulator doboru'!P1=5,'Kalkulator doboru'!B519,IF('Kalkulator doboru'!P1=6,'Kalkulator doboru'!D42,'Kalkulator doboru'!B34)))))) -> 1/N/PE ~230 V / 50 Hz | U85: =VLOOKUP('Kalkulator doboru'!P1,'Panasonic (2)'!ED1:EM8,10,0) -> szt. 1
B86: =IF(Mitsubishi!B248="tak",'Kalkulator doboru'!A44,'Kalkulator doboru'!B504) -> Pojemność wodna | I86: =IF('Kalkulator doboru'!P1=1,'Kalkulator doboru'!D35,IF('Kalkulator doboru'!P1=2,'Kalkulator doboru'!B44,IF('Kalkulator doboru'!P1=3,'Kalkulator doboru'!C44,IF('Kalkulator doboru'!P1=4,'Kalkulator doboru'!C35,IF('Kalkulator doboru'!P1=5,'Kalkulator doboru'!B520,IF('Kalkulator doboru'!P1=6,'Kalkulator doboru'!D44,'Kalkulator doboru'!B35)))))) -> 30l | U86: ="szt. "&IF(I86="-","","1") -> szt. 1
B87: Zbiornik CWU | I87: =IF(Mitsubishi!B248="tak",'Kalkulator doboru'!B45,(IF(Mitsubishi!D125="Kaskada",'Kalkulator doboru'!I25,(VLOOKUP('Kalkulator doboru'!F28,Panasonic!AA2:AD6,4,0))))) -> 150L | U87: ="szt. "&IF(I87="brak","","1") -> szt. 1
B88: Osprzęt instalacji/usługi dodatkowe
B89: ='Kalkulator doboru'!B507 -> Jednostka bezpieczeństwa, przepona, orurowanie podłączenia pompy ciepła z instalacją c.o. oraz c.w.u. (komplet) | P89: TAK
B91: ='Kalkulator doboru'!B508 -> Instalacja chłodnicza z osprzętem elektrycznym | P91: TAK
B92: ='Kalkulator doboru'!B509 -> Podstawa jednostki zewnętrznej | P92: TAK
B93: Montaż | P93: TAK | S93: =VLOOKUP(I81,'Panasonic (2)'!EE1:EG8,3,0) -> gwarancja 5 lat
B94: Dostawa urządzeń | P94: TAK
B95: Płukanie instalacji | P95: =IF('Kalkulator doboru'!G60="tak","TAK",'Kalkulator doboru'!G41) -> Nie
B96: Utylizacja pieca | P96: ='Kalkulator doboru'!G45 -> Nie
B97: =IF(Mitsubishi!B248="tak",'Kalkulator doboru'!F44,"Połączenie pompy ciepła ze starym źródłem ciepła w układzie otwartym") -> Sprzęgło hydrauliczne do podłączenia ogrzewania mieszanego | P97: =IF(Mitsubishi!B248="tak",'Kalkulator doboru'!G44,'Kalkulator doboru'!G46) -> Nie
B98: =IF(Mitsubishi!B248="tak",'Kalkulator doboru'!F40,"Zamknięcie układu otwartego") -> Sterownik do sterowania zdalnego | P98: =IF(Mitsubishi!B248="tak",'Kalkulator doboru'!G40,IF('Kalkulator doboru'!G45="tak","TAK",'Kalkulator doboru'!G48)) -> Nie
B99: Grupa pompowa | P99: =IF(OR('Kalkulator doboru'!P1=1,'Kalkulator doboru'!P1=5),"Nie",'Kalkulator doboru'!G49) -> Nie
B100: Stojak pod pompę ciepła ze stali nierdzewnej | P100: ='Kalkulator doboru'!G50 -> Nie
B101: Niezależne sterowanie dwoma obiegami grzewczymi | P101: ='Kalkulator doboru'!G51 -> Nie
B102: Zalanie układu pompy ciepła glikolem łącznie z zamontowaniem wymiennika ciepła | P102: ='Kalkulator doboru'!G52 -> Nie
B104: Dodatkowy sterownik bezprzewodowy jednego obiegu | P104: ='Kalkulator doboru'!G54 -> Nie
B105: Połączenie pompy ciepła z układem solarnym poprzez wymiennik ciepła | P105: ='Kalkulator doboru'!G55 -> Nie
B106: =IF('Kalkulator doboru'!G39="Nie","",'Kalkulator doboru'!F39) ->  | P106: =IF('Kalkulator doboru'!G39="nie","","TAK") -> 
B107: =IF('Czyste Powietrze'!H12="NIE","","Równoważenie") ->  | P107: =IF('Czyste Powietrze'!H12="TAK","TAK","") -> 
B108: Napowietrzenie kotłowni | P108: ='Kalkulator doboru'!G57 -> Nie
B109: =IF(Mitsubishi!B248="Nie","Audyt Energetyczny","") ->  | P109: =IF(Mitsubishi!B248="Nie",(IF(OR('Kalkulator doboru'!G62="podwyższony",'Kalkulator doboru'!G62="najwyższy"),"Tak",IF('Kalkulator doboru'!G58="tak","Tak","Nie"))),"") -> 
B110: Wartość oferty netto | Q110: ='Kalkulator doboru'!G70 -> 
B111: Podatek VAT | L111: =IF('Kalkulator doboru'!F71="Klient indywidualny Vat 8%","8%","23%") -> 8% | Q111: ='Kalkulator doboru'!G71 -> 
B112: Wartość oferty brutto | Q112: ='Kalkulator doboru'!G72 -> 
B113: System wsparcia | L113: ="program"&" "&'Kalkulator doboru'!G61 -> program Czyste Powietrze | Q113: =IF(L111="8%",'Kalkulator doboru'!G64,0) -> 
B114: System wsparcia | L114: ulga termomodernizacyjna | Q114: =IF(L111="8%",'Kalkulator doboru'!C68,"") -> 0.12 | R114: =IF(L111="8%",IF((Q112-Q113)>53000,53000*Q114,(Q112-Q113)*Q114),0) -> 
B115: ="Rzeczywisty koszt pomniejszony o "&'Kalkulator doboru'!G61 -> Rzeczywisty koszt pomniejszony o Czyste Powietrze | Q115: =Q112-Q113 -> 
B116: Rzeczywisty koszt pomniejszony dodatkowo o ulgę | Q116: =Q112-Q113-R114 -> 
B136: Szacunkowe korzyści przy zakupie "na raty"
B137: CREDIT AGRICOLE BANK POLSKA S.A. - kredyt do 10 lat
B138: Bank (kredyt) | M138: Credit Agricole
B139: Ilość lat | M139: ='kredyty '!D6 -> 6
B140: Cena instalacji brutto | M140: =Q112 -> 
B141: Wkład własny | M141: ='Kalkulator doboru'!C67 -> 1000
B142: RATA MIESIĘCZNA | M142: ='kredyty '!D15 -> 
B144: ALIOR BANK POLSKA S.A. - kredyt do 10 lat
B145: Bank (kredyt) | M145: Alior Bank
B146: Ilość lat | M146: ='kredyty '!AE6 -> 6
B147: Cena instalacji brutto | M147: =Q112 -> 
B148: Wkład własny | M148: ='Kalkulator doboru'!C67 -> 1000
B149: RATA MIESIĘCZNA | M149: ='kredyty '!AE15 -> 
B151: BNP PARIBAS BANK POLSKA S.A. - kredyt do 10 lat
B152: Bank (kredyt) | M152: BNP
B153: Ilość lat | M153: ='kredyty '!BH6 -> 6
B154: Cena instalacji brutto | M154: =Q112 -> 
B155: Wkład własny | M155: ='Kalkulator doboru'!C67 -> 1000
B156: RATA MIESIĘCZNA | M156: ='kredyty '!BH15 -> 
B158: SANTANDER BANK POLSKA S.A. - kredyt do 10 lat
B159: Bank (kredyt) | M159: Santander
B160: Ilość lat | M160: ='kredyty '!CK6 -> 6
B161: Cena instalacji brutto | M161: =Q112 -> 
B162: Wkład własny | M162: ='Kalkulator doboru'!C67 -> 1000
B163: RATA MIESIĘCZNA | M163: ='kredyty '!CK15 -> 
B165: INBANK S.A. - kredyt do 12,5 lat
B166: Bank (kredyt) | M166: InBank
B167: Ilość lat | M167: ='kredyty '!DS6 -> 6
B168: Cena instalacji brutto | M168: =Q112 -> 
B169: Wkład własny | M169: ='Kalkulator doboru'!C67 -> 1000
B170: RATA MIESIĘCZNA | M170: ='kredyty '!DS15 -> 
B172: VELO Bank - kredyt do 10 lat
B173: Bank (kredyt) | M173: VELO Bank
B174: Ilość lat | M174: ='kredyty '!$GE$6 -> 6
B175: Cena instalacji brutto | M175: =$Q$112 -> 
B176: Wkład własny | M176: ='Kalkulator doboru'!$C$67 -> 1000
B177: RATA MIESIĘCZNA | M177: ='kredyty '!$GE$15 -> 
B179: Cofidis - kredyt do 10 lat
B180: Bank (kredyt) | M180: Cofidis
B181: Ilość lat | M181: ='kredyty '!$GE$6 -> 6
B182: Cena instalacji brutto | M182: =$Q$112 -> 
B183: Wkład własny | M183: ='Kalkulator doboru'!$C$67 -> 1000
B184: RATA MIESIĘCZNA | M184: ='kredyty '!$GE$15 -> 
L188: Koszt obecnego systemu ogrzewania PLN/rok | Q188: Koszt obecneo systemu ogrzewania po 25 latach PLN/rok*
B191: Gaz ziemny | L191: =IF($B$191='Kalkulator doboru'!$C$58,'Kalkulator doboru'!$C$59,Dane!$K$59) -> 5300.337909 | Q191: =Dane!J68 -> 530086.6425
B192: Gaz (LPG) | L192: =IF($B192='Kalkulator doboru'!$C$58,'Kalkulator doboru'!$C$59,Dane!K60) -> 8732.741998 | Q192: =Dane!J69 -> 873361.2771
B193: Olej opałowy | L193: =IF($B193='Kalkulator doboru'!$C$58,'Kalkulator doboru'!$C$59,Dane!K61) -> 12747.5907 | Q193: =Dane!J70 -> 1274886.181
B194: Piec węglowy tradycyjny | L194: =IF($B194='Kalkulator doboru'!$C$58,'Kalkulator doboru'!$C$59,Dane!K63) -> 8000 | Q194: =Dane!J72 -> 800079.7709
B195: Energia elektryczna (pompa ciepła) | L195: =IF($B195='Kalkulator doboru'!$C$58,'Kalkulator doboru'!$C$59,Dane!K64) ->  | Q195: =Dane!J73 -> 
B196: * Przy założeniu wzrostu cen paliw rocznie
B198: Inwestycja w pompę ciepła
B199: Porównanie przejścia z ogrzewania olejem opałowym na pompę ciepła
B218: ="** Z uwzględnieniem dotacji "&'Kalkulator doboru'!G61&" w pierwszym roku oraz ulgi termomodernizacyjnej w drugim roku" -> ** Z uwzględnieniem dotacji Czyste Powietrze w pierwszym roku oraz ulgi termomodernizacyjnej w drugim roku
B221: ="Porównanie przejścia z ogrzewania "&'Kalkulator doboru'!$C$58&"na pompę ciepła" -> Porównanie przejścia z ogrzewania Piec węglowy tradycyjny na pompę ciepła
B241: ="*** Z uwzględnieniem dotacji "&'Kalkulator doboru'!G61&" w pierwszym roku oraz ulgi termomodernizacyjnej w drugim roku" -> *** Z uwzględnieniem dotacji Czyste Powietrze w pierwszym roku oraz ulgi termomodernizacyjnej w drugim roku
B247: ARAGO jest innowacyjną oraz prężnie się rozwijającą firmą w zakresie budowy ekologicznych rozwiązań produkcji energii elektrycznej. Celem naszych działań jest świadczenie kompleksowych usług w zakresie rozwiązań instalacji fotowoltaicznych, pomp ciepła, magazynów energii, optymalizacji kosztów mediów (energia elektryczna, gaz) oraz budowy infrastruktury ładowania samochodów elektrycznych.
B253: OC | I253: =IF('Kalkulator doboru'!G45="Nie","","SYSTEMY WSPARCIA") ->  | P253: SZYBKA INSTALACJA
B254: Posiadamy ubezpieczenie OC do wysokości 3 milionów PLN - możesz z nami czuć się bezpiecznie | I254: =IF('Kalkulator doboru'!G45="Nie","","W zakresie programu Czyste Powietrze, wszelkie formalności załatwimy za Ciebie") ->  | P254: Posiadamy własne zespoły montażowe, dlatego u nas realizacja Twojej instalacji może być wykonana nawet do 12 tygodni od podpisania umowy
B258: Zacznij instalację, uruchomienie i eksploatację swojej pompy ciepła z ARAGO w 4 prostych krokach:
B260: Krok 1. Wybór formy finansowania, podpisanie umowy na realizację Twojej inwestycji
B261: Stawiamy na proste, przejrzyste zasady współpracy. Ustalamy z Tobą wszystkie szczegóły projektowanej instalacji - bez ukrytych kosztów i niespodziewanych wydatków. To Ty wybierasz najbardziej komfortowy dla Ciebie pakiet i opcję finansowania. Umowę z ARAGO podpisujesz bez zbędnych papierów, w wygodny dla Ciebie sposób z użyciem podpisu elektronicznego. Załatwimy dla Ciebie także niezbędnie finansowanie, tj. kredyt. Szczegółowe warunki dotyczące kredytu dostępne są u nas i naszych autoryzowanych sprzedawców. Współpracujemy z Credit Agricole Polska S.A., Alior Bank S.A., BNP Paribas Bank Polska S.A. oraz Santander Polska S.A i jesteśmy umocowani do świadczenia w imieniu tych Banków usług pośrednictwa finansowego w zakresie czynności faktycznych i prawnych związanych z zawieraniem umów o kredyt ratalny.
B269: Krok 2. Profesjonalny montaż i podłączenie instalacji
B270: Wybierzemy dzień, który będzie najbardziej Ci odpowiadał. Nie martw się również pozwoleniami, umowami i dokumentacją. To wszystko jest na naszej głowie, załatwimy to za Ciebie. Wykonamy montaż, instalację oraz konfigurację urządzeń.
B273: Krok 3. Szkolenia i dokumentacja powykonawcza
B274: Przygotujemy stosowną dokumentację powykonawczą wraz z obowiązkowymi pomiarami, przeszkolimy inwestora z obsługi pompy ciepła, jak również przekażemy Ci wszystkie numery seryjne oraz karty gwarancyjne urządzeń, podzespołów, wykorzystanych do budowy Twojej instalacji, wraz z ich technicznymi parametrami fabrycznymi.
B278: Krok 4. Uruchomienie produkcyjne instalacji
B279: To właśnie ten moment - najprzyjemniejszy, kiedy montaż się zakończył i uzyskaliśmy dla Ciebie wszystkie zgody, pozostaje Ci cieszyć się ekologiczną pompą ciepła w Twoim domu.
B287: Dane kontaktowe: | H287: Dane rejestrowe: | N287: Media elektroniczne:
B289: Arago S.A. | H289: NIP:9562326208 | N289: Strona internetowa: www.arago.green
B290: ul. Jastrzębia 24, Kominy | H290: KRS:0000686904 | N290: Facebook: https://www.facebook.com/aragoservices
B291: 87-300 Brodnica | H291: REGON:367787398 | N291: Instagram: https://www.instagram.com/arago.green/
B292: Polska | N292: Telefon: (+48) 600 991 359, Mail: kontakt@arago.green
B299: Zastrzeżenia i informacje o ofercie:
B300: Propozycja ofertowa została przygotowana i przedstawiona przez Arago S.A. z siedzibą w Brodnicy, ul. Jastrzębia 24, Kominy jako instalatora pomp ciepła. Powyższa oferta ma charakter informacyjny i nie stanowi oferty w rozumieniu art. 66 ustawy z dnia 23 kwietnia 1964 roku Kodeks Cywilny. Informacje zawarte w niniejszym dokumencie ofertowym są wstępnymi szacunkami wyłącznie w celach ilustracyjnych i nie stanowią wiążącej umowy ani zobowiązania. Rzeczywiste oszczędności nie są gwarantowane. Projekt systemu może ulec zmianie na podstawie szczegółowego audytu strony inżynierskiej. Oferta instalacji pompy ciepła jest dostosowana do Twojego domu (obiektu) i wskazanej lokalizacji instalacyjnej, jego cena, rzeczywiste oszczędności będą się różnić w zależności od ostatecznej docelowej lokalizacji, projektu, konfiguracji, stawek, obowiązujących rabatów, obowiązujących ulg podatkowych i zużycia energii przez gospodarstwo domowe. Wyliczenia dotyczące założeń finansowych i parametry wskazane w ofercie zostały wyliczone orientacyjnie i mogą się różnić od ostatecznej decyzji banku. Przyznanie kredytu oraz jego warunki uzależnione są od wyboru banku, w którym będzie miała zostać podpisana umowa kredytu, jego zasad oraz wyceny zdolności kredytowej Klienta.
B311: Kluczowe założenia propozycji ofertowej:
B312: ="Informacje zawarte w niniejszym dokumencie ofertowym, takie jak kalkulacje ceny oparte są na cenniku nr"&" "&RIGHT('Kalkulator doboru'!C1,14)&"," -> Informacje zawarte w niniejszym dokumencie ofertowym, takie jak kalkulacje ceny oparte są na cenniku nr 01a/06/2024-2,
B313: obliczenia oszczędności oparte są na następujących założeniach:
B314: Założenia dla instalacji pompy ciepła
B315: Planowana moc grzewcza [kW]: | M315: ='Umowa PC '!G467 -> -
B316: Koszt zakupu systemu [PLN]: | M316: =Q112 ->  | O316: brutto
B317: Dobór pompy przy zalożeniu temperatury ciepłej wody | M317: ='Kalkulator doboru'!C19 -> 50 | O317: ='Kalkulator doboru'!D19 -> ˚C
B318: Minimalna odległość od sąsiadującego budynku [m]: | M318: ='Panasonic (2)'!CS25 -> min. 15
B319: Założenia finansowe:
B320: Stawka VAT [%]: | M320: 0.08
B321: Próg podatkowy klienta indywidualnego [%]: | M321: ='Kalkulator doboru'!C68 -> 0.12
B322: Bank obsługujący kredyt na instalację fotowoltaiczną: | M322: Bank Credit Agricole Polska S.A.; Alior Bank S.A.; InBank S.A.;
M323: Santander Bank Polska S.A.; BNP Paribas Bank Polska S.A. ; VELO Bank;
M324: Cofids
B325: Planowana ilość lat kredytu [lata]: | M325: ='Kalkulator doboru'!C66 -> 6
B326: Planowana wpłata własna [PLN]: | M326: ='Kalkulator doboru'!C67 -> 1000
B327: Szacowana wartość miesięcznej raty kredytowej Bank Credit Agricole Polska S.A. [PLN/miesiąc]: | M327: =M142 -> 
B329: Szacowana wartość miesięcznej raty kredytowej Alior Bank S.A. [PLN/miesiąc]: | M329: =M149 -> 
B330: Szacowana wartość miesięcznej raty kredytowej BNP Paribas Bank Polska S.A. [PLN/miesiąc]: | M330: =M156 -> 
B332: Szacowana wartość miesięcznej raty kredytowej Santander Bank Polska S.A. [PLN/miesiąc]: | M332: =M163 -> 
B334: Szacowana wartość miesięcznej raty kredytowej InBank S.A. [PLN/miesiąc]: | M334: ='kredyty '!DS15 -> 
B335: Szacowana wartość miesięcznej raty kredytowej VELO Bank [PLN/miesiąc]: | M335: =M177 -> 
B336: Szacowana wartość miesięcznej raty kredytowej VELO Bank [PLN/miesiąc]: | M336: =M184 -> 
B337: Ulga termomodernizacyjna [PLN]: | G337: =R114 ->  | I337: - jednorazowo, rozliczna w podatku PIT w drugim roku po wykonaniu instalacji
B338: Stawka progu podatkowego PIT [%]: | G338: ='Kalkulator doboru'!C68 -> 0.12
B339: =IF(AND('Kalkulator doboru'!$G$37="Nie",'Kalkulator doboru'!$G$36="Nie"),"","Wakacje z ARAGO/Ubezpieczenie ERGO Hestia:") ->  | M339: Utylizacja pieca - | Q339: ='Kalkulator doboru'!G45 -> Nie
B340: =IF('Kalkulator doboru'!$G$36="Nie","",'Kalkulator doboru'!$G$36) ->  | G340: =IF('Kalkulator doboru'!$G$37="Nie","",IF('Panasonic (2)'!DP4=0,"Ubezpieczenie pompy ciepła - Nie","Ubezpieczenie pompy ciepła - Tak")) ->  | M340: =IF('Kalkulator doboru'!$G$43="Tak",'Kalkulator doboru'!$F$43&" - Tak","") ->  | S340: =IF('Kalkulator doboru'!$G$42="Tak","Wycena indywidualna - Tak","") -> 
B341: System wsparcia: | M341: Podstawowe wymagania dofinansowania Czyste powietrze:
B342: Program Czyste Powietrze [PLN]: | M342: ='Czyste Powietrze'!F34 -> - Osoby fizyczne - tylko właściciel lub współwłaściciel nieruchomości z księgą wieczystą.
B344: ='Czyste Powietrze'!F33 -> Zwrot do 55% inwestycji, nie więcej niż 19 400 zł. Kwota płatna jednorazowo, po zamontowaniu systemu pompy ciepła i złożeniu stosownego wniosku do Narodowego Funduszu Ochrony Środowiska i Gospodarki Wodnej: o naborze i dostępnych środkach, o zasadach dotyczących zgłoszenia wniosku oraz o przyznaniu i wypłaceniu dotacji decyduje Narodowy Fundusz Ochrony Środowiska i Gospodarki Wodnej: Arago nie gwarantuje Klientowi otrzymania dotacji
M345: ='Czyste Powietrze'!F35 -> - W budynku prowadzona może być działalność, ale nie może przekraczać 30 % powierzchni nieruchomości.
M347: ='Czyste Powietrze'!F36 -> - Dofinansowanie dla kopciuchów, ekogroszku bezklasowych oraz na biomasę, poniżej V klasy. pelet, ekogroszek V klasy nie kwalifikują się do dofinansowania. Natomiast pozostałe jak olej opałowy, gaz (jeśli nie jest alternatywnym źródłem ciepła i zużycie nie przekracza 5600 kwh).
B350: Poziom dofinansowania Czyste powietrze: | J350: ='Kalkulator doboru'!$G$62 -> Podstawowy | M350: ='Czyste Powietrze'!F37 -> - zakończona budowa przed 1 stycznia 2014r.
M351: ='Czyste Powietrze'!F38 -> - dochód do 135 tys. zł.
B352: ='Czyste Powietrze'!F32 -> 
M353: ='Czyste Powietrze'!F39 -> 
B358: Klauzula informacyjna dotycząca przetwarzania danych osobowych osób zainteresowanych ofertą spółki chcących zawrzeć ze spółką umowę w przedmiocie wykonania pompy ciepła a także skorzystać z usług dodatkowych oferowanych przez spółkę w porozumieniu z podmiotami trzecimi.
B362: Przedstawienie klauzuli informującej o przetwarzaniu danych osobowych stanowi realizację obowiązków przewidzianych w Rozporządzeniu Parlamentu Europejskiego i Rady (UE) 2016/679 z dnia 27 kwietnia 2016 r. w sprawie ochrony osób fizycznych w związku z przetwarzaniem danych osobowych i w sprawie swobodnego przepływu takich danych oraz uchylenia dyrektywy 95/46/WE (dalej: „RODO”)
B365: 1. | C365: Administratorem Pani/Pana danych osobowych jest Arago S.A. z siedzibą w Brodnicy pod adresem: ul. Jastrzębia 24, Kominy, 87-300 Brodnica (dalej: „Administrator”).
B367: 2. | C367: Administrator danych osobowych jest dostępny:
C368: ∙ | D368: pod adresem e-mail: privacy@arago.green
C369: ∙ | D369: pod adresem korespondencyjnym: ul. Jastrzębia 24, Kominy, 87-300 Brodnica.
B370: 3. | C370: Pani/Pana dane osobowe zostały pozyskane od Partnera współpracującego z Administratorem w związku z nawiązaniem przez ten podmiot kontaktu, a w przypadku ustalenia, iż jest Pan/i zainteresowany produktami/usługami świadczonymi przez spółkę i podmioty z nią współpracujące, podjęciem czynności zmierzających do zawarcia umowy.
B373: 4. | C373: Pani/Pana dane osobowe są przetwarzane w celu dopasowania i przedstawienia Państwu aktualnej oferty produktów oraz usług świadczonych przez Administratora, a także podmioty z nim powiązane, co stanowi czynności podejmowane przed ewentualnym zawarciem umowy pomiędzy Panem/Panią a Administratorem (art. 6 ust. 1 lit. b) RODO - przetwarzanie jest niezbędne do wykonania umowy zawartej z osobą, której dotyczą dane lub podjęcia działań w celu jej zawarcia).
B376: 5. | C376: Jeśli przekazuje nam Pan/i swoje dane osobowe bezpośrednio, jest to dobrowolne, przy czym niezbędne do przedstawienia oferty, a następnie ewentualnego zawarcia i wykonywania umowy. Niepodanie danych osobowych skutkuje niemożliwością zrealizowania powyżej wymienionych czynności.
B379: 6. | C379: Pana/Pani dane osobowe są przetwarzane przez okres obowiązywania oferty, a w przypadku podjęcia decyzji o chęci skorzystania z oferty i zawarcia umowy z Administratorem - przez cały okres jej obowiązywania, z uwzględnieniem okresów związanych z realizacją ciążących na Administratorze obowiązków prawnych z zakresu podatków i rachunkowości w szczególności: prowadzenia księgowości, rozliczenia podatków, archiwizacji danych na potrzeby księgowe (podstawa z art. 6 ust. 1 lit. c) RODO w związku z przepisami prawa podatkowego i ustawy o rachunkowości), a także ustalenia, dochodzenia i obrony roszczeń, co stanowi nasz prawnie uzasadniony interes (podstawa z art. 6 ust. 1 lit. f) RODO).
B385: 7. | C385: Odbiorcami Pani/Pana danych osobowych może być:
C386: ∙ | D386: upoważniony do tego personel Administratora;
C387: ∙ | D387: podmioty przetwarzające dane osobowe na zlecenie Administratora dla wypełnienia celów, dla jakich dane te są zbierane (w szczególności podmioty dostarczające rozwiązania IT oraz świadczące usługi IT, podmioty udzielające wsparcia technicznego, prawnego, finansowego, związanego z pozyskiwaniem leadów, obsługą centralki telefonicznej, podmioty świadczące usługi pocztowe, kurierzy); podmioty te muszą mieć dostęp do danych, aby wykonywać swoje obowiązki. Podmioty te będą miały dostęp do danych osobowych tylko w zakresie niezbędnym do realizacji spoczywających na nich zadań;
C392: ∙ | D392: organy władzy publicznej oraz podmioty wykonujące zadania publiczne lub działające na zlecenie organów władzy publicznej, w zakresie i w celach, które wynikają z przepisów powszechnie obowiązującego prawa;
B394: 8. | C394: Administrator danych osobowych nie zamierza przekazywać Pani/Pana danych osobowych do państwa trzeciego lub organizacji międzynarodowej.
B396: 9. | C396: Ma Pani/Pan prawo:
C397: ∙ | D397: żądania dostępu do danych osobowych Pani/Pana dotyczących;
C398: ∙ | D398: żądania ich sprostowania;
C399: ∙ | D399: żądania ich usunięcia;
C400: ∙ | D400: żądania sprzeciwu;
C401: ∙ | D401: żądania ich ograniczenia przetwarzania;
B402: 10. | C402: Przysługuje Pani/Panu prawo do wniesienia skargi do organu nadzorczego w związku z przetwarzaniem Pani/Pana danych osobowych przez administratora, tj. Prezesa Urzędu Ochrony Danych Osobowych.
B404: 11. | C404: Pani/Pana dane osobowe nie są poddawane zautomatyzowanemu podejmowaniu decyzji, w tym profilowaniu.

Sheet podb (hidden)
A1: Kalkulator doboru | R1: GF | S1: Liczenie podbicia | T1: Ślepra marża: | U1: Numer w kosztach | V1: MOC KW standard | W1: MOC KW uproszczony | X1: Ilość pomp normalny kalk | Y1: =(VLOOKUP('Kalkulator doboru'!$G$67,Koszty!Z5:AA41,2,0))+'Panasonic (2)'!DA7+'Panasonic (2)'!DF5-'Panasonic (2)'!DH6+'Panasonic (2)'!DH7+'Panasonic (2)'!DP4+'Panasonic (2)'!DD5+'Panasonic (2)'!DR6+'Panasonic (2)'!DT6 ->  | Z1: czysta cena bazowa - stara formuła | AB1: =DAY(TODAY()) -> 1 | AC1: =MONTH(TODAY()) -> 10 | AD1: =YEAR(TODAY()) -> 2024 | AF1: Kalkulator doboru | AG1: MARŻA | AM1: Kalkulator uproszczony | AN1: Marża 70/30 | AR1: MOC KW | BE1: MOC | BF1: Gwarancja | BG1: Ilość | BH1: Ceny N-Energia | BI1: Ceny N-Energia | BY1: =VLOOKUP(V2,BX4:BY16,2,1) -> 100 | CD1: Invelo_GLC | CN1: Invelo_RS Development | CU1: Dla KL m.standardowy | CV1: =IFERROR(IF(Mitsubishi!B248="nie",VLOOKUP(R1,CU3:CV14,2,0),VLOOKUP(podb!R1,podb!CU3:CW14,3,0)),0) -> 0
B2: Podbicie % do ceny bazowej | C2: Cena bazowa czysta (bez dodatków) | D2: Cena dodatków bazowych | E2: % od ceny bazowej | F2: Suma | G2: Dodatki | H2: KW | I2: zł/kwh | J2: Podsumowanie KWH | K2: KASKADA | L2: % do kaskady | M2: Cena od ilości pomp | N2: dodatkowe podbicie (równoważenie) | O2: Podsumowanie polecenia | P2: Polecenie | Q2: Dla kogo polecenie | R2: Ślepe marże: | S2: =VLOOKUP($R$1,$A$3:$S$79,19,0) -> Standardowy | T2: =IF(VLOOKUP($R$1,$A$3:$R$79,18,0)=1,TRUE,FALSE) -> FALSE | U2: =Koszty!$BX$1 -> 2 | V2: =VLOOKUP('Kalkulator doboru'!$G$67,$BD$2:$BE$144,2,0) -> 12 | W2: =VLOOKUP('Kalkulator doboru - uproszczony'!$J$49,$BD$2:$BE$128,2,0) ->  | X2: =VLOOKUP('Kalkulator doboru'!$G$67,podb!$BD$2:$BG$122,4,0) -> 1 | AB2: Nazwa | AC2: ="Kalkulator_PC_"&AC3&"_"&R1&"_"&AD2 -> Kalkulator_PC_v1.77_GF_1.010.2024 | AD2: =AB1&".0"&AC1&"."&AD1 -> 1.010.2024 | AF2: Marża handlowca | AG2: ='Kalkulator doboru'!$G$69 -> 0 | AH2: =VLOOKUP($S$2,$AF$11:$AH$20,2,0) ->  | AM2: Marża handlowca | AN2: ='Kalkulator doboru - uproszczony'!$J$51 -> 0 | AO2: =VLOOKUP($S$2,$AF$11:$AH$20,2,0) ->  | AQ2: Kalk normalny | BB2: SPRSUN Monoblok | BC2: CGK015V3L-B 6kW | BD2: =BB2&" "&BC2 -> SPRSUN Monoblok CGK015V3L-B 6kW | BE2: 6 | BF2: 5 | BG2: 1 | BH2: =BI2*BE2 -> 5400 | BI2: 900 | BX2: N-Energia | CE2: Razem | CF2: GLC | CG2: Invelo | CN2: Razem | CO2: RS | CP2: Invelo | CV2: PC | CW2: Piec
A3: 4M | B3: 0 | C3: =ROUND(((VLOOKUP('Kalkulator doboru'!$G$67,Koszty!$Z$5:$AA$67,2,0))+'Panasonic (2)'!$DB$19-'Panasonic (2)'!$DB$41),2) -> 21900 | D3: ='Panasonic (2)'!$DB$36-'Panasonic (2)'!$DB$19 -> 0 | E3: =ROUND((B3*C3),2) -> 0 | F3: =E3+C3+G3+D3 -> 21900 | R3: 0 | S3: 70/30 | T3: ='Kalkulator doboru'!G72 ->  | X3: Ilość pomp uproszczony kalk | AB3: Wersja | AC3: v1.77 | AF3: Marża dla partnera | AG3: =(AG2*AH3)/AH2 ->  | AH3: =VLOOKUP($S$2,$AF$11:$AH$20,3,0) ->  | AM3: Marża dla partnera | AN3: =(AN2*AO3)/AO2 ->  | AO3: =VLOOKUP($S$2,$AF$11:$AH$20,3,0) ->  | AQ3: Kalk uproszczony | BB3: SPRSUN Monoblok | BC3: CGK-025V3L-B 10kW | BD3: =BB3&" "&BC3 -> SPRSUN Monoblok CGK-025V3L-B 10kW | BE3: 10 | BF3: 5 | BG3: 1 | BH3: =BI3*BE3 -> 8000 | BI3: 800 | BO3: Rabat Managerski – 1000 zł netto, Rabat Dyrektorki – 2000 zł netto. | BX3: moc - kw | BY3: Marża dodana netto | CD3: SPRSUN Monoblok CGK015V3L-B 6kW | CE3: =10000+1000 -> 11000 | CF3: =10000 -> 10000 | CG3: 1000 | CN3: =CO3+CP3 -> 7000 | CO3: 4000 | CP3: 3000 | CU3: Grzegorz Perz | CV3: 120 | CW3: 150
A4: WS-A | B4: 0.04 | C4: =ROUND(((VLOOKUP('Kalkulator doboru'!$G$67,Koszty!$Z$5:$AA$67,2,0))+'Panasonic (2)'!$DB$19-'Panasonic (2)'!$DB$41),2) -> 21900 | D4: ='Panasonic (2)'!$DB$36-'Panasonic (2)'!$DB$19 -> 0 | E4: =ROUND((B4*C4),2) -> 876 | F4: =E4+C4+G4+D4 -> 22776 | R4: 0 | S4: Standardowy | U4: =((VLOOKUP('Kalkulator doboru'!$G$67,Koszty!$Z$5:$AA$41,2,0))+'Panasonic (2)'!$DB$36-'Panasonic (2)'!$DB$41) ->  | V4: czysta cena bazowa kalkulator standardowy | X4: =VLOOKUP('Kalkulator doboru - uproszczony'!$J$49,podb!$BD$2:$BG$122,4,0) ->  | BB4: SPRSUN Monoblok | BC4: CGK-030V3L-B 12kW | BD4: SPRSUN Monoblok CGK-030V3L-B 12kW | BE4: 12 | BF4: 5 | BG4: 1 | BH4: 9600 | BI4: 800 | BX4: 4 | BY4: 200 | CD4: SPRSUN Monoblok CGK-025V3L-B 10kW | CE4: =10000+1000 -> 11000 | CF4: =10000 -> 10000 | CG4: 1000 | CU4: Novar | CV4: 120 | CW4: 150
A5: WS-A KL | B5: =IF(Mitsubishi!B248="tak",0,4%) -> 0 | C5: =ROUND(((VLOOKUP('Kalkulator doboru'!$G$67,Koszty!$Z$5:$AA$67,2,0))+'Panasonic (2)'!$DB$19-'Panasonic (2)'!$DB$41),2) -> 21900 | D5: ='Panasonic (2)'!$DB$36-'Panasonic (2)'!$DB$19 -> 0 | E5: 0 | F5: 21900 | H5: =$V$2 -> 12 | R5: 0 | S5: Standardowy | AG5: =AG2-AG3 ->  | AN5: =AN2-AN3 ->  | BB5: SPRSUN Monoblok | BC5: CGK-040V3L-B 16kW | BD5: SPRSUN Monoblok CGK-040V3L-B 16kW | BE5: 16 | BF5: 5 | BG5: 1 | BH5: 12800 | BI5: 800 | BO5: Biomag | BX5: 5 | BY5: 200 | CD5: SPRSUN Monoblok CGK-030V3L-B 12kW | CE5: =8000+1000 -> 9000 | CF5: =8000 -> 8000 | CG5: 1000 | CU5: Prestige | CV5: 120 | CW5: 150
A6: EJDOS | B6: 0 | C6: =ROUND(((VLOOKUP('Kalkulator doboru'!$G$67,Koszty!$Z$5:$AA$67,2,0))+'Panasonic (2)'!$DB$19-'Panasonic (2)'!$DB$41),2) -> 21900 | D6: ='Panasonic (2)'!$DB$36-'Panasonic (2)'!$DB$19 -> 0 | E6: 0 | F6: 21900 | G6: =N6 -> 0 | N6: =IF('Czyste Powietrze'!$H$12="tak",'Panasonic (2)'!$DX$41,0) -> 0 | R6: 0 | S6: Standardowy | AF6: Suma marż (H+P) | AG6: =ROUND(AG2+AG3,2) ->  | AM6: Suma marż (H+P) | AN6: =ROUND(AN2+AN3,2) ->  | BB6: SPRSUN Monoblok | BC6: SPRSUN Mono 10kW + 10kW | BD6: SPRSUN Monoblok SPRSUN Mono 10kW + 10kW | BE6: 20 | BF6: 5 | BG6: 2 | BH6: kaskada | BX6: 6 | BY6: 200 | CD6: SPRSUN Monoblok CGK-040V3L-B 16kW | CE6: =8000+1000 -> 9000 | CF6: =8000 -> 8000 | CG6: 1000 | CU6: SIM | CV6: 120 | CW6: 150
A7: CAMIS | B7: 0.05 | C7: =ROUND(((VLOOKUP('Kalkulator doboru'!$G$67,Koszty!$Z$5:$AA$67,2,0))+'Panasonic (2)'!$DB$19-'Panasonic (2)'!$DB$41),2) -> 21900 | D7: ='Panasonic (2)'!$DB$36-'Panasonic (2)'!$DB$19 -> 0 | E7: 1095 | F7: 22995 | R7: 0 | S7: Standardowy | U7: =VLOOKUP(R1,A3:N77,14,0) -> 0 | V7: zaliczka na umowie | W7: - do usunięcia | AF7: Marża | AG7: =AG5/AG2 ->  | AM7: Marża | AN7: =AN5/AN2 ->  | BB7: SPRSUN Monoblok | BC7: SPRSUN Mono 12kW + 10kW | BD7: SPRSUN Monoblok SPRSUN Mono 12kW + 10kW | BE7: 22 | BF7: 5 | BG7: 2 | BH7: kaskada | BK7: Nie | BL7: 0 | BO7: Rabaty tylko dla równoważenia, marża zablokowana do wpisania: | BX7: 7 | BY7: 200 | CD7: Midea Monoblok M-Thermal Mono 6kW | CE7: =10000+1000 -> 11000 | CF7: =10000 -> 10000 | CG7: 1000 | CU7: Rainforest | CV7: 120 | CW7: 150
A8: CZYSTY | B8: 0 | C8: =ROUND(((VLOOKUP('Kalkulator doboru'!$G$67,Koszty!$Z$5:$AA$67,2,0))+'Panasonic (2)'!$DB$19-'Panasonic (2)'!$DB$41),2) -> 21900 | D8: ='Panasonic (2)'!$DB$36-'Panasonic (2)'!$DB$19 -> 0 | E8: 0 | F8: 21900 | R8: 0 | S8: Standardowy | U8: =IF(U7=50,"0,5","0,7") -> 0,7 | AF8: Narzut | AG8: =AG5/AG3 ->  | AM8: Narzut | AN8: =AN5/AN3 ->  | BB8: SPRSUN Monoblok | BC8: SPRSUN Mono 12kW + 12kW | BD8: SPRSUN Monoblok SPRSUN Mono 12kW + 12kW | BE8: 24 | BF8: 5 | BG8: 2 | BH8: kaskada | BK8: Rabat Managerski | BL8: =VLOOKUP(R1,BO14:BQ16,2,0) ->  | BO8: Jeśli wybierzemy próg podstawowy, podwyższony lub najwyższy to: | BX8: 8 | BY8: 150 | CD8: Midea Monoblok M-Thermal Mono 8kW | CE8: 11000 | CF8: =10000 -> 10000 | CG8: 1000 | CN8: Invelo | CU8: ARSTele | CV8: 120 | CW8: 150
A9: Marcin Janosz (Panda Energia) Pracownicy | B9: 0.15 | C9: =ROUND(((VLOOKUP('Kalkulator doboru'!$G$67,Koszty!$Z$5:$AA$67,2,0))+'Panasonic (2)'!$DB$19-'Panasonic (2)'!$DB$41),2) -> 21900 | D9: ='Panasonic (2)'!$DB$36-'Panasonic (2)'!$DB$19 -> 0 | E9: 3285 | F9: 25185 | G9: =N9 -> 0 | N9: =IF('Czyste Powietrze'!H12="tak",'Panasonic (2)'!$DX$40,0) -> 0 | R9: 0 | S9: Standardowy | BB9: SPRSUN Monoblok | BC9: SPRSUN Mono 16kW + 12kW | BD9: SPRSUN Monoblok SPRSUN Mono 16kW + 12kW | BE9: 28 | BF9: 5 | BG9: 2 | BH9: kaskada | BK9: Rabat Dyrektorski | BL9: =VLOOKUP(R1,BO14:BQ16,3,0) ->  | BO9: Rabat Managerski – 4600 zł netto | BX9: 9 | BY9: 150 | CD9: Midea Monoblok M-Thermal Mono 10kW | CE9: 11000 | CF9: =10000 -> 10000 | CG9: 1000 | CN9: Piec na pellet FERROLI BIOPELLET PRO 12kw | CO9: =27000-19500 -> 7500 | CU9: New Solution Patrycja Leśnik | CV9: 0 | CW9: 0
A10: Noway | B10: 0.03 | C10: =ROUND(((VLOOKUP('Kalkulator doboru'!$G$67,Koszty!$Z$5:$AA$67,2,0))+'Panasonic (2)'!$DB$19-'Panasonic (2)'!$DB$41),2) -> 21900 | D10: ='Panasonic (2)'!$DB$36-'Panasonic (2)'!$DB$19 -> 0 | E10: 657 | F10: 22557 | R10: 0 | S10: Standardowy | BB10: SPRSUN Monoblok | BC10: SPRSUN Mono 16kW + 12kW | BD10: SPRSUN Monoblok SPRSUN Mono 16kW + 12kW | BE10: 28 | BF10: 5 | BG10: 2 | BH10: kaskada | BO10: Rabat Dyrektorki – 9200 zł netto. | BX10: 10 | BY10: 150 | CD10: Midea Monoblok M-Thermal Mono 12kW | CE10: =8000+1000 -> 9000 | CF10: =8000 -> 8000 | CG10: 1000 | CN10: Piec na pellet FERROLI BIOPELLET PRO 18kw | CO10: =28000-19500 -> 8500 | CU10: Solis Commerce Mariola Kowalska | CV10: 120 | CW10: 150
A11: Prestige | B11: 0 | C11: =ROUND(((VLOOKUP('Kalkulator doboru'!$G$67,Koszty!$Z$5:$AA$67,2,0))+'Panasonic (2)'!$DB$19-'Panasonic (2)'!$DB$41),2) -> 21900 | D11: ='Panasonic (2)'!$DB$36-'Panasonic (2)'!$DB$19 -> 0 | E11: 0 | F11: 21900 | G11: =IF(Mitsubishi!B248="tak",0,J11) -> 0 | H11: =$V$2 -> 12 | I11: 70 | J11: =I11*H11 -> 840 | R11: 0 | S11: Standardowy | U11: =IF(OR('Czyste Powietrze'!H12="TAK",'Czyste Powietrze'!H13="TAK"),"!!!UWAGA WŁĄCZONA OPCJA RÓWNOWAŻENIA!!!","") ->  | AF11: 70/30 | AG11: 0.7 | AH11: 0.3 | BB11: SPRSUN Monoblok | BC11: SPRSUN Mono 16kW + 16kW | BD11: SPRSUN Monoblok SPRSUN Mono 16kW + 16kW | BE11: 32 | BF11: 5 | BG11: 2 | BH11: kaskada | BK11: M. standardowy | BL11: =IF(OR(R1="Altion",R1="Love it"),(VLOOKUP('Kalkulator doboru'!G497,podb!BK7:BL9,2,0)),(IF('Czyste Powietrze'!H12="tak",(VLOOKUP('Kalkulator doboru'!G497,podb!BK7:BL9,2,0)),0))) -> 0 | BO11: Rabaty pomniejszają podbitkę Partnera. | BX11: 11 | BY11: 100 | CD11: Midea Monoblok M-Thermal Mono 14kW | CE11: 9000 | CF11: =8000 -> 8000 | CG11: 1000 | CN11: Piec na pellet FERROLI BIOPELLET PRO 24kw | CO11: =28500-19500 -> 9000 | CU11: WS-A KL | CV11: 120 | CW11: 150
A12: SBD | B12: 0.04 | C12: =ROUND(((VLOOKUP('Kalkulator doboru'!$G$67,Koszty!$Z$5:$AA$67,2,0))+'Panasonic (2)'!$DB$19-'Panasonic (2)'!$DB$41),2) -> 21900 | D12: ='Panasonic (2)'!$DB$36-'Panasonic (2)'!$DB$19 -> 0 | E12: 876 | F12: 22776 | R12: 0 | S12: Standardowy | AF12: 90/10 | AG12: 0.9 | AH12: 0.1 | BB12: SPRSUN Monoblok | BC12: SPRSUN Mono 16kW + 16kW | BD12: SPRSUN Monoblok SPRSUN Mono 16kW + 16kW | BE12: 32 | BF12: 5 | BG12: 2 | BH12: kaskada | BK12: M. uproszczony | BL12: =IF(OR(R1="Altion",R1="Love it"),(VLOOKUP('Kalkulator doboru - uproszczony'!J498,podb!BK7:BL9,2,0)),(IF('Czyste Powietrze'!H13="tak",(VLOOKUP('Kalkulator doboru - uproszczony'!J498,podb!BK7:BL9,2,0)),0))) -> 0 | BX12: 12 | BY12: 100 | CD12: Midea Monoblok M-Thermal Mono 16kW | CE12: 9000 | CF12: =8000 -> 8000 | CG12: 1000 | CN12: Piec na pellet FERROLI BIOPELLET PRO 30kw | CO12: =29000-19500 -> 9500
A13: CEiT | B13: 0.04 | C13: =ROUND(((VLOOKUP('Kalkulator doboru'!$G$67,Koszty!$Z$5:$AA$67,2,0))+'Panasonic (2)'!$DB$19-'Panasonic (2)'!$DB$41),2) -> 21900 | D13: ='Panasonic (2)'!$DB$36-'Panasonic (2)'!$DB$19 -> 0 | E13: 876 | F13: =E13+C13+G13+D13+N13 -> 23616 | G13: =O13 -> 840 | H13: =V2 -> 12 | I13: 70 | J13: =I13*H13 -> 840 | N13: =IF('Czyste Powietrze'!H12="tak",VLOOKUP(A13,'Panasonic (2)'!DV30:DX70,3,0),0) -> 0 | O13: =P13*H13 -> 840 | P13: 70 | Q13: Prestige | R13: 0 | S13: Standardowy | BB13: SPRSUN Monoblok | BC13: SPRSUN Mono 12kW + 12kW + 12kW | BD13: SPRSUN Monoblok SPRSUN Mono 12kW + 12kW + 12kW | BE13: 36 | BF13: 5 | BG13: 3 | BH13: kaskada | BP13: Rabat Managerski | BQ13: Rabat Dyrektorski | BX13: 13 | BY13: 100 | CD13: NEW ENERGY Monoblok NE-F60HCR5INVM 6kW | CE13: =10000+1000 -> 11000 | CF13: =10000 -> 10000 | CG13: 1000 | CN13: Piec na pellet DEFRO KOMFORT EKOPELL 14kw | CO13: =27000-19500 -> 7500
A14: KZ Finanse | B14: 0 | C14: =ROUND(((VLOOKUP('Kalkulator doboru'!$G$67,Koszty!$Z$5:$AA$67,2,0))+'Panasonic (2)'!$DB$19-'Panasonic (2)'!$DB$41),2) -> 21900 | D14: ='Panasonic (2)'!$DB$36-'Panasonic (2)'!$DB$19 -> 0 | E14: =ROUND((B14*C14),2) -> 0 | F14: 23700 | G14: =J14 -> 1800 | H14: =V2 -> 12 | I14: 150 | J14: =I14*H14 -> 1800 | R14: 0 | S14: Standardowy | AB14: CHECK z oferty | AD14: Check z podbicia | BB14: SPRSUN Monoblok | BC14: SPRSUN Mono 12kW + 12kW + 12kW | BD14: SPRSUN Monoblok SPRSUN Mono 12kW + 12kW + 12kW | BE14: 36 | BF14: 5 | BG14: 3 | BH14: kaskada | BK14: Rabatowanie z równoważeniem i bez dla | BO14: Biomag | BP14: 4600 | BQ14: 9200 | BX14: 14 | BY14: 100 | CD14: NEW ENERGY Monoblok NE-F90HCR5TINVM 9kW | CE14: 11000 | CF14: =10000 -> 10000 | CG14: 1000 | CN14: Piec na pellet DEFRO KOMFORT EKOPELL 20kw | CO14: =28000-19500 -> 8500
A15: Justyna Całka | B15: 0.05 | C15: =ROUND(((VLOOKUP('Kalkulator doboru'!$G$67,Koszty!$Z$5:$AA$67,2,0))+'Panasonic (2)'!$DB$19-'Panasonic (2)'!$DB$41),2) -> 21900 | D15: ='Panasonic (2)'!$DB$36-'Panasonic (2)'!$DB$19 -> 0 | E15: =IF('Czyste Powietrze'!H12="tak",0,(ROUND((B15*C15),2))) -> 1095 | F15: 23835 | G15: =O15+N15 -> 840 | H15: =V2 -> 12 | N15: =IF('Czyste Powietrze'!H12="tak",VLOOKUP(A15,'Panasonic (2)'!DV30:DX60,3,0),0) -> 0 | O15: =P15*H15 -> 840 | P15: 70 | Q15: Prestige | R15: 0 | S15: Standardowy | AB15: Marża | AC15: =ROUND('Kalkulator doboru'!G70-'Kalkulator doboru'!G68,2) ->  | AD15: =IFERROR(AG6,AG2) -> 0 | AE15: =AD15=AC15 ->  | BB15: SPRSUN Monoblok | BC15: SPRSUN Mono 16kW + 12kW + 12kW | BD15: SPRSUN Monoblok SPRSUN Mono 16kW + 12kW + 12kW | BE15: 40 | BF15: 5 | BG15: 3 | BH15: kaskada | BK15: Altion | BO15: Love it | BP15: 4629 | BQ15: 9259 | BR15: bez opcji rabatowania | BX15: 15 | BY15: 100 | CD15: NEW ENERGY Monoblok NE-F130HCR5TINVM 13kW | CE15: =8000+1000 -> 9000 | CF15: =8000 -> 8000 | CG15: 1000 | CN15: Piec na pellet DEFRO KOMFORT EKOPELL 25kw | CO15: =28500-19500 -> 9000
A16: Grzegorz Perz | B16: =IF(Mitsubishi!B248="tak",6%,5%) -> 0.06 | C16: =ROUND(((VLOOKUP('Kalkulator doboru'!$G$67,Koszty!$Z$5:$AA$67,2,0))+'Panasonic (2)'!$DB$19-'Panasonic (2)'!$DB$41),2) -> 21900 | D16: ='Panasonic (2)'!$DB$36-'Panasonic (2)'!$DB$19 -> 0 | E16: 1314 | F16: =E16+C16+G16+D16+N16 -> 23214 | H16: =V2 -> 12 | N16: =IF('Czyste Powietrze'!H12="Nie",0,'Panasonic (2)'!DX42) -> 0 | R16: 0 | S16: Standardowy | AB16: Podbicie | AC16: =ROUND('Kalkulator doboru'!G68-(podb!C3+podb!D3),2) ->  | AD16: =VLOOKUP($R$1,$A$3:$G$78,7,0)+VLOOKUP($R$1,$A$3:$G$78,5,0) ->  | AE16: =AD16=AC16 ->  | BB16: SPRSUN Monoblok | BC16: SPRSUN Mono 16kW + 12kW + 12kW | BD16: SPRSUN Monoblok SPRSUN Mono 16kW + 12kW + 12kW | BE16: 40 | BF16: 5 | BG16: 3 | BH16: kaskada | BK16: Love it | BO16: Altion | BP16: 4629 | BQ16: 9259 | BX16: 16 | BY16: 100 | CD16: NEW ENERGY Monoblok NE-F160HCR5TINVM 16kW | CE16: 9000 | CF16: =8000 -> 8000 | CG16: 1000 | CN16: Piec zgazowujący drewno FERROLI CGF PRO 22 | CO16: 7500
A17: Novar | B17: =IF(Mitsubishi!B248="tak",12%,8%) -> 0.12 | C17: =ROUND(((VLOOKUP('Kalkulator doboru'!$G$67,Koszty!$Z$5:$AA$67,2,0))+'Panasonic (2)'!$DB$19-'Panasonic (2)'!$DB$41),2) -> 21900 | D17: ='Panasonic (2)'!$DB$36-'Panasonic (2)'!$DB$19 -> 0 | E17: 2628 | F17: =E17+C17+G17+D17+N17 -> 24528 | H17: =V2 -> 12 | N17: =IF('Czyste Powietrze'!H12="Nie",0,'Panasonic (2)'!DX43) -> 0 | R17: 0 | S17: Standardowy | BB17: SPRSUN Monoblok | BC17: SPRSUN Mono 16kW + 16kW + 12kW | BD17: SPRSUN Monoblok SPRSUN Mono 16kW + 16kW + 12kW | BE17: 44 | BF17: 5 | BG17: 3 | BH17: kaskada | CD17: Piec na pellet FERROLI BIOPELLET PRO 12kw | CE17: =CF17+CG17 -> 9000 | CF17: =8000 -> 8000 | CG17: 1000
A18: ANTI Aneta Sijka | B18: 0 | C18: =ROUND(((VLOOKUP('Kalkulator doboru'!$G$67,Koszty!$Z$5:$AA$67,2,0))+'Panasonic (2)'!$DB$19-'Panasonic (2)'!$DB$41),2) -> 21900 | D18: ='Panasonic (2)'!$DB$36-'Panasonic (2)'!$DB$19 -> 0 | E18: 0 | F18: =E18+C18+G18+D18+N18 -> 24300 | G18: =J18 -> 2400 | H18: =V2 -> 12 | I18: =IF('Czyste Powietrze'!H12="nie",200,0) -> 200 | J18: =I18*H18 -> 2400 | N18: =IF('Czyste Powietrze'!H12="tak",'Panasonic (2)'!DX36,0) -> 0 | R18: 1 | S18: Standardowy | BB18: SPRSUN Monoblok | BC18: SPRSUN Mono 16kW + 16kW + 12kW | BD18: SPRSUN Monoblok SPRSUN Mono 16kW + 16kW + 12kW | BE18: 44 | BF18: 5 | BG18: 3 | BH18: kaskada | CD18: Piec na pellet FERROLI BIOPELLET PRO 18kw | CE18: =CF18+CG18 -> 9000 | CF18: =8000 -> 8000 | CG18: 1000
A19: SIM | B19: 0 | C19: =ROUND(((VLOOKUP('Kalkulator doboru'!$G$67,Koszty!$Z$5:$AA$67,2,0))+'Panasonic (2)'!$DB$19-'Panasonic (2)'!$DB$41),2) -> 21900 | D19: ='Panasonic (2)'!$DB$36-'Panasonic (2)'!$DB$19 -> 0 | E19: =ROUND((B19*C19),2) -> 0 | F19: =E19+C19+G19+D19+N19 -> 21900 | G19: =IF('Czyste Powietrze'!H12="tak",0,J19) -> 0 | H19: =V2 -> 12 | I19: 200 | J19: =IF(Mitsubishi!B248="tak",0,I19*H19) -> 0 | N19: =IF('Czyste Powietrze'!H12="tak",'Panasonic (2)'!DX48,0) -> 0 | R19: 0 | S19: Standardowy | AB19: CHECK z oferty | AD19: Check z podbicia | BB19: SPRSUN Monoblok | BC19: SPRSUN Mono 16kW + 16kW + 16kW | BD19: SPRSUN Monoblok SPRSUN Mono 16kW + 16kW + 16kW | BE19: 48 | BF19: 5 | BG19: 3 | BH19: kaskada | CD19: Piec na pellet FERROLI BIOPELLET PRO 24kw | CE19: 9000 | CF19: =8000 -> 8000 | CG19: 1000
A20: 77 Contact Center | B20: 0 | C20: =ROUND(((VLOOKUP('Kalkulator doboru'!$G$67,Koszty!$Z$5:$AA$67,2,0))+'Panasonic (2)'!$DB$19-'Panasonic (2)'!$DB$41),2) -> 21900 | D20: ='Panasonic (2)'!$DB$36-'Panasonic (2)'!$DB$19 -> 0 | E20: =ROUND((B20*C20),2) -> 0 | F20: 27900 | G20: =M20 -> 6000 | M20: 6000 | R20: 1 | S20: Standardowy | AB20: Marża | AC20: ='Kalkulator doboru - uproszczony'!J52-'Kalkulator doboru - uproszczony'!J50 -> 0 | AD20: =IFERROR($AN$6,$AN$2) -> 0 | AE20: =AD20=AC20 -> TRUE | BB20: SPRSUN Monoblok | BC20: SPRSUN Mono 16kW + 16kW + 16kW | BD20: SPRSUN Monoblok SPRSUN Mono 16kW + 16kW + 16kW | BE20: 48 | BF20: 5 | BG20: 3 | BH20: kaskada | CD20: Piec na pellet FERROLI BIOPELLET PRO 30kw | CE20: 9000 | CF20: =8000 -> 8000 | CG20: 1000
A21: Mokka | B21: 0.03 | C21: =ROUND(((VLOOKUP('Kalkulator doboru'!$G$67,Koszty!$Z$5:$AA$67,2,0))+'Panasonic (2)'!$DB$19-'Panasonic (2)'!$DB$41),2) -> 21900 | D21: ='Panasonic (2)'!$DB$36-'Panasonic (2)'!$DB$19 -> 0 | E21: =ROUND((B21*C21),2) -> 657 | F21: 22557 | R21: 0 | S21: Standardowy | AB21: Podbicie | AC21: =ROUND('Kalkulator doboru - uproszczony'!$J$50-(C82+D82),2) -> 7000 | AD21: =VLOOKUP($R$1,$A$82:$G$123,7,0)+VLOOKUP($R$1,$A$82:$G$123,5,0) -> 7000 | AE21: =AD21=AC21 -> TRUE | BB21: Midea Monoblok | BC21: M-Thermal Mono 6kW | BD21: Midea Monoblok M-Thermal Mono 6kW | BE21: 6 | BF21: 7 | BG21: 1 | BH21: =BI21*BE21 -> 5400 | BI21: 900
A22: Katarzyna Kępka | B22: 0.025 | C22: =ROUND(((VLOOKUP('Kalkulator doboru'!$G$67,Koszty!$Z$5:$AA$67,2,0))+'Panasonic (2)'!$DB$19-'Panasonic (2)'!$DB$41),2) -> 21900 | D22: ='Panasonic (2)'!$DB$36-'Panasonic (2)'!$DB$19 -> 0 | E22: =IF('Czyste Powietrze'!H12="tak",0,(ROUND((B22*C22),2))) -> 547.5 | F22: 22447.5 | G22: =N22 -> 0 | N22: =IF('Czyste Powietrze'!H12="tak",VLOOKUP(A22,'Panasonic (2)'!DV30:DX60,3,0),0) -> 0 | R22: 0 | S22: Standardowy | BB22: Midea Monoblok | BC22: M-Thermal Mono 8kW | BD22: Midea Monoblok M-Thermal Mono 8kW | BE22: 8 | BF22: 7 | BG22: 1 | BH22: =BI22*BE22 -> 7200 | BI22: 900
A23: Maga | B23: 0 | C23: =ROUND(((VLOOKUP('Kalkulator doboru'!$G$67,Koszty!$Z$5:$AA$67,2,0))+'Panasonic (2)'!$DB$19-'Panasonic (2)'!$DB$41),2) -> 21900 | D23: ='Panasonic (2)'!$DB$36-'Panasonic (2)'!$DB$19 -> 0 | E23: =ROUND((B23*C23),2) -> 0 | F23: 22740 | G23: =O23 -> 840 | H23: =$V$2 -> 12 | O23: =P23*H23 -> 840 | P23: 70 | Q23: Prestige | R23: 0 | S23: Standardowy | BB23: Midea Monoblok | BC23: M-Thermal Mono 10kW | BD23: Midea Monoblok M-Thermal Mono 10kW | BE23: 10 | BF23: 7 | BG23: 1 | BH23: 8000 | BI23: 800 | CN23: Invelo_polmond | CO23: Razem | CP23: Invelo | CQ23: Polmond
A24: Bilbox | B24: 0.05 | C24: =ROUND(((VLOOKUP('Kalkulator doboru'!$G$67,Koszty!$Z$5:$AA$67,2,0))+'Panasonic (2)'!$DB$19-'Panasonic (2)'!$DB$41),2) -> 21900 | D24: ='Panasonic (2)'!$DB$36-'Panasonic (2)'!$DB$19 -> 0 | E24: 1095 | F24: =E24+C24+G24+D24 -> 22995 | R24: 0 | S24: Standardowy | BB24: Midea Monoblok | BC24: M-Thermal Mono 12kW | BD24: Midea Monoblok M-Thermal Mono 12kW | BE24: 12 | BF24: 7 | BG24: 1 | BH24: 9600 | BI24: 800 | CN24: Piec na pellet FERROLI BIOPELLET PRO 12kw | CO24: =CQ24+CP24 -> 10000 | CP24: 3000 | CQ24: 7000
A25: Automaeko | B25: 0 | C25: =ROUND(((VLOOKUP('Kalkulator doboru'!$G$67,Koszty!$Z$5:$AA$67,2,0))+'Panasonic (2)'!$DB$19-'Panasonic (2)'!$DB$41),2) -> 21900 | D25: ='Panasonic (2)'!$DB$36-'Panasonic (2)'!$DB$19 -> 0 | E25: =ROUND((B25*C25),2) -> 0 | F25: =E25+C25+G25+D25 -> 22900 | G25: 1000 | R25: 0 | S25: Standardowy | BB25: Midea Monoblok | BC25: M-Thermal Mono 14kW | BD25: Midea Monoblok M-Thermal Mono 14kW | BE25: 14 | BF25: 7 | BG25: 1 | BH25: 11200 | BI25: 800 | CN25: Piec na pellet FERROLI BIOPELLET PRO 18kw | CO25: =CQ25+CP25 -> 10000 | CP25: 3000 | CQ25: 7000
A26: Invest | B26: 0 | C26: =ROUND(((VLOOKUP('Kalkulator doboru'!$G$67,Koszty!$Z$5:$AA$67,2,0))+'Panasonic (2)'!$DB$19-'Panasonic (2)'!$DB$41),2) -> 21900 | D26: ='Panasonic (2)'!$DB$36-'Panasonic (2)'!$DB$19 -> 0 | E26: 0 | F26: =E26+C26+G26+D26+N26 -> 21900 | G26: =O26+M26 -> 0 | H26: =$V$2 -> 12 | M26: 0 | N26: =IF('Czyste Powietrze'!H12="tak",VLOOKUP(A26,'Panasonic (2)'!DV30:DX70,3,0),0) -> 0 | O26: =P26*H26 -> 0 | P26: 0 | Q26: Arago | R26: 0 | S26: Standardowy | BB26: Midea Monoblok | BC26: M-Thermal Mono 16kW | BD26: Midea Monoblok M-Thermal Mono 16kW | BE26: 16 | BF26: 7 | BG26: 1 | BH26: 12800 | BI26: 800 | CN26: Piec na pellet FERROLI BIOPELLET PRO 24kw | CO26: 10000 | CP26: 3000 | CQ26: 7000
A27: OBI | B27: 0 | C27: =ROUND(((VLOOKUP('Kalkulator doboru'!$G$67,Koszty!$Z$5:$AA$67,2,0))+'Panasonic (2)'!$DB$19-'Panasonic (2)'!$DB$41),2) -> 21900 | D27: ='Panasonic (2)'!$DB$36-'Panasonic (2)'!$DB$19 -> 0 | E27: =ROUND((B27*C27),2) -> 0 | F27: =(C27+G27+D27)/0.9 -> 24333.33333 | G27: ='Kalkulator doboru'!$G$69 -> 0 | R27: 2 | S27: OBI | BB27: Midea Monoblok | BC27: M-Thermal Mono 10kW + 8kW | BD27: Midea Monoblok M-Thermal Mono 10kW + 8kW | BE27: 18 | BF27: 7 | BG27: 2 | BH27: kaskada | CN27: Piec na pellet FERROLI BIOPELLET PRO 30kw | CO27: 10000 | CP27: 3000 | CQ27: 7000
A28: Zone Energy | B28: 0.025 | C28: =ROUND(((VLOOKUP('Kalkulator doboru'!$G$67,Koszty!$Z$5:$AA$67,2,0))+'Panasonic (2)'!$DB$19-'Panasonic (2)'!$DB$41),2) -> 21900 | D28: ='Panasonic (2)'!$DB$36-'Panasonic (2)'!$DB$19 -> 0 | E28: =ROUND((B28*(C28+G28)),2) -> 550.5 | F28: =E28+C28+G28+D28+N28+O28 -> 32570.5 | G28: =J28+M28 -> 120 | H28: =$V$2 -> 12 | I28: 10 | J28: =I28*H28 -> 120 | N28: =(IF('Czyste Powietrze'!$H$12="TAK",18500,0))+10000-$BL$11 -> 10000 | O28: =P28*(C28+G28) -> 0 | R28: 0 | S28: Standardowy | BH28: kaskada | CN28: Piec na pellet DEFRO KOMFORT EKOPELL 14kw | CO28: 10000 | CP28: 3000 | CQ28: 7000
A29: Wiktor Stępniewski | B29: =B4 -> 0.04 | C29: =ROUND(((VLOOKUP('Kalkulator doboru'!$G$67,Koszty!$Z$5:$AA$67,2,0))+'Panasonic (2)'!$DB$19-'Panasonic (2)'!$DB$41),2) -> 21900 | D29: ='Panasonic (2)'!$DB$36-'Panasonic (2)'!$DB$19 -> 0 | E29: =ROUND((B29*(C29)),2) -> 876 | F29: =E29+C29+G29+D29 -> 22776 | G29: =N29 -> 0 | N29: =IF('Czyste Powietrze'!H12="tak",'Panasonic (2)'!DX45,0) -> 0 | R29: 0 | S29: Standardowy | BH29: kaskada | CN29: Piec na pellet DEFRO KOMFORT EKOPELL 20kw | CO29: 10000 | CP29: 3000 | CQ29: 7000
A30: Fern Energy | B30: 0 | C30: =ROUND(((VLOOKUP('Kalkulator doboru'!$G$67,Koszty!$Z$5:$AA$67,2,0))+'Panasonic (2)'!$DB$19-'Panasonic (2)'!$DB$41),2) -> 21900 | D30: ='Panasonic (2)'!$DB$36-'Panasonic (2)'!$DB$19 -> 0 | E30: 0 | F30: =E30+C30+G30+D30+N30+O30 -> 32570.5 | G30: 120 | H30: 12 | I30: 10 | J30: =I30*H30 -> 120 | N30: =(IF('Czyste Powietrze'!$H$12="TAK",18500,0))+10000-$BL$11 -> 10000 | O30: =P30*(C30+G30) -> 550.5 | P30: 0.025 | Q30: Zone Energy | R30: 0 | S30: Standardowy | BH30: kaskada | CN30: Piec na pellet DEFRO KOMFORT EKOPELL 25kw | CO30: 10000 | CP30: 3000 | CQ30: 7000
A31: Rainforest | B31: 0 | C31: =ROUND(((VLOOKUP('Kalkulator doboru'!$G$67,Koszty!$Z$5:$AA$67,2,0))+'Panasonic (2)'!$DB$19-'Panasonic (2)'!$DB$41),2) -> 21900 | D31: ='Panasonic (2)'!$DB$36-'Panasonic (2)'!$DB$19 -> 0 | E31: 0 | F31: =E31+C31+G31+D31+N31 -> 21900 | G31: 0 | H31: 12 | J31: =H31*I31 -> 0 | N31: =IF('Czyste Powietrze'!H12="tak",'Panasonic (2)'!DX49,0) -> 0 | R31: 0 | S31: Standardowy | BH31: kaskada | CN31: Piec zgazowujący drewno FERROLI CGF PRO 22 | CO31: 10000 | CP31: 3000 | CQ31: 7000
A32: ABNM | B32: 0 | C32: =ROUND(((VLOOKUP('Kalkulator doboru'!$G$67,Koszty!$Z$5:$AA$67,2,0))+'Panasonic (2)'!$DB$19-'Panasonic (2)'!$DB$41),2) -> 21900 | D32: ='Panasonic (2)'!$DB$36-'Panasonic (2)'!$DB$19 -> 0 | E32: 0 | F32: =E32+C32+G32+D32+O32 -> 29900 | G32: =IF('Czyste Powietrze'!H12="tak",podb!N32,(J32+M32)) -> 8000 | H32: 12 | M32: =8000*$X$2 -> 8000 | N32: =IF('Czyste Powietrze'!H12="tak",'Panasonic (2)'!$DX$38,0) -> 0 | R32: 0 | S32: Standardowy
A33: IMS | B33: 0 | C33: =ROUND(((VLOOKUP('Kalkulator doboru'!$G$67,Koszty!$Z$5:$AA$67,2,0))+'Panasonic (2)'!$DB$19-'Panasonic (2)'!$DB$41),2) -> 21900 | D33: ='Panasonic (2)'!$DB$36-'Panasonic (2)'!$DB$19 -> 0 | E33: 0 | F33: =E33+C33+G33+D33+O33 -> 22500 | G33: 600 | H33: 12 | I33: =IF(H33>19.99,30,50) -> 50 | J33: =I33*H33 -> 600 | R33: 0 | S33: Standardowy
A34: N-Energy | B34: 0 | C34: =ROUND(((VLOOKUP('Kalkulator doboru'!$G$67,Koszty!$Z$5:$AA$67,2,0))+'Panasonic (2)'!$DB$19-'Panasonic (2)'!$DB$41),2) -> 21900 | D34: ='Panasonic (2)'!$DB$36-'Panasonic (2)'!$DB$19 -> 0 | E34: 0 | F34: =E34+C34+G34+D34+O34 -> 23100 | G34: =IF('Czyste Powietrze'!H12="tak",podb!N34,J34) -> 1200 | H34: 12 | I34: =VLOOKUP(H34,BX4:BY16,2,1) -> 100 | J34: =H34*I34 -> 1200 | N34: =IF('Czyste Powietrze'!H12="tak",'Panasonic (2)'!$DX$39,0) -> 0 | R34: 0 | S34: Standardowy
A35: MHS | B35: 0 | C35: =ROUND(((VLOOKUP('Kalkulator doboru'!$G$67,Koszty!$Z$5:$AA$67,2,0))+'Panasonic (2)'!$DB$19-'Panasonic (2)'!$DB$41),2) -> 21900 | D35: ='Panasonic (2)'!$DB$36-'Panasonic (2)'!$DB$19 -> 0 | E35: =ROUND((B35*C35),2) -> 0 | F35: =E35+C35+G35+D35 -> 24900 | G35: =N35+M35 -> 3000 | M35: 3000 | N35: =IF('Czyste Powietrze'!H12="nie",0,'Panasonic (2)'!DX44) -> 0 | R35: 0 | S35: Standardowy
A36: DAD | B36: 0 | C36: =ROUND(((VLOOKUP('Kalkulator doboru'!$G$67,Koszty!$Z$5:$AA$67,2,0))+'Panasonic (2)'!$DB$19-'Panasonic (2)'!$DB$41),2) -> 21900 | D36: ='Panasonic (2)'!$DB$36-'Panasonic (2)'!$DB$19 -> 0 | E36: 0 | F36: =E36+C36+G36+D36+O36 -> 23900 | G36: =J36 -> 2000 | J36: =M36*$X$2 -> 2000 | M36: 2000 | R36: 0 | S36: Standardowy
A37: WST | B37: 0.04 | C37: =ROUND(((VLOOKUP('Kalkulator doboru'!$G$67,Koszty!$Z$5:$AA$67,2,0))+'Panasonic (2)'!$DB$19-'Panasonic (2)'!$DB$41),2) -> 21900 | D37: ='Panasonic (2)'!$DB$36-'Panasonic (2)'!$DB$19 -> 0 | E37: =IF('Czyste Powietrze'!H12="TAK",0,ROUND((B37*C37),2)) -> 876 | F37: =E37+C37+G37+D37+N37 -> 22776 | N37: =IF('Czyste Powietrze'!H12="TAK",'Panasonic (2)'!DX30,0) -> 0 | R37: 0 | S37: Standardowy | BB37: Midea Monoblok | BC37: M-Thermal Mono 10kW + 10kW | BD37: Midea Monoblok M-Thermal Mono 10kW + 10kW | BE37: 20 | BF37: 7 | BG37: 2 | BH37: kaskada
A38: JWS Solar | B38: 0 | C38: =ROUND(((VLOOKUP('Kalkulator doboru'!$G$67,Koszty!$Z$5:$AA$67,2,0))+'Panasonic (2)'!$DB$19-'Panasonic (2)'!$DB$41),2) -> 21900 | D38: ='Panasonic (2)'!$DB$36-'Panasonic (2)'!$DB$19 -> 0 | E38: 0 | F38: =E38+C38+G38+D38+M38 -> 27900 | G38: =N38 -> 0 | M38: =IF('Czyste Powietrze'!H12="tak",0,6000) -> 6000 | N38: =IF('Czyste Powietrze'!H12="tak",'Panasonic (2)'!DX46,0) -> 0 | R38: 1 | S38: Standardowy
A39: Fifi | B39: 0 | C39: =ROUND(((VLOOKUP('Kalkulator doboru'!$G$67,Koszty!$Z$5:$AA$67,2,0))+'Panasonic (2)'!$DB$19-'Panasonic (2)'!$DB$41),2) -> 21900 | D39: ='Panasonic (2)'!$DB$36-'Panasonic (2)'!$DB$19 -> 0 | E39: 0 | F39: =J39+C39+G39+D39 -> 22020 | H39: =$V$2 -> 12 | I39: 10 | J39: =H39*I39 -> 120 | R39: 0 | S39: Standardowy
A40: Krajowy projekt energetyczny | B40: 0 | C40: =ROUND(((VLOOKUP('Kalkulator doboru'!$G$67,Koszty!$Z$5:$AA$67,2,0))+'Panasonic (2)'!$DB$19-'Panasonic (2)'!$DB$41),2) -> 21900 | D40: ='Panasonic (2)'!$DB$36-'Panasonic (2)'!$DB$19 -> 0 | E40: 0 | F40: =C40+M40+D40+G40 -> 27900 | G40: =N40 -> 0 | M40: 6000 | N40: =IF('Czyste Powietrze'!H12="tak",'Panasonic (2)'!DX47,0) -> 0 | R40: 0 | S40: Standardowy | T40: Tylko pompy Midea i SPRSUN
A41: Biomag | B41: 0 | C41: =ROUND(((VLOOKUP('Kalkulator doboru'!$G$67,Koszty!$Z$5:$AA$67,2,0))+'Panasonic (2)'!$DB$19-'Panasonic (2)'!$DB$41),2) -> 21900 | D41: ='Panasonic (2)'!$DB$36-'Panasonic (2)'!$DB$19 -> 0 | E41: 0 | F41: =C41+G41+D41+N41 -> 32020 | G41: =J41 -> 120 | H41: =$V$2 -> 12 | I41: 10 | J41: =H41*I41 -> 120 | N41: =(IF('Czyste Powietrze'!$H$12="TAK",18500,0))+10000-$BL$11 -> 10000 | R41: 0 | S41: Standardowy | T41: Do dodania progi rabatowe
A42: CWDK Adam Kauski | B42: 0 | C42: =ROUND(((VLOOKUP('Kalkulator doboru'!$G$67,Koszty!$Z$5:$AA$67,2,0))+'Panasonic (2)'!$DB$19-'Panasonic (2)'!$DB$41),2) -> 21900 | D42: ='Panasonic (2)'!$DB$36-'Panasonic (2)'!$DB$19 -> 0 | E42: 0 | F42: =C42+G42+D42+N42 -> 21900 | N42: =IF('Czyste Powietrze'!H12="tak",VLOOKUP(A42,'Panasonic (2)'!DV30:DX80,3,0),0) -> 0 | R42: 1 | S42: Standardowy
A43: FOODSPACE | B43: 0 | C43: =ROUND(((VLOOKUP('Kalkulator doboru'!$G$67,Koszty!$Z$5:$AA$67,2,0))+'Panasonic (2)'!$DB$19-'Panasonic (2)'!$DB$41),2) -> 21900 | D43: ='Panasonic (2)'!$DB$36-'Panasonic (2)'!$DB$19 -> 0 | E43: 0 | F43: =C43+G43+D43+N43+M43 -> 27900 | M43: 6000 | N43: =IF('Czyste Powietrze'!H12="tak",'Panasonic (2)'!DX37,0) -> 0 | R43: 0 | S43: Standardowy
A44: Tomasz Skupin | B44: 0 | C44: =ROUND(((VLOOKUP('Kalkulator doboru'!$G$67,Koszty!$Z$5:$AA$67,2,0))+'Panasonic (2)'!$DB$19-'Panasonic (2)'!$DB$41),2) -> 21900 | D44: ='Panasonic (2)'!$DB$36-'Panasonic (2)'!$DB$19 -> 0 | E44: 0 | F44: =C44+G44+D44+N44+M44 -> 23100 | G44: =IF('Czyste Powietrze'!H12="tak",0,J44) -> 1200 | H44: =$V$2 -> 12 | I44: 100 | J44: =H44*I44 -> 1200 | N44: =IF('Czyste Powietrze'!H12="tak",'Panasonic (2)'!DX50,0) -> 0 | R44: 0 | S44: Standardowy
A45: Solis Commerce Mariola Kowalska | B45: =IF(Mitsubishi!B248="tak",0,3%) -> 0 | C45: =ROUND(((VLOOKUP('Kalkulator doboru'!$G$67,Koszty!$Z$5:$AA$67,2,0))+'Panasonic (2)'!$DB$19-'Panasonic (2)'!$DB$41),2) -> 21900 | D45: ='Panasonic (2)'!$DB$36-'Panasonic (2)'!$DB$19 -> 0 | E45: =IF('Czyste Powietrze'!H12="tak",0,(C45*B45)) -> 0 | F45: =C45+G45+D45+N45+M45+E45 -> 21900 | H45: =$V$2 -> 12 | N45: =IF('Czyste Powietrze'!H12="tak",VLOOKUP(A45,'Panasonic (2)'!DV30:DX60,3,0),0) -> 0 | R45: 0 | S45: Standardowy
A46: ARSTele | B46: =IF(Mitsubishi!B248="tak",12%,8%) -> 0.12 | C46: =ROUND(((VLOOKUP('Kalkulator doboru'!$G$67,Koszty!$Z$5:$AA$67,2,0))+'Panasonic (2)'!$DB$19-'Panasonic (2)'!$DB$41),2) -> 21900 | D46: ='Panasonic (2)'!$DB$36-'Panasonic (2)'!$DB$19 -> 0 | E46: =ROUND((B46*C46),2) -> 2628 | F46: 24528 | H46: =$V$2 -> 12 | N46: =IF('Czyste Powietrze'!H12="tak",VLOOKUP(A46,'Panasonic (2)'!DV30:DX60,3,0),0) -> 0 | R46: 0 | S46: Standardowy
A47: Invelo Energy | B47: 0 | C47: =ROUND(((VLOOKUP('Kalkulator doboru'!$G$67,Koszty!$Z$5:$AA$67,2,0))+'Panasonic (2)'!$DB$19-'Panasonic (2)'!$DB$41),2) -> 21900 | D47: ='Panasonic (2)'!$DB$36-'Panasonic (2)'!$DB$19 -> 0 | E47: 0 | F47: =C47+G47+D47+N47+M47+E47+J47 -> 29400 | G47: =IF(Mitsubishi!B248="tak",0,2000) -> 0 | H47: =$V$2 -> 12 | I47: 100 | J47: =IF(Mitsubishi!B248="tak",0,(IF('Czyste Powietrze'!H12="tak",0,H47*I47))) -> 0 | M47: =IF('Czyste Powietrze'!H12="tak",0,IF(Mitsubishi!B248="tak",VLOOKUP('Kalkulator doboru'!G67,podb!CN9:CO16,2,0),7000)) -> 7500 | N47: =IF('Czyste Powietrze'!H12="tak",VLOOKUP(A47,'Panasonic (2)'!DV30:DX60,3,0),0) -> 0 | R47: 1 | S47: Standardowy | T47: Obniżenie cb o 100zł/kwp (komórka C46)
A48: Piotr Kurkowski Pracownicy | B48: 0.05 | C48: =ROUND(((VLOOKUP('Kalkulator doboru'!$G$67,Koszty!$Z$5:$AA$67,2,0))+'Panasonic (2)'!$DB$19-'Panasonic (2)'!$DB$41),2) -> 21900 | D48: ='Panasonic (2)'!$DB$36-'Panasonic (2)'!$DB$19 -> 0 | E48: 1095 | F48: 22995 | R48: 0 | S48: Standardowy
A49: Energy Sun | B49: 0.04 | C49: =ROUND(((VLOOKUP('Kalkulator doboru'!$G$67,Koszty!$Z$5:$AA$67,2,0))+'Panasonic (2)'!$DB$19-'Panasonic (2)'!$DB$41),2) -> 21900 | D49: ='Panasonic (2)'!$DB$36-'Panasonic (2)'!$DB$19 -> 0 | E49: 876 | F49: 22776 | R49: 0 | S49: Standardowy
A50: Marek Potoniec | B50: 0.04 | C50: =ROUND(((VLOOKUP('Kalkulator doboru'!$G$67,Koszty!$Z$5:$AA$67,2,0))+'Panasonic (2)'!$DB$19-'Panasonic (2)'!$DB$41),2) -> 21900 | D50: ='Panasonic (2)'!$DB$36-'Panasonic (2)'!$DB$19 -> 0 | E50: 876 | F50: 22776 | R50: 0 | S50: Standardowy
A51: Enerveo | B51: 0 | C51: =ROUND(((VLOOKUP('Kalkulator doboru'!$G$67,Koszty!$Z$5:$AA$67,2,0))+'Panasonic (2)'!$DB$19-'Panasonic (2)'!$DB$41),2) -> 21900 | D51: ='Panasonic (2)'!$DB$36-'Panasonic (2)'!$DB$19 -> 0 | E51: 0 | F51: 26400 | M51: 4500 | R51: 0 | S51: Standardowy
A52: Solwil | B52: 0 | C52: =ROUND(((VLOOKUP('Kalkulator doboru'!$G$67,Koszty!$Z$5:$AA$67,2,0))+'Panasonic (2)'!$DB$19-'Panasonic (2)'!$DB$41),2) -> 21900 | D52: ='Panasonic (2)'!$DB$36-'Panasonic (2)'!$DB$19 -> 0 | E52: 0 | F52: 21900 | R52: 0 | S52: Standardowy
A53: Altion | B53: 0 | C53: =ROUND(((VLOOKUP('Kalkulator doboru'!$G$67,Koszty!$Z$5:$AA$67,2,0))+'Panasonic (2)'!$DB$19-'Panasonic (2)'!$DB$41),2) -> 21900 | D53: ='Panasonic (2)'!$DB$36-'Panasonic (2)'!$DB$19 -> 0 | E53: 0 | F53: 24900 | M53: =IF(LEFT('Kalkulator doboru'!G31,4)="piec",3000*X2,4000*X2) -> 3000 | N53: =(IF('Czyste Powietrze'!$H$12="TAK",'Panasonic (2)'!DX56,0)) -> 0 | R53: 0 | S53: Standardowy | T53: Do dodania progi rabatowe
A54: Love it | B54: 0 | C54: =ROUND(((VLOOKUP('Kalkulator doboru'!$G$67,Koszty!$Z$5:$AA$67,2,0))+'Panasonic (2)'!$DB$19-'Panasonic (2)'!$DB$41),2) -> 21900 | D54: ='Panasonic (2)'!$DB$36-'Panasonic (2)'!$DB$19 -> 0 | E54: 0 | F54: =C54+G54+D54+N54+O54+E54 -> 27900 | G54: =IF('Kalkulator doboru'!G60="tak",0,5500) -> 5500 | N54: =(IF('Czyste Powietrze'!$H$12="TAK",'Panasonic (2)'!DX57,0)) -> 0 | O54: =P54*$X$2 -> 500 | P54: 500 | Q54: Altion | R54: 0 | S54: Standardowy | T54: bez rabatowania, marża do wpisania
A55: Orange | B55: 0 | C55: =ROUND(((VLOOKUP('Kalkulator doboru'!$G$67,Koszty!$Z$5:$AA$67,2,0))+'Panasonic (2)'!$DB$19-'Panasonic (2)'!$DB$41),2) -> 21900 | D55: ='Panasonic (2)'!$DB$36-'Panasonic (2)'!$DB$19 -> 0 | E55: 0 | F55: =C55+G55+D55+N55+O55+E55 -> 21900 | R55: 0 | S55: Standardowy
A56: Ecology group | B56: 0.09 | C56: =ROUND(((VLOOKUP('Kalkulator doboru'!$G$67,Koszty!$Z$5:$AA$67,2,0))+'Panasonic (2)'!$DB$19-'Panasonic (2)'!$DB$41),2) -> 21900 | D56: ='Panasonic (2)'!$DB$36-'Panasonic (2)'!$DB$19 -> 0 | E56: =ROUND((B56*C56),2) -> 1971 | F56: =C56+G56+D56+N56+O56+E56 -> 23871 | R56: 0 | S56: Standardowy
A57: Invelo_GLC | B57: 0 | C57: =ROUND(((VLOOKUP('Kalkulator doboru'!$G$67,Koszty!$Z$5:$AA$67,2,0))+'Panasonic (2)'!$DB$19-'Panasonic (2)'!$DB$41),2) -> 21900 | D57: ='Panasonic (2)'!$DB$36-'Panasonic (2)'!$DB$19 -> 0 | E57: 0 | F57: =C57+G57+D57+N57+O57+E57+M57+J57 -> 32100 | H57: =$V$2 -> 12 | I57: 100 | J57: =H57*I57 -> 1200 | M57: =VLOOKUP('Kalkulator doboru'!G67,podb!CD3:CE20,2,0) -> 9000 | R57: 1 | S57: Standardowy | T57: Obniżenie cb o 100zł/kwp
A58: Invelo_RS Development | B58: 0 | C58: =ROUND(((VLOOKUP('Kalkulator doboru'!$G$67,Koszty!$Z$5:$AA$67,2,0))+'Panasonic (2)'!$DB$19-'Panasonic (2)'!$DB$41),2) -> 21900 | D58: ='Panasonic (2)'!$DB$36-'Panasonic (2)'!$DB$19 -> 0 | E58: 0 | F58: =C58+G58+D58+N58+O58+E58+M58+J58 -> 30100 | H58: =$V$2 -> 12 | I58: 100 | J58: =IF('Czyste Powietrze'!H12="tak",0,H58*I58) -> 1200 | M58: =IF('Czyste Powietrze'!H12="tak",0,CN3) -> 7000 | N58: =IF('Czyste Powietrze'!H12="tak",VLOOKUP(A58,'Panasonic (2)'!DV30:DX60,3,0),0) -> 0 | R58: 1 | S58: Standardowy | T58: Obniżenie cb o 100zł/kwp
A59: WP Invest | B59: 0 | C59: =ROUND(((VLOOKUP('Kalkulator doboru'!$G$67,Koszty!$Z$5:$AA$67,2,0))+'Panasonic (2)'!$DB$19-'Panasonic (2)'!$DB$41),2) -> 21900 | D59: ='Panasonic (2)'!$DB$36-'Panasonic (2)'!$DB$19 -> 0 | E59: 0 | F59: =C59+G59+D59+N59+O59+E59+M59+J59 -> 30100 | H59: =$V$2 -> 12 | I59: 100 | J59: =IF('Czyste Powietrze'!H12="tak",0,H59*I59) -> 1200 | M59: =IF('Czyste Powietrze'!H12="tak",0,7000) -> 7000 | N59: =IF('Czyste Powietrze'!H12="tak",VLOOKUP(A59,'Panasonic (2)'!DV30:DX60,3,0),0) -> 0 | R59: 1 | S59: Standardowy | T59: Obniżenie cb o 100zł/kwp (komórka C58)
A60: BK Instal | B60: =IF(Mitsubishi!B248="tak",15%,IF(OR(LEFT('Kalkulator doboru'!G31,6)="SPRSUN",LEFT('Kalkulator doboru'!G31,4)="York"),8%,5%)) -> 0.15 | C60: =ROUND(((VLOOKUP('Kalkulator doboru'!$G$67,Koszty!$Z$5:$AA$67,2,0))+'Panasonic (2)'!$DB$19-'Panasonic (2)'!$DB$41),2) -> 21900 | D60: ='Panasonic (2)'!$DB$36-'Panasonic (2)'!$DB$19 -> 0 | E60: =IF('Czyste Powietrze'!H12="TAK",0,ROUND((B60*C60),2)) -> 3285 | F60: =C60+G60+D60+N60+O60+E60+M60 -> 25185 | N60: =IF('Czyste Powietrze'!H12="tak",VLOOKUP(A60,'Panasonic (2)'!DV30:DX70,3,0),0) -> 0 | R60: 0 | S60: Standardowy | T60: % w zależności od producenta
A61: Marta Ring | B61: 0 | C61: =ROUND(((VLOOKUP('Kalkulator doboru'!$G$67,Koszty!$Z$5:$AA$67,2,0))+'Panasonic (2)'!$DB$19-'Panasonic (2)'!$DB$41),2) -> 21900 | D61: ='Panasonic (2)'!$DB$36-'Panasonic (2)'!$DB$19 -> 0 | E61: 0 | F61: =C61+G61+D61+N61+O61+E61+M61 -> 23900 | M61: =IF('Czyste Powietrze'!H12="tak",0,IF(Mitsubishi!B248="tak",2000,1000)) -> 2000 | N61: =IF('Czyste Powietrze'!H12="tak",VLOOKUP(A61,'Panasonic (2)'!DV30:DX70,3,0),0) -> 0 | R61: 0 | S61: Standardowy
A62: Przemysław Miszczak | B62: 0 | C62: =ROUND(((VLOOKUP('Kalkulator doboru'!$G$67,Koszty!$Z$5:$AA$67,2,0))+'Panasonic (2)'!$DB$19-'Panasonic (2)'!$DB$41),2) -> 21900 | D62: ='Panasonic (2)'!$DB$36-'Panasonic (2)'!$DB$19 -> 0 | F62: =C62+G62+D62+N62+O62+E62+M62 -> 21900 | M62: 0 | N62: =IF('Czyste Powietrze'!H12="tak",VLOOKUP(A62,'Panasonic (2)'!DV30:DX70,3,0),0) -> 0 | R62: 0 | S62: Standardowy | T62: od Agnieszki
A63: Bartosz Piecha | B63: 0 | C63: =ROUND(((VLOOKUP('Kalkulator doboru'!$G$67,Koszty!$Z$5:$AA$67,2,0))+'Panasonic (2)'!$DB$19-'Panasonic (2)'!$DB$41),2) -> 21900 | D63: ='Panasonic (2)'!$DB$36-'Panasonic (2)'!$DB$19 -> 0 | F63: =C63+G63+D63+N63+O63+E63+M63 -> 24900 | M63: =IF('Czyste Powietrze'!$H$12="tak",0,IF(LEFT('Kalkulator doboru'!$G$31,4)="Piec",3000,4000)) -> 3000 | N63: =IF('Czyste Powietrze'!H12="tak",VLOOKUP(A63,'Panasonic (2)'!DV30:DX70,3,0),0) -> 0 | R63: 0 | S63: Standardowy | T63: od Agnieszki
A64: Bartosz Piecha Pracownicy | B64: 0 | C64: =ROUND(((VLOOKUP('Kalkulator doboru'!$G$67,Koszty!$Z$5:$AA$67,2,0))+'Panasonic (2)'!$DB$19-'Panasonic (2)'!$DB$41),2) -> 21900 | D64: ='Panasonic (2)'!$DB$36-'Panasonic (2)'!$DB$19 -> 0 | F64: 26900 | M64: =IF('Czyste Powietrze'!$H$12="tak",0,IF(LEFT('Kalkulator doboru'!$G$31,4)="Piec",5000,6000)) -> 5000 | N64: =IF('Czyste Powietrze'!H12="tak",VLOOKUP(A64,'Panasonic (2)'!DV30:DX70,3,0),0) -> 0 | R64: 0 | S64: Standardowy | T64: od Agnieszki
A65: Przemysław Matysik Eco Energia | B65: 0 | C65: =ROUND(((VLOOKUP('Kalkulator doboru'!$G$67,Koszty!$Z$5:$AA$67,2,0))+'Panasonic (2)'!$DB$19-'Panasonic (2)'!$DB$41),2) -> 21900 | D65: ='Panasonic (2)'!$DB$36-'Panasonic (2)'!$DB$19 -> 0 | F65: 21900 | M65: 0 | R65: 0 | S65: Standardowy | T65: od Agnieszki
A66: PG OZE | B66: =IF(Mitsubishi!B248="tak",20%,IF(OR(LEFT('Kalkulator doboru'!G31,6)="SPRSUN",LEFT('Kalkulator doboru'!G31,4)="York"),13%,10%)) -> 0.2 | C66: =ROUND(((VLOOKUP('Kalkulator doboru'!$G$67,Koszty!$Z$5:$AA$67,2,0))+'Panasonic (2)'!$DB$19-'Panasonic (2)'!$DB$41),2) -> 21900 | D66: ='Panasonic (2)'!$DB$36-'Panasonic (2)'!$DB$19 -> 0 | E66: =IF('Czyste Powietrze'!H12="TAK",0,ROUND((B66*C66),2)) -> 4380 | F66: 26280 | N66: =IF('Czyste Powietrze'!H12="tak",VLOOKUP(A66,'Panasonic (2)'!DV30:DX72,3,0),0) -> 0 | R66: 0 | S66: Standardowy | T66: % w zależności od producenta
A67: New Solution Patrycja Leśnik | B67: =IF(Mitsubishi!B248="tak",11%,8%) -> 0.11 | C67: =ROUND(((VLOOKUP('Kalkulator doboru'!$G$67,Koszty!$Z$5:$AA$67,2,0))+'Panasonic (2)'!$DB$19-'Panasonic (2)'!$DB$41),2) -> 21900 | D67: ='Panasonic (2)'!$DB$36-'Panasonic (2)'!$DB$19 -> 0 | E67: =ROUND((B67*C67),2) -> 2409 | F67: 24309 | H67: =$V$2 -> 12 | N67: =IF('Czyste Powietrze'!H12="tak",VLOOKUP(A67,'Panasonic (2)'!DV30:DX70,3,0),0) -> 0 | R67: 0 | S67: Standardowy
A68: Jaromir Tomaszewski | B68: 0 | C68: =ROUND(((VLOOKUP('Kalkulator doboru'!$G$67,Koszty!$Z$5:$AA$67,2,0))+'Panasonic (2)'!$DB$19-'Panasonic (2)'!$DB$41),2) -> 21900 | D68: ='Panasonic (2)'!$DB$36-'Panasonic (2)'!$DB$19 -> 0 | F68: 21900 | R68: 0 | S68: Standardowy | T68: od Agnieszki
A69: Gortech Jacek Górecki | B69: 0 | C69: =ROUND(((VLOOKUP('Kalkulator doboru'!$G$67,Koszty!$Z$5:$AA$67,2,0))+'Panasonic (2)'!$DB$19-'Panasonic (2)'!$DB$41),2) -> 21900 | D69: ='Panasonic (2)'!$DB$36-'Panasonic (2)'!$DB$19 -> 0 | F69: 27900 | G69: =J69 -> 6000 | H69: =$V$2 -> 12 | I69: 500 | J69: =I69*H69 -> 6000 | R69: 0 | S69: Standardowy
A70: Energosell Ryszard Seklecki | B70: 0 | C70: =ROUND(((VLOOKUP('Kalkulator doboru'!$G$67,Koszty!$Z$5:$AA$67,2,0))+'Panasonic (2)'!$DB$19-'Panasonic (2)'!$DB$41),2) -> 21900 | D70: ='Panasonic (2)'!$DB$36-'Panasonic (2)'!$DB$19 -> 0 | F70: 21900 | R70: 0 | S70: Standardowy | T70: od Agnieszki
A71: Radosław Sempolski - Pracownicy | B71: 0 | C71: =ROUND(((VLOOKUP('Kalkulator doboru'!$G$67,Koszty!$Z$5:$AA$67,2,0))+'Panasonic (2)'!$DB$19-'Panasonic (2)'!$DB$41),2) -> 21900 | D71: ='Panasonic (2)'!$DB$36-'Panasonic (2)'!$DB$19 -> 0 | F71: 24900 | M71: =IF(LEFT('Kalkulator doboru'!G31,4)="piec",3000,4000) -> 3000 | N71: =IF('Czyste Powietrze'!H12="tak",VLOOKUP(A71,'Panasonic (2)'!DV30:DX70,3,0),0) -> 0 | R71: 0 | S71: Standardowy | T71: od Agnieszki
A72: Invelo_Polmond | B72: 0 | C72: =ROUND(((VLOOKUP('Kalkulator doboru'!$G$67,Koszty!$Z$5:$AA$67,2,0))+'Panasonic (2)'!$DB$19-'Panasonic (2)'!$DB$41),2) -> 21900 | D72: ='Panasonic (2)'!$DB$36-'Panasonic (2)'!$DB$19 -> 0 | F72: =C72+G72+D72+N72+O72+E72+M72+J72 -> 31900 | H72: =$V$2 -> 12 | I72: 100 | J72: =IF(Mitsubishi!B248="tak",0,(IF('Czyste Powietrze'!H12="tak",0,H47*I47))) -> 0 | M72: =IF('Czyste Powietrze'!H12="tak",0,IF(Mitsubishi!B248="tak",VLOOKUP('Kalkulator doboru'!G67,CN24:CO31,2,0),9000)) -> 10000 | N72: =IF('Czyste Powietrze'!H12="tak",VLOOKUP(A72,'Panasonic (2)'!DV30:DX80,3,0),0) -> 0 | R72: 1 | S72: Standardowy | T72: Obniżenie cb o 100zł/kwp
A73: SupremeEnergy | C73: =ROUND(((VLOOKUP('Kalkulator doboru'!$G$67,Koszty!$Z$5:$AA$67,2,0))+'Panasonic (2)'!$DB$19-'Panasonic (2)'!$DB$41),2) -> 21900 | D73: ='Panasonic (2)'!$DB$36-'Panasonic (2)'!$DB$19 -> 0 | E73: =IF('Kalkulator doboru'!P1=7,VLOOKUP('Kalkulator doboru'!G67,SS!KC6:KD23,2,0),VLOOKUP('Kalkulator doboru'!G67,SS!KC6:KD23,2,0)) -> 5000 | F73: 26900 | R73: 0 | S73: Standardowy | T73: do dodania oprócz podbicia progi marżowe | BB73: Midea Monoblok | BC73: M-Thermal Mono 12kW + 10kW | BD73: Midea Monoblok M-Thermal Mono 12kW + 10kW | BE73: 22 | BF73: 7 | BG73: 2 | BH73: kaskada
A74: GF | C74: =ROUND(((VLOOKUP('Kalkulator doboru'!$G$67,Koszty!$Z$5:$AA$67,2,0))+'Panasonic (2)'!$DB$19-'Panasonic (2)'!$DB$41),2) -> 21900 | D74: ='Panasonic (2)'!$DB$36-'Panasonic (2)'!$DB$19 -> 0 | E74: =(VLOOKUP('Kalkulator doboru'!G67,SS!KC56:KD96,2,0))+'Panasonic (2)'!DX34 ->  | F74: =C74+E74+D74 ->  | R74: 0 | S74: Standardowy | T74: =IF('Czyste Powietrze'!H12="tak","Równoważenie","") ->  | U74: Ustawić Dodatkowy sterownik bezprzewodowy jednego obiegu na stałe na tak, w kwocie 500zł netto | BB74: Midea Monoblok | BC74: M-Thermal Mono 12kW + 12kW | BD74: Midea Monoblok M-Thermal Mono 12kW + 12kW | BE74: 24 | BF74: 7 | BG74: 2 | BH74: kaskada
A75: Atemori | C75: =ROUND(((VLOOKUP('Kalkulator doboru'!$G$67,Koszty!$Z$5:$AA$67,2,0))+'Panasonic (2)'!$DB$19-'Panasonic (2)'!$DB$41),2) -> 21900 | D75: ='Panasonic (2)'!$DB$36-'Panasonic (2)'!$DB$19 -> 0 | E75: =SS!KD104 -> 5000 | F75: =C75+E75+K75+D75 -> 26900 | K75: =SS!KD120 -> 0 | R75: 0 | S75: Standardowy | T75: do dodania oprócz podbicia progi marżowe | BB75: Midea Monoblok | BC75: M-Thermal Mono 14kW + 12kW | BD75: Midea Monoblok M-Thermal Mono 14kW + 12kW | BE75: 26 | BF75: 7 | BG75: 2 | BH75: kaskada
A76: Pomorska Energia | C76: =ROUND(((VLOOKUP('Kalkulator doboru'!$G$67,Koszty!$Z$5:$AA$67,2,0))+'Panasonic (2)'!$DB$19-'Panasonic (2)'!$DB$41),2) -> 21900 | D76: ='Panasonic (2)'!$DB$36-'Panasonic (2)'!$DB$19 -> 0 | E76: =SS!KD135 -> 2000 | F76: =C76+D76+E76 -> 23900 | R76: 0 | S76: Standardowy | BB76: Midea Monoblok | BC76: M-Thermal Mono 14kW + 14kW | BD76: Midea Monoblok M-Thermal Mono 14kW + 14kW | BE76: 28 | BF76: 7 | BG76: 2 | BH76: kaskada
A77: Rachuneo | C77: =ROUND(((VLOOKUP('Kalkulator doboru'!$G$67,Koszty!$Z$5:$AA$67,2,0))+'Panasonic (2)'!$DB$19-'Panasonic (2)'!$DB$41),2) -> 21900 | D77: ='Panasonic (2)'!$DB$36-'Panasonic (2)'!$DB$19 -> 0 | E77: =IF('Kalkulator doboru'!P1=1,VLOOKUP('Kalkulator doboru'!G67,SS!KC56:KD67,2,0),4000) -> 4000 | F77: =C77+D77+E77 -> 25900 | R77: 0 | S77: Standardowy | BB77: Midea Monoblok | BC77: M-Thermal Mono 16kW + 14kW | BD77: Midea Monoblok M-Thermal Mono 16kW + 14kW | BE77: 30 | BF77: 7 | BG77: 2 | BH77: kaskada
A78: ProEnergy | C78: =ROUND(((VLOOKUP('Kalkulator doboru'!$G$67,Koszty!$Z$5:$AA$67,2,0))+'Panasonic (2)'!$DB$19-'Panasonic (2)'!$DB$41),2) -> 21900 | D78: ='Panasonic (2)'!$DB$36-'Panasonic (2)'!$DB$19 -> 0 | E78: =VLOOKUP('Kalkulator doboru'!G67,SS!KJ56:KK96,2,0)+'Panasonic (2)'!DX58 ->  | F78: =C78+D78+E78 ->  | R78: 0 | S78: Standardowy | U78: Ustawić Dodatkowy sterownik bezprzewodowy jednego obiegu na stałe na tak, w kwocie 500zł netto | BB78: Midea Monoblok | BC78: M-Thermal Mono 16kW + 16kW | BD78: Midea Monoblok M-Thermal Mono 16kW + 16kW | BE78: 32 | BF78: 7 | BG78: 2 | BH78: kaskada
A79: Pro | C79: =ROUND(((VLOOKUP('Kalkulator doboru'!$G$67,Koszty!$Z$5:$AA$67,2,0))+'Panasonic (2)'!$DB$19-'Panasonic (2)'!$DB$41),2) -> 21900 | D79: ='Panasonic (2)'!$DB$36-'Panasonic (2)'!$DB$19 -> 0 | E79: =IF('Kalkulator doboru'!P1=1,VLOOKUP('Kalkulator doboru'!G67,SS!KU56:KV68,2,0),SS!KV51) -> 8000 | F79: =C79+D79+E79 -> 29900 | R79: 0 | S79: Standardowy | BH79: kaskada
A80: Kalkulator doboru - uproszczony | T80: =ROUND((VLOOKUP('Kalkulator doboru - uproszczony'!$J$49,Koszty!$Z$5:$AA$41,2,0))+Panasonic!$AC$31-Panasonic!$AC$32+Panasonic!$CJ$2+Panasonic!$CM$2+Panasonic!$CP$2+Panasonic!$CC$8+Panasonic!$CE$8+Panasonic!$CG$8,2) ->  | U80: Cena bazowa czysta kalkulator uproszczony - stara formuła | BB80: Midea Monoblok | BC80: M-Thermal Mono 12kW + 12kW + 10kW | BD80: Midea Monoblok M-Thermal Mono 12kW + 12kW + 10kW | BE80: 34 | BF80: 7 | BG80: 3 | BH80: kaskada
B81: Podbicie % do ceny bazowej | C81: Cena bazowa czysta (bez dodatków) | D81: Cena dodatków bazowych | E81: % od ceny bazowej | F81: Suma | G81: Dodatki | H81: KWH | I81: zł/kwh | J81: Podsumowanie KWH | K81: KASKADA | L81: % od ceny bazowej | M81: Cena od ilości pomp | N81: dodatkowe podbicie | O81: Podsumowanie polecenia | P81: Polecenie | Q81: Dla kogo polecenie | BB81: Midea Monoblok | BC81: M-Thermal Mono 12kW + 12kW + 12kW | BD81: Midea Monoblok M-Thermal Mono 12kW + 12kW + 12kW | BE81: 36 | BF81: 7 | BG81: 3 | BH81: kaskada
A82: 4M | B82: 0 | C82: =ROUND((VLOOKUP('Kalkulator doboru - uproszczony'!$J$49,Koszty!$Z$4:$AA$67,2,0))+Panasonic!$CD$19-Panasonic!$CD$43,2) -> 24739.05 | D82: =Panasonic!$CD$38-Panasonic!$CD$19 -> 0 | E82: =B82*C82 -> 0 | F82: =E82+C82+G82+D82 -> 24739.05 | R82: 0 | S82: 70/30 | T82: =ROUND((VLOOKUP('Kalkulator doboru - uproszczony'!$J$49,Koszty!$Z$18:$AA$41,2,0))+Panasonic!$CD$38-Panasonic!$CD$43,2) ->  | U82: Cena bazowa czysta kalkulator uproszczony | BB82: Midea Monoblok | BC82: M-Thermal Mono 14kW + 12kW + 12kW | BD82: Midea Monoblok M-Thermal Mono 14kW + 12kW + 12kW | BE82: 38 | BF82: 7 | BG82: 3 | BH82: kaskada
A83: WS-A | B83: 0.04 | C83: =ROUND((VLOOKUP('Kalkulator doboru - uproszczony'!$J$49,Koszty!$Z$4:$AA$67,2,0))+Panasonic!$CD$19-Panasonic!$CD$43,2) -> 24739.05 | D83: =Panasonic!$CD$38-Panasonic!$CD$19 -> 0 | E83: =B83*C83 -> 989.562 | F83: =E83+C83+G83+D83 -> 25728.612 | R83: 0 | S83: Standardowy | BB83: Midea Monoblok | BC83: M-Thermal Mono 14kW + 14kW + 12kW | BD83: Midea Monoblok M-Thermal Mono 14kW + 14kW + 12kW | BE83: 40 | BF83: 7 | BG83: 3 | BH83: kaskada
A84: WS-A KL | B84: =IF(Mitsubishi!B251="tak",0,4%) -> 0 | C84: =ROUND((VLOOKUP('Kalkulator doboru - uproszczony'!$J$49,Koszty!$Z$4:$AA$67,2,0))+Panasonic!$CD$19-Panasonic!$CD$43,2) -> 24739.05 | D84: =Panasonic!$CD$38-Panasonic!$CD$19 -> 0 | E84: 0 | F84: 24739.05 | H84: =$W$2 ->  | R84: 0 | S84: Standardowy | BB84: Midea Monoblok | BC84: M-Thermal Mono 14kW + 14kW + 14kW | BD84: Midea Monoblok M-Thermal Mono 14kW + 14kW + 14kW | BE84: 42 | BF84: 7 | BG84: 3 | BH84: kaskada
A85: EJDOS | B85: 0 | C85: =ROUND((VLOOKUP('Kalkulator doboru - uproszczony'!$J$49,Koszty!$Z$4:$AA$67,2,0))+Panasonic!$CD$19-Panasonic!$CD$43,2) -> 24739.05 | D85: =Panasonic!$CD$38-Panasonic!$CD$19 -> 0 | E85: 0 | F85: 24739.05 | G85: =N85 -> 0 | N85: =IF('Czyste Powietrze'!H13="tak",Panasonic!$CQ$46,0) -> 0 | R85: 1 | S85: Standardowy | BB85: Midea Monoblok | BC85: M-Thermal Mono 16kW + 14kW + 14kW | BD85: Midea Monoblok M-Thermal Mono 16kW + 14kW + 14kW | BE85: 44 | BF85: 7 | BG85: 3 | BH85: kaskada
A86: CAMIS | B86: 0.05 | C86: =ROUND((VLOOKUP('Kalkulator doboru - uproszczony'!$J$49,Koszty!$Z$4:$AA$67,2,0))+Panasonic!$CD$19-Panasonic!$CD$43,2) -> 24739.05 | D86: =Panasonic!$CD$38-Panasonic!$CD$19 -> 0 | E86: 1236.9525 | F86: 25976.0025 | R86: 0 | S86: Standardowy | BB86: Midea Monoblok | BC86: M-Thermal Mono 16kW + 16kW + 14kW | BD86: Midea Monoblok M-Thermal Mono 16kW + 16kW + 14kW | BE86: 46 | BF86: 7 | BG86: 3 | BH86: kaskada
A87: CZYSTY | B87: 0 | C87: =ROUND((VLOOKUP('Kalkulator doboru - uproszczony'!$J$49,Koszty!$Z$4:$AA$67,2,0))+Panasonic!$CD$19-Panasonic!$CD$43,2) -> 24739.05 | D87: =Panasonic!$CD$38-Panasonic!$CD$19 -> 0 | E87: 0 | F87: 24739.05 | R87: 0 | S87: Standardowy | BB87: Midea Monoblok | BC87: M-Thermal Mono 16kW + 16kW + 16kW | BD87: Midea Monoblok M-Thermal Mono 16kW + 16kW + 16kW | BE87: 48 | BF87: 7 | BG87: 3 | BH87: kaskada
A88: Marcin Janosz (Panda Energia) Pracownicy | B88: 0.15 | C88: =ROUND((VLOOKUP('Kalkulator doboru - uproszczony'!$J$49,Koszty!$Z$4:$AA$67,2,0))+Panasonic!$CD$19-Panasonic!$CD$43,2) -> 24739.05 | D88: =Panasonic!$CD$38-Panasonic!$CD$19 -> 0 | E88: 3710.8575 | F88: 28449.9075 | G88: =N88 -> 0 | N88: =IF('Czyste Powietrze'!H13="tak",Panasonic!$CQ$45,0) -> 0 | R88: 0 | S88: Standardowy | BB88: Mitsubishi Split | BC88: M-Thermal Split All In One 8kW | BD88: Mitsubishi Split Zubadan Inverter 8kW 3f | BE88: 8 | BF88: 5 | BG88: 1 | BH88: =BI88*BE88 -> 6400 | BI88: 800
A89: Noway | B89: 0.03 | C89: =ROUND((VLOOKUP('Kalkulator doboru - uproszczony'!$J$49,Koszty!$Z$4:$AA$67,2,0))+Panasonic!$CD$19-Panasonic!$CD$43,2) -> 24739.05 | D89: =Panasonic!$CD$38-Panasonic!$CD$19 -> 0 | E89: 742.1715 | F89: 25481.2215 | R89: 0 | S89: Standardowy | BB89: Mitsubishi Split | BC89: M-Thermal Split All In One 10kW | BD89: Mitsubishi Split Zubadan Inverter 10kW | BE89: 10 | BF89: 5 | BG89: 1 | BH89: =BI89*BE89 -> 8000 | BI89: 800
A90: Prestige | B90: 0 | C90: =ROUND((VLOOKUP('Kalkulator doboru - uproszczony'!$J$49,Koszty!$Z$4:$AA$67,2,0))+Panasonic!$CD$19-Panasonic!$CD$43,2) -> 24739.05 | D90: =Panasonic!$CD$38-Panasonic!$CD$19 -> 0 | E90: 0 | F90: 24739.05 | G90: =IF(Mitsubishi!B251="tak",0,J90) -> 0 | H90: =$W$2 ->  | I90: 70 | J90: =I90*H90 ->  | R90: 0 | S90: Standardowy | BB90: Mitsubishi Split | BC90: M-Thermal Split All In One 12kW | BD90: Mitsubishi Split Zubadan Inverter 12kW | BE90: 12 | BF90: 5 | BG90: 1 | BH90: 9600 | BI90: 800
A91: SBD | B91: 0.04 | C91: =ROUND((VLOOKUP('Kalkulator doboru - uproszczony'!$J$49,Koszty!$Z$4:$AA$67,2,0))+Panasonic!$CD$19-Panasonic!$CD$43,2) -> 24739.05 | D91: =Panasonic!$CD$38-Panasonic!$CD$19 -> 0 | E91: 989.562 | F91: 25728.612 | R91: 0 | S91: Standardowy | BB91: Mitsubishi Split | BC91: M-Thermal Split All In One 14kW | BD91: Mitsubishi Split Zubadan Inverter 14kW | BE91: 14 | BF91: 5 | BG91: 1 | BH91: 11200 | BI91: 800
A92: CEiT | B92: 0.04 | C92: =ROUND((VLOOKUP('Kalkulator doboru - uproszczony'!$J$49,Koszty!$Z$4:$AA$67,2,0))+Panasonic!$CD$19-Panasonic!$CD$43,2) -> 24739.05 | D92: =Panasonic!$CD$38-Panasonic!$CD$19 -> 0 | E92: 989.562 | F92: =E92+C92+G92+D92+N92 ->  | G92: =O92 ->  | H92: =$W$2 ->  | I92: 70 | J92: =I92*H92 ->  | N92: =IF('Czyste Powietrze'!H13="Tak",VLOOKUP(podb!A92,Panasonic!CO35:CQ77,3,0),0) -> 0 | O92: =P92*H92 ->  | P92: 70 | Q92: Prestige | R92: 0 | S92: Standardowy | BB92: Mitsubishi Split | BC92: M-Thermal Split All In One 16kW | BD92: Mitsubishi Split Zubadan Inverter 23kW | BE92: 23 | BF92: 5 | BG92: 1 | BH92: 17250 | BI92: 750
A93: KZ Finanse | B93: 0 | C93: =ROUND((VLOOKUP('Kalkulator doboru - uproszczony'!$J$49,Koszty!$Z$4:$AA$67,2,0))+Panasonic!$CD$19-Panasonic!$CD$43,2) -> 24739.05 | D93: =Panasonic!$CD$38-Panasonic!$CD$19 -> 0 | E93: 0 | G93: =J93 ->  | I93: 150 | J93: =I93*H93 ->  | R93: 0 | S93: Standardowy | BD93: Mitsubishi Split Zubadan Inverter 8kW 1f | BE93: 8 | BF93: 5 | BG93: 1 | BH93: 6400 | BI93: 800
A94: Justyna Całka | B94: 0.05 | C94: =ROUND((VLOOKUP('Kalkulator doboru - uproszczony'!$J$49,Koszty!$Z$4:$AA$67,2,0))+Panasonic!$CD$19-Panasonic!$CD$43,2) -> 24739.05 | D94: =Panasonic!$CD$38-Panasonic!$CD$19 -> 0 | E94: =IF('Czyste Powietrze'!H13="tak",0,(B94*C94)) -> 1236.9525 | G94: =O94+N94 ->  | N94: =IF('Czyste Powietrze'!H13="Tak",VLOOKUP(podb!A94,Panasonic!CO35:CQ67,3,0),0) -> 0 | O94: =P94*H94 ->  | P94: 70 | Q94: Prestige | R94: 0 | S94: Standardowy
A95: Grzegorz Perz | B95: =IF(Mitsubishi!B251="tak",6%,5%) -> 0.06 | C95: =ROUND((VLOOKUP('Kalkulator doboru - uproszczony'!$J$49,Koszty!$Z$4:$AA$67,2,0))+Panasonic!$CD$19-Panasonic!$CD$43,2) -> 24739.05 | D95: =Panasonic!$CD$38-Panasonic!$CD$19 -> 0 | E95: =B95*C95 -> 1484.343 | F95: =E95+C95+G95+D95+N95 -> 26223.393 | N95: =IF('Czyste Powietrze'!H13="nie",0,Panasonic!CQ47) -> 0 | R95: 0 | S95: Standardowy | BB95: NEW ENERGY Monoblok | BC95: NE-F60HCR5INVM 6kW | BD95: =BB95&" "&BC95 -> NEW ENERGY Monoblok NE-F60HCR5INVM 6kW | BE95: 6 | BF95: 5 | BG95: 1
A96: Novar | B96: =IF(Mitsubishi!B251="tak",12%,8%) -> 0.12 | C96: =ROUND((VLOOKUP('Kalkulator doboru - uproszczony'!$J$49,Koszty!$Z$4:$AA$67,2,0))+Panasonic!$CD$19-Panasonic!$CD$43,2) -> 24739.05 | D96: =Panasonic!$CD$38-Panasonic!$CD$19 -> 0 | E96: =B96*C96 -> 2968.686 | F96: =E96+C96+G96+D96+N96 -> 27707.736 | N96: =IF('Czyste Powietrze'!H13="nie",0,Panasonic!CQ48) -> 0 | R96: 0 | S96: Standardowy | BB96: NEW ENERGY Monoblok | BC96: NE-F90HCR5TINVM 9kW | BD96: NEW ENERGY Monoblok NE-F90HCR5TINVM 9kW | BE96: 9 | BF96: 5 | BG96: 1
A97: ANTI Aneta Sijka | B97: 0 | C97: =ROUND((VLOOKUP('Kalkulator doboru - uproszczony'!$J$49,Koszty!$Z$4:$AA$67,2,0))+Panasonic!$CD$19-Panasonic!$CD$43,2) -> 24739.05 | D97: =Panasonic!$CD$38-Panasonic!$CD$19 -> 0 | E97: =B97*C97 -> 0 | F97: =E97+C97+G97+D97+N97 ->  | G97: =J97 ->  | I97: =IF('Czyste Powietrze'!H13="nie",200,0) -> 200 | J97: =I97*H97 ->  | N97: =IF('Czyste Powietrze'!H13="tak",Panasonic!CQ41,0) -> 0 | R97: 1 | S97: Standardowy | BB97: NEW ENERGY Monoblok | BC97: NE-F130HCR5TINVM 13kW | BD97: NEW ENERGY Monoblok NE-F130HCR5TINVM 13kW | BE97: 13 | BF97: 5 | BG97: 1
A98: SIM | B98: 0 | C98: =ROUND((VLOOKUP('Kalkulator doboru - uproszczony'!$J$49,Koszty!$Z$4:$AA$67,2,0))+Panasonic!$CD$19-Panasonic!$CD$43,2) -> 24739.05 | D98: =Panasonic!$CD$38-Panasonic!$CD$19 -> 0 | E98: =B98*C98 -> 0 | F98: =E98+C98+G98+D98+N98 -> 24739.05 | G98: =IF('Czyste Powietrze'!H13="tak",0,J98) -> 0 | I98: 200 | J98: =IF(Mitsubishi!B251="tak",0,I98*H98) -> 0 | N98: =IF('Czyste Powietrze'!H13="tak",Panasonic!CQ53,0) -> 0 | R98: 0 | S98: Standardowy | BB98: NEW ENERGY Monoblok | BC98: NE-F160HCR5TINVM 16kW | BD98: NEW ENERGY Monoblok NE-F160HCR5TINVM 16kW | BE98: 16 | BF98: 5 | BG98: 1
A99: 77 Contact Center | B99: 0 | C99: =ROUND((VLOOKUP('Kalkulator doboru - uproszczony'!$J$49,Koszty!$Z$4:$AA$67,2,0))+Panasonic!$CD$19-Panasonic!$CD$43,2) -> 24739.05 | D99: =Panasonic!$CD$38-Panasonic!$CD$19 -> 0 | E99: =B99*C99 -> 0 | F99: 30739.05 | G99: =M99 -> 6000 | M99: 6000 | R99: 1 | S99: Standardowy | BB99: NEW ENERGY Monoblok | BC99: NEW ENERGY Mono 9kW + 9kW | BD99: NEW ENERGY Monoblok NEW ENERGY Mono 9kW + 9kW | BE99: 18 | BF99: 5 | BG99: 2 | BH99: kaskada
A100: Mokka | B100: 0.03 | C100: =ROUND((VLOOKUP('Kalkulator doboru - uproszczony'!$J$49,Koszty!$Z$4:$AA$67,2,0))+Panasonic!$CD$19-Panasonic!$CD$43,2) -> 24739.05 | D100: =Panasonic!$CD$38-Panasonic!$CD$19 -> 0 | E100: =B100*C100 -> 742.1715 | F100: 25481.2215 | R100: 0 | S100: Standardowy | BB100: NEW ENERGY Monoblok | BC100: NEW ENERGY Mono 13kW + 13kW | BD100: NEW ENERGY Monoblok NEW ENERGY Mono 13kW + 13kW | BE100: 26 | BF100: 5 | BG100: 2 | BH100: kaskada
A101: Katarzyna Kępka | B101: 0.025 | C101: =ROUND((VLOOKUP('Kalkulator doboru - uproszczony'!$J$49,Koszty!$Z$4:$AA$67,2,0))+Panasonic!$CD$19-Panasonic!$CD$43,2) -> 24739.05 | D101: =Panasonic!$CD$38-Panasonic!$CD$19 -> 0 | E101: =IF('Czyste Powietrze'!H13="tak",0,(B101*C101)) -> 618.47625 | F101: 25357.52625 | G101: =N101 -> 0 | N101: =IF('Czyste Powietrze'!H13="Tak",VLOOKUP(podb!A101,Panasonic!CO35:CQ67,3,0),0) -> 0 | R101: 0 | S101: Standardowy | BB101: NEW ENERGY Monoblok | BC101: NEW ENERGY Mono 16kW + 16kW | BD101: NEW ENERGY Monoblok NEW ENERGY Mono 16kW + 16kW | BE101: 32 | BF101: 5 | BG101: 2 | BH101: kaskada
A102: Maga | B102: 0 | C102: =ROUND((VLOOKUP('Kalkulator doboru - uproszczony'!$J$49,Koszty!$Z$4:$AA$67,2,0))+Panasonic!$CD$19-Panasonic!$CD$43,2) -> 24739.05 | D102: =Panasonic!$CD$38-Panasonic!$CD$19 -> 0 | E102: =B102*C102 -> 0 | G102: =O102 ->  | H102: =$W$2 ->  | O102: =P102*H102 ->  | P102: 70 | Q102: Prestige | R102: 0 | S102: Standardowy | BB102: NEW ENERGY Monoblok | BC102: NEW ENERGY Mono 13kW + 13kW + 13kW | BD102: NEW ENERGY Monoblok NEW ENERGY Mono 13kW + 13kW + 13kW | BE102: 39 | BF102: 5 | BG102: 3 | BH102: kaskada
A103: Bilbox | B103: 0.05 | C103: =ROUND((VLOOKUP('Kalkulator doboru - uproszczony'!$J$49,Koszty!$Z$4:$AA$67,2,0))+Panasonic!$CD$19-Panasonic!$CD$43,2) -> 24739.05 | D103: =Panasonic!$CD$38-Panasonic!$CD$19 -> 0 | E103: =B103*C103 -> 1236.9525 | F103: =E103+C103+G103+D103 -> 25976.0025 | R103: 0 | S103: Standardowy | BB103: NEW ENERGY Monoblok | BC103: NEW ENERGY Mono 16kW + 16kW + 16kW | BD103: NEW ENERGY Monoblok NEW ENERGY Mono 16kW + 16kW + 16kW | BE103: 48 | BF103: 5 | BG103: 3 | BH103: kaskada
A104: Automaeko | B104: 0 | C104: =ROUND((VLOOKUP('Kalkulator doboru - uproszczony'!$J$49,Koszty!$Z$4:$AA$67,2,0))+Panasonic!$CD$19-Panasonic!$CD$43,2) -> 24739.05 | D104: =Panasonic!$CD$38-Panasonic!$CD$19 -> 0 | E104: 0 | F104: 25739.05 | G104: 1000 | R104: 0 | S104: Standardowy
A105: Invest | B105: 0 | C105: =ROUND((VLOOKUP('Kalkulator doboru - uproszczony'!$J$49,Koszty!$Z$4:$AA$67,2,0))+Panasonic!$CD$19-Panasonic!$CD$43,2) -> 24739.05 | D105: =Panasonic!$CD$38-Panasonic!$CD$19 -> 0 | E105: =B105*C105 -> 0 | F105: =E105+C105+G105+D105+N105 ->  | G105: =O105+M105 ->  | H105: =$W$2 ->  | M105: 0 | N105: =IF('Czyste Powietrze'!H13="Tak",VLOOKUP(podb!A105,Panasonic!CO35:CQ77,3,0),0) -> 0 | O105: =P105*H105 ->  | P105: 0 | Q105: Arago | R105: 0 | S105: Standardowy
A106: OBI | B106: 0 | C106: =ROUND((VLOOKUP('Kalkulator doboru - uproszczony'!$J$49,Koszty!$Z$4:$AA$67,2,0))+Panasonic!$CD$19-Panasonic!$CD$43,2) -> 24739.05 | D106: =Panasonic!$CD$38-Panasonic!$CD$19 -> 0 | E106: 0 | F106: =(C106+G106+D106)/0.9 -> 27487.83333 | G106: ='Kalkulator doboru - uproszczony'!$J$51 -> 0 | R106: 2 | S106: OBI | BD106: Piec na pellet FERROLI BIOPELLET PRO 12kw | BE106: 12 | BF106: 5 | BG106: 1
A107: Zone Energy | B107: 0.025 | C107: =ROUND((VLOOKUP('Kalkulator doboru - uproszczony'!$J$49,Koszty!$Z$4:$AA$67,2,0))+Panasonic!$CD$19-Panasonic!$CD$43,2) -> 24739.05 | D107: =Panasonic!$CD$38-Panasonic!$CD$19 -> 0 | E107: =B107*(C107+G107) ->  | F107: =E107+C107+G107+D107+N107+O107 ->  | G107: =J107+M107 ->  | H107: =$W$2 ->  | I107: 10 | J107: =I107*H107 ->  | N107: =(IF('Czyste Powietrze'!$H$13="TAK",18500,0))+10000-$BL$12 -> 10000 | O107: =P107*(C107+G107) ->  | R107: 0 | S107: Standardowy | BD107: Piec na pellet FERROLI BIOPELLET PRO 18kw | BE107: 18 | BF107: 5 | BG107: 1
A108: Wiktor Stępniewski | B108: =B83 -> 0.04 | C108: =ROUND((VLOOKUP('Kalkulator doboru - uproszczony'!$J$49,Koszty!$Z$4:$AA$67,2,0))+Panasonic!$CD$19-Panasonic!$CD$43,2) -> 24739.05 | D108: =Panasonic!$CD$38-Panasonic!$CD$19 -> 0 | E108: =B108*(C108) -> 989.562 | F108: =E108+C108+G108+D108 -> 25728.612 | G108: =N108 -> 0 | N108: =IF('Czyste Powietrze'!H13="tak",Panasonic!CQ50,0) -> 0 | R108: 0 | S108: Standardowy | BD108: Piec na pellet FERROLI BIOPELLET PRO 24kw | BE108: 24 | BF108: 5 | BG108: 1
A109: Fern Energy | B109: 0 | C109: =ROUND((VLOOKUP('Kalkulator doboru - uproszczony'!$J$49,Koszty!$Z$4:$AA$67,2,0))+Panasonic!$CD$19-Panasonic!$CD$43,2) -> 24739.05 | D109: =Panasonic!$CD$38-Panasonic!$CD$19 -> 0 | E109: =B109*(C109+G109) ->  | G109: =J109+M109 ->  | I109: 10 | J109: =I109*H109 ->  | N109: =(IF('Czyste Powietrze'!$H$13="TAK",18500,0))+10000-$BL$12 -> 10000 | O109: =P109*(C109+G109) ->  | P109: 0.025 | Q109: Zone Energy | R109: 0 | S109: Standardowy | BD109: Piec na pellet FERROLI BIOPELLET PRO 30kw | BE109: 30 | BF109: 5 | BG109: 1
A110: Rainforest | B110: 0 | C110: =ROUND((VLOOKUP('Kalkulator doboru - uproszczony'!$J$49,Koszty!$Z$4:$AA$67,2,0))+Panasonic!$CD$19-Panasonic!$CD$43,2) -> 24739.05 | D110: =Panasonic!$CD$38-Panasonic!$CD$19 -> 0 | E110: 0 | F110: 24739.05 | J110: =I110*H110 ->  | N110: =IF('Czyste Powietrze'!H13="tak",Panasonic!CQ54,0) -> 0 | R110: 0 | S110: Standardowy | BD110: Piec na pellet DEFRO KOMFORT EKOPELL 14kw | BE110: 14 | BF110: 5 | BG110: 1
A111: ABNM | B111: 0 | C111: =ROUND((VLOOKUP('Kalkulator doboru - uproszczony'!$J$49,Koszty!$Z$4:$AA$67,2,0))+Panasonic!$CD$19-Panasonic!$CD$43,2) -> 24739.05 | D111: =Panasonic!$CD$38-Panasonic!$CD$19 -> 0 | E111: =B111*(C111+G111) ->  | F111: =E111+C111+G111+D111+O111 ->  | G111: =IF('Czyste Powietrze'!H13="Nie",(J111+M111),podb!N111) ->  | M111: =8000*$X$4 ->  | N111: =IF('Czyste Powietrze'!H13="tak",Panasonic!CQ43,0) -> 0 | R111: 0 | S111: Standardowy | BD111: Piec na pellet DEFRO KOMFORT EKOPELL 20kw | BE111: 20 | BF111: 5 | BG111: 1
A112: IMS | B112: 0 | C112: =ROUND((VLOOKUP('Kalkulator doboru - uproszczony'!$J$49,Koszty!$Z$4:$AA$67,2,0))+Panasonic!$CD$19-Panasonic!$CD$43,2) -> 24739.05 | D112: =Panasonic!$CD$38-Panasonic!$CD$19 -> 0 | G112: =J112+M112 ->  | I112: =IF(H112>19.99,30,50) ->  | R112: 0 | S112: Standardowy | BD112: Piec na pellet DEFRO KOMFORT EKOPELL 25kw | BE112: 25 | BF112: 5 | BG112: 1
A113: MHS | B113: 0 | C113: =ROUND((VLOOKUP('Kalkulator doboru - uproszczony'!$J$49,Koszty!$Z$4:$AA$67,2,0))+Panasonic!$CD$19-Panasonic!$CD$43,2) -> 24739.05 | D113: =Panasonic!$CD$38-Panasonic!$CD$19 -> 0 | E113: =B113*C113 -> 0 | F113: =E113+C113+G113+D113 -> 27739.05 | G113: =N113+M113 -> 3000 | M113: 3000 | N113: =IF('Czyste Powietrze'!H13="nie",0,Panasonic!CQ49) -> 0 | R113: 0 | S113: Standardowy | BD113: Piec zgazowujący drewno FERROLI CGF PRO 22 | BE113: 22 | BF113: 5 | BG113: 1
A114: JWS Solar | B114: 0 | C114: =ROUND((VLOOKUP('Kalkulator doboru - uproszczony'!$J$49,Koszty!$Z$4:$AA$67,2,0))+Panasonic!$CD$19-Panasonic!$CD$43,2) -> 24739.05 | D114: =Panasonic!$CD$38-Panasonic!$CD$19 -> 0 | E114: 0 | F114: =E114+C114+G114+D114+M114 -> 30739.05 | G114: =N114 -> 0 | M114: =IF('Czyste Powietrze'!$H$13="Tak",0,6000) -> 6000 | N114: =IF('Czyste Powietrze'!H13="Tak",Panasonic!CQ51,0) -> 0 | R114: 1 | S114: Standardowy
A115: N-Energy | B115: 0 | C115: =ROUND((VLOOKUP('Kalkulator doboru - uproszczony'!$J$49,Koszty!$Z$4:$AA$67,2,0))+Panasonic!$CD$19-Panasonic!$CD$43,2) -> 24739.05 | D115: =Panasonic!$CD$38-Panasonic!$CD$19 -> 0 | F115: =E115+C115+G115+D115+O115 ->  | G115: =IF('Czyste Powietrze'!H13="tak",podb!N115,J115) ->  | I115: =VLOOKUP(H115,BX4:BY16,2,1) ->  | J115: =H115*I115 ->  | N115: =IF('Czyste Powietrze'!$H$13="tak",Panasonic!$CQ$44,0) -> 0 | R115: 0 | S115: Standardowy
A116: DAD | B116: 0 | C116: =ROUND((VLOOKUP('Kalkulator doboru - uproszczony'!$J$49,Koszty!$Z$4:$AA$67,2,0))+Panasonic!$CD$19-Panasonic!$CD$43,2) -> 24739.05 | D116: =Panasonic!$CD$38-Panasonic!$CD$19 -> 0 | E116: =B116*(C116+G116) ->  | G116: =J116 ->  | J116: =$X$4*M116 ->  | M116: 2000 | R116: 0 | S116: Standardowy | BD116: YORK monoblok YKF05CNC 5kW | BE116: 5 | BF116: 5 | BG116: 1
A117: WST | B117: 0.04 | C117: =ROUND((VLOOKUP('Kalkulator doboru - uproszczony'!$J$49,Koszty!$Z$4:$AA$67,2,0))+Panasonic!$CD$19-Panasonic!$CD$43,2) -> 24739.05 | D117: =Panasonic!$CD$38-Panasonic!$CD$19 -> 0 | E117: =IF('Czyste Powietrze'!H13="TAK",0,(B117*C117)) -> 989.562 | F117: =E117+C117+G117+D117+N117 -> 25728.612 | N117: =IF('Czyste Powietrze'!H13="TAK",Panasonic!CQ35,0) -> 0 | R117: 0 | S117: Standardowy | BD117: YORK monoblok YKF07CNC 7kW | BE117: 7 | BF117: 5 | BG117: 1
A118: SupremeEnergy | C118: =ROUND((VLOOKUP('Kalkulator doboru - uproszczony'!$J$49,Koszty!$Z$4:$AA$67,2,0))+Panasonic!$CD$19-Panasonic!$CD$43,2) -> 24739.05 | D118: =Panasonic!$CD$38-Panasonic!$CD$19 -> 0 | E118: =IF('Panasonic (2)'!A43=1,VLOOKUP('Kalkulator doboru - uproszczony'!J49,SS!KC6:KD14,2,0),VLOOKUP('Kalkulator doboru - uproszczony'!J49,SS!KC6:KD23,2,0)) -> 5000 | F118: 29739.05 | R118: 0 | S118: Standardowy | T118: do dodania oprócz podbicia progi marżowe | BD118: YORK monoblok YKF09CNC 9kW | BE118: 9 | BF118: 5 | BG118: 1
A119: GF | C119: =ROUND((VLOOKUP('Kalkulator doboru - uproszczony'!$J$49,Koszty!$Z$4:$AA$67,2,0))+Panasonic!$CD$19-Panasonic!$CD$43,2) -> 24739.05 | D119: =Panasonic!$CD$38-Panasonic!$CD$19 -> 0 | E119: =IF(LEFT('Kalkulator doboru - uproszczony'!J37,4)="Piec",7000+Panasonic!CQ39,(VLOOKUP('Kalkulator doboru - uproszczony'!J49,SS!KC56:KD96,2,0))+Panasonic!CQ39) -> 7000 | F119: =C119+E119+D119 -> 31739.05 | R119: 0 | S119: Standardowy | T119: =IF('Czyste Powietrze'!H13="tak","Równoważenie","") ->  | U119: Ustawić Dodatkowy sterownik bezprzewodowy jednego obiegu na stałe na tak, w kwocie 500zł netto | BD119: YORK monoblok YKF12CRC 12kW | BE119: 12 | BF119: 5 | BG119: 1
A120: Atemori | C120: =ROUND((VLOOKUP('Kalkulator doboru - uproszczony'!$J$49,Koszty!$Z$4:$AA$67,2,0))+Panasonic!$CD$19-Panasonic!$CD$43,2) -> 24739.05 | D120: =Panasonic!$CD$38-Panasonic!$CD$19 -> 0 | E120: =SS!KD104 -> 5000 | F120: =C120+E120+K120+D120 -> 29739.05 | K120: =SS!KD126 -> 0 | R120: 0 | S120: Standardowy | T120: do dodania oprócz podbicia progi marżowe | BD120: YORK monoblok YKF14CRC 14kW | BE120: 14 | BF120: 5 | BG120: 1
A121: Pomorska Energia | C121: =ROUND((VLOOKUP('Kalkulator doboru - uproszczony'!$J$49,Koszty!$Z$4:$AA$67,2,0))+Panasonic!$CD$19-Panasonic!$CD$43,2) -> 24739.05 | D121: =Panasonic!$CD$38-Panasonic!$CD$19 -> 0 | E121: =SS!KD135 -> 2000 | F121: =C121+D121+E121 -> 26739.05 | R121: 0 | S121: Standardowy | BD121: YORK monoblok YKF16CRC 16kW | BE121: 16 | BF121: 5 | BG121: 1
A122: Rachuneo | C122: =ROUND((VLOOKUP('Kalkulator doboru - uproszczony'!$J$49,Koszty!$Z$4:$AA$67,2,0))+Panasonic!$CD$19-Panasonic!$CD$43,2) -> 24739.05 | D122: =Panasonic!$CD$38-Panasonic!$CD$19 -> 0 | E122: =IF('Panasonic (2)'!A43=1,VLOOKUP('Kalkulator doboru - uproszczony'!J49,SS!KC56:KD67,2,0),4000) -> 4000 | F122: =C122+D122+E122 -> 28739.05 | R122: 0 | S122: Standardowy
A123: ProEnergy | C123: =ROUND((VLOOKUP('Kalkulator doboru - uproszczony'!$J$49,Koszty!$Z$4:$AA$67,2,0))+Panasonic!$CD$19-Panasonic!$CD$43,2) -> 24739.05 | D123: =Panasonic!$CD$38-Panasonic!$CD$19 -> 0 | E123: =VLOOKUP('Kalkulator doboru - uproszczony'!J49,SS!KJ56:KK96,2,0)+Panasonic!CQ63 ->  | F123: =C123+D123+E123 ->  | R123: 0 | S123: Standardowy | U123: Ustawić Dodatkowy sterownik bezprzewodowy jednego obiegu na stałe na tak, w kwocie 500zł netto
A124: Pro | C124: =ROUND((VLOOKUP('Kalkulator doboru - uproszczony'!$J$49,Koszty!$Z$4:$AA$67,2,0))+Panasonic!$CD$19-Panasonic!$CD$43,2) -> 24739.05 | D124: =Panasonic!$CD$38-Panasonic!$CD$19 -> 0 | E124: =IF('Panasonic (2)'!A43=1,VLOOKUP('Kalkulator doboru - uproszczony'!J49,SS!KU56:KV68,2,0),SS!KV51) -> 8000 | F124: =C124+D124+E124 -> 32739.05 | R124: 0 | S124: Standardowy
A125: Fifi | B125: 0 | C125: =ROUND((VLOOKUP('Kalkulator doboru - uproszczony'!$J$49,Koszty!$Z$4:$AA$67,2,0))+Panasonic!$CD$19-Panasonic!$CD$43,2) -> 24739.05 | D125: =Panasonic!$CD$38-Panasonic!$CD$19 -> 0 | E125: 0 | F125: =C125+D125+J125 ->  | H125: =$W$2 ->  | I125: 10 | J125: =H125*I125 ->  | R125: 0 | S125: Standardowy
A126: Krajowy projekt energetyczny | B126: 0 | C126: =ROUND((VLOOKUP('Kalkulator doboru - uproszczony'!$J$49,Koszty!$Z$4:$AA$67,2,0))+Panasonic!$CD$19-Panasonic!$CD$43,2) -> 24739.05 | D126: =Panasonic!$CD$38-Panasonic!$CD$19 -> 0 | E126: 0 | F126: =C126+D126+M126+G126 -> 30739.05 | G126: =N126 -> 0 | M126: 6000 | N126: =IF('Czyste Powietrze'!H13="tak",Panasonic!CQ52,0) -> 0 | R126: 0 | S126: Standardowy | T126: Tylko pompy Midea i SPRSUN
A127: Biomag | B127: 0 | C127: =ROUND((VLOOKUP('Kalkulator doboru - uproszczony'!$J$49,Koszty!$Z$4:$AA$67,2,0))+Panasonic!$CD$19-Panasonic!$CD$43,2) -> 24739.05 | D127: =Panasonic!$CD$38-Panasonic!$CD$19 -> 0 | E127: 0 | F127: =C127+D127+G127+N127 ->  | G127: =J127 ->  | H127: =$W$2 ->  | I127: 10 | J127: =H127*I127 ->  | N127: =(IF('Czyste Powietrze'!$H$13="TAK",18500,0))+10000-$BL$12 -> 10000 | R127: 0 | S127: Standardowy
A128: FOODSPACE | B128: 0 | C128: =ROUND((VLOOKUP('Kalkulator doboru - uproszczony'!$J$49,Koszty!$Z$4:$AA$67,2,0))+Panasonic!$CD$19-Panasonic!$CD$43,2) -> 24739.05 | D128: =Panasonic!$CD$38-Panasonic!$CD$19 -> 0 | E128: 0 | F128: =C128+D128+G128+N128+M128 -> 30739.05 | M128: 6000 | N128: =IF('Czyste Powietrze'!H13="tak",Panasonic!CQ42,0) -> 0 | R128: 0 | S128: Standardowy
A129: Tomasz Skupin | B129: 0 | C129: =ROUND((VLOOKUP('Kalkulator doboru - uproszczony'!$J$49,Koszty!$Z$4:$AA$67,2,0))+Panasonic!$CD$19-Panasonic!$CD$43,2) -> 24739.05 | D129: =Panasonic!$CD$38-Panasonic!$CD$19 -> 0 | E129: 0 | F129: =C129+D129+G129+N129+M129 ->  | G129: =IF('Czyste Powietrze'!H13="tak",0,J129) ->  | H129: =$W$2 ->  | I129: 100 | J129: =H129*I129 ->  | N129: =IF('Czyste Powietrze'!H13="tak",Panasonic!CQ55,0) -> 0 | R129: 0 | S129: Standardowy
A130: Solis Commerce Mariola Kowalska | B130: =IF(Mitsubishi!B251="tak",0,3%) -> 0 | C130: =ROUND((VLOOKUP('Kalkulator doboru - uproszczony'!$J$49,Koszty!$Z$4:$AA$67,2,0))+Panasonic!$CD$19-Panasonic!$CD$43,2) -> 24739.05 | D130: =Panasonic!$CD$38-Panasonic!$CD$19 -> 0 | E130: =IF('Czyste Powietrze'!H13="tak",0,(C130*B130)) -> 0 | F130: =C130+D130+G130+N130+M130+E130 -> 24739.05 | N130: =IF('Czyste Powietrze'!H13="Tak",VLOOKUP(podb!A130,Panasonic!CO35:CQ67,3,0),0) -> 0 | R130: 0 | S130: Standardowy
A131: ARSTele | B131: =IF(Mitsubishi!B251="tak",12%,8%) -> 0.12 | C131: =ROUND((VLOOKUP('Kalkulator doboru - uproszczony'!$J$49,Koszty!$Z$4:$AA$67,2,0))+Panasonic!$CD$19-Panasonic!$CD$43,2) -> 24739.05 | D131: =Panasonic!$CD$38-Panasonic!$CD$19 -> 0 | E131: =B131*C131 -> 2968.686 | F131: 27707.736 | H131: =$W$2 ->  | N131: =IF('Czyste Powietrze'!H13="Tak",VLOOKUP(podb!A131,Panasonic!CO35:CQ67,3,0),0) -> 0 | R131: 0 | S131: Standardowy
A132: Invelo Energy | B132: 0 | C132: =ROUND((VLOOKUP('Kalkulator doboru - uproszczony'!$J$49,Koszty!$Z$4:$AA$67,2,0))+Panasonic!$CD$19-Panasonic!$CD$43,2) -> 24739.05 | D132: =Panasonic!$CD$38-Panasonic!$CD$19 -> 0 | E132: 0 | F132: =C132+D132+G132+N132+M132+E132+J132 ->  | G132: =IF(Mitsubishi!B251="tak",0,2000) -> 0 | I132: 100 | J132: =IF(Mitsubishi!B251="tak",0,(IF('Czyste Powietrze'!$H$13="Tak",0,H132*I132))) -> 0 | M132: =IF('Czyste Powietrze'!$H$13="Tak",0,IF(Mitsubishi!B251="tak",VLOOKUP('Kalkulator doboru - uproszczony'!J49,podb!CN9:CO16,2,0),7000)) ->  | N132: =IF('Czyste Powietrze'!H13="Tak",VLOOKUP(podb!A132,Panasonic!CO35:CQ67,3,0),0) -> 0 | R132: 1 | S132: Standardowy | T132: Obniżenie cb o 100zł/kwp
A133: Piotr Kurkowski Pracownicy | B133: 0.05 | C133: =ROUND((VLOOKUP('Kalkulator doboru - uproszczony'!$J$49,Koszty!$Z$4:$AA$67,2,0))+Panasonic!$CD$19-Panasonic!$CD$43,2) -> 24739.05 | D133: =Panasonic!$CD$38-Panasonic!$CD$19 -> 0 | E133: 1236.9525 | F133: 25976.0025 | R133: 0 | S133: Standardowy
A134: Energy Sun | B134: 0.04 | C134: =ROUND((VLOOKUP('Kalkulator doboru - uproszczony'!$J$49,Koszty!$Z$4:$AA$67,2,0))+Panasonic!$CD$19-Panasonic!$CD$43,2) -> 24739.05 | D134: =Panasonic!$CD$38-Panasonic!$CD$19 -> 0 | E134: 989.562 | F134: 25728.612 | R134: 0 | S134: Standardowy
A135: Marek Potoniec | B135: 0.04 | C135: =ROUND((VLOOKUP('Kalkulator doboru - uproszczony'!$J$49,Koszty!$Z$4:$AA$67,2,0))+Panasonic!$CD$19-Panasonic!$CD$43,2) -> 24739.05 | D135: =Panasonic!$CD$38-Panasonic!$CD$19 -> 0 | E135: 989.562 | F135: 25728.612 | R135: 0 | S135: Standardowy
A136: Enerveo | B136: 0 | C136: =ROUND((VLOOKUP('Kalkulator doboru - uproszczony'!$J$49,Koszty!$Z$4:$AA$67,2,0))+Panasonic!$CD$19-Panasonic!$CD$43,2) -> 24739.05 | D136: =Panasonic!$CD$38-Panasonic!$CD$19 -> 0 | E136: 0 | F136: 29239.05 | M136: 4500 | R136: 0 | S136: Standardowy
A137: Solwil | B137: 0 | C137: =ROUND((VLOOKUP('Kalkulator doboru - uproszczony'!$J$49,Koszty!$Z$4:$AA$67,2,0))+Panasonic!$CD$19-Panasonic!$CD$43,2) -> 24739.05 | D137: =Panasonic!$CD$38-Panasonic!$CD$19 -> 0 | E137: 0 | F137: 24739.05 | R137: 0 | S137: Standardowy
A138: Altion | B138: 0 | C138: =ROUND((VLOOKUP('Kalkulator doboru - uproszczony'!$J$49,Koszty!$Z$4:$AA$67,2,0))+Panasonic!$CD$19-Panasonic!$CD$43,2) -> 24739.05 | D138: =Panasonic!$CD$38-Panasonic!$CD$19 -> 0 | E138: 0 | M138: =IF(LEFT('Kalkulator doboru - uproszczony'!J37,4)="piec",3000*X4,4000*X4) ->  | N138: =(IF('Czyste Powietrze'!$H$13="TAK",Panasonic!CQ61,0)) -> 0 | R138: 0 | S138: Standardowy
A139: Love it | B139: 0 | C139: =ROUND((VLOOKUP('Kalkulator doboru - uproszczony'!$J$49,Koszty!$Z$4:$AA$67,2,0))+Panasonic!$CD$19-Panasonic!$CD$43,2) -> 24739.05 | D139: =Panasonic!$CD$38-Panasonic!$CD$19 -> 0 | E139: 0 | F139: =C139+D139+G139+N139+O139+E139 ->  | G139: =IF('Kalkulator doboru - uproszczony'!B65="Tak",0,5500) -> 5500 | N139: =(IF('Czyste Powietrze'!$H$13="TAK",Panasonic!CQ62,0)) -> 0 | O139: =P139*$X$4 ->  | P139: 500 | Q139: Altion | R139: 0 | S139: Standardowy | T139: bez rabatowania, marża do wpisania
A140: Orange | B140: 0 | C140: =ROUND((VLOOKUP('Kalkulator doboru - uproszczony'!$J$49,Koszty!$Z$4:$AA$67,2,0))+Panasonic!$CD$19-Panasonic!$CD$43,2) -> 24739.05 | D140: =Panasonic!$CD$38-Panasonic!$CD$19 -> 0 | E140: 0 | F140: =C140+D140+G140+N140+O140+E140 -> 24739.05 | R140: 0 | S140: Standardowy
A141: Ecology group | B141: 0.09 | C141: =ROUND((VLOOKUP('Kalkulator doboru - uproszczony'!$J$49,Koszty!$Z$4:$AA$67,2,0))+Panasonic!$CD$19-Panasonic!$CD$43,2) -> 24739.05 | D141: =Panasonic!$CD$38-Panasonic!$CD$19 -> 0 | E141: 2226.5145 | F141: =C141+D141+G141+N141+O141+E141 -> 26965.5645 | R141: 0 | S141: Standardowy
A142: Invelo_GLC | B142: 0 | C142: =ROUND((VLOOKUP('Kalkulator doboru - uproszczony'!$J$49,Koszty!$Z$4:$AA$67,2,0))+Panasonic!$CD$19-Panasonic!$CD$43,2) -> 24739.05 | D142: =Panasonic!$CD$38-Panasonic!$CD$19 -> 0 | E142: 0 | F142: =C142+D142+G142+N142+O142+E142+M142+J142 ->  | H142: =$W$2 ->  | I142: 100 | J142: =H142*I142 ->  | M142: =VLOOKUP('Kalkulator doboru - uproszczony'!J49,podb!CD3:CE20,2,0) ->  | R142: 1 | S142: Standardowy | T142: Obniżenie cb o 100zł/kwp
A143: Invelo_RS Development | B143: 0 | C143: =ROUND((VLOOKUP('Kalkulator doboru - uproszczony'!$J$49,Koszty!$Z$4:$AA$67,2,0))+Panasonic!$CD$19-Panasonic!$CD$43,2) -> 24739.05 | D143: =Panasonic!$CD$38-Panasonic!$CD$19 -> 0 | E143: 0 | F143: =C143+D143+G143+N143+O143+E143+M143+J143 ->  | I143: 100 | J143: =IF('Czyste Powietrze'!$H$13="Tak",0,H143*I143) ->  | M143: =IF('Czyste Powietrze'!$H$13="Tak",0,CN3) -> 7000 | N143: =IF('Czyste Powietrze'!H13="Tak",VLOOKUP(podb!A143,Panasonic!CO35:CQ67,3,0),0) -> 0 | R143: 1 | S143: Standardowy | T143: Obniżenie cb o 100zł/kwp
A144: WP Invest | B144: 0 | C144: =ROUND((VLOOKUP('Kalkulator doboru - uproszczony'!$J$49,Koszty!$Z$4:$AA$67,2,0))+Panasonic!$CD$19-Panasonic!$CD$43,2) -> 24739.05 | D144: =Panasonic!$CD$38-Panasonic!$CD$19 -> 0 | E144: 0 | F144: =C144+D144+G144+N144+O144+E144+M144+J144 ->  | I144: 100 | J144: =IF('Czyste Powietrze'!$H$13="Tak",0,H144*I144) ->  | M144: =IF('Czyste Powietrze'!$H$13="Tak",0,7000) -> 7000 | N144: =IF('Czyste Powietrze'!H13="Tak",VLOOKUP(podb!A144,Panasonic!CO35:CQ67,3,0),0) -> 0 | R144: 1 | S144: Standardowy | T144: Obniżenie cb o 100zł/kwp
A145: BK Instal | B145: =IF(Mitsubishi!B251="tak",15%,IF(OR(LEFT('Kalkulator doboru - uproszczony'!J37,6)="SPRSUN",LEFT('Kalkulator doboru - uproszczony'!J37,4)="york"),8%,5%)) -> 0.15 | C145: =ROUND((VLOOKUP('Kalkulator doboru - uproszczony'!$J$49,Koszty!$Z$4:$AA$67,2,0))+Panasonic!$CD$19-Panasonic!$CD$43,2) -> 24739.05 | D145: =Panasonic!$CD$38-Panasonic!$CD$19 -> 0 | E145: =IF('Czyste Powietrze'!H13="tak",0,(C145*B145)) -> 3710.8575 | F145: =C145+D145+G145+N145+O145+E145+M145 -> 28449.9075 | M145: 0 | N145: =IF('Czyste Powietrze'!H13="Tak",VLOOKUP(podb!A145,Panasonic!CO35:CQ67,3,0),0) -> 0 | R145: 0 | S145: Standardowy | T145: % w zależności od producenta
A146: Marta Ring | B146: 0 | C146: =ROUND((VLOOKUP('Kalkulator doboru - uproszczony'!$J$49,Koszty!$Z$4:$AA$67,2,0))+Panasonic!$CD$19-Panasonic!$CD$43,2) -> 24739.05 | D146: =Panasonic!$CD$38-Panasonic!$CD$19 -> 0 | E146: 0 | F146: =C146+D146+G146+N146+O146+E146+M146 -> 26739.05 | M146: =IF('Czyste Powietrze'!$H$13="Tak",0,IF(Mitsubishi!B251="tak",2000,1000)) -> 2000 | N146: =IF('Czyste Powietrze'!H13="Tak",VLOOKUP(podb!A146,Panasonic!CO35:CQ77,3,0),0) -> 0 | R146: 0 | S146: Standardowy
A147: Przemysław Miszczak | B147: 0 | C147: =ROUND((VLOOKUP('Kalkulator doboru - uproszczony'!$J$49,Koszty!$Z$4:$AA$67,2,0))+Panasonic!$CD$19-Panasonic!$CD$43,2) -> 24739.05 | D147: =Panasonic!$CD$38-Panasonic!$CD$19 -> 0 | F147: =C147+D147+G147+N147+O147+E147+M147 -> 24739.05 | M147: 0 | N147: =IF('Czyste Powietrze'!H13="Tak",VLOOKUP(podb!A147,Panasonic!CO35:CQ77,3,0),0) -> 0 | R147: 0 | S147: Standardowy | T147: od Agnieszki
A148: Bartosz Piecha | B148: 0 | C148: =ROUND((VLOOKUP('Kalkulator doboru - uproszczony'!$J$49,Koszty!$Z$4:$AA$67,2,0))+Panasonic!$CD$19-Panasonic!$CD$43,2) -> 24739.05 | D148: =Panasonic!$CD$38-Panasonic!$CD$19 -> 0 | F148: =C148+D148+G148+N148+O148+E148+M148 -> 27739.05 | M148: =IF('Czyste Powietrze'!$H$12="tak",0,IF(LEFT('Kalkulator doboru - uproszczony'!$J$37,4)="Piec",3000,4000)) -> 3000 | N148: =IF('Czyste Powietrze'!H13="Tak",VLOOKUP(podb!A148,Panasonic!CO35:CQ77,3,0),0) -> 0 | R148: 0 | S148: Standardowy | T148: od Agnieszki
A149: Bartosz Piecha Pracownicy | B149: 0 | C149: =ROUND((VLOOKUP('Kalkulator doboru - uproszczony'!$J$49,Koszty!$Z$4:$AA$67,2,0))+Panasonic!$CD$19-Panasonic!$CD$43,2) -> 24739.05 | D149: =Panasonic!$CD$38-Panasonic!$CD$19 -> 0 | F149: =C149+D149+G149+N149+O149+E149+M149 -> 29739.05 | M149: =IF('Czyste Powietrze'!$H$12="tak",0,IF(LEFT('Kalkulator doboru - uproszczony'!$J$37,4)="Piec",5000,6000)) -> 5000 | N149: =IF('Czyste Powietrze'!H13="Tak",VLOOKUP(podb!A149,Panasonic!CO35:CQ77,3,0),0) -> 0 | R149: 0 | S149: Standardowy | T149: od Agnieszki
A150: Przemysław Matysik Eco Energia | B150: 0 | C150: =ROUND((VLOOKUP('Kalkulator doboru - uproszczony'!$J$49,Koszty!$Z$4:$AA$67,2,0))+Panasonic!$CD$19-Panasonic!$CD$43,2) -> 24739.05 | D150: =Panasonic!$CD$38-Panasonic!$CD$19 -> 0 | F150: =C150+D150+G150+N150+O150+E150+M150 -> 24739.05 | M150: 0 | R150: 0 | S150: Standardowy | T150: od Agnieszki
A151: Marcel Israel | B151: 0 | C151: =ROUND((VLOOKUP('Kalkulator doboru - uproszczony'!$J$49,Koszty!$Z$4:$AA$67,2,0))+Panasonic!$CD$19-Panasonic!$CD$43,2) -> 24739.05 | D151: =Panasonic!$CD$38-Panasonic!$CD$19 -> 0 | F151: 29739.05 | M151: =5000 -> 5000 | R151: 0 | S151: Standardowy | T151: od Agnieszki
A152: New Solution Patrycja Leśnik | B152: =IF(Mitsubishi!B251="tak",11%,8%) -> 0.11 | C152: =ROUND((VLOOKUP('Kalkulator doboru - uproszczony'!$J$49,Koszty!$Z$4:$AA$67,2,0))+Panasonic!$CD$19-Panasonic!$CD$43,2) -> 24739.05 | D152: =Panasonic!$CD$38-Panasonic!$CD$19 -> 0 | E152: =B152*C152 -> 2721.2955 | F152: 27460.3455 | H152: =$W$2 ->  | N152: =IF('Czyste Powietrze'!H13="Tak",VLOOKUP(podb!A152,Panasonic!CO35:CQ77,3,0),0) -> 0 | R152: 0 | S152: Standardowy
A153: Jaromir Tomaszewski | B153: 0 | C153: =ROUND((VLOOKUP('Kalkulator doboru - uproszczony'!$J$49,Koszty!$Z$4:$AA$67,2,0))+Panasonic!$CD$19-Panasonic!$CD$43,2) -> 24739.05 | D153: =Panasonic!$CD$38-Panasonic!$CD$19 -> 0 | F153: 24739.05 | R153: 0 | S153: Standardowy | T153: od Agnieszki
A154: Gortech Jacek Górecki | B154: 0 | C154: =ROUND((VLOOKUP('Kalkulator doboru - uproszczony'!$J$49,Koszty!$Z$4:$AA$67,2,0))+Panasonic!$CD$19-Panasonic!$CD$43,2) -> 24739.05 | D154: =Panasonic!$CD$38-Panasonic!$CD$19 -> 0 | G154: =J154 ->  | H154: =$W$2 ->  | I154: 500 | J154: =I154*H154 ->  | R154: 0 | S154: Standardowy
A155: Energosell Ryszard Seklecki | B155: 0 | C155: =ROUND((VLOOKUP('Kalkulator doboru - uproszczony'!$J$49,Koszty!$Z$4:$AA$67,2,0))+Panasonic!$CD$19-Panasonic!$CD$43,2) -> 24739.05 | D155: =Panasonic!$CD$38-Panasonic!$CD$19 -> 0 | F155: 24739.05 | R155: 0 | S155: Standardowy | T155: od Agnieszki
A156: Radosław Sempolski - Pracownicy | B156: 0 | C156: =ROUND((VLOOKUP('Kalkulator doboru - uproszczony'!$J$49,Koszty!$Z$4:$AA$67,2,0))+Panasonic!$CD$19-Panasonic!$CD$43,2) -> 24739.05 | D156: =Panasonic!$CD$38-Panasonic!$CD$19 -> 0 | F156: 27739.05 | M156: =IF(LEFT('Kalkulator doboru - uproszczony'!J37,4)="piec",3000,4000) -> 3000 | N156: =IF('Czyste Powietrze'!H13="Tak",VLOOKUP(podb!A156,Panasonic!CO35:CQ77,3,0),0) -> 0 | R156: 0 | S156: Standardowy | T156: od Agnieszki
A157: Invelo_Polmond | B157: 0 | C157: =ROUND((VLOOKUP('Kalkulator doboru - uproszczony'!$J$49,Koszty!$Z$4:$AA$67,2,0))+Panasonic!$CD$19-Panasonic!$CD$43,2) -> 24739.05 | D157: =Panasonic!$CD$38-Panasonic!$CD$19 -> 0 | F157: =C157+D157+G157+N157+O157+E157+M157+J157 ->  | H157: =$W$2 ->  | I157: 100 | J157: =IF(Mitsubishi!B251="tak",0,(IF('Czyste Powietrze'!$H$13="Tak",0,H132*I132))) -> 0 | M157: =IF('Czyste Powietrze'!$H$13="Tak",0,IF(Mitsubishi!B251="tak",VLOOKUP('Kalkulator doboru - uproszczony'!J49,podb!CN24:CO31,2,0),9000)) ->  | N157: =IF('Czyste Powietrze'!H13="Tak",VLOOKUP(podb!A157,Panasonic!CO35:CQ80,3,0),0) -> 0 | R157: 1 | S157: Standardowy | T157: Obniżenie cb o 100zł/kwp
A158: PG OZE | B158: =IF(Mitsubishi!B251="tak",20%,IF(OR(LEFT('Kalkulator doboru - uproszczony'!J37,6)="SPRSUN",LEFT('Kalkulator doboru - uproszczony'!J37,4)="york"),13%,10%)) -> 0.2 | C158: =ROUND((VLOOKUP('Kalkulator doboru - uproszczony'!$J$49,Koszty!$Z$4:$AA$67,2,0))+Panasonic!$CD$19-Panasonic!$CD$43,2) -> 24739.05 | D158: =Panasonic!$CD$38-Panasonic!$CD$19 -> 0 | E158: =IF('Czyste Powietrze'!H13="tak",0,(C158*B158)) -> 4947.81 | F158: =C158+D158+G158+N158+O158+E158+M158+J158 -> 29686.86 | N158: =IF('Czyste Powietrze'!H13="Tak",VLOOKUP(podb!A158,Panasonic!CO35:CQ77,3,0),0) -> 0 | R158: 0 | S158: Standardowy | T158: % w zależności od producenta
A159: CWDK Adam Kauski | B159: 0 | C159: =ROUND((VLOOKUP('Kalkulator doboru - uproszczony'!$J$49,Koszty!$Z$4:$AA$67,2,0))+Panasonic!$CD$19-Panasonic!$CD$43,2) -> 24739.05 | D159: =Panasonic!$CD$38-Panasonic!$CD$19 -> 0 | E159: 0 | F159: =C159+D159+G159+N159+O159+E159+M159+J159 -> 24739.05 | N159: =IF('Czyste Powietrze'!H13="Tak",VLOOKUP(podb!A159,Panasonic!CO35:CQ78,3,0),0) -> 0 | R159: 1 | S159: Standardowy

Sheet Czyste Powietrze (hidden)
A1: Wybierz poziom dofinansowania | J1: Typ | V1: Wykres kołowy | AB1: model standardowy | AL1: Pellet | AQ1: wartość netto | AR1: ='Kalkulator doboru - uproszczony'!J52 -> 31739.05
A2: podstawowy | J2: Standard | V2: m.standardowy | AG2: CP | AH2: jakie przysługuje dof | AI2: MAX dof
A3: podwyższony | D3: M standardowy | F3: M. uproszczony | J3: Szybki montaż | Q3: „Dofinansowanie”: | U3: =Oferta!$Q$113 ->  | V3: program Czyste Powietrze | W3: =U3/$U$6 ->  | AE3: Równoważenie netto MAX DOFINANSOWANIE | AF3: =IF('Kalkulator doboru'!$G$62="Podstawowy",8100,IF('Kalkulator doboru'!$G$62="Najwyższy",20400,14300)) -> 8100 | AN3: Równoważenie netto MAX DOFINANSOWANIE | AO3: =IF('Kalkulator doboru - uproszczony'!B61="Podstawowy",8100,IF('Kalkulator doboru - uproszczony'!B61="Najwyższy",20400,14300)) -> 8100
A4: najwyższy | D4: Czyste_Powietrze | F4: Czyste_Powietrze | Q4: Czyste Powietrze | U4: =Oferta!$R$114 ->  | V4: ulga termomodernizacyjna | W4: =U4/$U$6 ->  | AB4: Wartość netto oferty | AC4: =IF('Kalkulator doboru'!G60="tak",Oferta!Q110-20450,Oferta!Q110) ->  | AE4: Poziom najwyzszy MAX dof | AF4: =IF(Mitsubishi!B248="tak",20400,35200) -> 20400 | AG4: 1 | AJ4: zależność czy PC czy pellet | AN4: Poziom najwyzszy MAX dof | AO4: =IF(Mitsubishi!B251="tak",20400,35200) -> 20400 | AP4: 1 | AS4: zależność czy PC czy pellet
D5: CP_rownowazenie | F5: CP_rownowazenie | P5: M. standardowy | Q5: Mój Prąd 5.0 | R5: =IF(R10>=R9,R9,R10) ->  | U5: =Oferta!$Q$116 ->  | V5: Rzeczywisty koszt nabycia instalacji | AB5: Wartość brutto oferty | AC5: =Oferta!Q112 ->  | AE5: Poziom podwyzszony MAX dof | AF5: =IF(AH5>=AI5,AI5,AH5) ->  | AG5: =IF(Mitsubishi!B248="tak",70%,80%) -> 0.7 | AH5: =AC4*AG5 ->  | AI5: =IF(Mitsubishi!B248="tak",14300,28100) -> 14300 | AJ5: zależność czy PC czy pellet | AN5: Poziom podwyzszony MAX dof | AO5: =IF(AQ5>=AR5,AR5,AQ5) -> 14300 | AP5: =IF(Mitsubishi!B251="tak",70%,80%) -> 0.7 | AQ5: =AR1*AP5 -> 22217.335 | AR5: =IF(Mitsubishi!B251="tak",14300,28100) -> 14300 | AS5: zależność czy PC czy pellet
A6: Czy w budynku /lokalu mieszkalnym prowadzona jest działalność gospodarcza w rozumieniu Programu? | D6: =IF(H12="tak","CP_rownowazenie","Czyste_Powietrze") -> Czyste_Powietrze | F6: =IF(H13="tak","CP_rownowazenie","Czyste_Powietrze") -> Czyste_Powietrze | P6: M. uproszczony | Q6: Mój Prąd 5.0 | R6: =IF(R13>=R12,R12,R13) -> 17139.087 | U6: =SUM(U3:U5) ->  | AB6: vat | AC6: =Oferta!Q111 ->  | AE6: Poziom podstawowy MAX dof | AF6: =IF(AH6>=AI6,AI6,AH6) ->  | AG6: =IF(Mitsubishi!B248="tak",45%,55%) -> 0.45 | AH6: =AC4*AG6 ->  | AI6: =IF(Mitsubishi!B248="tak",IF('Kalkulator doboru'!G31="Piec zgazowujący drewno FERROLI",9000,9100),19400) -> 9100 | AJ6: zależność czy PC czy pellet | AN6: Poziom podstawowy MAX dof | AO6: =IF(AQ6>=AR6,AR6,AQ6) -> 9100 | AP6: =IF(Mitsubishi!B251="tak",45%,55%) -> 0.45 | AQ6: =AR1*AP6 -> 14282.5725 | AR6: =IF(Mitsubishi!B251="tak",9100,19400) -> 9100 | AS6: zależność czy PC czy pellet
A7: Tak | D7: =IF(AND(H12="TAK",'Kalkulator doboru'!G62=D16),TRUE,FALSE) -> FALSE | F7: =IF(AND(H13="TAK",'Kalkulator doboru'!G62=D16),TRUE,FALSE) -> FALSE
A8: Nie | P8: M. standardowy | Q8: Wartość oferty brutto | R8: =Oferta!Q112 ->  | V8: m.uproszczony | AB8: FAKTURA
Q9: max dotacja | R9: 19400 | AB9: Montaz pompy ciepla brutto | AC9: =AC5-AF9 ->  | AE9: Rownowaznie brutto | AF9: =AF10*1.08 -> 22086
A10: Wybierz | Q10: do 50% kosztów kwalifikowanych | R10: =R8*0.5 ->  | AB10: Montaz pompy ciepla netto | AC10: =AC4 ->  | AE10: Równowazenia netto | AF10: 20450
A11: Czy w ramach przedsięwzięcia zostanie i wymienione na nowe dotychczasowe źródło ciepła na paliwo stałe? | P11: M. uproszczony | Q11: Wartość oferty brutto | R11: ='Oferta (2)'!Q118 -> 34278.174 | U11: ='Oferta (2)'!Q119 -> 9100 | V11: program Czyste Powietrze | W11: =U11/$U$14 -> 0.2654750513
A12: Tak | G12: Równoważenie | H12: ='Kalkulator doboru'!G60 -> Nie | I12: M. standardowy | K12: Równoważenie tylko z Czystym Powietrzem | Q12: max dotacja | R12: 19400 | U12: ='Oferta (2)'!R120 -> 3021.38088 | V12: ulga termomodernizacyjna | W12: =U12/$U$14 -> 0.08814299385 | AB12: Dotacja (pompa + rh) | AD12: ZALICZKA klienta
A13: Nie | G13: Równoważenie | H13: ='Kalkulator doboru - uproszczony'!B65 -> NIE | I13: M. uproszczony | K13: Równoważenie tylko z Czystym Powietrzem | Q13: do 50% kosztów kwalifikowanych | R13: =R11*0.5 -> 17139.087 | U13: ='Oferta (2)'!Q122 -> 22156.79312 | V13: Rzeczywisty koszt nabycia instalacji | W13: 0.6463819549 | AA13: m.stand | AB13: =IF('Kalkulator doboru'!G62="Podstawowy",AF6, IF(AC10<IF('Kalkulator doboru'!G62="Najwyższy",AF4,AF5),AC10,IF('Kalkulator doboru'!G62="Najwyższy",AF4,IF(AC10<AF5,AC10*0.8,AF5))))+IF('Kalkulator doboru'!G60="nie",0,AF3) ->  | AD13: =AC5-AB13 -> 
A14: Wybierz | U14: =SUM(U11:U13) -> 34278.174 | AA14: m.upr | AB14: =IF('Kalkulator doboru - uproszczony'!B61="Podstawowy",AO6, IF(AR1<IF('Kalkulator doboru - uproszczony'!B61="Najwyższy",AO4,AO5),AR1,IF('Kalkulator doboru - uproszczony'!B61="Najwyższy",AO4,IF(AR1<AO5,AR1*0.8,AO5))))+IF('Kalkulator doboru - uproszczony'!B65="nie",0,AO3) -> 9100
A15: Pompa ciepła powietrze/woda o podwyższonej klasie efektywności energetycznej A++ | E15: stare kwoty CP | F15: nowe kwoty CP brutto od 2023 | G15: Równoważenie
A16: Tak | D16: Podstawowy | E16: 13500 | F16: 19400 | G16: 8100 | H16: podstawowy | J16: Czyste powietrze | R16: ulga termomodernizacyjna | U16: czyste powietrze | V16: =Oferta!$Q$113 ->  | AB16: model uproszczony
A17: Nie | D17: Podwyższony | E17: 18000 | F17: 28100 | G17: 14300 | H17: podwyższony | R17: 0.12 | U17: ulga | V17: =Oferta!$R$114 ->  | AG17: CP | AH17: jakie przysługuje dof | AI17: MAX dof
A18: Wybierz | D18: Najwyższy | E18: 27000 | F18: 35200 | G18: 20400 | H18: najwyższy | R18: 0.19 | U18: rzeczywisty koszt | V18: =Oferta!$Q$116 ->  | AE18: Równoważenie netto MAX DOFINANSOWANIE | AF18: =IF('Kalkulator doboru - uproszczony'!$B$61="Podstawowy",8100,IF('Kalkulator doboru - uproszczony'!$B$61="Najwyższy",20400,14300)) -> 8100
F19: M. standar | G19: =IF('Kalkulator doboru'!H63="Ukryj",0,IF(AND(Oferta!L111="8%",'Czyste Powietrze'!H12="TAK"),VLOOKUP('Kalkulator doboru'!G62,'Czyste Powietrze'!D16:G18,4,0),0)) -> 0 | J19: Maksymalna kwota dotacji [zł] | N19: Maksymalna kwota dotacji [zł] | R19: 0.32 | AB19: Wartość netto oferty | AC19: =IF('Kalkulator doboru - uproszczony'!B65="tak",'Oferta (2)'!Q116-20450,'Oferta (2)'!Q116) -> 31739.05 | AE19: Poziom najwyzszy MAX dof | AF19: =IF(Mitsubishi!B251="tak",20400,35200) -> 20400 | AG19: 1
A20: Instalacja fotowoltaiczna | F20: M. uproszcz | G20: =IF('Kalkulator doboru - uproszczony'!D61="Ukryj",0,IF(AND('Oferta (2)'!L117="8%",'Czyste Powietrze'!H13="TAK"),VLOOKUP('Kalkulator doboru - uproszczony'!B61,'Czyste Powietrze'!D16:G18,4,0),0)) -> 0 | J20: =IF('Kalkulator doboru'!G63>30000,A28,A26) ->  | N20: =IF('Kalkulator doboru'!G63>30000,A93,A91) ->  | AB20: Wartość brutto oferty | AC20: ='Oferta (2)'!Q118 -> 34278.174 | AE20: Poziom podwyzszony MAX dof | AF20: =IF(AH20>=AI20,AI20,AH20) -> 14300 | AG20: =IF(Mitsubishi!B251="tak",70%,80%) -> 0.7 | AH20: =AC19*AG20 -> 22217.335 | AI20: =IF(Mitsubishi!B251="tak",14300,28100) -> 14300
A21: Tak | AB21: vat | AC21: ='Oferta (2)'!Q117 -> 2539.124 | AE21: Poziom podstawowy MAX dof | AF21: =IF(AH21>=AI21,AI21,AH21) -> 9100 | AG21: =IF(Mitsubishi!B251="tak",45%,55%) -> 0.45 | AH21: =AC19*AG21 -> 14282.5725 | AI21: =IF(Mitsubishi!B251="tak",IF('Kalkulator doboru - uproszczony'!J37="Piec zgazowujący drewno FERROLI",9000,9100),19400) -> 9100
A22: Nie | J22: PODSUMOWANIE
A23: Wybierz | J23: Maksymalna / przewidywana kwota dotacji* | AB23: FAKTURA
J24: =IF('Kalkulator doboru'!G62="podstawowy",J20,N20) ->  | AB24: Montaz pompy ciepla brutto | AC24: =AC20-AF24 -> 12192.174 | AE24: Rownowaznie brutto | AF24: =AF25*1.08 -> 22086
A25: Przelicznik pompa ciepła | B25: Przelicznik pompa ciepła uproszczony | AB25: Montaz pompy ciepla netto | AC25: =AC19 -> 31739.05 | AE25: Równowazenia netto | AF25: 20450
A26: ='Kalkulator doboru'!G63*0.45 ->  | B26: ='Kalkulator doboru - uproszczony'!$B$62*0.45 -> 15425.1783
A27: 30000 | B27: 30000 | AB27: Dotacja (pompa + rh) | AD27: ZALICZKA klienta
A28: 19400 | B28: 19400 | J28: Czyste powietrze do modelu uproszczonego | AB28: =IF('Kalkulator doboru - uproszczony'!B61="Podstawowy",AF21, IF(AC25<IF('Kalkulator doboru - uproszczony'!B61="Najwyższy",AF19,AF20),AC25,IF('Kalkulator doboru - uproszczony'!B61="Najwyższy",AF19,IF(AC25<AF20,AC25*0.8,AF20))))+IF('Kalkulator doboru - uproszczony'!B65="nie",0,AF18) -> 9100 | AD28: =AC20-AB28 -> 25178.174
J29: Podstawowy: | N29: Podwyższony
A30: Przelicznik fotowoltaika | J30: Maksymalna kwota dotacji [zł] | N30: Maksymalna kwota dotacji [zł]
A31: 5000 | D31: m.standardowy | J31: =IF('Kalkulator doboru - uproszczony'!B62>30000,B28,B26) -> 19400 | N31: =IF('Kalkulator doboru - uproszczony'!B62>30000,B93,B91) -> 35200
A32: 10000 | D32: ='Kalkulator doboru'!G62 -> Podstawowy | E32: RH | F32: =IF(D33="tak",VLOOKUP(D32&"_"&D33,E72:G96,3,0),"") -> 
A33: 5000 | D33: =H12 -> Nie | E33: PC | F33: =IF(D33="nie",VLOOKUP(D32,E48:G64,3,0),VLOOKUP(D32,E72:G90,3,0)) -> Zwrot do 55% inwestycji, nie więcej niż 19 400 zł. Kwota płatna jednorazowo, po zamontowaniu systemu pompy ciepła i złożeniu stosownego wniosku do Narodowego Funduszu Ochrony Środowiska i Gospodarki Wodnej: o naborze i dostępnych środkach, o zasadach dotyczących zgłoszenia wniosku oraz o przyznaniu i wypłaceniu dotacji decyduje Narodowy Fundusz Ochrony Środowiska i Gospodarki Wodnej: Arago nie gwarantuje Klientowi otrzymania dotacji
F34: =IF($D$33="nie",VLOOKUP($D$32&1,$D$48:$G$70,4,0),VLOOKUP($D$32&1,$D$74:$G$96,4,0)) -> - Osoby fizyczne - tylko właściciel lub współwłaściciel nieruchomości z księgą wieczystą.
F35: =IF($D$33="nie",VLOOKUP($D$32&2,$D$48:$G$70,4,0),VLOOKUP($D$32&2,$D$74:$G$96,4,0)) -> - W budynku prowadzona może być działalność, ale nie może przekraczać 30 % powierzchni nieruchomości.
A36: Liczba miesięcy wykorzystywanych na działalność | F36: =IF($D$33="nie",VLOOKUP($D$32&3,$D$48:$G$70,4,0),VLOOKUP($D$32&3,$D$74:$G$96,4,0)) -> - Dofinansowanie dla kopciuchów, ekogroszku bezklasowych oraz na biomasę, poniżej V klasy. pelet, ekogroszek V klasy nie kwalifikują się do dofinansowania. Natomiast pozostałe jak olej opałowy, gaz (jeśli nie jest alternatywnym źródłem ciepła i zużycie nie przekracza 5600 kwh).
A37: 1 | F37: =IF($D$33="nie",VLOOKUP($D$32&4,$D$48:$G$70,4,0),VLOOKUP($D$32&4,$D$74:$G$96,4,0)) -> - zakończona budowa przed 1 stycznia 2014r.
A38: 2 | F38: =IF($D$33="nie",VLOOKUP($D$32&5,$D$48:$G$70,4,0),VLOOKUP($D$32&5,$D$74:$G$96,4,0)) -> - dochód do 135 tys. zł.
A39: 3 | F39: =IFERROR(IF($D$33="nie",VLOOKUP($D$32&6,$D$48:$G$70,4,0),VLOOKUP($D$32&6,$D$74:$G$96,4,0)),"") -> 
A40: 4 | D40: m.uproszczony | E40: RH | F40: =IF(D42="tak",VLOOKUP(D41&"_"&D42,E72:G96,3,0),"") -> 
A41: 5 | D41: ='Kalkulator doboru - uproszczony'!B61 -> Podstawowy | E41: PC | F41: =IF(D42="nie",VLOOKUP(D41,E48:G64,3,0),VLOOKUP(D41,E72:G90,3,0)) -> Zwrot do 55% inwestycji, nie więcej niż 19 400 zł. Kwota płatna jednorazowo, po zamontowaniu systemu pompy ciepła i złożeniu stosownego wniosku do Narodowego Funduszu Ochrony Środowiska i Gospodarki Wodnej: o naborze i dostępnych środkach, o zasadach dotyczących zgłoszenia wniosku oraz o przyznaniu i wypłaceniu dotacji decyduje Narodowy Fundusz Ochrony Środowiska i Gospodarki Wodnej: Arago nie gwarantuje Klientowi otrzymania dotacji
A42: 6 | D42: =H13 -> NIE | F42: =IF($D$42="nie",VLOOKUP($D$41&1,$D$48:$G$70,4,0),VLOOKUP($D$41&1,$D$74:$G$96,4,0)) -> - Osoby fizyczne - tylko właściciel lub współwłaściciel nieruchomości z księgą wieczystą.
A43: 7 | F43: =IF($D$42="nie",VLOOKUP($D$41&2,$D$48:$G$70,4,0),VLOOKUP($D$41&2,$D$74:$G$96,4,0)) -> - W budynku prowadzona może być działalność, ale nie może przekraczać 30 % powierzchni nieruchomości.
A44: 8 | F44: =IF($D$42="nie",VLOOKUP($D$41&3,$D$48:$G$70,4,0),VLOOKUP($D$41&3,$D$74:$G$96,4,0)) -> - Dofinansowanie dla kopciuchów, ekogroszku bezklasowych oraz na biomasę, poniżej V klasy. pelet, ekogroszek V klasy nie kwalifikują się do dofinansowania. Natomiast pozostałe jak olej opałowy, gaz (jeśli nie jest alternatywnym źródłem ciepła i zużycie nie przekracza 5600 kwh).
A45: 9 | F45: =IF($D$42="nie",VLOOKUP($D$41&4,$D$48:$G$70,4,0),VLOOKUP($D$41&4,$D$72:$G$96,4,0)) -> - zakończona budowa przed 1 stycznia 2014r.
A46: 10 | F46: =IF($D$42="nie",VLOOKUP($D$41&5,$D$48:$G$70,4,0),VLOOKUP($D$41&5,$D$74:$G$96,4,0)) -> - dochód do 135 tys. zł.
A47: 11 | F47: =IFERROR(IF($D$42="nie",VLOOKUP($D$41&6,$D$48:$G$70,4,0),VLOOKUP($D$41&6,$D$74:$G$96,4,0)),"") -> 
A48: 12 | E48: Podstawowy | F48: Nie | G48: Zwrot do 55% inwestycji, nie więcej niż 19 400 zł. Kwota płatna jednorazowo, po zamontowaniu systemu pompy ciepła i złożeniu stosownego wniosku do Narodowego Funduszu Ochrony Środowiska i Gospodarki Wodnej: o naborze i dostępnych środkach, o zasadach dotyczących zgłoszenia wniosku oraz o przyznaniu i wypłaceniu dotacji decyduje Narodowy Fundusz Ochrony Środowiska i Gospodarki Wodnej: Arago nie gwarantuje Klientowi otrzymania dotacji
A49: Wybierz | F49: bez prefinansowania
D50: =E50&F50 -> Podstawowy1 | E50: Podstawowy | F50: 1 | G50: - Osoby fizyczne - tylko właściciel lub współwłaściciel nieruchomości z księgą wieczystą.
A51: 4. % powierzchni całkowitej wykorzystywany na prowadzenie działalności gospodarczej | D51: =E51&F51 -> Podstawowy2 | E51: Podstawowy | F51: 2 | G51: - W budynku prowadzona może być działalność, ale nie może przekraczać 30 % powierzchni nieruchomości.
A52: 20 | D52: Podstawowy3 | E52: Podstawowy | F52: 3 | G52: - Dofinansowanie dla kopciuchów, ekogroszku bezklasowych oraz na biomasę, poniżej V klasy. pelet, ekogroszek V klasy nie kwalifikują się do dofinansowania. Natomiast pozostałe jak olej opałowy, gaz (jeśli nie jest alternatywnym źródłem ciepła i zużycie nie przekracza 5600 kwh).
A53: 1 | D53: Podstawowy4 | E53: Podstawowy | F53: 4 | G53: - zakończona budowa przed 1 stycznia 2014r.
D54: Podstawowy5 | E54: Podstawowy | F54: 5 | G54: - dochód do 135 tys. zł.
A56: 13500 | E56: Podwyższony | F56: Nie | G56: Zwrot do 80% inwestycji, nie więcej niż 28 100 zł. Kwota płatna jednorazowo, po zamontowaniu systemu pompy ciepła i złożeniu stosownego wniosku do Narodowego Funduszu Ochrony Środowiska i Gospodarki Wodnej: o naborze i dostępnych środkach, o zasadach dotyczących zgłoszenia wniosku oraz o przyznaniu i wypłaceniu dotacji decyduje Narodowy Fundusz Ochrony Środowiska i Gospodarki Wodnej: Arago nie gwarantuje Klientowi otrzymania dotacji
A57: 1800 | F57: bez prefinansowania
D58: Podwyższony1 | E58: Podwyższony | F58: 1 | G58: - Osoby fizyczne - tylko właściciel lub współwłaściciel nieruchomości z księgą wieczystą.
A59: 5000 | D59: Podwyższony2 | E59: Podwyższony | F59: 2 | G59: - W budynku prowadzona może być działalność, ale nie może przekraczać 30 % powierzchni nieruchomości.
A60: 1000 | D60: Podwyższony3 | E60: Podwyższony | F60: 3 | G60: - Dofinansowanie dla kopciuchów, ekogroszku bezklasowych oraz na biomasę, poniżej V klasy. pelet, ekogroszek V klasy nie kwalifikują się do dofinansowania. Natomiast pozostałe jak olej opałowy, gaz (jeśli nie jest alternatywnym źródłem ciepła i zużycie nie przekracza 5600 kwh).
D61: Podwyższony4 | E61: Podwyższony | F61: 4 | G61: - zakończona budowa przed 1 stycznia 2014r.
A62: 11200 | D62: Podwyższony5 | E62: Podwyższony | F62: 5 | G62: - licząc przeciętny miesięczny dochód na osobę do 1894 zł w gospodarstwie wieloosobowym i do 2651 zł w gospodarstwie jednoosobowym
E64: Najwyższy | F64: Nie | G64: Zwrot do 100% inwestycji, nie więcej niż 35 200 zł. Kwota płatna jednorazowo, po zamontowaniu systemu pompy ciepła i złożeniu stosownego wniosku do Narodowego Funduszu Ochrony Środowiska i Gospodarki Wodnej: o naborze i dostępnych środkach, o zasadach dotyczących zgłoszenia wniosku oraz o przyznaniu i wypłaceniu dotacji decyduje Narodowy Fundusz Ochrony Środowiska i Gospodarki Wodnej: Arago nie gwarantuje Klientowi otrzymania dotacji
A65: Podwyższony | F65: bez prefinansowania
A66: Wybierz poziom dofinansowania | D66: Najwyższy1 | E66: Najwyższy | F66: 1 | G66: - Osoby fizyczne - tylko właściciel lub współwłaściciel nieruchomości z księgą wieczystą.
A67: podstawowy | D67: Najwyższy2 | E67: Najwyższy | F67: 2 | G67: - W budynku prowadzona może być działalność, ale nie może przekraczać 30 % powierzchni nieruchomości.
A68: podwyższony | D68: Najwyższy3 | E68: Najwyższy | F68: 3 | G68: - Dofinansowanie dla kopciuchów, ekogroszku bezklasowych oraz na biomasę, poniżej V klasy. pelet, ekogroszek V klasy nie kwalifikują się do dofinansowania. Natomiast pozostałe jak olej opałowy, gaz (jeśli nie jest alternatywnym źródłem ciepła i zużycie nie przekracza 5600 kwh).
D69: Najwyższy4 | E69: Najwyższy | F69: 4 | G69: - zakończona budowa przed 1 stycznia 2014r.
D70: Najwyższy5 | E70: Najwyższy | F70: 5 | G70: - miesięcznym dochodzie nie większym niż 1090 lub 1526 zł na osobę, oraz dla osób z ustalonym prawem do zasiłku – dokumentowane przez Urząd Gminy lub MOPS
A71: Czy w budynku /lokalu mieszkalnym prowadzona jest działalność gospodarcza w rozumieniu Programu?
A72: Tak | D72: Pompa ciepła | E72: Podwyższony | F72: z prefinansowaniem | G72: Zwrot do 80% inwestycji, nie więcej niż 28 100 zł (Pompa ciepła). Połowa kwoty przyznanego dofinansowania wypłacana jest bezpośrednio na konto Wykonawcy, nie wcześniej niż na 2 tygodnie przed ustaloną datą montażu. Druga część zostaje wypłacona, również Wykonawcy, po zamontowaniu pompy ciepła. O zasadach złożenia wniosku oraz o przyznaniu i wypłaceniu dotacji decyduje NFOŚiGW. Arago nie gwarantuje Klientowi otrzymania dotacji.
A73: Nie | D73: RH | E73: Podwyższony_Tak | G73: Zwrot do 70% inwestycji, nie więcej niż 14 300 zł (Instalacja centralnego ogrzewania oraz instalacja ciepłej wody użytkowej).
D74: Podwyższony1 | E74: Podwyższony | F74: 1 | G74: - Osoby fizyczne – o dotację może ubiegać się wyłącznie właściciel lub współwłaściciel nieruchomości z wydzielonym numerem księgi wieczystej
A75: Wybierz | D75: Podwyższony2 | E75: Podwyższony | F75: 2 | G75: - Zutylizowanie nieefektywnego źródła ciepła
A76: Czy w ramach przedsięwzięcia zostanie i wymienione na nowe dotychczasowe źródło ciepła na paliwo stałe? | D76: Podwyższony3 | E76: Podwyższony | F76: 3 | G76: - Dofinansowanie dla kopciuchów; ekogroszek i biomasa poniżej V klasy; pelet oraz olej opałowy nie kwalifikują się do dotacji; gaz, jeśli jest alternatywnym źródłem ciepła (zużycie roczne nie przekracza 5600 kWh).
A77: Tak | D77: Podwyższony4 | E77: Podwyższony | F77: 4 | G77: - Zakończona budowa domu
A78: Nie | D78: Podwyższony5 | E78: Podwyższony | F78: 5 | G78: - W budynku może być prowadzona działalność, ale nie może przekraczać 30% powierzchni nieruchomości.
A79: Wybierz | D79: Podwyższony6 | E79: Podwyższony | F79: 6 | G79: - Przeciętny miesięczny dochód nie może przekraczać kolejno: 1894 zł w gospodarstwie wieloosobowym; 2651 zł w gospodarstwie jednoosobowym i musi to być udokumentowane zaświadczeniem o dochodach.
A80: Pompa ciepła powietrze/woda o podwyższonej klasie efektywności energetycznej A++
A81: Tak | D81: Pompa ciepła | E81: Najwyższy | F81: z prefinansowaniem | G81: Zwrot do 100% inwestycji, nie więcej niż 35 200 zł (Pompa ciepła). Połowa kwoty przyznanego dofinansowania wypłacana jest bezpośrednio na konto Wykonawcy, nie wcześniej niż na 2 tygodnie przed ustaloną datą montażu. Druga część zostaje wypłacona, również Wykonawcy, po zamontowaniu pompy ciepła. O zasadach złożenia wniosku oraz o przyznaniu i wypłaceniu dotacji decyduje NFOŚiGW. Arago nie gwarantuje Klientowi otrzymania dotacji.
A82: Nie | D82: RH | E82: Najwyższy_Tak | G82: Zwrot do 100% inwestycji, nie więcej niż 20 400 zł (Instalacja centralnego ogrzewania oraz instalacja ciepłej wody użytkowej).
A83: Wybierz | D83: Najwyższy1 | E83: Najwyższy | F83: 1 | G83: - Osoby fizyczne – o dotację może ubiegać się wyłącznie właściciel lub współwłaściciel nieruchomości z wydzielonym numerem księgi wieczystej
D84: Najwyższy2 | E84: Najwyższy | F84: 2 | G84: - Zutylizowanie nieefektywnego źródła ciepła
A85: Instalacja fotowoltaiczna | D85: Najwyższy3 | E85: Najwyższy | F85: 3 | G85: - Dofinansowanie dla kopciuchów; ekogroszek i biomasa poniżej V klasy; pelet oraz olej opałowy nie kwalifikują się do dotacji; gaz, jeśli jest alternatywnym źródłem ciepła (zużycie roczne nie przekracza 5600 kWh).
A86: Tak | D86: Najwyższy4 | E86: Najwyższy | F86: 4 | G86: - Zakończona budowa domu
A87: Nie | D87: Najwyższy5 | E87: Najwyższy | F87: 5 | G87: - W budynku może być prowadzona działalność, ale nie może przekraczać 30% powierzchni nieruchomości.
A88: Wybierz | D88: Najwyższy6 | E88: Najwyższy | F88: 6 | G88: - Przeciętny miesięczny dochód nie może przekraczać kolejno: 1090 zł w gospodarstwie wieloosobowym; 1526 zł w gospodarstwie jednoosobowym i musi to być udokumentowane zaświadczeniem o dochodach.
F89: bez prefinansowania
A90: Przelicznik pompa ciepła | B90: Przelicznik pompa ciepła uproszczony | E90: Podstawowy | F90: Nie | G90: Zwrot do 55% inwestycji, nie więcej niż 19 400 zł (Pompa ciepła). Kwota płatna jednorazowo, po zamontowaniu systemu pompy ciepła i złożeniu stosownego wniosku do Narodowego Funduszu Ochrony Środowiska i Gospodarki Wodnej: o naborze i dostępnych środkach, o zasadach dotyczących zgłoszenia wniosku oraz o przyznaniu i wypłaceniu dotacji decyduje Narodowy Fundusz Ochrony Środowiska i Gospodarki Wodnej: Arago nie gwarantuje Klientowi otrzymania dotacji
A91: ='Kalkulator doboru'!G63*0.6 ->  | B91: ='Kalkulator doboru - uproszczony'!B62*0.6 -> 20566.9044 | E91: Podstawowy_TAK | G91: Zwrot do 40% inwestycji, nie więcej niż 8 100 zł (Instalacja centralnego ogrzewania oraz instalacja ciepłej wody użytkowej).
A92: 30000 | B92: 30000 | D92: =E92&F92 -> Podstawowy1 | E92: Podstawowy | F92: 1 | G92: - Osoby fizyczne - tylko właściciel lub współwłaściciel nieruchomości z księgą wieczystą.
A93: =IF('Kalkulator doboru'!$G$62="podwyższony",28100,35200) -> 35200 | B93: =IF('Kalkulator doboru - uproszczony'!$B$61="podwyższony",28100,35200) -> 35200 | D93: =E93&F93 -> Podstawowy2 | E93: Podstawowy | F93: 2 | G93: - W budynku prowadzona może być działalność, ale nie może przekraczać 30 % powierzchni nieruchomości.
D94: Podstawowy3 | E94: Podstawowy | F94: 3 | G94: - Dofinansowanie dla kopciuchów, ekogroszku bezklasowych oraz na biomasę, poniżej V klasy. pelet, ekogroszek V klasy nie kwalifikują się do dofinansowania. Natomiast pozostałe jak olej opałowy, gaz (jeśli nie jest alternatywnym źródłem ciepła i zużycie nie przekracza 5600 kwh).
A95: Przelicznik fotowoltaika | D95: Podstawowy4 | E95: Podstawowy | F95: 4 | G95: - zakończona budowa przed 1 stycznia 2014r.
A96: 5000 | D96: Podstawowy5 | E96: Podstawowy | F96: 5 | G96: - dochód do 135 tys. zł.
A97: 10000
A98: 5000
A101: Liczba miesięcy wykorzystywanych na działalność
A102: 1
A103: 2
A104: 3
A105: 4
A106: 5
A107: 6
A108: 7
A109: 8
A110: 9
A111: 10
A112: 11
A113: 12
A114: Wybierz
A116: 4. % powierzchni całkowitej wykorzystywany na prowadzenie działalności gospodarczej
A117: 10
A118: 1
A121: 18000
A122: 600
A124: 5000
A125: 500
A127: 9900

Sheet Kalkulator doboru - uproszczony
B1: ="Nr cennika: 01a/08/2024"&"-"&Koszty!BX1 -> Nr cennika: 01a/08/2024-2
BC2: YORK Monoblok | BD2: 7
F3: pola wyboru | BC3: Midea Monoblok | BD3: 4
J4: =IF(Mitsubishi!A222="Kaskada","Uwaga! Połączenie kaskadowe","") ->  | BC4: Piec na pellet FERROLI | BD4: 2
A5: 1. Zużycie danego medium | G5: Dobrana pompa ciepła | J5: YORK Monoblok | BC5: Piec na pellet HEIZTECHNIK | BD5: 3
A6: Rodzaj ogrzewania | B6: Zapotrzebowanie budynku na moc w kW | G6: Model | J6: =IFERROR(Mitsubishi!A352,"-") -> YKF09CNC 9kW | BC6: Piec zgazowujący drewno FERROLI | BD6: 6
A7: Roczne zużycie paliwa | B7: 8,0 kW | G7: Wydajność nominalna | J7: =IFERROR(VLOOKUP(J6,Mitsubishi!B367:D372,3,0),"-") -> 9kW | BD7: 1
A8: Zapotrzebowanie budynku na moc | B8: =IFERROR(IF(Panasonic!AF1=1,VLOOKUP('Kalkulator doboru - uproszczony'!B7,Panasonic!AQ3:AR41,2,0),IF(Panasonic!AF1=2,VLOOKUP('Kalkulator doboru - uproszczony'!B7,Panasonic!AS3:AT41,2,0),IF(Panasonic!AF1=3,VLOOKUP('Kalkulator doboru - uproszczony'!B7,Panasonic!AU3:AV41,2,0),IF(Panasonic!AF1=4,VLOOKUP('Kalkulator doboru - uproszczony'!B7,Panasonic!AW3:AX41,2,0),IF(Panasonic!AF1=5,VLOOKUP('Kalkulator doboru - uproszczony'!B7,Panasonic!AY3:AZ41,2,0),IF(Panasonic!AF1=6,VLOOKUP('Kalkulator doboru - uproszczony'!B7,Panasonic!BA3:BB41,2,0),'Kalkulator doboru - uproszczony'!B7)))))),"Zaktualizuj roczne zużycie paliwa") -> 8,0 kW | D8: Potencjalny wzrost cen: | G8: SCOP | J8: =IFERROR(Tabele!AC62,"-") -> 4.7 | BD8: 5
D9: 0.15 | G9: Zasilanie | J9: =IFERROR(VLOOKUP(J6,Mitsubishi!B367:E372,4,0),"-") -> 1~/220-240V/50Hz
A10: 2. Typ ogrzewania | G10: Zestaw: | J10: =IFERROR(VLOOKUP(J6,Mitsubishi!B367:C372,2,0),"-") -> YKF09CNC
A11: Rodzaj ogrzewania | B11: Ogrzewanie podłogowe | G11: Jednostka wewnętrzna: | J11: =IFERROR(VLOOKUP(J6,Mitsubishi!B367:F372,5,0),"-") -> -
G12: Jednostka zewnętrzna: | J12: =IFERROR(VLOOKUP(J6,Mitsubishi!B367:H372,7,0),"-") -> YKF09CNC
A13: 3. Lokalizacja inwestycji | G13: Bufor | J13: =IFERROR(VLOOKUP(J6,Mitsubishi!B367:I372,8,0),"-") -> nie mniejszy niż 100L
A14: Miasto | B14: Łódź | G14: Zbiornik CWU | J14: =IF(Mitsubishi!D52="Kaskada",'Kalkulator doboru - uproszczony'!D26,IF(OR(B23="Zbiornik CWU - Nie",B24="150L"),"Brak",B24)) -> Brak
A15: Strefa klimatyczna | B15: =VLOOKUP(B14,'Dane temperatur'!E5:G57,3,0) -> III | J15: =IF(Mitsubishi!D52="Kaskada","Uwaga! Połączenie kaskadowe","") ->  | M15: =IF(Mitsubishi!D126="Kaskada","Uwaga! Połączenie kaskadowe","") -> 
A16: Punkt biwalentny | B16: =VLOOKUP(B15,Panasonic!A3:B7,2,0) -> od -8 do -10 | C16: ˚C | G16: Dobrana pompa ciepła | J16: Midea Monoblok | M16: SPRSUN Monoblok
G17: Model | J17: =IF(Mitsubishi!D52="Kaskada",VLOOKUP('Panasonic (2)'!A35,Mitsubishi!A63:D79,4,1),Mitsubishi!D52) -> M-Thermal Mono 10kW | M17: =IF(Mitsubishi!D126="Kaskada",Koszty!BN47,Mitsubishi!D126) -> CGK-025V3L-B 10kW
A18: 4. Przyłącze/rekuperacja w budynku | G18: Wydajność nominalna | J18: =IFERROR(VLOOKUP(J17,Mitsubishi!B82:D103,3,0),"-") -> 10kW | M18: =IFERROR(VLOOKUP(M17,Mitsubishi!B157:D175,3,0),"-") -> 10 kw
A19: Ilość faz | B19: 3 | G19: SCOP | J19: =IFERROR(IF(Mitsubishi!D52="kaskada",Tabele!AO62,Tabele!AG62),"-") -> 4.95 | M19: =IFERROR(IF(Mitsubishi!D126="Kaskada",Tabele!AA56,Tabele!AA62),"-") -> 4.56
A20: Czy w budynku jest rekuperacja | B20: NIE | G20: Zasilanie | J20: =IFERROR(VLOOKUP(J17,Mitsubishi!B82:E103,4,0),"-") -> 1~/220-240V/50Hz | M20: =IFERROR(VLOOKUP(M17,Mitsubishi!B157:E176,4,0),"-") -> 3~/380-415V/50Hz
G21: Zestaw: | J21: =IFERROR(VLOOKUP(J17,Mitsubishi!B82:C103,2,0),"-") -> MHC-V10W/D2N8-BE30 | M21: =IFERROR(VLOOKUP(M17,Mitsubishi!B157:C176,2,0),"-") -> CGK-025V3L-B
A22: 5. Zbiornik wody CWU | G22: Jednostka wewnętrzna: | J22: =IFERROR(VLOOKUP(J17,Mitsubishi!B82:F103,5,0),"-") -> - | M22: =IFERROR(VLOOKUP(M17,Mitsubishi!B157:F176,5,0),"-") -> -
A23: Zbiornik CWU | B23: Zbiornik CWU - Tak | G23: Jednostka zewnętrzna: | J23: =IFERROR(VLOOKUP(J17,Mitsubishi!B82:H103,7,0),"-") -> MHC-V10W/D2N8-BE30 | M23: =IFERROR(VLOOKUP(M17,Mitsubishi!B157:H176,7,0),"-") -> CGK-025V3L-B
A24: Pojemność CWU | B24: 150L | D24: 5. Kaskada | G24: Bufor | J24: =IFERROR(VLOOKUP(J17,Mitsubishi!B82:I103,8,0),"-") -> nie mniejszy niż 100L | M24: =IFERROR(VLOOKUP('Kalkulator doboru - uproszczony'!M17,Mitsubishi!B157:I176,8,0),"-") -> nie mniejszy niż 100L
D25: Zbiornik CWU | G25: Zbiornik CWU | J25: =IF(Mitsubishi!D52="Kaskada",'Kalkulator doboru - uproszczony'!D26,IF(OR(B23="Zbiornik CWU - Nie",B24="150L"),"Brak",B24)) -> Brak | M25: =IF(Mitsubishi!D126="Kaskada",'Kalkulator doboru - uproszczony'!D26,IF(B23="Zbiornik CWU - Nie","Brak",Panasonic!AA17)) -> 
D26: 200L
A27: 7. Finasowanie/ ulga termomodernizacyjna | G27: 9. Piec na pellet | J27: Piec na pellet FERROLI | M27: Piec na pellet HEIZTECHNIK | V27: Piec zgazowujący drewno FERROLI
A28: Ilość lat kredytu: | B28: 8 | G28: Produkt | J28: =Mitsubishi!A250 -> BIOPELLET PRO 12kw | M28: =Mitsubishi!A295 -> Q PELLET 12kw | V28: =Mitsubishi!A317 -> CGF PRO 22
A29: Wpłata własna: | B29: 8000 | G29: Moc | J29: =VLOOKUP('Kalkulator doboru - uproszczony'!$J$28,Mitsubishi!$C$263:$H$266,2,0) -> 12kw | M29: =IFERROR(VLOOKUP($M$28,Mitsubishi!$C$306:$H$309,2,0),"-") -> 12kw | V29: =IFERROR(VLOOKUP(V28,Mitsubishi!C325:D325,2,0),"-") -> 22kw
A30: Próg podatkowy dla klientów indywidualnych | B30: 0.12 | G30: Bufor | J30: - | M30: - | V30: =IF(Mitsubishi!A315="-","-","1000l") -> 1000l
G31: Zasilanie | J31: =VLOOKUP('Kalkulator doboru - uproszczony'!$J$28,Mitsubishi!$C$263:$H$266,3,0) -> 1/N/PE ~230 V / 50 Hz | M31: =IFERROR(VLOOKUP($M$28,Mitsubishi!$C$306:$H$309,3,0),"-") -> 1/N/PE ~230 V / 50 Hz | V31: =IFERROR(VLOOKUP(V28,Mitsubishi!C325:E325,3,0),"-") -> 1/N/PE ~230 V / 50 Hz
A32: 8. Usługi i dodatki | G32: Pojemność zasobnika | J32: =VLOOKUP('Kalkulator doboru - uproszczony'!$J$28,Mitsubishi!$C$263:$H$266,4,0) -> 105 kg | M32: =IFERROR(VLOOKUP($M$28,Mitsubishi!$C$306:$H$309,4,0),"-") -> 300 kg | V32: =IFERROR(VLOOKUP(V28,Mitsubishi!C325:F325,4,0),"-") -> 103l
A33: Program „Bonus za pompę ciepła z Arago” | B33: NIE | G33: Pojemność wodna | J33: =VLOOKUP('Kalkulator doboru - uproszczony'!$J$28,Mitsubishi!$C$263:$H$266,5,0) -> 30l | M33: =IFERROR(VLOOKUP($M$28,Mitsubishi!$C$306:$H$309,5,0),"-") -> 73l | V33: =IFERROR(VLOOKUP(V28,Mitsubishi!C325:G325,5,0),"-") -> 120l
A34: Ubezpieczenie pompy ciepła | B34: NIE | G34: Zbiornik CWU | J34: 150L | M34: 150L | V34: 150L
A35: Przedłużenie gwarancji do 7 lat z zdalną opieką serwisową | B35: NIE
A36: Możliwość przedłużenia gwarancji pompy SPRSUN/NEW ENERGY
A37: Certyfikat Efektywności Energetycznej | B37: Nie | G37: Wybrana pompa ciepła | J37: Piec na pellet HEIZTECHNIK
A38: Płukanie instalacji | B38: NIE | W38: =IF(AND($C$469="tak",$C$470="tak",$C$472="tak",$C$473="tak",$C$475="tak"),PZ_upr,IF(AND($C$469="tak",$C$470="tak",$C472="tak",$C$473="tak"),Piec_upr,PC_upr)) -> YORK Monoblok
A39: Wycena indywidualna | B39: NIE | G39: SCOP | J39: =IF('Panasonic (2)'!A43=1,'Kalkulator doboru - uproszczony'!M19,IF('Panasonic (2)'!A43=5,'Kalkulator doboru - uproszczony'!J485,IF('Panasonic (2)'!A43=4,'Kalkulator doboru - uproszczony'!J19,IF('Panasonic (2)'!A43=7,J8,"")))) ->  | W39: Midea Monoblok
A40: Wizja lokalna przed montażem | B40: NIE | W40: Piec na pellet FERROLI
W41: Piec na pellet HEIZTECHNIK
A42: Utylizacja pieca | B42: NIE | G42: Zużycie pompy ciepła | N42: Czy obiekt budowlany, na którym ma zostać zamontowana pompa ciepła posiada powierzchnię użytkową większą niż 300 m2? | O42: NIE | W42: Piec zgazowujący drewno FERROLI
A43: Połączenie pompy ciepła ze starym źródłem ciepła w układzie otwartym | B43: NIE | G43: Zapotrzebowanie na energię użytkową budynku | J43: =IF(OR(Mitsubishi!D52="Kaskada",Mitsubishi!D126="Kaskada",Mitsubishi!A222="Kaskada"),Tabele!AR40,IF(J37<>"Piec na pellet FERROLI",(IF(B23="Zbiornik CWU - Nie",(VLOOKUP(B8,'Panasonic (2)'!BC3:BF65,4,0)),(VLOOKUP(B8,'Panasonic (2)'!BC3:BE65,3,0))))-IF(B20="tak",Mitsubishi!B195,0),IF(J34="Brak",(VLOOKUP(B8,'Panasonic (2)'!BC3:BF65,4,0)),(VLOOKUP(B8,'Panasonic (2)'!BC3:BE65,3,0))))-IF(B20="tak",Mitsubishi!B195,0)) -> 19413.6 | L43: [kWh/rok] | V43: =IF(O42="Tak","<-- Wpisz ilość m2","") -> 
A45: Zamknięcie układu otwartego | B45: NIE | G45: Zużycie energii elektrycznej | J45: =IFERROR(IF(OR(AND(Mitsubishi!D52="Kaskada",'Panasonic (2)'!A43=4),AND('Panasonic (2)'!A43=1,Mitsubishi!D126="Kaskada"),AND('Panasonic (2)'!A43=5,Mitsubishi!A222="Kaskada")),Tabele!AU52,(J43/J39)),"") ->  | L45: [kWh/rok]
A46: Grupa pompowa | B46: NIE | G46: Cena energii elektrycznej | J46: =Dane!B64 -> 1 | L46: [zł/kWh]
A47: Stojak pod pompę ciepła ze stali nierdzewnej | B47: NIE | G47: Koszt energii elektrycznej | J47: =IFERROR(J45*J46,"") ->  | L47: [zł]
A48: Niezależne sterowanie dwoma obiegami grzewczymi | B48: NIE
A49: Zalanie układu pompy ciepła glikolem łącznie z zamontowaniem wymiennika ciepła | B49: NIE | G49: Podsumowanie: | J49: =VLOOKUP('Panasonic (2)'!A43,'Panasonic (2)'!A44:B58,2,0) -> Piec na pellet HEIZTECHNIK Q PELLET 12kw
G50: Cena bazowa netto: | J50: =VLOOKUP(podb!$R$1,podb!$A$82:$F$180,6,0) -> 31739.05
A51: Dodatkowy sterownik bezprzewodowy jednego obiegu | B51: NIE | D51: =IF(AND(J37="piec na pellet ferroli",B55="nie",B11="mieszane"),"Wymagana usługa dodatkowa.","") ->  | G51: =IF(podb!$T$2=TRUE,"MH:","Marża netto dodatkowa:") -> Marża netto dodatkowa: | J51: 0
A52: Połączenie pompy ciepła z układem solarnym poprzez wymiennik ciepła | B52: NIE | G52: Razem netto: | J52: =IF(AND(B60="Mój Prąd 5.0",B65="tak"),#VALUE!,(IF(podb!$S$2="OBI",'Kalkulator doboru - uproszczony'!$J$50,IF(podb!$S$2="Standardowy",$J$50+$J$51,$J$50+podb!$AN$6)))) -> 31739.05 | N52: Powierzchnia użytkowa: | O52: 400
G53: Klient indywidualny Vat 8% | J53: =IF(G53="Klient indywidualny Vat 8%",J52*0.08,J52*0.23) -> 2539.124
A54: Sterownik do sterowania zdalnego | B54: NIE | G54: Razem brutto: | J54: =IF(AND($G$53="Klient indywidualny Vat 8%",O42="Tak"),Koszty!CF35,(SUM(J52:L53))) -> 34278.174 | N54: =IF(O42="Tak","Uwaga! Vat mieszany","") -> 
A55: Sprzęgło hydrauliczne do podłączenia ogrzewania mieszanego | B55: NIE
A56: Napowietrzanie kotłowni | B56: NIE | G56: Marża suma: | J56: =IF(B65="tak",14000+J51,J51) -> 0
A57: Audyt Energetyczny | B57: NIE
A58: Audyt Energetyczny | B58: =IF(OR(B61="podwyższony",B61="najwyższy"),"Tak","Nie") -> Nie | H58: Na wartość umowy składają się kwoty:
A59: 9. Dotacja Czyste Powietrze/Mój Prąd 5.0 | G59: a) | H59: =J54-H61 -> 12192.174 | K59: brutto
A60: Dofinansowanie: | B60: Czyste Powietrze | H60: =J52-H62 -> 11289.05 | K60: netto
A61: Jestem uprawniony do poziomu dofinansowania: | B61: Podstawowy | D61: Pokaż | G61: b) | H61: 22086 | K61: brutto
A62: Kwota kosztów kwalifikowanych [zł] | B62: =J54 -> 34278.174 | H62: 20450 | K62: netto
A63: Maksymalna / przewidywana kwota dotacji* | B63: =IF(D61="Ukryj",0,IF(B60="Mój Prąd 5.0",'Czyste Powietrze'!R6,IF(VLOOKUP($B$6,Panasonic!$AG$46:$AH$52,2,0)=1,'Czyste Powietrze'!AB28,0))) -> 9100 | D63: =IF(OR($B$6="Kocioł LPG kondensacyjny (butla)",$B$6="Kocioł gazowy tradycyjny (ziemny z sieci)"),"Dotacja przysługuje, jeśli gaz jest alternatywnym źródłem ciepła i zużycie nie przekracza 5600 kwh","") -> 
A64: Program Czyste Powietrze | B64: ='Oferta (2)'!Q119 -> 9100
A65: Równoważenie instalacji | B65: NIE
A468: Roczny koszt zużycia paliwa na ogrzewanie: | B468: =IFERROR(VLOOKUP('Panasonic (2)'!AF20,'Kalkulator doboru - uproszczony'!Z502:AE515,6,0),"") -> 
A469: Czy wysokość kotłowni jest zgodna z ustawą i wynosi minimum 2,2m? | C469: Tak
A470: Czy powierzchnia przekroju komina wynosi minimum 150 cm2 (murowany komin min. 14x14 cm wewnątrz lub rura stalowa fi150)? | C470: Tak
A472: Czy szerokość najwęższego przejścia wynosi minimum 70 cm i wymiary kotłowni wynoszą minimum 2m x 2m? | C472: Tak
A473: Czy powierzchnia przekroju komina wynosi minimum 250 cm2 (murowany komin min. 18x18 cm wewnątrz lub rura stalowa fi250)? | C473: Tak
A475: Szerokość najwęższego przejścia wynosi min. 80cm i wymiary kotłowni min. 4mx3m? | C475: Tak
A477: Pojemność zasobnika na pelet
A478: Zasilanie
A479: Pojemność płaszcza wodnego
A480: Zbiornik CWU
J482: NEW ENERGY Monoblok
A483: Kominek połączony z centralnym ogrzewaniem | B483: Nie | J483: =IF(Mitsubishi!A222="Kaskada",Koszty!BN108,Mitsubishi!A222) -> NE-F90HCR5TINVM 9kW
J484: =IFERROR(VLOOKUP(J483,Mitsubishi!B209:D218,3,0),"-") -> 9kW
A485: Montaż instalacji PV w przyszłości | B485: Nie | J485: =IFERROR(IF(Mitsubishi!A222="Kaskada",Tabele!AK68,Tabele!AK62),"-") -> 5.244
J486: =IFERROR(VLOOKUP(J483,Mitsubishi!B209:E218,4,0),"-") -> 3~/380-415V/50Hz
A487: 6. Instalacja solarna | J487: =IFERROR(VLOOKUP(J483,Mitsubishi!B209:C218,2,0),"-") -> NE-F90HCR5TINVM
A488: Kolektory słoneczne współpracujące z CWU | B488: Nie | J488: =IFERROR(VLOOKUP(J483,Mitsubishi!B209:F218,5,0),"-") -> -
J489: =IFERROR(VLOOKUP(J483,Mitsubishi!B209:H218,7,0),"-") -> NE-F90HCR5TINVM
J490: =IFERROR(VLOOKUP(J483,Mitsubishi!B209:I218,8,0),"-") -> nie mniejszy niż 100L
J491: =IF(Mitsubishi!D52="Kaskada",'Kalkulator doboru - uproszczony'!D26,IF(B23="Zbiornik CWU - Nie","Brak",Panasonic!AA17)) -> 
G498: Rabat: | J498: Nie
Y501: PALIWO/ENERGIA | AA501: KOSZT PALIWA | AC501: ZUŻYCIE PALIWA / ENERGII | AE501: KOSZT OGRZEWANIA
Y502: Energia elektryczna | Z502: Pompa ciepła - powietrzna | AA502: 1 | AB502: [zł/kWh] | AC502: =J45 ->  | AD502: [kWh/rok] | AE502: =AC502*AA502 ->  | AF502: [zł brutto/rok]
Y504: Węgiel | Z504: Kocioł węglowy zasypowy | AA504: 1800 | AB504: [zł/tona] | AC504: =MID((VLOOKUP(B8,'Panasonic (2)'!AP3:AQ65,2,0)),1,FIND(" ",(VLOOKUP(B8,'Panasonic (2)'!AP3:AQ65,2,0)))-1)*1 -> 3.7 | AD504: [ton/rok] | AE504: =AC504*AA504 -> 6660 | AF504: [zł brutto/rok]
Z506: Kocioł węglowy, ekogroszek | AA506: 2000 | AB506: [zł/tona] | AC506: =MID((VLOOKUP(B8,'Panasonic (2)'!AP3:AS65,4,0)),1,FIND(" ",(VLOOKUP(B8,'Panasonic (2)'!AP3:AS65,4,0)))-1)*1 -> 3 | AD506: [ton/rok] | AE506: =AC506*AA506 -> 6000 | AF506: [zł brutto/rok]
Y508: Drewno | Z508: Kocioł na pelet | AA508: 2200 | AB508: [zł/tona] | AC508: =MID((VLOOKUP(B8,'Panasonic (2)'!AP3:AU65,6,0)),1,FIND(" ",(VLOOKUP(B8,'Panasonic (2)'!AP3:AU65,6,0)))-1)*1 -> 3.2 | AD508: [ton/rok] | AE508: =AC508*AA508 -> 7040 | AF508: [zł brutto/rok]
G510: Pln_2 | J510: 1000 | M510: --> pole wyświetla się jeśli standard plus | Y510: LPG | Z510: Kocioł LPG kondensacyjny | AA510: 3.12 | AB510: [zł/l] | AC510: =MID((VLOOKUP(B8,'Panasonic (2)'!AP3:AW65,8,0)),1,FIND(" ",(VLOOKUP(B8,'Panasonic (2)'!AP3:AW65,8,0)))-1)*1 -> 2149 | AD510: [litr/rok] | AE510: =AC510*AA510 -> 6704.88 | AF510: [zł brutto/rok]
G512: Karta paliwowa | J512: NIE | Y512: Gaz ziemny | Z512: Kocioł gazowy tradycyjny | AA512: 2.66 | AB512: [zł/m3] | AC512: =MID((VLOOKUP(B8,'Panasonic (2)'!AP3:AY65,10,0)),1,FIND(" ",(VLOOKUP(B8,'Panasonic (2)'!AP3:AY65,10,0)))-1)*1 -> 1708 | AD512: [m3/rok] | AE512: =AC512*AA512 -> 4543.28 | AF512: [zł brutto/rok]
G513: 1.
G514: Podsumowanie: | J514: =VLOOKUP('Panasonic (2)'!A43,'Panasonic (2)'!A44:B49,2,0) -> Piec na pellet HEIZTECHNIK Q PELLET 12kw | Y514: Olej opałowy | Z514: Kocioł olejowy | AA514: 5.5 | AB514: [zł/l] | AC514: =MID((VLOOKUP(B8,'Panasonic (2)'!AP3:BA65,12,0)),1,FIND(" ",(VLOOKUP(B8,'Panasonic (2)'!AP3:BA65,12,0)))-1)*1 -> 1682 | AD514: [litr/rok] | AE514: =AC514*AA514 -> 9251 | AF514: [zł brutto/rok]
J515: =VLOOKUP(podb!$R$1,podb!$A$82:$F$123,6,0) -> 31739.05
G516: Standard | J516: =SS!KH27 -> 15000
G517: Razem netto: | J517: =IF(podb!$S$2="OBI",'Kalkulator doboru - uproszczony'!$J$515,IF(podb!$S$2="Standardowy",$J$515+$J$516,$J$515+podb!$AN$6)) -> 46739.05
G518: Klient indywidualny Vat 8% | J518: =IF(G518="Klient indywidualny Vat 8%",J517*0.08,J517*0.23) -> 3739.124
G519: Razem brutto: | J519: =IF(AND($G$518="Klient indywidualny Vat 8%",O42="Tak"),Koszty!CF35,(SUM(J517:L518))) -> 50478.174
G522: 3.
G523: Podsumowanie: | J523: =VLOOKUP('Panasonic (2)'!A43,'Panasonic (2)'!A44:B48,2,0) -> Piec na pellet HEIZTECHNIK Q PELLET 12kw
J524: =VLOOKUP(podb!$R$1,podb!$A$82:$F$123,6,0) -> 31739.05
D525: Panasonic Split | G525: Oferta | J525: =VLOOKUP(G525,SS!KC107:KD110,2,0) -> 8000
D526: =IFERROR('Panasonic (2)'!A41,"-") -> - | G526: Razem netto: | J526: =IF(podb!$S$2="OBI",'Kalkulator doboru - uproszczony'!$J$524,IF(podb!$S$2="Standardowy",$J$524+$J$525,$J$524+podb!$AN$6)) -> 39739.05
D527: =IFERROR(VLOOKUP(D526,'Panasonic (2)'!M3:O11,3,0),"-") -> - | G527: Klient indywidualny Vat 8% | J527: =IF(G527="Klient indywidualny Vat 8%",J526*0.08,J526*0.23) -> 3179.124
D528: =IFERROR(Tabele!AC62,"-") -> 4.7 | G528: Razem brutto: | J528: =IF(AND($G$527="Klient indywidualny Vat 8%",O42="Tak"),Koszty!CF35,(SUM(J526:L527))) -> 42918.174
D529: =IFERROR(VLOOKUP(D526,'Panasonic (2)'!M3:P11,4,0),"-") -> -
D530: =IFERROR(VLOOKUP(D526,'Panasonic (2)'!M3:N11,2,0),"-") -> -
D531: =IFERROR(VLOOKUP(D526,'Panasonic (2)'!M3:Q11,5,0),"-") -> -
D532: =IFERROR(VLOOKUP(D526,'Panasonic (2)'!M3:S11,7,0),"-") -> -
D533: =IFERROR(VLOOKUP('Kalkulator doboru - uproszczony'!D526,Panasonic!M3:T11,8,0),"-") -> - | J533: Mitsubishi Split
D534: =IF(B23="Zbiornik CWU - Nie","Brak",Panasonic!AA17) ->  | J534: =IFERROR(Mitsubishi!E28,"-") -> -
J535: =IFERROR(VLOOKUP(Mitsubishi!F28,Mitsubishi!A15:D21,4,0),"-") -> -
J536: =IFERROR(IF(D528="-",M19,D528),"-") -> 4.7
J537: =IFERROR(VLOOKUP(Mitsubishi!E28,Mitsubishi!G15:H21,2,0),"-") -> -
J538: =IFERROR((J539&" + "&J540),"-") -> - + -
J539: =IFERROR(Mitsubishi!F26,"-") -> -
J540: =IFERROR(Mitsubishi!F28,"-") -> -
J541: =IFERROR(VLOOKUP(Mitsubishi!E28,Mitsubishi!G15:I21,3,0),"-") -> -
J542: =IF(B23="Zbiornik CWU - Nie","Brak",Panasonic!AA17) -> 

Sheet Oferta (2)
B2: Oferta instalacji pompy ciepła
B4: Inwestor: | I4: Andrzej Nowak
B5: Adres instalacji: | I5: Podgórna 146, 87-300 Brodnica
B6: Data wykonania oferty : | I6: =NOW() -> 2024-10-01T18:11:41.600 | M6: Oferta ważna do: | S6: =Mitsubishi!M9 -> 2024-10-15T18:11:41.600 | Y6: 2023-07-07T12:12:41.650 | Z6: <- zmiana ważności oferty
B8: Przygotował: | I8: Jan Kowalski | N8: Email: | P8: j.kowalski@arago.green
N9: Telefon: | P9: 000-000-000
A52: =IF('Kalkulator doboru - uproszczony'!B42="Nie","","Wsparcie w wypełnieniu dokumentacji jak i formalnościami związanymi z dotacjami i ulgami, w tym programem Czyste Powietrze") -> 
B59: Wszystkie zaproponowane Państwu rozwiązania składają się z podzespołów o wysokiej jakości oraz trwałości.
B60: Podstawowe dane
B61: Zużycie medium
B62: Rodzaj ogrzewania | M62: ='Kalkulator doboru - uproszczony'!B6 -> Zapotrzebowanie budynku na moc w kW
B63: Roczne zużycie paliwa | M63: ='Kalkulator doboru - uproszczony'!B7 -> 8,0 kW
B64: Zapotrzebowanie budynku na moc | M64: ='Kalkulator doboru - uproszczony'!B8 -> 8,0 kW
B65: Typ ogrzewania
B66: Kominek połączony z centralnym ogrzewaniem | M66: ='Kalkulator doboru - uproszczony'!B483 -> Nie
B67: Rodzaj ogrzewania | M67: ='Kalkulator doboru - uproszczony'!B11 -> Ogrzewanie podłogowe
B68: Lokalizacja inwestycji
B69: Miasto | M69: ='Kalkulator doboru - uproszczony'!B14 -> Łódź
B70: Strefa klimatyczna | M70: ='Kalkulator doboru - uproszczony'!B15 -> III
B71: Punkt biwalentny | M71: ='Kalkulator doboru - uproszczony'!B16 -> od -8 do -10 | R71: ˚C
B72: Przyłącze/Rekuperacja w budynku
B73: Ilość faz | M73: ='Kalkulator doboru - uproszczony'!B19 -> 3
B74: Montaż instalacji PV w przyszłości | M74: ='Kalkulator doboru - uproszczony'!B485 -> Nie
B75: Czy w budynku jest rekuperacja | M75: ='Kalkulator doboru - uproszczony'!B20 -> NIE
B76: Zbiornik wody CWU
B77: Rodzaj zbiornika CWU | M77: =I91 -> 150L
B78: Liczba osób w budynku | M78: ='Kalkulator doboru - uproszczony'!B24 -> 150L
B79: Instalacja solarna
B80: Instalacja solarna współpracująca z CWU | M80: ='Kalkulator doboru - uproszczony'!B488 -> Nie
B81: Zużycie pompy ciepła
B82: Zużycie energii elektrycznej | M82: ='Kalkulator doboru - uproszczony'!J45 ->  | R82: kWh/rok
B83: Zastosowane urządzenia
B84: Pompa ciepła - zastosowane urządzenia
B85: Producent pompy | I85: =VLOOKUP('Panasonic (2)'!A43,'Panasonic (2)'!ED1:EE7,2,0) -> DEFRO | P85: =VLOOKUP(I85,'Panasonic (2)'!EE1:EI7,5,0) -> gwarancja 5 lat
B86: Typ | I86: ='Kalkulator doboru - uproszczony'!J49 -> Piec na pellet HEIZTECHNIK Q PELLET 12kw | S86: =IF(OR(I85="FERROLI",I85="defro"),"",IF('Panasonic (2)'!A43=1,VLOOKUP('Kalkulator doboru - uproszczony'!M17,Mitsubishi!B157:E176,4,0),IF('Panasonic (2)'!A43=2,VLOOKUP('Kalkulator doboru - uproszczony'!D526,Panasonic!M3:P11,4,0),IF('Panasonic (2)'!A43=3,VLOOKUP('Kalkulator doboru - uproszczony'!J534,Mitsubishi!G15:H21,2,0),IF('Panasonic (2)'!A43=4,VLOOKUP('Kalkulator doboru - uproszczony'!J17,Mitsubishi!B82:E103,4,0),IF('Panasonic (2)'!A43=5,VLOOKUP('Kalkulator doboru - uproszczony'!J483,Mitsubishi!B209:E218,4,0),VLOOKUP('Kalkulator doboru - uproszczony'!J6,Mitsubishi!B367:E372,4,0))))))) -> 
B87: ='Kalkulator doboru'!B501 -> Zestaw: | I87: =IF('Panasonic (2)'!A43=1,'Kalkulator doboru - uproszczony'!M21,IF('Panasonic (2)'!A43=2,'Kalkulator doboru - uproszczony'!J28,IF('Panasonic (2)'!A43=3,'Kalkulator doboru - uproszczony'!M28,IF('Panasonic (2)'!A43=4,'Kalkulator doboru - uproszczony'!J21,IF('Panasonic (2)'!A43=5,'Kalkulator doboru - uproszczony'!J487,IF('Panasonic (2)'!A43=6,'Kalkulator doboru - uproszczony'!V28,'Kalkulator doboru - uproszczony'!J6)))))) -> Q PELLET 12kw | T87: kpl.
B88: =IF(Mitsubishi!B251="tak",'Kalkulator doboru - uproszczony'!A477,'Kalkulator doboru'!B502) -> Pojemność zasobnika na pelet | I88: =IF('Panasonic (2)'!A43=1,'Kalkulator doboru - uproszczony'!M22,IF('Panasonic (2)'!A43=2,'Kalkulator doboru - uproszczony'!J32,IF('Panasonic (2)'!A43=3,'Kalkulator doboru - uproszczony'!M32,IF('Panasonic (2)'!A43=4,'Kalkulator doboru - uproszczony'!J22,IF('Panasonic (2)'!A43=5,'Kalkulator doboru - uproszczony'!J488,IF('Panasonic (2)'!A43=6,'Kalkulator doboru - uproszczony'!V32,'Kalkulator doboru - uproszczony'!J11)))))) -> 300 kg | T88: =IF(I88="-","szt.","szt. 1") -> szt. 1
B89: =IF(Mitsubishi!B251="tak",'Kalkulator doboru - uproszczony'!A478,'Kalkulator doboru'!B503) -> Zasilanie | I89: =IF('Panasonic (2)'!A43=1,'Kalkulator doboru - uproszczony'!M23,IF('Panasonic (2)'!A43=2,'Kalkulator doboru - uproszczony'!J31,IF('Panasonic (2)'!A43=3,'Kalkulator doboru - uproszczony'!M31,IF('Panasonic (2)'!A43=4,'Kalkulator doboru - uproszczony'!J23,IF('Panasonic (2)'!A43=5,'Kalkulator doboru - uproszczony'!J489,IF('Panasonic (2)'!A43=6,'Kalkulator doboru - uproszczony'!V31,'Kalkulator doboru - uproszczony'!J12)))))) -> 1/N/PE ~230 V / 50 Hz | T89: =VLOOKUP('Panasonic (2)'!A43,'Panasonic (2)'!ED1:EO7,12,0) -> szt. 1
B90: =IF(Mitsubishi!B251="tak",'Kalkulator doboru - uproszczony'!A479,'Kalkulator doboru'!B504) -> Pojemność płaszcza wodnego | I90: =IF('Panasonic (2)'!A43=1,'Kalkulator doboru - uproszczony'!M24,IF('Panasonic (2)'!A43=2,'Kalkulator doboru - uproszczony'!J33,IF('Panasonic (2)'!A43=3,'Kalkulator doboru - uproszczony'!M33,IF('Panasonic (2)'!A43=4,'Kalkulator doboru - uproszczony'!J24,IF('Panasonic (2)'!A43=5,'Kalkulator doboru - uproszczony'!J490,IF('Panasonic (2)'!A43=6,'Kalkulator doboru - uproszczony'!V33,'Kalkulator doboru - uproszczony'!J13)))))) -> 73l | T90: ="szt. "&IF(I90="-","","1") -> szt. 1
B91: Zbiornik CWU | I91: =IF(Mitsubishi!B248="tak",'Kalkulator doboru - uproszczony'!J34,(IF(Mitsubishi!D125="Kaskada",'Kalkulator doboru'!I25,(VLOOKUP('Kalkulator doboru'!F28,Panasonic!AA2:AD6,4,0))))) -> 150L | T91: ="szt. "&IF(I91="brak","","1") -> szt. 1
B92: Osprzęt instalacji/usługi dodatkowe
B93: ='Kalkulator doboru'!B507 -> Jednostka bezpieczeństwa, przepona, orurowanie podłączenia pompy ciepła z instalacją c.o. oraz c.w.u. (komplet) | P93: TAK
B95: ='Kalkulator doboru'!B508 -> Instalacja chłodnicza z osprzętem elektrycznym | P95: TAK
B96: ='Kalkulator doboru'!B509 -> Podstawa jednostki zewnętrznej | P96: TAK
B97: Montaż | P97: TAK | S97: =VLOOKUP(I85,'Panasonic (2)'!EE1:EJ7,6,0) -> gwarancja 5 lat
B98: Dostawa urządzeń | P98: TAK
B99: Płukanie instalacji | P99: =IF('Kalkulator doboru - uproszczony'!B65="tak","TAK",'Kalkulator doboru - uproszczony'!B38) -> NIE
B100: Utylizacja pieca | P100: ='Kalkulator doboru - uproszczony'!B42 -> NIE
B101: Połączenie pompy ciepła ze starym źródłem ciepła w układzie otwartym | P101: ='Kalkulator doboru - uproszczony'!B43 -> NIE
B102: Zamknięcie układu otwartego | P102: =IF('Kalkulator doboru - uproszczony'!B42="tak","TAK",'Kalkulator doboru - uproszczony'!B45) -> NIE
B103: Grupa pompowa | P103: =IF(OR('Panasonic (2)'!A43=1,'Panasonic (2)'!A43=5),"NIE",'Kalkulator doboru - uproszczony'!B46) -> NIE
B104: Stojak pod pompę ciepła ze stali nierdzewnej | P104: ='Kalkulator doboru - uproszczony'!B47 -> NIE
B105: Niezależne sterowanie dwoma obiegami grzewczymi | P105: ='Kalkulator doboru - uproszczony'!B48 -> NIE
B106: Zalanie układu pompy ciepła glikolem łącznie z zamontowaniem wymiennika ciepła | P106: ='Kalkulator doboru - uproszczony'!B49 -> NIE
B108: Dodatkowy sterownik bezprzewodowy jednego obiegu | P108: ='Kalkulator doboru - uproszczony'!B51 -> NIE
B109: Połączenie pompy ciepła z układem solarnym poprzez wymiennik ciepła | P109: ='Kalkulator doboru - uproszczony'!B52 -> NIE
B110: =IF('Kalkulator doboru - uproszczony'!B37="nie","",'Kalkulator doboru - uproszczony'!A37) ->  | P110: =IF('Kalkulator doboru - uproszczony'!B37="Nie","","TAK") -> 
B111: Sterownik do sterowania zdalnego | P111: ='Kalkulator doboru - uproszczony'!B54 -> NIE
B112: Sprzęgło hydrauliczne do podłączenia ogrzewania mieszanego | P112: ='Kalkulator doboru - uproszczony'!B55 -> NIE
B113: Napowietrzanie kotłowni | P113: ='Kalkulator doboru - uproszczony'!B56 -> NIE
B114: =IF('Czyste Powietrze'!H13="tak","Równoważenie","") ->  | P114: =IF('Czyste Powietrze'!H13="tak","TAK","") -> 
B115: =IF(Mitsubishi!B251="Nie","Audyt Energetyczny","") ->  | P115: =IF(Mitsubishi!B251="Nie",(IF(OR('Kalkulator doboru - uproszczony'!B61="podwyższony",'Kalkulator doboru - uproszczony'!B61="najwyższy"),"Tak",IF('Kalkulator doboru - uproszczony'!B57="tak","Tak","Nie"))),"") -> 
B116: Wartość oferty netto | Q116: ='Kalkulator doboru - uproszczony'!J52 -> 31739.05
B117: Podatek VAT | L117: =IF('Kalkulator doboru - uproszczony'!G53="Klient indywidualny Vat 8%","8%","23%") -> 8% | Q117: ='Kalkulator doboru - uproszczony'!J53 -> 2539.124
B118: Wartość oferty brutto | Q118: ='Kalkulator doboru - uproszczony'!J54 -> 34278.174
B119: System wsparcia | L119: ="program "&'Kalkulator doboru - uproszczony'!B60 -> program Czyste Powietrze | Q119: =IF(L117="8%",'Kalkulator doboru - uproszczony'!$B$63,0) -> 9100
B120: System wsparcia | L120: ulga termomodernizacyjna | Q120: =IF(L117="8%",'Kalkulator doboru - uproszczony'!B30,"") -> 0.12 | R120: =IF(L117="8%",IF((Q118-Q119)>53000,(53000*Q120),((Q118-Q119)*Q120)),0) -> 3021.38088
B121: ="Rzeczywisty koszt pomniejszony o "&'Kalkulator doboru - uproszczony'!B60 -> Rzeczywisty koszt pomniejszony o Czyste Powietrze | Q121: =Q118-Q119 -> 25178.174
B122: Rzeczywisty koszt pomniejszony dodatkowo o ulgę | Q122: =Q118-Q119-R120 -> 22156.79312
B142: Szacunkowe korzyści przy zakupie "na raty"
B144: CREDIT AGRICOLE BANK POLSKA S.A. - kredyt do 10 lat
B145: Bank (kredyt) | M145: Credit Agricole
B146: Ilość lat | M146: ='kredyty (2) do uproszczonego'!D6 -> 8
B147: Cena instalacji brutto | M147: =Q118 -> 34278.174
B148: Wkład własny | M148: ='Kalkulator doboru - uproszczony'!B29 -> 8000
B149: RATA MIESIĘCZNA | M149: ='kredyty (2) do uproszczonego'!D15 -> 420.7676274
B151: ALIOR BANK POLSKA S.A. - kredyt do 10 lat
B152: Bank (kredyt) | M152: Alior Bank
B153: Ilość lat | M153: ='kredyty (2) do uproszczonego'!AE6 -> 8
B154: Cena instalacji brutto | M154: =Q118 -> 34278.174
B155: Wkład własny | M155: ='Kalkulator doboru - uproszczony'!B29 -> 8000
B156: RATA MIESIĘCZNA | M156: ='kredyty (2) do uproszczonego'!AE15 -> 441.6639731
B158: BNP PARIBAS BANK POLSKA S.A. - kredyt do 10 lat
B159: Bank (kredyt) | M159: BNP
B160: Ilość lat | M160: ='kredyty (2) do uproszczonego'!BH6 -> 8
B161: Cena instalacji brutto | M161: =Q118 -> 34278.174
B162: Wkład własny | M162: ='Kalkulator doboru - uproszczony'!B29 -> 8000
B163: RATA MIESIĘCZNA | M163: ='kredyty (2) do uproszczonego'!BH15 -> 414.3494411
B165: SANTANDER BANK POLSKA S.A. - kredyt do 10 lat
B166: Bank (kredyt) | M166: Santander
B167: Ilość lat | M167: ='kredyty (2) do uproszczonego'!CK6 -> 8
B168: Cena instalacji brutto | M168: =Q118 -> 34278.174
B169: Wkład własny | M169: ='Kalkulator doboru - uproszczony'!B29 -> 8000
B170: RATA MIESIĘCZNA | M170: ='kredyty (2) do uproszczonego'!CK15 -> 436.5352129
B172: INBANK S.A. - kredyt do 12,5 lat
B173: Bank (kredyt) | M173: InBank
B174: Ilość lat | M174: ='kredyty (2) do uproszczonego'!DS6 -> 6
B175: Cena instalacji brutto | M175: =Q118 -> 34278.174
B176: Wkład własny | M176: ='Kalkulator doboru - uproszczony'!B29 -> 8000
B177: RATA MIESIĘCZNA | M177: ='kredyty (2) do uproszczonego'!DS15 -> 426.9506249
B179: VELO Bank - kredyt do 10 lat
B180: Bank (kredyt) | M180: VELO Bank
B181: Ilość lat | M181: ='kredyty (2) do uproszczonego'!FD6 -> 8
B182: Cena instalacji brutto | M182: =Q118 -> 34278.174
B183: Wkład własny | M183: ='Kalkulator doboru - uproszczony'!B29 -> 8000
B184: RATA MIESIĘCZNA | M184: ='kredyty (2) do uproszczonego'!FD15 -> 434.3469097
B186: Cofidis - kredyt do 10 lat
B187: Bank (kredyt) | M187: Cofidis
B188: Ilość lat | M188: ='kredyty (2) do uproszczonego'!GD6 -> 8
B189: Cena instalacji brutto | M189: =Q118 -> 34278.174
B190: Wkład własny | M190: ='Kalkulator doboru - uproszczony'!B29 -> 8000
B191: RATA MIESIĘCZNA | M191: ='kredyty (2) do uproszczonego'!GE22 -> 434.3469097
B196: Porównanie kosztów ogrzewania
B197: PALIWO/ENERGIA | H197: KOSZT PALIWA | M197: ZUŻYCIE PALIWA / ENERGII | R197: KOSZT OGRZEWANIA
B198: Energia elektryczna | E198: Pompa ciepła - powietrzna | H198: ='Kalkulator doboru - uproszczony'!AA502 -> 1 | K198: [zł/kWh] | M198: ='Kalkulator doboru - uproszczony'!AC502 ->  | P198: [kWh/rok] | R198: =IF(E198='Kalkulator doboru - uproszczony'!$B$6,'Kalkulator doboru - uproszczony'!$B$468,'Kalkulator doboru - uproszczony'!AE502) ->  | U198: [zł brutto/rok]
B200: Węgiel | E200: Kocioł węglowy zasypowy (śmieciuch) | H200: ='Kalkulator doboru - uproszczony'!AA504 -> 1800 | K200: [zł/tona] | M200: ='Kalkulator doboru - uproszczony'!AC504 -> 3.7 | P200: [ton/rok] | R200: =IF(E200='Kalkulator doboru - uproszczony'!$B$6,'Kalkulator doboru - uproszczony'!$B$468,'Kalkulator doboru - uproszczony'!AE504) -> 6660 | U200: [zł brutto/rok]
E202: Kocioł węglowy, retortowy (ekogroszek) | H202: ='Kalkulator doboru - uproszczony'!AA506 -> 2000 | K202: [zł/tona] | M202: ='Kalkulator doboru - uproszczony'!AC506 -> 3 | P202: [ton/rok] | R202: =IF(E202='Kalkulator doboru - uproszczony'!$B$6,'Kalkulator doboru - uproszczony'!$B$468,'Kalkulator doboru - uproszczony'!AE506) -> 6000 | U202: [zł brutto/rok]
B204: Drewno | E204: Kocioł na pelet | H204: ='Kalkulator doboru - uproszczony'!AA508 -> 2200 | K204: [zł/tona] | M204: ='Kalkulator doboru - uproszczony'!AC508 -> 3.2 | P204: [ton/rok] | R204: =IF(E204='Kalkulator doboru - uproszczony'!$B$6,'Kalkulator doboru - uproszczony'!$B$468,'Kalkulator doboru - uproszczony'!AE508) -> 7040 | U204: [zł brutto/rok]
B206: LPG | E206: Kocioł LPG kondensacyjny (butla) | H206: ='Kalkulator doboru - uproszczony'!AA510 -> 3.12 | K206: [zł/l] | M206: ='Kalkulator doboru - uproszczony'!AC510 -> 2149 | P206: [litr/rok] | R206: =IF(E206='Kalkulator doboru - uproszczony'!$B$6,'Kalkulator doboru - uproszczony'!$B$468,'Kalkulator doboru - uproszczony'!AE510) -> 6704.88 | U206: [zł brutto/rok]
B208: Gaz ziemny | E208: Kocioł gazowy tradycyjny (ziemny z sieci) | H208: ='Kalkulator doboru - uproszczony'!AA512 -> 2.66 | K208: [zł/m3] | M208: ='Kalkulator doboru - uproszczony'!AC512 -> 1708 | P208: [m3/rok] | R208: =IF(E208='Kalkulator doboru - uproszczony'!$B$6,'Kalkulator doboru - uproszczony'!$B$468,'Kalkulator doboru - uproszczony'!AE512) -> 4543.28 | U208: [zł brutto/rok]
B210: Olej opałowy | E210: Kocioł olejowy | H210: ='Kalkulator doboru - uproszczony'!AA514 -> 5.5 | K210: [zł/l] | M210: ='Kalkulator doboru - uproszczony'!AC514 -> 1682 | P210: [litr/rok] | R210: =IF(E210='Kalkulator doboru - uproszczony'!$B$6,'Kalkulator doboru - uproszczony'!$B$468,'Kalkulator doboru - uproszczony'!AE514) -> 9251 | U210: [zł brutto/rok]
B212: Wykres kosztów ogrzewania
B231: Inwestycja w pompę ciepła
B232: =IF('Kalkulator doboru - uproszczony'!B6="Zapotrzebowanie budynku na moc w kW","Porównanie przejścia z ogrzewania olejem opałowym na pompę ciepła","Porównanie przejścia z "&'Panasonic (2)'!AF20&" na pompę ciepła") -> Porównanie przejścia z ogrzewania olejem opałowym na pompę ciepła
B249: ="** Z uwzględnieniem dotacji "&'Kalkulator doboru - uproszczony'!B60&" w pierwszym roku oraz ulgi termomodernizacyjnej w drugim roku" -> ** Z uwzględnieniem dotacji Czyste Powietrze w pierwszym roku oraz ulgi termomodernizacyjnej w drugim roku
B255: ARAGO jest innowacyjną oraz prężnie się rozwijającą firmą w zakresie budowy ekologicznych rozwiązań produkcji energii elektrycznej. Celem naszych działań jest świadczenie kompleksowych usług w zakresie rozwiązań instalacji fotowoltaicznych, pomp ciepła, magazynów energii, optymalizacji kosztów mediów (energia elektryczna, gaz) oraz budowy infrastruktury ładowania samochodów elektrycznych.
B261: OC | I261: =IF('Kalkulator doboru - uproszczony'!B42="Nie","","SYSTEMY WSPARCIA") ->  | P261: SZYBKA INSTALACJA
B262: Posiadamy ubezpieczenie OC do wysokości 3 milionów PLN - możesz z nami czuć się bezpiecznie | I262: =IF('Kalkulator doboru - uproszczony'!B42="Nie","","W zakresie programu Czyste Powietrze, wszelkie formalności załatwimy za Ciebie") ->  | P262: Posiadamy własne zespoły montażowe, dlatego u nas realizacja Twojej instalacji może być wykonana nawet do 12 tygodni od podpisania umowy
B266: Zacznij instalację, uruchomienie i eksploatację swojej pompy ciepła z ARAGO w 4 prostych krokach:
B268: Krok 1. Wybór formy finansowania, podpisanie umowy na realizację Twojej inwestycji
B269: Stawiamy na proste, przejrzyste zasady współpracy. Ustalamy z Tobą wszystkie szczegóły projektowanej instalacji - bez ukrytych kosztów i niespodziewanych wydatków. To Ty wybierasz najbardziej komfortowy dla Ciebie pakiet i opcję finansowania. Umowę z ARAGO podpisujesz bez zbędnych papierów, w wygodny dla Ciebie sposób z użyciem podpisu elektronicznego. Załatwimy dla Ciebie także niezbędnie finansowanie, tj. kredyt. Szczegółowe warunki dotyczące kredytu dostępne są u nas i naszych autoryzowanych sprzedawców. Współpracujemy z Credit Agricole Polska S.A., Alior Bank S.A., BNP Paribas Bank Polska S.A. oraz Santander Polska S.A i jesteśmy umocowani do świadczenia w imieniu tych Banków usług pośrednictwa finansowego w zakresie czynności faktycznych i prawnych związanych z zawieraniem umów o kredyt ratalny.
B277: Krok 2. Profesjonalny montaż i podłączenie instalacji
B278: Wybierzemy dzień, który będzie najbardziej Ci odpowiadał. Nie martw się również pozwoleniami, umowami i dokumentacją. To wszystko jest na naszej głowie, załatwimy to za Ciebie. Wykonamy montaż, instalację oraz konfigurację urządzeń.
B281: Krok 3. Szkolenia i dokumentacja powykonawcza
B282: Przygotujemy stosowną dokumentację powykonawczą wraz z obowiązkowymi pomiarami, przeszkolimy inwestora z obsługi pompy ciepła, jak również przekażemy Ci wszystkie numery seryjne oraz karty gwarancyjne urządzeń, podzespołów, wykorzystanych do budowy Twojej instalacji, wraz z ich technicznymi parametrami fabrycznymi.
B286: Krok 4. Uruchomienie produkcyjne instalacji
B287: To właśnie ten moment - najprzyjemniejszy, kiedy montaż się zakończył i uzyskaliśmy dla Ciebie wszystkie zgody, pozostaje Ci cieszyć się ekologiczną pompą ciepła w Twoim domu.
B295: Dane kontaktowe: | H295: Dane rejestrowe: | N295: Media elektroniczne:
B297: Arago S.A. | H297: NIP:9562326208 | N297: Strona internetowa: www.arago.green
B298: ul. Podgórna 82A | H298: KRS:0000686904 | N298: Facebook: https://www.facebook.com/aragoservices
B299: 87-300 Brodnica | H299: REGON:367787398 | N299: Instagram: https://www.instagram.com/arago.green/
B300: Polska | N300: Telefon: (+48) 600 991 359, Mail: kontakt@arago.green
B307: Zastrzeżenia i informacje o ofercie:
B308: Propozycja ofertowa została przygotowana i przedstawiona przez Arago S.A. z siedzibą w Brodnicy, ul. Podgórna 82a jako instalatora pomp ciepła. Powyższa oferta ma charakter informacyjny i nie stanowi oferty w rozumieniu art. 66 ustawy z dnia 23 kwietnia 1964 roku Kodeks Cywilny. Informacje zawarte w niniejszym dokumencie ofertowym są wstępnymi szacunkami wyłącznie w celach ilustracyjnych i nie stanowią wiążącej umowy ani zobowiązania. Rzeczywiste oszczędności nie są gwarantowane. Projekt systemu może ulec zmianie na podstawie szczegółowego audytu strony inżynierskiej. Oferta instalacji pompy ciepła jest dostosowana do Twojego domu (obiektu) i wskazanej lokalizacji instalacyjnej, jego cena, rzeczywiste oszczędności będą się różnić w zależności od ostatecznej docelowej lokalizacji, projektu, konfiguracji, stawek, obowiązujących rabatów, obowiązujących ulg podatkowych i zużycia energii przez gospodarstwo domowe. Wyliczenia dotyczące założeń finansowych i parametry wskazane w ofercie zostały wyliczone orientacyjnie i mogą się różnić od ostatecznej decyzji banku. Przyznanie kredytu oraz jego warunki uzależnione są od wyboru banku, w którym będzie miała zostać podpisana umowa kredytu, jego zasad oraz wyceny zdolności kredytowej Klienta.
B319: Kluczowe założenia propozycji ofertowej:
B320: ="Informacje zawarte w niniejszym dokumencie ofertowym, takie jak kalkulacje ceny oparte są na cenniku nr"&" "&RIGHT('Kalkulator doboru'!C1,14)&"," -> Informacje zawarte w niniejszym dokumencie ofertowym, takie jak kalkulacje ceny oparte są na cenniku nr 01a/06/2024-2,
B321: obliczenia oszczędności oparte są na następujących założeniach:
B323: Założenia dla instalacji pompy ciepła
B324: Planowana moc grzewcza [kW]: | M324: ='Kalkulator doboru - uproszczony'!M18 -> 10 kw
B325: Koszt zakupu systemu [PLN]: | M325: =Q118 -> 34278.174 | O325: brutto
B326: Minimalna odległość od sąsiadującego budynku [m]: | M326: ='Panasonic (2)'!CS9 -> min. 15
B328: Założenia finansowe:
B329: Stawka VAT [%]: | M329: 0.08
B330: Próg podatkowy klienta indywidualnego [%]: | M330: ='Kalkulator doboru'!C68 -> 0.12
B331: Bank obsługujący kredyt na instalację fotowoltaiczną: | M331: Bank Credit Agricole Polska S.A.; Alior Bank S.A.; InBank S.A.;
M332: Santander Bank Polska S.A.; BNP Paribas Bank Polska S.A.; VELO Bank
B333: Planowana ilość lat kredytu [lata]: | M333: ='Kalkulator doboru - uproszczony'!B28 -> 8
B334: Planowana wpłata własna [PLN]: | M334: ='Kalkulator doboru - uproszczony'!B29 -> 8000
B335: Szacowana wartość miesięcznej raty kredytowej Bank Credit Agricole Polska S.A. [PLN/miesiąc]: | M335: =M149 -> 420.7676274
B337: Szacowana wartość miesięcznej raty kredytowej Alior Bank S.A. [PLN/miesiąc]: | M337: =M156 -> 441.6639731
B338: Szacowana wartość miesięcznej raty kredytowej BNP Paribas Bank Polska S.A. [PLN/miesiąc]: | M338: =M163 -> 414.3494411
B340: Szacowana wartość miesięcznej raty kredytowej Santander Bank Polska S.A. [PLN/miesiąc]: | M340: =M170 -> 436.5352129
B342: Szacowana wartość miesięcznej raty kredytowej InBank S.A. [PLN/miesiąc]: | M342: =M177 -> 426.9506249
B343: Szacowana wartość miesięcznej raty kredytowej VELO Bank [PLN/miesiąc]: | M343: =M184 -> 434.3469097
B344: Szacowana wartość miesięcznej raty kredytowej VELO Bank [PLN/miesiąc]: | M344: =M191 -> 434.3469097
B346: Ulga termomodernizacyjna [PLN]: | G346: =R120 -> 3021.38088 | I346: - jednorazowo, rozliczna w podatku PIT w drugim roku po wykonaniu instalacji
B347: Stawka progu podatkowego PIT [%]: | G347: ='Kalkulator doboru'!C68 -> 0.12
B348: Wakacje z ARAGO/Ubezpieczenie ERGO Hestia | M348: Utylizacja pieca | Q348: ='Kalkulator doboru - uproszczony'!B42 -> NIE
B349: =IF('Kalkulator doboru - uproszczony'!$B$33="Nie","",'Kalkulator doboru - uproszczony'!$B$33&" - Tak") ->  | H349: =IF('Kalkulator doboru - uproszczony'!$B$34="Nie","","Ubezpieczenie pompy ciepła - Tak") ->  | M349: =IF('Kalkulator doboru - uproszczony'!$B$40="Tak",'Kalkulator doboru - uproszczony'!$A$40&" - Tak","") ->  | S349: =IF('Kalkulator doboru - uproszczony'!$B$39="Tak","Wycena indywidualna - Tak","") -> 
B351: System wsparcia: | M351: Podstawowe wymagania dofinansowania Czyste powietrze:
B352: Program Czyste Powietrze [PLN]: | M352: ='Czyste Powietrze'!F42 -> - Osoby fizyczne - tylko właściciel lub współwłaściciel nieruchomości z księgą wieczystą.
B354: ='Czyste Powietrze'!F41 -> Zwrot do 55% inwestycji, nie więcej niż 19 400 zł. Kwota płatna jednorazowo, po zamontowaniu systemu pompy ciepła i złożeniu stosownego wniosku do Narodowego Funduszu Ochrony Środowiska i Gospodarki Wodnej: o naborze i dostępnych środkach, o zasadach dotyczących zgłoszenia wniosku oraz o przyznaniu i wypłaceniu dotacji decyduje Narodowy Fundusz Ochrony Środowiska i Gospodarki Wodnej: Arago nie gwarantuje Klientowi otrzymania dotacji | M354: ='Czyste Powietrze'!F43 -> - W budynku prowadzona może być działalność, ale nie może przekraczać 30 % powierzchni nieruchomości.
M356: ='Czyste Powietrze'!F44 -> - Dofinansowanie dla kopciuchów, ekogroszku bezklasowych oraz na biomasę, poniżej V klasy. pelet, ekogroszek V klasy nie kwalifikują się do dofinansowania. Natomiast pozostałe jak olej opałowy, gaz (jeśli nie jest alternatywnym źródłem ciepła i zużycie nie przekracza 5600 kwh).
M359: ='Czyste Powietrze'!F45 -> - zakończona budowa przed 1 stycznia 2014r.
B360: Poziom dofinansowania Czyste powietrze: | J360: ='Kalkulator doboru - uproszczony'!$B$61 -> Podstawowy | M360: ='Czyste Powietrze'!F46 -> - dochód do 135 tys. zł.
B361: ='Czyste Powietrze'!F40 -> 
M362: ='Czyste Powietrze'!F47 -> 
B366: Klauzula informacyjna dotycząca przetwarzania danych osobowych osób zainteresowanych ofertą spółki chcących zawrzeć ze spółką umowę w przedmiocie wykonania pompy ciepła a także skorzystać z usług dodatkowych oferowanych przez spółkę w porozumieniu z podmiotami trzecimi.
B370: Przedstawienie klauzuli informującej o przetwarzaniu danych osobowych stanowi realizację obowiązków przewidzianych w Rozporządzeniu Parlamentu Europejskiego i Rady (UE) 2016/679 z dnia 27 kwietnia 2016 r. w sprawie ochrony osób fizycznych w związku z przetwarzaniem danych osobowych i w sprawie swobodnego przepływu takich danych oraz uchylenia dyrektywy 95/46/WE (dalej: „RODO”)
B373: 1. | C373: Administratorem Pani/Pana danych osobowych jest Arago S.A. z siedzibą w Brodnicy pod adresem: ul. Podgórna 82a, 87-300 Brodnica (dalej: „Administrator”).
B375: 2. | C375: Administrator danych osobowych jest dostępny:
C376: ∙ | D376: pod adresem e-mail: privacy@arago.green
C377: ∙ | D377: pod adresem korespondencyjnym: ul. Podgórna 82a, 87-300 Brodnica.
B378: 3. | C378: Pani/Pana dane osobowe zostały pozyskane od Partnera współpracującego z Administratorem w związku z nawiązaniem przez ten podmiot kontaktu, a w przypadku ustalenia, iż jest Pan/i zainteresowany produktami/usługami świadczonymi przez spółkę i podmioty z nią współpracujące, podjęciem czynności zmierzających do zawarcia umowy.
B381: 4. | C381: Pani/Pana dane osobowe są przetwarzane w celu dopasowania i przedstawienia Państwu aktualnej oferty produktów oraz usług świadczonych przez Administratora, a także podmioty z nim powiązane, co stanowi czynności podejmowane przed ewentualnym zawarciem umowy pomiędzy Panem/Panią a Administratorem (art. 6 ust. 1 lit. b) RODO - przetwarzanie jest niezbędne do wykonania umowy zawartej z osobą, której dotyczą dane lub podjęcia działań w celu jej zawarcia).
B384: 5. | C384: Jeśli przekazuje nam Pan/i swoje dane osobowe bezpośrednio, jest to dobrowolne, przy czym niezbędne do przedstawienia oferty, a następnie ewentualnego zawarcia i wykonywania umowy. Niepodanie danych osobowych skutkuje niemożliwością zrealizowania powyżej wymienionych czynności.
B387: 6. | C387: Pana/Pani dane osobowe są przetwarzane przez okres obowiązywania oferty, a w przypadku podjęcia decyzji o chęci skorzystania z oferty i zawarcia umowy z Administratorem - przez cały okres jej obowiązywania, z uwzględnieniem okresów związanych z realizacją ciążących na Administratorze obowiązków prawnych z zakresu podatków i rachunkowości w szczególności: prowadzenia księgowości, rozliczenia podatków, archiwizacji danych na potrzeby księgowe (podstawa z art. 6 ust. 1 lit. c) RODO w związku z przepisami prawa podatkowego i ustawy o rachunkowości), a także ustalenia, dochodzenia i obrony roszczeń, co stanowi nasz prawnie uzasadniony interes (podstawa z art. 6 ust. 1 lit. f) RODO).
B393: 7. | C393: Odbiorcami Pani/Pana danych osobowych może być:
C394: ∙ | D394: upoważniony do tego personel Administratora;
C395: ∙ | D395: podmioty przetwarzające dane osobowe na zlecenie Administratora dla wypełnienia celów, dla jakich dane te są zbierane (w szczególności podmioty dostarczające rozwiązania IT oraz świadczące usługi IT, podmioty udzielające wsparcia technicznego, prawnego, finansowego, związanego z pozyskiwaniem leadów, obsługą centralki telefonicznej, podmioty świadczące usługi pocztowe, kurierzy); podmioty te muszą mieć dostęp do danych, aby wykonywać swoje obowiązki. Podmioty te będą miały dostęp do danych osobowych tylko w zakresie niezbędnym do realizacji spoczywających na nich zadań;
C400: ∙ | D400: organy władzy publicznej oraz podmioty wykonujące zadania publiczne lub działające na zlecenie organów władzy publicznej, w zakresie i w celach, które wynikają z przepisów powszechnie obowiązującego prawa;
B402: 8. | C402: Administrator danych osobowych nie zamierza przekazywać Pani/Pana danych osobowych do państwa trzeciego lub organizacji międzynarodowej.
B404: 9. | C404: Ma Pani/Pan prawo:
C405: ∙ | D405: żądania dostępu do danych osobowych Pani/Pana dotyczących;
C406: ∙ | D406: żądania ich sprostowania;
C407: ∙ | D407: żądania ich usunięcia;
C408: ∙ | D408: żądania sprzeciwu;
C409: ∙ | D409: żądania ich ograniczenia przetwarzania;
B410: 10. | C410: Przysługuje Pani/Panu prawo do wniesienia skargi do organu nadzorczego w związku z przetwarzaniem Pani/Pana danych osobowych przez administratora, tj. Prezesa Urzędu Ochrony Danych Osobowych.
B412: 11. | C412: Pani/Pana dane osobowe nie są poddawane zautomatyzowanemu podejmowaniu decyzji, w tym profilowaniu.

Sheet Umowa PC - B2B (Czysty EXP) (hidden)
A6: Umowa wykonania instalacji pompy ciepła - ARG-PC/…..................../2022
A7: dalej jako Umowa
W8: KLIENT
A9: zawarta dnia ….......................... roku w …….......................................... Pomiędzy:
A11: .................................................................... z siedzibą w ….........................................................., kod pocztowy: …...................................., pod adresem:
A13: ul. …............................................................................, posiadającą nr NIP: …................................, nr REGON: …................................. wpisaną do rejestru
A15: przedsiębiorców przez Sąd Rejonowy w …......................................................... Wydział Gospodarczy Krajowego Rejestru Sądowego pod numerem
A17: KRS …..................................., e-mail: …............................................................................, nr. telefonu: …............................................ reprezentowaną przez:
A19: …................................................................................ | L19: - | M19: …...................................................
A21: …................................................................................ | L21: - | M21: …...................................................
A23: [ALBO]
A25: …................................................................. prowadzącym/ą działalność gospodarczą pod firmą ….....................................................................................
A27: z głównym miejscem wykonywania działalności gospodarczej w …........................................................................, kod pocztowy: ..............................
A29: przy ulicy …...................................................................................................................., NIP: …............................................, REGON: …..................................
A31: e-mail: ….................................................................................................................................................., nr. telefonu: …...........................................................
A33: reprezentowanym/ą przez:
C34: właściciela/kę
C35: przez pełnomocnika …..................................................................................... na podstawie pisemnego pełnomocnictwa z dnia …….....................
C36: FALSE
A37: dalej jako Zamawiający
A40: a
A42: Arago Sp. z o.o. z siedzibą w Brodnicy (87-300 ) pod adresem: ul. Podgórna 82A , posiadającą nr NIP: 9562326208, nr REGON: 367787398, wpisaną do rejestru
A43: przedsiębiorców przez Sąd Rejonowy w Toruniu, VII Wydział Gospodarczy KRS pod numerem KRS 0000686904,
A44: reprezentowaną przez:
A45: …..........................................................................................................................
A46: według załączonego pełnomocnictwa
A47: dalej jako Wykonawca
A48: zwanymi dalej łącznie Stronami, a każda z osobna Stroną.
A50: §1
A51: Przedmiot Umowy
A52: 1. | B52: Przedmiotem niniejszej Umowy jest sporządzenie specyfikacji, dostawa oraz montaż pompy ciepła typu powietrze-woda (dalej: pompa ciepła)
B53: wraz z niezbędnym wyposażeniem – dalej Przedmiot Umowy. Szczegóły techniczne znajdują się w Załączniku nr 1 do Umowy.
A54: 2. | B54: Przedmiot Umowy będzie wykonany na nieruchomości (dalej: Punkt Montażu) pod adresem:
C55: wskazanym powyżej | J55: FALSE | L55: innym tj. | O55: ….....................................................................…..................................
A56: 3. | B56: Zamawiający oświadcza, że posiada tytuł prawny do nieruchomości tj. prawo własności, współwłasność lub użytkowanie wieczyste, na której znajduje się
B57: Punkt Montażu. Dodatkowo oświadcza, że Punkt Montażu nie znajduje się pod nadzorem bądź w obszarze ochrony konserwatora zabytków, a także w
B58: obszarze Natura 2000.
A59: 3a. | B59: Zakupiony przez Zamawiającego, na mocy niniejszej Umowy, sprzęt zostanie dostarczony Zamawiającemu przez Wykonawcę na adres wskazany w ust. 2
B60: powyżej najpóźniej w dniu rozpoczęcia montażu, przed upłynięciem terminu wskazanego w ust. 4 poniżej.
X62: …..............................
X63: (parafka Klienta) | AB63: 1/7
A64: 4. | B64: Montaż pompy ciepła (typu powietrze – woda) odbędzie się w terminie
C65: 12 tygodni – w przypadku pompy ciepła marki SPRSUN,
C66: 28 tygodni – w przypadku pompy ciepła marki Midea Group,
B67: licząc od dnia zakwalifikowania przez Wykonawcę Punktu Montażu do zamontowania pompy ciepła jako spełniającego stosowne normy i wymogi (dalej: audyt Wykonawcy) oraz (warunek łączny):
B69: a) | C69: wpłaty zaliczki, której wysokość oraz termin zapłaty został podany w §3 ust. 3, jeżeli Zamawiający opłaca Przedmiot Umowy ze środków własnych lub
B70: b) | C70: poinformowania Wykonawcy o zawarciu umowy kredytowej oraz wpłaty zaliczki, której wysokość i termin zapłaty został podany w §3 ust. 3, jeżeli Zamawiający opłaca Przedmiot Umowy środkami pozyskanymi z kredytu zewnętrznego lub zdecydował się na finansowanie: kredyt zewnętrzny z zaliczką stanowiącą środki własne bądź leasing zewnętrzny z zaliczką stanowiącą środki własne lub
B73: c) | C73: otrzymania przez Wykonawcę informacji o zawarciu przez Zamawiającego umowy kredytowej/leasingowej za pośrednictwem Wykonawcy, jeżeli
C74: Zamawiający zdecydował się na finansowanie: kredyt lub leasing za pośrednictwem Wykonawcy lub
B78: d) | C78: otrzymania przez Wykonawcę informacji o zawarciu przez Zamawiającego umowy kredytowej za pośrednictwem Wykonawcy oraz wpłaty zaliczki, której wysokość i termin zapłaty został podany w §3 ust. 3 oraz, jeżeli Zamawiający zdecydował się na finansowanie: kredyt pozyskany za pośrednictwem Wykonawcy z wkładem własnym stanowiącym środki własne bądź środki własne z zaliczką stanowiącą kredyt pozyskany za pośrednictwem Wykonawcy bądź leasing za pośrednictwem Wykonawcy z wkładem własnym stanowiącym środki własne lub
B82: e) | C82: otrzymania przez Wykonawcę oświadczenia od Zamawiającego, drogą mailową na adres e-mail wskazany w ust.7 poniżej, o zawarciu w umowy
C83: leasingowej, jeżeli Zamawiający zdecydował się na finansowanie: leasing zewnętrzny;
B84: Wykonawca zastrzega, iż termin montażu może ulec wydłużeniu na podstawie warunków zawartych w § 2 ust. 3 Ogólnych Warunków Umowy.
A85: 5. | B85: Termin wskazany w ust. 4 powyżej dotyczy wyłącznie Zamawiającego będącego osobą fizyczną prowadzącą działalność gospodarczą, dla której zawierana Umowa nie ma charakteru zawodowego, jeżeli podpisze oświadczenie zawarte w Załączniku nr 3 do Umowy. W innym przypadku termin rozpoczęcia montażu wskazany w paragrafie powyżej może ulec wydłużeniu o 7 dni roboczych.
A88: 6. | B88: Wykonawca po przeprowadzeniu audytu Wykonawcy prześle Zamawiającemu informację o wyniku tego audytu, wskazując, czy Punkt Montażu został
B89: zakwalifikowany pod montaż pompy ciepła. W sytuacji, gdy po przeprowadzeniu audytu Wykonawcy, okaże się, że Punkt Montażu nie spełnia warunków do
B90: montażu pompy ciepła, Umowa ulegnie rozwiązaniu.
A91: 7. | B91: Odbiór Przedmiotu Umowy nastąpi ostatniego dnia montażu pompy ciepła, o godzinie ustalonej przez Strony.
A92: 8. | B92: Zamawiający stanie się właścicielem pompy ciepła (tj. nabędzie prawo własności) w chwili, gdy spełnione zostaną wszystkie trzy warunki:
B93: a) | C93: pompa ciepła zostanie zamontowana;
B94: b) | C94: Zamawiający podpisze Protokół Odbioru;
B95: c) | C95: Zamawiający zapłaci całe wynagrodzenie wynikające z niniejszej Umowy.
A96: 9. | B96: Kontakt przez Zamawiającego w sprawach związanych z realizacją Przedmiotu Umowy powinien odbywać się mailowo pod adresem: bok@arago.green
B97: lub telefonicznie pod numerem: + 48 600 991 359.
A98: 10. | B98: Pełny zakres Przedmiotu Umowy, który zostanie wykonany przez Wykonawcę w ramach Umowy, został opisany w §2 ust. 1 Ogólnych Warunków Umowy oraz Załączniku nr 1 do Umowy.
A100: §1a Montaż express
A102: 1. | B102: Jeżeli w ramach zawartej Umowy Zamawiający zakupi od Wykonawcy pompę ciepła marki SPRSUN, ma on możliwość skorzystania z montażu express.
A103: 2. | B103: Montaż express oznacza wykonanie montażu pompy ciepła przez Wykonawcę w terminie 15 dni roboczych, licząc od dnia audytu Wykonawcy zakończonego pozytywną weryfikacją oraz spełnienia przez Zamawiającego jednego z warunków wymienionych w §1 ust. 4 lit. a)- e) zgodnie z wybraną przez niego formą finansowania Umowy (warunek łączny).
A106: 3. | B106: Koszt montażu express wynosi 2.000,00 zł (słownie: dwa tysiące) zł netto. Do wskazanej kwoty zostanie doliczony stosowny podatek od towarów i usług. Koszt
B107: ten zostanie uwzględniony w kwocie wskazanej w §3 ust.1 Umowy, jeżeli w ust. 6 poniżej Zamawiający zdecyduje się na skorzystanie z montażu express.
A108: 4. | B108: Jeżeli w ust.6 poniżej Zamawiający odznaczy, że chce skorzystać z przedmiotowej usługi, kwota wskazana w §3 ust.1 Umowy będzie zawierać koszt montażu express.
A110: 5. | B110: Jeżeli Zamawiający chce skorzystać z montażu express, jest zobowiązany do odznaczenia swoje decyzji w ust.6 poniżej.
A111: 6. | B111: Zamawiający oświadcza, że chce skorzystać z montażu express:
O112: TAK | S112: NIE
A114: §2
A115: Obowiązki i oświadczenia Zamawiającego
A116: 1. | B116: Ustala się, że Zamawiający:
B117: a) | C117: będzie współpracował z Wykonawcą w dobrej wierze w celu realizacji Przedmiotu Umowy oraz weźmie udział w szkoleniu z obsługi pompy ciepła;
B118: b) | C118: udostępni Miejsce Montażu z dostępem do mediów, w tym do bieżącej wody i prądu oraz podpisze protokół odbioru pompy ciepła niezwłocznie po
C119: zakończeniu prac;
B120: c) | C120: zobowiązuje się do przekazania informacji i dokumentów umożliwiających przeprowadzenie audytu Wykonawcy oraz realizację Przedmiotu Umowy, w
C121: tym: kwestionariusza doboru, wymiarów kotłowni oraz zdjęć i filmiku obiektu, w szczególności miejsca, gdzie ma zostać zamontowana pompa ciepła,
C122: starego źródła ciepła, połączeń hydraulicznych, tabliczek znamionowych i drogi transportu pompy ciepła do kotłowni;
B123: d) | C123: wykonana niezbędne prace adaptacyjne przed montażem Przedmiotu Umowy, w tym usunie wszelkie obiekty, które mogą uniemożliwić jego wykonanie.
A124: 2. | B124: Zamawiający oświadcza, że został poinformowany, iż do prawidłowej obsługi pompy ciepła przez aplikację oraz przeprowadzenia zdalnego serwisu przez
B125: Wykonawcę konieczne jest posiadanie przez niego stałego i stabilnego połączenia internetowego za pomocą przewodu LAN bądź routera WiFi, który
B126: zapewni bardzo dobry sygnał.
A127: 3. | B127: Zamawiający oświadcza, że podane Wykonawcy dane niezbędne do doboru instalacji pompy ciepła dla jego budynku są zgodne ze zużyciem jego
B128: obecnych nośników energii i ogólnym stanem faktycznym ściśle związanym z zakupem i montażem pompy ciepła. Wykonawca dokona doboru pompy ciepła
B129: zgodnie z zadeklarowanymi przez Zamawiającego danymi. Podanie nieprawdziwych bądź niewystarczająco precyzyjnych danych przez Zamawiającego
B130: może skutkować niepoprawnym doborem i wadliwą pracą instalacji pompy ciepła.
X131: …..............................
X132: (parafka Klienta) | AB132: 2/7
A133: 4. | B133: Zamawiający oświadcza, iż został poinformowany przez Wykonawcę, że zgodnie z Ustawą z dnia 15 maja 2015 r. o substancjach zubożających warstwę
B134: ozonową oraz o niektórych fluorowanych gazach cieplarnianych, należy dokonać rejestracji pompy ciepła: typu split, która zawiera co najmniej 5 ton
B135: ekwiwalentu CO2 oraz typu monoblock, która zawiera co najmniej 10 ton ekwiwalentu CO2 w Centralnym Rejestrze Operatorów (CRO), w terminie
B136: określonym we wspomnianej ustawie. Niewywiązanie się przez Zamawiającego z tego zobowiązania może wiązać się z nałożeniem na niego kary przez
B137: właściwy organ i odpowiedzialnością finansową.
A138: 5. | B138: Zamawiający oświadcza, że będzie wykorzystywał Przedmiot Umowy wyłącznie na potrzeby prowadzonej przez Zamawiającego działalności gospodarczej.
A139: §3
A140: Finansowanie i Wynagrodzenie
A141: 1. | B141: Za wykonanie Przedmiotu Umowy Zamawiający zobowiązuje się do zapłaty Wykonawcy kwoty:
A142: …...................................…................................... | G142: (słownie: …...................................….................….......................................…...................................…...................................) zł brutto
A143: czyli …............................................................ | H143: (słownie: …...................................….................….......................................…...................................…...................................) zł netto
A144: powiększonej o należny podatek VAT w stawce wynikającej z powszechnie obowiązujących przepisów prawa.
A145: 2. | B145: Zamawiający oświadcza, że środki na pokrycie realizacji Przedmiotu Umowy stanowić będą:
C146: środki własne Zamawiającego;
A147: FALSE | C147: środki własne z zaliczką stanowiącą kredyt pozyskany za pośrednictwem Wykonawcy;
C148: kredyt pozyskany za pośrednictwem Wykonawcy; | R148: FALSE
C149: kredyt zewnętrzny; | N149: FALSE | O149: FALSE
C150: kredyt zewnętrzny z zaliczką stanowiącą środki własne;
C151: kredyt pozyskany za pośrednictwem Wykonawcy z wkładem własnym stanowiącym środki własne;
C152: leasing zewnętrzny;
C153: leasing zewnętrzny z zaliczką stanowiącą środki własne; | U153: FALSE
C154: leasing pozyskany za pośrednictwem Wykonawcy;
C155: leasing pozyskany za pośrednictwem Wykonawcy z wkładem własnym stanowiącym środki własne;
A160: FALSE
A162: 3. | B162: Zamawiający zapłaci Wykonawcy zaliczkę, poza przypadkiem wyboru w ust.2 powyżej kredytu\leasingu za pośrednictwem Wykonawcy lub leasingu
A163: FALSE | B163: zewnętrznego, w wysokości:
C164: ......... | E164: % całkowitej wartości Umowy brutto
A165: FALSE | C165: wkładu własnego (dotyczy wyłącznie kredytu/leasingu za pośrednictwem Wykonawcy z wkładem własnym stanowiącym środki własne)
A167: tj. kwoty:
A168: …........................…........................…........................ | G168: (słownie: …...................................….................….......................................…...................................…...................................) zł brutto
A170: w terminie 3 dni:
B171: a) | C171: od dnia zawarcia Umowy, jeżeli Przedmiot Umowy będzie opłacony ze środków własnych Zamawiającego;
B172: b) | C172: od dnia zawarcia umowy kredytowej przez Zamawiającego z instytucją finansową bez pośrednictwa Wykonawcy, jeżeli przedmiot umowy będzie w
C173: całości opłacony z kredytu zewnętrznego;
B174: c) | C174: od dnia zawarcia umowy kredytowej/leasingowej przez Zamawiającego z instytucją finansową, jeżeli Przedmiot Umowy będzie opłacony z wkładu własnego oraz kredytu/leasingu za pośrednictwem Wykonawcy bądź zaliczki i kredytu/leasingu zewnętrznego bądź środków własnych i zaliczki stanowiącej kredyt.
A177: 4. | B177: Zaliczka z ust. 3 powyżej zostanie przekazana przez Zamawiającego na podstawie faktury pro forma wystawionej przez Wykonawcę w momencie zawarcia
B178: Umowy na numer rachunku bankowego: 62 1140 2088 0000 4958 1500 1003. Na podstawie otrzymanej wpłaty Wykonawca wystawi fakturę zaliczkową,
B179: która zostanie przesłana drogą elektroniczną oraz pocztą na wskazany przez Zamawiającego adres e-mail i adres korespondencyjny.
A180: 5. | B180: Pozostałą część wynagrodzenia stanowi kwota wskazana w ust.1 powyżej pomniejszona o kwotę wpłaconą przez Zamawiającego w myśl ust. 3 powyżej.
B181: Niniejsza kwota, z wyłączeniem kwoty stanowiącej wartość kredytu pozyskanego przez Zamawiającego za pośrednictwem Wykonawcy, zostanie zapłacona
B182: przez Zamawiającego na podstawie faktury VAT wystawionej po podpisaniu Protokołu Odbioru w terminie 3 dni od daty jej wystawienia.
A183: 6. | B183: W przypadku wyboru przez Zamawiającego finansowania za pośrednictwem Wykonawcy lub leasingu zewnętrznego kwota kredytu/leasingu zostanie przesłana przez bank/instytucję leasingową bezpośrednio na konto bankowe Wykonawcy, zgodnie z warunkami zawartymi w umowie kredytowej/leasingowej.
A186: 7. | B186: W sytuacji, gdy Zamawiający, mimo wsparcia Wykonawcy, nie otrzyma kredytu bądź leasingu od instytucji finansowej i nie zdecyduje się na zmianę finansowania, Umowa ulegnie rozwiązaniu.
A188: 8. | B188: Jeżeli Umowa ulegnie rozwiązaniu na podstawie §1 ust. 6 Umowy, a Zamawiający wpłacił zaliczkę, o której mowa w §3 ust.3 Umowy, Wykonawca dokona jej
B189: zwrotu w terminie 14 dni, licząc od dnia rozwiązania Umowy, dokonując właściwych działań formalno-księgowych.
A190: 9. | B190: Udzielając Zamawiającemu wsparcia w pozyskaniu finansowania na zakup instalacji pompy ciepła, szacuje się, że rata finansowania w okresie
B191: …........ lat wyniesie …..................................... (słownie: …..............................................................................................................................................................) zł
B192: przy czym całkowity koszt finansowania nie może się zmienić o więcej niż 9%.
A193: 10. | B193: Zamawiający wyraża zgodę na wystawianie faktur elektronicznych i przesłanie ich na adres e-mail podany w Umowie.
A194: 11. | B194: Kwota wskazana w ust. 1 powyżej obejmuje Przedmiot Umowy wraz ze sprzętem i usługami wskazanymi w załączniku nr 1 do Umowy. Każda dodatkowa
B195: czynność nieujęta w zakresie prac, będzie dodatkowo płatna przez Zamawiającego zgodnie z zapisami w Umowie i Ogólnych Warunkach Umowy.
A196: §3a
A197: Usługi dodatkowe
A198: 1. | B198: Każda dodatkowa usługa, nieujęta w zakresie Przedmiotu Umowy, w tym konieczność wymiany lub remontu Punktu Montażu, usunięcia obiektów
B199: uniemożliwiających montaż pompy ciepła czy zainstalowanie orurowania w bryle budynku o długości przekraczającej 5 mb, mogą zostać wykonane przez
B200: Wykonawcę za odrębnym wynagrodzeniem, oszacowanym podczas wstępnego audytu technicznego oraz przedstawionym Zamawiającemu i przez niego
B201: zatwierdzonym.
A202: 2. | B202: Wykonawca zastrzega, że Przedmiotem Umowy nie obejmuje, w szczególności:
B203: a) | C203: dostosowania instalacji elektrycznej lub istniejącej instalacji C.O., C.W.U. Zamawiającego na potrzeby poprawnej współpracy z pompą ciepła,
X204: …..............................
X205: (parafka Klienta) | AB205: 3/7
B206: b) | C206: spełnienia wymagań technicznych do zamontowania i prawidłowego działania pompy ciepła, w tym uzyskania koniecznych decyzji administracyjnych
C207: (np. pozwolenia na budowę), zwiększenia mocy przyłączeniowej, zmiany taryfy energetycznej, zwiększenia zabezpieczeń oraz wymiany elementów
C208: istniejącej instalacji Zamawiającego.
A209: 3. | B209: Zamawiający może zgłosić Wykonawcy zapotrzebowanie na usługę dodatkową drogą mailową lub telefoniczną.
A210: 4. | B210: Wykonawca po otrzymaniu zgłoszenia w zakresie usługi dodatkowej, dokona analizy możliwości zrealizowania tej usługi, a następnie przedstawi
B211: Zamawiającemu koszt tej usługi wraz z zakresem prac.
A212: 5. | B212: Po zaakceptowaniu przez Zamawiającego kosztów związanych z usługą dodatkową, Strony zawrą stosowny aneks do Umowy, regulujący ustalone kwestie.
B213: Po podpisaniu aneksu do Umowy, Wykonawca wykona Przedmiot Umowy wraz z usługą dodatkową.
A216: 6. | B216: Wykonawca zastrzega, iż termin rozpoczęcia montażu wskazany w §1 ust. 4 Umowy może ulec wydłużeniu z uwagi na proces zawarcia aneksu do Umowy i
B217: rodzaj usługi dodatkowej.
A218: §4
A219: Gwarancja
A220: 1. | B220: Wykonawca udziela …...... letniej gwarancji na zamontowany sprzęt oraz wykonane prace instalacyjne w zakresie pompy ciepła od dnia podpisania protokołu
A221: ="Wykonawca udziela "&IF('Panasonic (2)'!CG2=1,RIGHT(Oferta!R94,5),RIGHT('Oferta (2)'!R98,5))&" gwarancji na zamontowany sprzęt oraz wykonane prace instalacyjne w zakresie pompy ciepła od dnia podpisania protokołu odbioru i" -> Wykonawca udziela gwarancji na zamontowany sprzęt oraz wykonane prace instalacyjne w zakresie pompy ciepła od dnia podpisania protokołu odbioru i | B221: odbioru i przekazania jej do eksploatacji (dalej jako Gwarancja Wykonawcy).
A222: 2. | B222: Zasadą obowiązywania Gwarancji Wykonawcy jest dokonywanie przez Zamawiającego autoryzowanego serwisu pompy ciepła (dalej: serwis) co roku przez
B223: okres trwania tych gwarancji od dnia podpisania protokołu odbioru.
A224: 3. | B224: Mając na względzie zapisy wskazane powyżej, Zamawiający wyraża zgodę na dokonywanie corocznego serwisu przez Wykonawcę oraz zgadza się
B225: opłacić tę usługę każdorazowo na podstawie otrzymanej faktury pro forma od Wykonawcy w terminie 7 dni od wystawienia faktury.
A226: 4. | B226: Cena jednego serwisu jest wskazana w Cenniku Usług Dodatkowych Wykonawcy, który znajduje się na stronie internetowej www.arago.green oraz w
B227: siedzibie Wykonawcy. Niniejszy Cennik będzie także przesyłany Zamawiającemu drogą mailową wraz z wystawioną przez Wykonawcę fakturą pro forma.
A228: 5. | B228: Termin dokonania serwisu, po opłaceniu przez Zamawiającego faktury pro forma, będzie ustalany indywidualnie przez Strony drogą mailową lub telefoniczną.
A229: 6. | B229: Jeżeli Zamawiający nie dokona terminowo zapłaty zgodnie z ust. 3 powyżej, Wykonawca przyjmuje, że rezygnuje on z dokonania serwisu przez Wykonawcę, co skutkuje zakończeniem obowiązywania Gwarancji Wykonawcy wcześniej niż okres jej obowiązywania tj. po upływie roku od ostatniego, autoryzowanego serwisu tj. po upływie roku od ostatniego, autoryzowanego serwisu.
A232: 7. | B232: Zamawiający może dokonywać zgłoszenia wady instalacji pompy ciepła, w trakcie obowiązywania gwarancji, telefonicznie (od poniedziałku do piątku
B233: w godzinach 8:00-16:00) pod nr + 48 600 991 359 lub drogą mailową na adres: bok@arago.green.
A234: 8. | B234: Wykonawca gwarantuje, że w sytuacji zgłoszenia przez Zamawiającego takiej awarii pompy ciepła, która uniemożliwia grzanie ciepłej wody lub grzanie centralnego ogrzewania bądź powoduje wyciek, który może narazić Zamawiającego na straty materialne, jego reakcja na otrzymane zgłoszenie nastąpi bez zbędnej zwłoki, lecz nie później niż w ciągu 72 godzin, licząc od chwili otrzymania zgłoszenia od Zamawiającego, z zastrzeżeniem ust.9 poniżej. Reakcja nie jest jednoznaczna z przyjazdem ekipy serwisowej do Zamawiającego.
A242: 9. | B242: Jeżeli Zamawiający dokona zgłoszenia, o którym mowa w ust. 8 powyżej, w dniu roboczym w godzinach od 7:00 do 12:00, Wykonawca zareaguje bez zbędnej zwłoki, lecz nie później niż w ciągu 72 godzin od otrzymania zgłoszenia, kontaktując się z Zamawiającym i wysyłając do niego, w razie potrzeby, swojego pracownika celem usunięcia powstałej awarii. Natomiast w sytuacji, gdy Wykonawca otrzyma od Zamawiającego zgłoszenie:
B245: a) | C245: w godzinach od północy tj. 00:00 do 06:59 w dniu roboczym, zostanie przyjęte, iż dokonano go o godzinie 7:00 tego dnia roboczego, w którym przekazano Wykonawcy zgłoszenie awarii;
B247: b) | C247: w godzinach po 12:00 do 23:59 w dniu roboczym, zostanie przyjęte, iż dokonano go o godzinie 7:00 dnia roboczego następującego po dniu, w którym przekazano Wykonawcy zgłoszenie awarii;
B249: c) | C249: w weekend lub dzień ustawowo wolny od pracy, zostanie przyjęte, iż dokonano go o godzinie 7:00 najbliższego dnia roboczego następującego po weekendzie lub dniu ustawowo wolnym od pracy, w którym przekazano Wykonawcy zgłoszenie awarii.
A251: 10. | B251: Zapisy wskazane w ust.8-9 powyżej dotyczą wyłącznie awarii zgłoszonej przez Zamawiającego, który posiada obowiązującą gwarancję na instalację pompy
B252: ciepła zgodnie z warunkami niniejszego paragrafu.
A253: 11. | B253: Wykonawca zapewnia realizację Gwarancji Wykonawcy oraz serwisu pompy ciepła na terenie całej Polski. Zakres Gwarancji Wykonawcy w przypadku stwierdzenia wady obejmuje naprawę lub wymianę sprzętu bądź jego części na nowe.
A255: 12. | B255: Zapisy niniejszego paragrafu nie wyłączają, nie ograniczają ani nie zawieszają uprawnień z tytułu rękojmi.
A256: 13. | B256: Zamawiający ponosi odpowiedzialność za wszelkie uszkodzenia, usterki lub utratę pompy ciepła lub jej części, powstałe z jego winy.
A257: 14. | B257: W przypadku zaniedbania przez Zamawiającego obowiązków związanych ze zgłoszeniem wad pompy ciepła, które to zaniedbanie doprowadzi do utraty
B258: uprawnień z tytułu rękojmi i gwarancji, Zamawiający jest zobowiązany do usunięcia wad instalacji pompy ciepła na własny koszt.
A259: 15. | B259: Poza Gwarancją Wykonawcy, Zamawiający ma zapewnioną także gwarancję producencką poszczególnych elementów pompy ciepła, które szczegóły zawarto w warunkach gwarancji danego producenta.
A262: §4a
A263: Rozszerzenie Gwarancji Wykonawcy na pompę ciepła SPRSUN
A264: 1. | B264: Jeżeli w ramach zawartej Umowy Zamawiający zakupi od Wykonawcy pompę ciepła marki SPRSUN, ma on możliwość skorzystać z rozszerzonej, 7-letniej Gwarancji Wykonawcy.
A266: 2. | B266: W ramach rozszerzenia Gwarancji Wykonawcy Zamawiający otrzyma także zdalną opiekę serwisową.
A267: 3. | B267: Warunkiem uruchomienia i zapewnienia zdalnej opieki serwisowej przez Wykonawcę jest zagwarantowanie przez Zamawiającego w Punkcie Montażu stałego i stabilnego połączenia internetowego za pomocą przewodu LAN bądź routera WiFi, który zapewni bardzo dobry i stabilny sygnał.
A269: 4. | B269: Koszt rozszerzenia Gwarancji Wykonawcy wynosi 1.200,00 zł (słownie: tysiąc dwieście) zł netto. Do wskazanej kwoty zostanie doliczony stosowny podatek od towarów i usług. Koszt ten zostanie uwzględniony w kwocie wskazanej w §3 ust.1 Umowy, jeżeli w ust. 6 poniżej Zamawiający zdecyduje się na skorzystanie z rozszerzonej Gwarancji Wykonawcy. Jeżeli Zamawiający chce skorzystać z rozszerzonej Gwarancji Wykonawcy, jest zobowiązany do:
B272: a) | C272: odznaczenia swoje decyzji w ust.6 poniżej,
B273: b) | C273: zapłaty kwoty wskazanej w §3 ust.1 Umowy.
X275: …..............................
... 141 more rows

Sheet Umowa PC - B2C (Czysty EXP) (hidden)
A6: Umowa wykonania instalacji pompy ciepła - ARG-PC/…................../2022
A7: dalej jako Umowa
W8: KONSUMENT
A9: zawarta dnia ….............................. | H9: roku w ….................................................................. pomiędzy:
A11: …...................................................................................... zamieszkałym / zamieszkałą w …...................................................................
A13: kod pocztowy: ….................... ,przy ul. ….............................................................................., PESEL …..................................................
A15: e-mail: ….................................................................................., nr. telefonu: …................................................., , działający/działająca:
C17: osobiście
C18: przez pełnomocnika …........................................................ na podstawie pisemnego pełnomocnictwa z dnia …...................
A20: dalej jako Zamawiający
B21: FALSE
A22: a
A23: Arago Sp. z o.o. z siedzibą w Brodnicy (87-300 ) pod adresem: ul. Podgórna 82A , posiadającą nr NIP: 9562326208, nr REGON: 367787398, wpisaną do
A24: rejestru przedsiębiorców przez Sąd Rejonowy w Toruniu, VII Wydział Gospodarczy KRS po numerem KRS 0000686904, reprezentowaną przez:
A25: …........................................................…..................................................................................
A26: na mocy stosownego pełnomocnictwa
A27: dalej jako Wykonawca
A28: zwanymi dalej łącznie Stronami, a każda z osobna Stroną.
B29: §1
B30: Przedmiot Umowy
A31: 1. | B31: Przedmiotem niniejszej Umowy jest sporządzenie specyfikacji, dostawa oraz montaż pompy ciepła typu powietrze-woda (dalej: pompa ciepła) wraz z
B32: niezbędnym wyposażeniem – dalej Przedmiot Umowy. Szczegóły techniczne znajdują się w Załączniku nr 1 do Umowy.
A33: 2. | B33: Przedmiot Umowy będzie wykonany na nieruchomości (dalej: Punkt Montażu) pod adresem:
C34: wskazanym powyżej | J34: FALSE | L34: innym tj. | O34: ….....................................................................…..................................
A35: 3. | B35: Zamawiający oświadcza, że posiada tytuł prawny do nieruchomości tj. prawo własności, współwłasność lub użytkowanie wieczyste, na której znajduje
B36: się Punkt Montażu. Dodatkowo oświadcza, że Punkt Montażu nie znajduje się pod nadzorem bądź w obszarze ochrony konserwatora zabytków, a także
B37: w obszarze Natura 2000.
A38: 3a. | B38: Zakupiony przez Zamawiającego, na mocy niniejszej Umowy, sprzęt zostanie dostarczony Zamawiającemu przez Wykonawcę na adres wskazany w
B39: ust. 2 powyżej najpóźniej w dniu rozpoczęcia montażu, przed upłynięciem terminu wskazanego w ust. 4 poniżej.
A40: 4. | B40: Montaż pompy ciepła (typu powietrze – woda) odbędzie się w terminie
C41: 12 tygodni – w przypadku pompy ciepła marki SPRSUN,
C42: 28 tygodni – w przypadku pompy ciepła marki Midea Group,
B43: licząc od dnia zakwalifikowania przez Wykonawcę Punktu Montażu do zamontowania pompy ciepła jako spełniającego stosowne normy i wymogi
B44: (dalej: audyt Wykonawcy) oraz (warunek łączny):
B45: a) | C45: wpłaty zaliczki, której wysokość oraz termin zapłaty został podany w §3 ust. 3, jeżeli Zamawiający opłaca Przedmiot Umowy ze środków własnych lub
B46: b) | C46: poinformowania Wykonawcy o zawarciu umowy kredytowej oraz wpłaty zaliczki, której wysokość i termin zapłaty został podany w §3 ust. 3, jeżeli Zamawiający opłaca Przedmiot Umowy środkami pozyskanymi z kredytu zewnętrznego lub zdecydował się na finansowanie: kredyt zewnętrzny z zaliczką stanowiącą środki własne lub
B49: c) | C49: otrzymania przez Wykonawcę informacji o zawarciu przez Zamawiającego umowy kredytowej za pośrednictwem Wykonawcy, jeżeli Zamawiający
C50: zdecydował się na finansowanie: kredyt za pośrednictwem Wykonawcy lub
B51: d) | C51: otrzymania przez Wykonawcę informacji o zawarciu przez Zamawiającego umowy kredytowej za pośrednictwem Wykonawcy oraz wpłaty zaliczki, której wysokość i termin zapłaty został podany w §3 ust. 3 oraz, jeżeli Zamawiający zdecydował się na finansowanie: kredyt pozyskany za pośrednictwem Wykonawcy z wkładem własnym stanowiącym środki własne bądź środki własne z zaliczką stanowiącą kredyt pozyskany za pośrednictwem Wykonawcy lub
B55: e) | C55: otrzymania przez Wykonawcę informacji o zawarciu przez Zamawiającego umowy kredytowej za pośrednictwem Wykonawcy oraz otrzymania informacji o wydaniu pozytywnej decyzji o dofinansowaniu na rzecz Zamawiającego, jeżeli Zamawiający zdecydował się na finansowanie: kredyt za pośrednictwem Wykonawcy – dedykowany produkt Alior Banku wraz z Programem Czyste Powietrze lub
B58: f) | C58: otrzymania przez Wykonawcę informacji o zawarciu przez Zamawiającego umowy kredytowej za pośrednictwem Wykonawcy, otrzymania informacji o wydaniu pozytywnej decyzji o dofinansowaniu na rzecz Zamawiającego oraz wpłaty zaliczki, której wysokość i termin zapłaty został podany w §3 ust. 3, jeżeli Zamawiający zdecydował się na finansowanie: kredyt za pośrednictwem Wykonawcy z wkładem własnym – dedykowany produkt Alior Banku wraz z Programem Czyste Powietrze.
B62: Wykonawca zastrzega, iż termin montażu może ulec wydłużeniu na podstawie warunków zawartych w § 2 ust. 3 Ogólnych Warunków Umowy.
A63: 5. | B63: Termin wskazany w ust. 4 powyżej dotyczy wyłącznie sytuacji, gdy Zamawiający podpisze oświadczenie zawarte w §5 Umowy. W innym przypadku termin rozpoczęcia montażu wskazany powyżej może ulec wydłużeniu o 7 dni roboczych.
X65: …....................................
X66: (parafka Klienta) | AA66: 1/8
A67: 6. | B67: Wykonawca po przeprowadzeniu audytu Wykonawcy prześle Zamawiającemu informację o wyniku tego audytu, wskazując, czy Punkt Montażu został zakwalifikowany pod montaż pompy ciepła. W sytuacji, gdy po przeprowadzeniu audytu Wykonawcy, okaże się, że Punkt Montażu nie spełnia warunków do montażu pompy ciepła, Umowa ulegnie rozwiązaniu.
A70: 7. | B70: Odbiór Przedmiotu Umowy nastąpi ostatniego dnia montażu pompy ciepła, o godzinie ustalonej przez Strony.
A71: 8. | B71: Zamawiający stanie się właścicielem pompy ciepła (tj. nabędzie prawo własności) w chwili, gdy spełnione zostaną wszystkie trzy warunki:
B72: a) | C72: pompa ciepła zostanie zamontowana;
B73: b) | C73: Zamawiający podpisze Protokół Odbioru;
B74: c) | C74: Zamawiający zapłaci całe wynagrodzenie wynikające z niniejszej Umowy.
A75: 9. | B75: Kontakt przez Zamawiającego w sprawach związanych z realizacją Przedmiotu Umowy powinien odbywać się mailowo pod adresem:
B76: bok@arago.green lub telefonicznie pod numerem: + 48 600 991 359.
A77: 10. | B77: Pełny zakres Przedmiotu Umowy, który zostanie wykonany przez Wykonawcę w ramach Umowy, został opisany w §2 ust.1 Ogólnych Warunków Umowy oraz Załączniku nr 1 do Umowy.
B79: §1a Montaż express
A81: 1. | B81: Jeżeli w ramach zawartej Umowy Zamawiający zakupi od Wykonawcy pompę ciepła marki SPRSUN, ma on możliwość skorzystania z montażu express.
A82: 2. | B82: Montaż express oznacza wykonanie montażu pompy ciepła przez Wykonawcę w terminie 15 dni roboczych, licząc od dnia audytu Wykonawcy zakończonego pozytywną weryfikacją oraz spełnienia przez Zamawiającego jednego z warunków wymienionych w §1 ust. 4 lit. a)- f) zgodnie z wybraną przez niego formą finansowania Umowy (warunek łączny).
A85: 3. | B85: Koszt montażu express wynosi 2.000,00 zł (słownie: dwa tysiące) zł netto. Do wskazanej kwoty zostanie doliczony stosowny podatek od towarów i usług.
B86: Koszt ten zostanie uwzględniony w kwocie wskazanej w §3 ust.1 Umowy, jeżeli w ust. 6 poniżej Zamawiający zdecyduje się na skorzystanie z montażu express.
A87: 4. | B87: Jeżeli w ust.6 poniżej Zamawiający odznaczy, że chce skorzystać z przedmiotowej usługi, kwota wskazana w §3 ust.1 Umowy będzie zawierać koszt montażu express.
A89: 5. | B89: Jeżeli Zamawiający chce skorzystać z montażu express, jest zobowiązany do odznaczenia swoje decyzji w ust.6 poniżej.
A90: 6. | B90: Zamawiający oświadcza, że chce skorzystać z montażu express:
N91: TAK | R91: NIE
B93: §2
B94: Obowiązki i oświadczenia Zamawiającego
A95: 1. | B95: Ustala się, że Zamawiający:
B96: a) | C96: będzie współpracował z Wykonawcą w dobrej wierze w celu realizacji Przedmiotu Umowy oraz weźmie udział w szkoleniu z obsługi pompy ciepła;
B97: b) | C97: udostępni Miejsce Montażu z dostępem do mediów, w tym do bieżącej wody i prądu oraz podpisze protokół odbioru pompy ciepła niezwłocznie
C98: po zakończeniu prac;
B99: c) | C99: zobowiązuje się do przekazania informacji i dokumentów umożliwiających przeprowadzenie audytu Wykonawcy oraz realizację Przedmiotu Umowy,
C100: w tym: kwestionariusza doboru, wymiarów kotłowni oraz zdjęć i filmiku obiektu, w szczególności miejsca, gdzie ma zostać zamontowana pompa
C101: ciepła, starego źródła ciepła, połączeń hydraulicznych, tabliczek znamionowych i drogi transportu pompy ciepła do kotłowni;
B102: d) | C102: wykonana niezbędne prace adaptacyjne przed montażem Przedmiotu Umowy, w tym usunie wszelkie obiekty, które mogą uniemożliwić jego
C103: wykonanie.
A104: 2. | B104: Zamawiający oświadcza, że został poinformowany, iż do prawidłowej obsługi pompy ciepła przez aplikację oraz przeprowadzenia zdalnego serwisu
B105: przez Wykonawcę konieczne jest posiadanie przez niego stałego i stabilnego połączenia internetowego za pomocą przewodu LAN bądź routera WiFi,
B106: który zapewni bardzo dobry sygnał.
A107: 3. | B107: Zamawiający oświadcza, że podane Wykonawcy dane niezbędne do doboru pompy ciepła dla jego budynku są zgodne ze zużyciem jego obecnych
B108: nośników energii i ogólnym stanem faktycznym ściśle związanym z zakupem i montażem pompy ciepła. Wykonawca dokona doboru pompy ciepła
B109: zgodnie z zadeklarowanymi przez Zamawiającego danymi. Podanie nieprawdziwych bądź niewystarczająco precyzyjnych danych przez
B110: Zamawiającego może skutkować niepoprawnym doborem i wadliwą pracą pompy ciepła.
A111: 4. | B111: Zamawiający oświadcza, iż został poinformowany przez Wykonawcę, że zgodnie z Ustawą z dnia 15 maja 2015 r. o substancjach zubożających warstwę
B112: ozonową oraz o niektórych fluorowanych gazach cieplarnianych, należy dokonać rejestracji pompy ciepła: typu split, która zawiera co najmniej 5 ton
B113: ekwiwalentu CO2 oraz typu monoblock, która zawiera co najmniej 10 ton ekwiwalentu CO2 w Centralnym Rejestrze Operatorów (CRO), w terminie
B114: określonym we wspomnianej ustawie. Niewywiązanie się przez Zamawiającego z tego zobowiązania może wiązać się z nałożeniem na niego kary przez
B115: właściwy organ i odpowiedzialnością finansową.
A116: 5. | B116: Zamawiający oświadcza, iż Wykonawca przekazał mu informację o możliwości zmiany taryfy na G12w po zamontowaniu pompy ciepła i przedstawił
B117: korzyści, jakie mogą wyniknąć z tej zmiany. Weryfikacja warunków taryfy, zasad jej zmiany i możliwych korzyści finansowych zależy od indywidualnych
B118: warunków Zamawiającego, które posiada w chwili zamontowania pompy ciepła i które zostaną mu zaoferowane przez Operatora Systemu
B119: Dystrybucyjnego lub podmiot prowadzący działalność polegającą na obrocie energią elektryczną.
A120: 6. | B120: Zamawiający oświadcza, że będzie wykorzystywał Przedmiot Umowy wyłącznie na potrzeby gospodarstwa domowego.
X128: …....................................
X129: (parafka Klienta) | AA129: 2/8
B131: §3
B132: Finansowanie i Wynagrodzenie
A133: 1. | B133: Za wykonanie Przedmiotu Umowy Zamawiający zobowiązuje się do zapłaty Wykonawcy kwoty:
A134: …...................................…............................ | I134: (słownie: …................................................….................……...........................................…...................................…...................................) zł brutto
A135: czyli …................................................................................ | J135: (słownie: ….............................................….................……..........................................…...................................…...................................) zł netto
A136: powiększonej o należny podatek VAT w stawce wynikającej z powszechnie obowiązujących przepisów prawa.
A137: 2. | B137: Zamawiający oświadcza, że środki na pokrycie realizacji Przedmiotu Umowy stanowić będą:
C138: środki własne Zamawiającego;
A139: FALSE | C139: środki własne z zaliczką stanowiącą kredyt pozyskany za pośrednictwem Wykonawcy;
C140: kredyt pozyskany za pośrednictwem Wykonawcy; | Q140: FALSE
A141: FALSE | C141: kredyt pozyskany za pośrednictwem Wykonawcy – dedykowany produkt Alior Banku wraz z Programem Czyste Powietrze;
C142: kredyt zewnętrzny; | N142: FALSE | O142: FALSE
C143: kredyt zewnętrzny z zaliczką stanowiącą środki własne;
C144: kredyt pozyskany za pośrednictwem Wykonawcy z wkładem własnym stanowiącym środki własne;
A145: FALSE | C145: kredyt pozyskany za pośrednictwem Wykonawcy z wkładem własnym stanowiącym środki własne – dedykowany produkt Alior Banku wraz z Programem Czyste Powietrze
A147: 3. | B147: Zamawiający zapłaci Wykonawcy zaliczkę, poza przypadkiem wyboru w ust.2 powyżej kredytu za pośrednictwem Wykonawcy, w wysokości:
A148: FALSE | C148: ….... | D148: % całkowitej wartości Umowy brutto
A149: FALSE | C149: wkładu własnego (dotyczy wyłącznie kredytu za pośrednictwem Wykonawcy z wkładem własnym stanowiącym środki własne)
B150: tj. kwoty:
A151: …...................................…............................ | I151: (słownie: …................................................….................……...........................................…...................................…...................................) zł brutto
A152: w terminie 3 dni:
B153: a) | C153: od dnia zawarcia Umowy, jeżeli Przedmiot Umowy będzie opłacony ze środków własnych Zamawiającego;
B154: b) | C154: od dnia zawarcia umowy kredytowej przez Zamawiającego z instytucją finansową bez pośrednictwa Wykonawcy, jeżeli Przedmiot Umowy będzie w
C155: całości opłacony z kredytu zewnętrznego;
B156: c) | C156: od dnia zawarcia umowy kredytowej przez Zamawiającego z instytucją finansową, jeżeli Przedmiot Umowy będzie opłacony z wkładu własnego oraz kredytu za pośrednictwem Wykonawcy bądź zaliczki i kredytu zewnętrznego bądź środków własnych i zaliczki stanowiącej kredyt.
A158: 4. | B158: Zaliczka z ust. 3 powyżej zostanie przekazana przez Zamawiającego na podstawie faktury pro forma wystawionej przez Wykonawcę w momencie
B159: zawarcia Umowy na numer rachunku bankowego: 62 1140 2088 0000 4958 1500 1003. Na podstawie otrzymanej wpłaty Wykonawca wystawi fakturę
B160: zaliczkową, która zostanie przesłana drogą elektroniczną oraz pocztą na wskazany przez Zamawiającego adres e-mail i adres korespondencyjny.
A161: 5. | B161: Pozostałą część wynagrodzenia stanowi kwota wskazana w ust.1 powyżej pomniejszona o kwotę wpłaconą przez Zamawiającego w myśl ust. 3 powyżej.
B162: Niniejsza kwota, z wyłączeniem kwoty stanowiącej wartość kredytu pozyskanego przez Zamawiającego za pośrednictwem Wykonawcy, zostanie zapłacona
B163: przez Zamawiającego na podstawie faktury VAT wystawionej po podpisaniu Protokołu Odbioru w terminie 3 dni od daty wystawienia.
A164: 6. | B164: W przypadku wyboru przez Zamawiającego finansowania za pośrednictwem Wykonawcy kwota kredytu zostanie przesłana przez bank bezpośrednio na konto bankowe Wykonawcy, zgodnie z warunkami zawartymi w umowie kredytowej
A166: 7. | B166: W sytuacji, gdy Zamawiający, mimo wsparcia Wykonawcy, nie otrzyma kredytu od instytucji finansowej i nie zdecyduje się na zmianę finansowania, Umowa ulegnie rozwiązaniu.
A168: 8. | B168: Jeżeli Umowa ulegnie rozwiązaniu na podstawie §1 ust. 6 Umowy, a Zamawiający wpłacił zaliczkę, o której mowa w §3 ust.3 Umowy, Wykonawca dokona jej zwrotu w terminie 14 dni, licząc od dnia rozwiązania Umowy, dokonując właściwych działań formalno-księgowych.
A170: 9. | B170: Udzielając Zamawiającemu wsparcia w pozyskaniu finansowania na zakup pompy ciepła, szacuje się, że rata finansowania w okresie
B171: ….......... lat wyniesie …..................................................... (słownie:….......................................................................................................................................................................) zł
B172: przy czym całkowity koszt finansowania nie może się zmienić o więcej niż 9%.
A173: 10. | B173: Zamawiający wyraża zgodę na wystawianie faktur elektronicznych i przesłanie ich na adres e-mail podany w Umowie.
A174: 11. | B174: Kwota wskazana w ust. 1 powyżej obejmuje Przedmiot Umowy wraz ze sprzętem i usługami wskazanymi w załączniku nr 1 do Umowy. Każda dodatkowa czynność nieujęta w zakresie prac, będzie dodatkowo płatna przez Zamawiającego zgodnie z zapisami w Umowie i Ogólnych Warunkach Umowy.
A176: 12. | B176: Wybranie finasowania za pośrednictwem Wykonawcy - dedykowany produkt Alior Banku wraz z Programem Czyste Powietrze (z wkładem własnym stanowiącym środki własne lub bez) wiąże się z obowiązkiem dostarczenia Wykonawcy przez Zamawiającego wszystkich dokumentów potrzebnych do złożenia wniosku o dofinansowanie.
A179: 13. | B179: Wybranie przez Zamawiającego finansowania za pośrednictwem Wykonawcy - dedykowany produkt Alior Banku wraz z Programem Czyste Powietrze (z wkładem własnym stanowiącym środki własne lub bez) jest jednoznaczne z wyrażeniem zgody na utylizację pieca/kotła na paliwo stałe przez Wykonawcę, na zasadach wskazanych w §8 Umowy.
A182: 14. | B182: W sytuacji otrzymania przez Zamawiającego pozytywnej decyzji o dofinansowaniu, po wybraniu finansowania za pośrednictwem Wykonawcy - dedykowany produkt Alior Banku wraz z Programem Czyste Powietrze (z wkładem własnym stanowiącym środki własne lub bez), kwota przyznanej dotacji zostanie przeznaczona na spłatę otrzymanego przez Zamawiającego kredytu i bezpośrednio przekazana do Alior Banku.
A185: 15. | B185: Jeżeli Zamawiający zdecyduje się na finansowanie za pośrednictwem Wykonawcy - dedykowany produkt Alior Banku wraz z Programem Czyste
B186: Powietrze (z wkładem własnym stanowiącym środki własne lub bez) i otrzyma negatywną decyzję o dofinansowaniu, zawarta przez niego umowa
B187: kredytu ulegnie rozwiązaniu. W takiej sytuacji Strony dokonają zmiany finansowania wskazanego w ust.2 powyżej poprzez zawarcie aneksu do Umowy.
B188: Wykonawca nie gwarantuje Zamawiającemu takich samych warunków finansowania, jakie otrzymał przy pierwszej umowie kredytu, jeśli Zamawiający
B189: ponowienie zdecyduje się na kredyt za pośrednictwem Wykonawcy.
A190: 16. | B190: W przypadku, o którym wspomniano w ust.15 powyżej Zamawiający ma prawo odstąpić od Umowy, nie decydując się na zawarcie aneksu. Zamawiający
B191: powinien przesłać oświadczenie o odstąpieniu od Umowy drogą elektroniczną lub za pomocą operatora pocztowego na dane wskazane w §1 ust. 9 Umowy.
A192: 17. | B192: Otrzymanie przez Zamawiającego negatywnej decyzji o dofinansowaniu po złożeniu wniosku za pomocą dedykowanego produktu Alior Banku lub nieotrzymanie kredytu z Alior Banku, co będzie skutkowało nierozpoczęciem przez Wykonawcę procesu przygotowania wniosku o dofinansowanie, nie wyklucza złożenia samodzielnie przez Zamawiającego wniosku o dofinansowanie w urzędzie lub przesłanie go za pomocą generatora wniosków, jeśli Umowa zostanie zrealizowana.
A196: 18. | B196: Wykonawca informuje, że dofinansowanie Czyste Powietrze w ramach dedykowanego produktu Alior Bank nie obejmuje dofinansowania dla beneficjentów uprawnionych do najwyższego poziomu dofinansowania.
W198: …....................................
W199: (parafka Klienta) | Z199: 3/8
B200: §3a
B201: Usługi dodatkowe
A202: 1. | B202: Każda dodatkowa usługa, nieujęta w zakresie Przedmiotu Umowy, w tym konieczność wymiany lub remontu Punktu Montażu, usunięcia obiektów
B203: uniemożliwiających montaż pompy ciepła czy zainstalowanie orurowania w bryle budynku o długości przekraczającej 5 mb, mogą zostać wykonane
B204: przez Wykonawcę za odrębnym wynagrodzeniem, oszacowanym podczas wstępnego audytu technicznego oraz przedstawionym Zamawiającemu i
B205: przez niego zatwierdzonym.
A206: 2. | B206: Wykonawca zastrzega, że Przedmiotem Umowy nie obejmuje, w szczególności:
B207: a) | C207: dostosowania instalacji elektrycznej lub istniejącej instalacji C.O., C.W.U. Zamawiającego na potrzeby poprawnej współpracy z pompą ciepła,
B208: b) | C208: spełnienia wymagań technicznych do zamontowania i prawidłowego działania pompy ciepła, w tym uzyskania koniecznych decyzji
C209: administracyjnych (np. pozwolenia na budowę), zwiększenia mocy przyłączeniowej, zmiany taryfy energetycznej, zwiększenia zabezpieczeń oraz
C210: wymiany elementów istniejącej instalacji Zamawiającego.
A211: 3. | B211: Zamawiający może zgłosić Wykonawcy zapotrzebowanie na usługę dodatkową drogą mailową lub telefoniczną.
A212: 4. | B212: Wykonawca po otrzymaniu zgłoszenia w zakresie usługi dodatkowej, dokona analizy możliwości zrealizowania tej usługi, a następnie przedstawi
B213: Zamawiającemu koszt tej usługi wraz z zakresem prac.
A214: 5. | B214: Po zaakceptowaniu przez Zamawiającego kosztów związanych z usługą dodatkową, Strony zawrą stosowny aneks do Umowy, regulujący ustalone
B215: kwestie. Po podpisaniu aneksu do Umowy, Wykonawca wykona Przedmiot Umowy wraz z usługą dodatkową.
A216: 6. | B216: Wykonawca zastrzega, iż termin rozpoczęcia montażu wskazany w §1 ust. 4 Umowy może ulec wydłużeniu z uwagi na proces zawarcia aneksu do
B217: Umowy i rodzaj usługi dodatkowej.
B218: §3b
B219: Program Czyste Powietrze
A220: 1. | B220: Jeżeli w dacie zawarcia i zrealizowania Umowy prowadzony jest nabór na dotację ze środków rządowego programu Czyste Powietrze, a Zamawiający
B221: będzie spełniał warunki programu wsparcia, Wykonawca postara się przygotować w imieniu Zamawiającego wniosek o dofinansowanie oraz:
B222: a) | C222: w przypadku skorzystania przez Zamawiającego z finansowania za pośrednictwem Wykonawcy - dedykowany produkt Alior Banku wraz z Programem Czyste Powietrze (z wkładem własnym lub bez) – wgrać wniosek do systemu za pośrednictwem banku i skoordynować jego podpisanie przez Zamawiającego za pomocą kodu sms;
B225: b) | C225: w przypadku nieskorzystania przez Zamawiającego z finansowania, o którym wspomniano w pkt a) powyżej – wgrać wniosek do generatora
C226: wniosków o dofinansowanie GWD i przesłać Zamawiającemu ten wniosek do podpisania za pomocą profilu zaufanego lub podpisu kwalifikowanego;
C227: jeżeli Zamawiający nie będzie posiadał podpisu elektronicznego, Wykonawca nie wgra wniosku do wspomnianego generatora, tylko wydrukuje
C228: wypełniony wniosek i prześle Zamawiającemu dokumenty za pośrednictwem operatora pocztowego na adres zamieszkania wskazany w Umowie.
A229: 2. | B229: Wykonawca w przypadku opisanym w ust. 1 pkt. a ) powyżej przygotuje wniosek o dofinansowanie po otrzymaniu wszelkich, niezbędnych danych i dokumentów od Zamawiającego oraz po zawarciu przez niego umowy kredytu z Alior Bankiem. Natomiast w sytuacji wskazanej w ust.1 pkt. b) Wykonawca podejmie się przygotowania wniosku o dofinansowanie po podpisaniu protokołu odbioru pompy ciepła i opłacenia przez Zamawiającego faktury końcowej, pod warunkiem otrzymania od Zamawiającego wszystkich niezbędnych danych i dokumentów.
A233: 3. | B233: Zamawiający jest zobowiązany do założenia konta w generatorze wniosków o dofinansowanie GWD oraz podania adresu mailowego, na który to konto założył, aby Wykonawca mógł za pomocą tego portalu przesłać mu wniosek o dofinansowanie do podpisania. Sytuacja ta nie dotyczy Zamawiającego, który nie posiada profilu zaufanego lub podpisu kwalifikowanego bądź zdecydował się na procedurę Alior Banku.
A236: 4. | B236: Jeżeli Zamawiający otrzyma od Wykonawcy wypełniony wniosek o dofinansowanie, przesłany za pomocą operatora pocztowego, będzie zobowiązany do jego podpisania i samodzielnego złożenia w odpowiednim urzędzie.
A238: 5. | B238: Za niepodpisanie przez Zamawiającego wniosku o dofinansowanie, Wykonawca nie odpowiada.
A239: 6. | B239: Wykonawca nie podejmuje się dodatkowych kroków związanych z otrzymaniem przez Zamawiającego dofinansowania z programu Czyste Powietrze
B240: (poza wymienionymi w ust. 1 powyżej). Dalsze działania prowadzące do otrzymania wsparcia finansowego Zamawiający wykona we własnym zakresie.
A241: 7. | B241: Wykonawca nie gwarantuje Zamawiającemu otrzymania dofinansowania z programu Czyste Powietrze ani nie ponosi odpowiedzialności za termin rozpatrywania wniosków i wypłaty środków. Wykonawca nie odpowiada także za zakończenie programu przed złożeniem wniosku o dofinansowanie bądź za wydanie negatywnej decyzji w zakresie dofinasowania.
A244: 8. | B244: Zamawiający jest zobowiązany zapoznać się z zasadami programu i przeanalizować, czy spełnia wszystkie warunki.
A245: 9. | B245: Zamawiający jest także zobowiązany dostarczyć Wykonawcy wszelkie informacje i dokumenty niezbędne do przygotowania wniosku o dofinansowanie. Jeżeli Wykonawca ich nie otrzyma, nie podejmie się działań, o których mowa w ust. 1 powyżej.
A247: 10. | B247: Wykonawca ma prawo odmówić przygotowania wniosku o dofinansowanie, jeżeli po weryfikacji otrzymanych danych uzna, że Zamawiający nie spełnia warunków programu Czyste Powietrze.
B249: §4
A250: ="Wykonawca udziela "&IF('Panasonic (2)'!CH1=1,RIGHT(Oferta!S93,5),RIGHT('Oferta (2)'!S97,5))&" gwarancji na zamontowany sprzęt oraz wykonane prace instalacyjne w zakresie pompy ciepła od dnia podpisania protokołu" -> Wykonawca udziela 5 lat gwarancji na zamontowany sprzęt oraz wykonane prace instalacyjne w zakresie pompy ciepła od dnia podpisania protokołu | B250: Gwarancja
A251: 1. | B251: Wykonawca udziela …...... letniej gwarancji na zamontowany sprzęt oraz wykonane prace instalacyjne w zakresie pompy ciepła od dnia podpisania
B252: protokołu odbioru i przekazania jej do eksploatacji (dalej jako Gwarancja Wykonawcy).
A253: 2. | B253: Zasadą obowiązywania Gwarancji Wykonawcy jest dokonywanie przez Zamawiającego autoryzowanego serwisu pompy ciepła (dalej: serwis) co roku przez okres trwania tych gwarancji od dnia podpisania protokołu odbioru.
A255: 3. | B255: Mając na względzie zapisy wskazane powyżej, Zamawiający wyraża zgodę na dokonywanie corocznego serwisu przez Wykonawcę oraz zgadza się
B256: opłacić tę usługę każdorazowo na podstawie otrzymanej faktury pro forma od Wykonawcy w terminie 7 dni od wystawienia faktury.
A257: 4. | B257: Cena jednego serwisu jest wskazana w Cenniku Usług Dodatkowych Wykonawcy, który znajduje się na stronie internetowej www.arago.green oraz w
B258: siedzibie Wykonawcy. Niniejszy Cennik będzie także przesyłany Zamawiającemu drogą mailową wraz z wystawioną przez Wykonawcę fakturą pro
B259: forma.
A260: 5. | B260: Termin dokonania serwisu, po opłaceniu przez Zamawiającego faktury pro forma, będzie ustalany indywidualnie przez Strony drogą mailową lub
B261: telefoniczną.
A262: 6. | B262: Jeżeli Zamawiający nie dokona terminowo zapłaty zgodnie z ust. 3 powyżej, Wykonawca przyjmuje, że rezygnuje on z dokonania serwisu przez Wykonawcę, co skutkuje zakończeniem obowiązywania Gwarancji Wykonawcy wcześniej niż okres jej obowiązywania tj. po upływie roku od ostatniego, autoryzowanego serwisu.
X265: …....................................
X266: (parafka Klienta) | AA266: 4/8
A267: 7. | B267: Zamawiający może dokonywać zgłoszenia wady instalacji pompy ciepła, w trakcie obowiązywania gwarancji, telefonicznie (od poniedziałku do piątku w godzinach 8:00-16:00) pod nr + 48 600 991 359 lub drogą mailową na adres: bok@arago.green.
A269: 8. | B269: Wykonawca gwarantuje, że w sytuacji zgłoszenia przez Zamawiającego takiej awarii pompy ciepła, która uniemożliwia grzanie ciepłej wody lub grzanie centralnego ogrzewania bądź powoduje wyciek, który może narazić Zamawiającego na straty materialne, jego reakcja na otrzymane zgłoszenie nastąpi bez zbędnej zwłoki, lecz nie później niż w ciągu 72 godzin, licząc od chwili otrzymania zgłoszenia od Zamawiającego, z zastrzeżeniem ust.9 poniżej. Reakcja nie jest jednoznaczna z przyjazdem ekipy serwisowej do Zamawiającego.
... 186 more rows

Sheet Umowa PC - B2C (Czysty) (hidden)
A6: Umowa wykonania instalacji pompy ciepła - ARG-PC/…................../2022
A7: dalej jako Umowa
W8: KONSUMENT
A9: zawarta dnia ….............................. | H9: roku w ….................................................................. pomiędzy:
A11: …...................................................................................... zamieszkałym / zamieszkałą w …...................................................................
A13: kod pocztowy: ….................... ,przy ul. ….............................................................................., PESEL …..................................................
A15: e-mail: ….................................................................................., nr. telefonu: …................................................., , działający/działająca:
C17: osobiście
C18: przez pełnomocnika …........................................................ na podstawie pisemnego pełnomocnictwa z dnia …...................
A20: dalej jako Zamawiający
B21: FALSE
A22: a
A23: Arago Sp. z o.o. z siedzibą w Brodnicy (87-300 ) pod adresem: ul. Podgórna 82A , posiadającą nr NIP: 9562326208, nr REGON: 367787398, wpisaną do
A24: rejestru przedsiębiorców przez Sąd Rejonowy w Toruniu, VII Wydział Gospodarczy KRS po numerem KRS 0000686904, reprezentowaną przez:
A25: …........................................................…..................................................................................
A26: na mocy stosownego pełnomocnictwa
A27: dalej jako Wykonawca
A28: zwanymi dalej łącznie Stronami, a każda z osobna Stroną.
B29: §1
B30: Przedmiot Umowy
A31: 1. | B31: Przedmiotem niniejszej Umowy jest sporządzenie specyfikacji, dostawa oraz montaż pompy ciepła typu powietrze-woda (dalej: pompa ciepła) wraz z
B32: niezbędnym wyposażeniem – dalej Przedmiot Umowy. Szczegóły techniczne znajdują się w Załączniku nr 1 do Umowy.
A33: 2. | B33: Przedmiot Umowy będzie wykonany na nieruchomości (dalej: Punkt Montażu) pod adresem:
C34: wskazanym powyżej | J34: FALSE | L34: innym tj. | O34: ….....................................................................…..................................
A35: 3. | B35: Zamawiający oświadcza, że posiada tytuł prawny do nieruchomości tj. prawo własności, współwłasność lub użytkowanie wieczyste, na której znajduje
B36: się Punkt Montażu. Dodatkowo oświadcza, że Punkt Montażu nie znajduje się pod nadzorem bądź w obszarze ochrony konserwatora zabytków, a także
B37: w obszarze Natura 2000.
A38: 3a. | B38: Zakupiony przez Zamawiającego, na mocy niniejszej Umowy, sprzęt zostanie dostarczony Zamawiającemu przez Wykonawcę na adres wskazany w
B39: ust. 2 powyżej najpóźniej w dniu rozpoczęcia montażu, przed upłynięciem terminu wskazanego w ust. 4 poniżej.
A40: 4. | B40: Montaż pompy ciepła (typu powietrze – woda) odbędzie się w terminie
C41: 12 tygodni – w przypadku pompy ciepła marki SPRSUN,
C42: 28 tygodni – w przypadku pompy ciepła marki Midea Group,
B43: licząc od dnia zakwalifikowania przez Wykonawcę Punktu Montażu do zamontowania pompy ciepła jako spełniającego stosowne normy i wymogi
B44: (dalej: audyt Wykonawcy) oraz (warunek łączny):
B45: a) | C45: wpłaty zaliczki, której wysokość oraz termin zapłaty został podany w §3 ust. 3, jeżeli Zamawiający opłaca Przedmiot Umowy ze środków własnych lub
B46: b) | C46: poinformowania Wykonawcy o zawarciu umowy kredytowej oraz wpłaty zaliczki, której wysokość i termin zapłaty został podany w §3 ust. 3, jeżeli Zamawiający opłaca Przedmiot Umowy środkami pozyskanymi z kredytu zewnętrznego lub zdecydował się na finansowanie: kredyt zewnętrzny z zaliczką stanowiącą środki własne lub
B49: c) | C49: otrzymania przez Wykonawcę informacji o zawarciu przez Zamawiającego umowy kredytowej za pośrednictwem Wykonawcy, jeżeli Zamawiający
C50: zdecydował się na finansowanie: kredyt za pośrednictwem Wykonawcy lub
B51: d) | C51: otrzymania przez Wykonawcę informacji o zawarciu przez Zamawiającego umowy kredytowej za pośrednictwem Wykonawcy oraz wpłaty zaliczki, której wysokość i termin zapłaty został podany w §3 ust. 3 oraz, jeżeli Zamawiający zdecydował się na finansowanie: kredyt pozyskany za pośrednictwem Wykonawcy z wkładem własnym stanowiącym środki własne bądź środki własne z zaliczką stanowiącą kredyt pozyskany za pośrednictwem Wykonawcy lub
B55: e) | C55: otrzymania przez Wykonawcę informacji o zawarciu przez Zamawiającego umowy kredytowej za pośrednictwem Wykonawcy oraz otrzymania informacji o wydaniu pozytywnej decyzji o dofinansowaniu na rzecz Zamawiającego, jeżeli Zamawiający zdecydował się na finansowanie: kredyt za pośrednictwem Wykonawcy – dedykowany produkt Alior Banku wraz z Programem Czyste Powietrze lub
B58: f) | C58: otrzymania przez Wykonawcę informacji o zawarciu przez Zamawiającego umowy kredytowej za pośrednictwem Wykonawcy, otrzymania informacji o wydaniu pozytywnej decyzji o dofinansowaniu na rzecz Zamawiającego oraz wpłaty zaliczki, której wysokość i termin zapłaty został podany w §3 ust. 3, jeżeli Zamawiający zdecydował się na finansowanie: kredyt za pośrednictwem Wykonawcy z wkładem własnym – dedykowany produkt Alior Banku wraz z Programem Czyste Powietrze.
B62: Wykonawca zastrzega, iż termin montażu może ulec wydłużeniu na podstawie warunków zawartych w § 2 ust. 3 Ogólnych Warunków Umowy.
A63: 5. | B63: Termin wskazany w ust. 4 powyżej dotyczy wyłącznie sytuacji, gdy Zamawiający podpisze oświadczenie zawarte w §5 Umowy. W innym przypadku termin rozpoczęcia montażu wskazany powyżej może ulec wydłużeniu o 7 dni roboczych.
X65: …....................................
X66: (parafka Klienta) | AA66: 1/8
A67: 6. | B67: Wykonawca po przeprowadzeniu audytu Wykonawcy prześle Zamawiającemu informację o wyniku tego audytu, wskazując, czy Punkt Montażu został zakwalifikowany pod montaż pompy ciepła. W sytuacji, gdy po przeprowadzeniu audytu Wykonawcy, okaże się, że Punkt Montażu nie spełnia warunków do montażu pompy ciepła, Umowa ulegnie rozwiązaniu.
A70: 7. | B70: Odbiór Przedmiotu Umowy nastąpi ostatniego dnia montażu pompy ciepła, o godzinie ustalonej przez Strony.
A71: 8. | B71: Zamawiający stanie się właścicielem pompy ciepła (tj. nabędzie prawo własności) w chwili, gdy spełnione zostaną wszystkie trzy warunki:
B72: a) | C72: pompa ciepła zostanie zamontowana;
B73: b) | C73: Zamawiający podpisze Protokół Odbioru;
B74: c) | C74: Zamawiający zapłaci całe wynagrodzenie wynikające z niniejszej Umowy.
A75: 9. | B75: Kontakt przez Zamawiającego w sprawach związanych z realizacją Przedmiotu Umowy powinien odbywać się mailowo pod adresem:
B76: bok@arago.green lub telefonicznie pod numerem: + 48 600 991 359.
A77: 10. | B77: Pełny zakres Przedmiotu Umowy, który zostanie wykonany przez Wykonawcę w ramach Umowy, został opisany w §2 ust.1 Ogólnych Warunków Umowy oraz Załączniku nr 1 do Umowy.
B79: §2
B80: Obowiązki i oświadczenia Zamawiającego
A81: 1. | B81: Ustala się, że Zamawiający:
B82: a) | C82: będzie współpracował z Wykonawcą w dobrej wierze w celu realizacji Przedmiotu Umowy oraz weźmie udział w szkoleniu z obsługi pompy ciepła;
B83: b) | C83: udostępni Miejsce Montażu z dostępem do mediów, w tym do bieżącej wody i prądu oraz podpisze protokół odbioru pompy ciepła niezwłocznie
C84: po zakończeniu prac;
B85: c) | C85: zobowiązuje się do przekazania informacji i dokumentów umożliwiających przeprowadzenie audytu Wykonawcy oraz realizację Przedmiotu Umowy,
C86: w tym: kwestionariusza doboru, wymiarów kotłowni oraz zdjęć i filmiku obiektu, w szczególności miejsca, gdzie ma zostać zamontowana pompa
C87: ciepła, starego źródła ciepła, połączeń hydraulicznych, tabliczek znamionowych i drogi transportu pompy ciepła do kotłowni;
B88: d) | C88: wykonana niezbędne prace adaptacyjne przed montażem Przedmiotu Umowy, w tym usunie wszelkie obiekty, które mogą uniemożliwić jego
C89: wykonanie.
A90: 2. | B90: Zamawiający oświadcza, że został poinformowany, iż do prawidłowej obsługi pompy ciepła przez aplikację oraz przeprowadzenia zdalnego serwisu
B91: przez Wykonawcę konieczne jest posiadanie przez niego stałego i stabilnego połączenia internetowego za pomocą przewodu LAN bądź routera WiFi,
B92: który zapewni bardzo dobry sygnał.
A93: 3. | B93: Zamawiający oświadcza, że podane Wykonawcy dane niezbędne do doboru pompy ciepła dla jego budynku są zgodne ze zużyciem jego obecnych
B94: nośników energii i ogólnym stanem faktycznym ściśle związanym z zakupem i montażem pompy ciepła. Wykonawca dokona doboru pompy ciepła
B95: zgodnie z zadeklarowanymi przez Zamawiającego danymi. Podanie nieprawdziwych bądź niewystarczająco precyzyjnych danych przez
B96: Zamawiającego może skutkować niepoprawnym doborem i wadliwą pracą pompy ciepła.
A97: 4. | B97: Zamawiający oświadcza, iż został poinformowany przez Wykonawcę, że zgodnie z Ustawą z dnia 15 maja 2015 r. o substancjach zubożających warstwę
B98: ozonową oraz o niektórych fluorowanych gazach cieplarnianych, należy dokonać rejestracji pompy ciepła: typu split, która zawiera co najmniej 5 ton
B99: ekwiwalentu CO2 oraz typu monoblock, która zawiera co najmniej 10 ton ekwiwalentu CO2 w Centralnym Rejestrze Operatorów (CRO), w terminie
B100: określonym we wspomnianej ustawie. Niewywiązanie się przez Zamawiającego z tego zobowiązania może wiązać się z nałożeniem na niego kary przez
B101: właściwy organ i odpowiedzialnością finansową.
A102: 5. | B102: Zamawiający oświadcza, iż Wykonawca przekazał mu informację o możliwości zmiany taryfy na G12w po zamontowaniu pompy ciepła i przedstawił
B103: korzyści, jakie mogą wyniknąć z tej zmiany. Weryfikacja warunków taryfy, zasad jej zmiany i możliwych korzyści finansowych zależy od indywidualnych
B104: warunków Zamawiającego, które posiada w chwili zamontowania pompy ciepła i które zostaną mu zaoferowane przez Operatora Systemu
B105: Dystrybucyjnego lub podmiot prowadzący działalność polegającą na obrocie energią elektryczną.
A106: 6. | B106: Zamawiający oświadcza, że będzie wykorzystywał Przedmiot Umowy wyłącznie na potrzeby gospodarstwa domowego.
B107: §3
B108: Finansowanie i Wynagrodzenie
A109: 1. | B109: Za wykonanie Przedmiotu Umowy Zamawiający zobowiązuje się do zapłaty Wykonawcy kwoty:
A110: …...................................…............................ | I110: (słownie: …................................................….................……...........................................…...................................…...................................) zł brutto
A111: czyli …................................................................................ | J111: (słownie: ….............................................….................……..........................................…...................................…...................................) zł netto
A112: powiększonej o należny podatek VAT w stawce wynikającej z powszechnie obowiązujących przepisów prawa.
A113: 2. | B113: Zamawiający oświadcza, że środki na pokrycie realizacji Przedmiotu Umowy stanowić będą:
C114: środki własne Zamawiającego;
A115: FALSE | C115: środki własne z zaliczką stanowiącą kredyt pozyskany za pośrednictwem Wykonawcy;
C116: kredyt pozyskany za pośrednictwem Wykonawcy; | Q116: FALSE
A117: FALSE | C117: kredyt pozyskany za pośrednictwem Wykonawcy – dedykowany produkt Alior Banku wraz z Programem Czyste Powietrze;
C118: kredyt zewnętrzny; | N118: FALSE | O118: FALSE
C119: kredyt zewnętrzny z zaliczką stanowiącą środki własne;
C120: kredyt pozyskany za pośrednictwem Wykonawcy z wkładem własnym stanowiącym środki własne;
A121: FALSE | C121: kredyt pozyskany za pośrednictwem Wykonawcy z wkładem własnym stanowiącym środki własne – dedykowany produkt Alior Banku wraz z Programem Czyste Powietrze
A123: 3. | B123: Zamawiający zapłaci Wykonawcy zaliczkę, poza przypadkiem wyboru w ust.2 powyżej kredytu za pośrednictwem Wykonawcy, w wysokości:
A124: FALSE | C124: ….... | D124: % całkowitej wartości Umowy brutto
A125: FALSE | C125: wkładu własnego (dotyczy wyłącznie kredytu za pośrednictwem Wykonawcy z wkładem własnym stanowiącym środki własne)
B126: tj. kwoty:
A127: …...................................…............................ | I127: (słownie: …................................................….................……...........................................…...................................…...................................) zł brutto
X129: …....................................
X130: (parafka Klienta) | AA130: 2/8
A131: w terminie 3 dni:
B132: a) | C132: od dnia zawarcia Umowy, jeżeli Przedmiot Umowy będzie opłacony ze środków własnych Zamawiającego;
B133: b) | C133: od dnia zawarcia umowy kredytowej przez Zamawiającego z instytucją finansową bez pośrednictwa Wykonawcy, jeżeli Przedmiot Umowy będzie w
C134: całości opłacony z kredytu zewnętrznego;
B135: c) | C135: od dnia zawarcia umowy kredytowej przez Zamawiającego z instytucją finansową, jeżeli Przedmiot Umowy będzie opłacony z wkładu własnego oraz kredytu za pośrednictwem Wykonawcy bądź zaliczki i kredytu zewnętrznego bądź środków własnych i zaliczki stanowiącej kredyt.
A137: 4. | B137: Zaliczka z ust. 3 powyżej zostanie przekazana przez Zamawiającego na podstawie faktury pro forma wystawionej przez Wykonawcę w momencie
B138: zawarcia Umowy na numer rachunku bankowego: 62 1140 2088 0000 4958 1500 1003. Na podstawie otrzymanej wpłaty Wykonawca wystawi fakturę
B139: zaliczkową, która zostanie przesłana drogą elektroniczną oraz pocztą na wskazany przez Zamawiającego adres e-mail i adres korespondencyjny.
A140: 5. | B140: Pozostałą część wynagrodzenia stanowi kwota wskazana w ust.1 powyżej pomniejszona o kwotę wpłaconą przez Zamawiającego w myśl ust. 3 powyżej.
B141: Niniejsza kwota, z wyłączeniem kwoty stanowiącej wartość kredytu pozyskanego przez Zamawiającego za pośrednictwem Wykonawcy, zostanie zapłacona
B142: przez Zamawiającego na podstawie faktury VAT wystawionej po podpisaniu Protokołu Odbioru w terminie 3 dni od daty wystawienia.
A143: 6. | B143: W przypadku wyboru przez Zamawiającego finansowania za pośrednictwem Wykonawcy kwota kredytu zostanie przesłana przez bank bezpośrednio na konto bankowe Wykonawcy, zgodnie z warunkami zawartymi w umowie kredytowej
A145: 7. | B145: W sytuacji, gdy Zamawiający, mimo wsparcia Wykonawcy, nie otrzyma kredytu od instytucji finansowej i nie zdecyduje się na zmianę finansowania, Umowa ulegnie rozwiązaniu.
A147: 8. | B147: Jeżeli Umowa ulegnie rozwiązaniu na podstawie §1 ust. 6 Umowy, a Zamawiający wpłacił zaliczkę, o której mowa w §3 ust.3 Umowy, Wykonawca dokona jej zwrotu w terminie 14 dni, licząc od dnia rozwiązania Umowy, dokonując właściwych działań formalno-księgowych.
A149: 9. | B149: Udzielając Zamawiającemu wsparcia w pozyskaniu finansowania na zakup pompy ciepła, szacuje się, że rata finansowania w okresie
B150: ….......... lat wyniesie …..................................................... (słownie:….......................................................................................................................................................................) zł
B151: przy czym całkowity koszt finansowania nie może się zmienić o więcej niż 9%.
A152: 10. | B152: Zamawiający wyraża zgodę na wystawianie faktur elektronicznych i przesłanie ich na adres e-mail podany w Umowie.
A153: 11. | B153: Kwota wskazana w ust. 1 powyżej obejmuje Przedmiot Umowy wraz ze sprzętem i usługami wskazanymi w załączniku nr 1 do Umowy. Każda dodatkowa czynność nieujęta w zakresie prac, będzie dodatkowo płatna przez Zamawiającego zgodnie z zapisami w Umowie i Ogólnych Warunkach Umowy.
A155: 12. | B155: Wybranie finasowania za pośrednictwem Wykonawcy - dedykowany produkt Alior Banku wraz z Programem Czyste Powietrze (z wkładem własnym stanowiącym środki własne lub bez) wiąże się z obowiązkiem dostarczenia Wykonawcy przez Zamawiającego wszystkich dokumentów potrzebnych do złożenia wniosku o dofinansowanie.
A158: 13. | B158: Wybranie przez Zamawiającego finansowania za pośrednictwem Wykonawcy - dedykowany produkt Alior Banku wraz z Programem Czyste Powietrze (z wkładem własnym stanowiącym środki własne lub bez) jest jednoznaczne z wyrażeniem zgody na utylizację pieca/kotła na paliwo stałe przez Wykonawcę, na zasadach wskazanych w §8 Umowy.
A161: 14. | B161: W sytuacji otrzymania przez Zamawiającego pozytywnej decyzji o dofinansowaniu, po wybraniu finansowania za pośrednictwem Wykonawcy - dedykowany produkt Alior Banku wraz z Programem Czyste Powietrze (z wkładem własnym stanowiącym środki własne lub bez), kwota przyznanej dotacji zostanie przeznaczona na spłatę otrzymanego przez Zamawiającego kredytu i bezpośrednio przekazana do Alior Banku.
A164: 15. | B164: Jeżeli Zamawiający zdecyduje się na finansowanie za pośrednictwem Wykonawcy - dedykowany produkt Alior Banku wraz z Programem Czyste
B165: Powietrze (z wkładem własnym stanowiącym środki własne lub bez) i otrzyma negatywną decyzję o dofinansowaniu, zawarta przez niego umowa
B166: kredytu ulegnie rozwiązaniu. W takiej sytuacji Strony dokonają zmiany finansowania wskazanego w ust.2 powyżej poprzez zawarcie aneksu do Umowy.
B167: Wykonawca nie gwarantuje Zamawiającemu takich samych warunków finansowania, jakie otrzymał przy pierwszej umowie kredytu, jeśli Zamawiający
B168: ponowienie zdecyduje się na kredyt za pośrednictwem Wykonawcy.
A169: 16. | B169: W przypadku, o którym wspomniano w ust.15 powyżej Zamawiający ma prawo odstąpić od Umowy, nie decydując się na zawarcie aneksu. Zamawiający
B170: powinien przesłać oświadczenie o odstąpieniu od Umowy drogą elektroniczną lub za pomocą operatora pocztowego na dane wskazane w §1 ust. 9 Umowy.
A171: 17. | B171: Otrzymanie przez Zamawiającego negatywnej decyzji o dofinansowaniu po złożeniu wniosku za pomocą dedykowanego produktu Alior Banku lub nieotrzymanie kredytu z Alior Banku, co będzie skutkowało nierozpoczęciem przez Wykonawcę procesu przygotowania wniosku o dofinansowanie, nie wyklucza złożenia samodzielnie przez Zamawiającego wniosku o dofinansowanie w urzędzie lub przesłanie go za pomocą generatora wniosków, jeśli Umowa zostanie zrealizowana.
A175: 18. | B175: Wykonawca informuje, że dofinansowanie Czyste Powietrze w ramach dedykowanego produktu Alior Bank nie obejmuje dofinansowania dla beneficjentów uprawnionych do najwyższego poziomu dofinansowania.
B177: §3a
B178: Usługi dodatkowe
A179: 1. | B179: Każda dodatkowa usługa, nieujęta w zakresie Przedmiotu Umowy, w tym konieczność wymiany lub remontu Punktu Montażu, usunięcia obiektów
B180: uniemożliwiających montaż pompy ciepła czy zainstalowanie orurowania w bryle budynku o długości przekraczającej 5 mb, mogą zostać wykonane
B181: przez Wykonawcę za odrębnym wynagrodzeniem, oszacowanym podczas wstępnego audytu technicznego oraz przedstawionym Zamawiającemu i
B182: przez niego zatwierdzonym.
A183: 2. | B183: Wykonawca zastrzega, że Przedmiotem Umowy nie obejmuje, w szczególności:
B184: a) | C184: dostosowania instalacji elektrycznej lub istniejącej instalacji C.O., C.W.U. Zamawiającego na potrzeby poprawnej współpracy z pompą ciepła,
B185: b) | C185: spełnienia wymagań technicznych do zamontowania i prawidłowego działania pompy ciepła, w tym uzyskania koniecznych decyzji
C186: administracyjnych (np. pozwolenia na budowę), zwiększenia mocy przyłączeniowej, zmiany taryfy energetycznej, zwiększenia zabezpieczeń oraz
C187: wymiany elementów istniejącej instalacji Zamawiającego.
A188: 3. | B188: Zamawiający może zgłosić Wykonawcy zapotrzebowanie na usługę dodatkową drogą mailową lub telefoniczną.
A189: 4. | B189: Wykonawca po otrzymaniu zgłoszenia w zakresie usługi dodatkowej, dokona analizy możliwości zrealizowania tej usługi, a następnie przedstawi
B190: Zamawiającemu koszt tej usługi wraz z zakresem prac.
A191: 5. | B191: Po zaakceptowaniu przez Zamawiającego kosztów związanych z usługą dodatkową, Strony zawrą stosowny aneks do Umowy, regulujący ustalone
B192: kwestie. Po podpisaniu aneksu do Umowy, Wykonawca wykona Przedmiot Umowy wraz z usługą dodatkową.
A193: 6. | B193: Wykonawca zastrzega, iż termin rozpoczęcia montażu wskazany w §1 ust. 4 Umowy może ulec wydłużeniu z uwagi na proces zawarcia aneksu do
B194: Umowy i rodzaj usługi dodatkowej.
X196: …....................................
X197: (parafka Klienta) | AA197: 3/8
B198: §3b
B199: Program Czyste Powietrze
A200: 1. | B200: Jeżeli w dacie zawarcia i zrealizowania Umowy prowadzony jest nabór na dotację ze środków rządowego programu Czyste Powietrze, a Zamawiający
B201: będzie spełniał warunki programu wsparcia, Wykonawca postara się przygotować w imieniu Zamawiającego wniosek o dofinansowanie oraz:
B202: a) | C202: w przypadku skorzystania przez Zamawiającego z finansowania za pośrednictwem Wykonawcy - dedykowany produkt Alior Banku wraz z Programem Czyste Powietrze (z wkładem własnym lub bez) – wgrać wniosek do systemu za pośrednictwem banku i skoordynować jego podpisanie przez Zamawiającego za pomocą kodu sms;
B205: b) | C205: w przypadku nieskorzystania przez Zamawiającego z finansowania, o którym wspomniano w pkt a) powyżej – wgrać wniosek do generatora
C206: wniosków o dofinansowanie GWD i przesłać Zamawiającemu ten wniosek do podpisania za pomocą profilu zaufanego lub podpisu kwalifikowanego;
C207: jeżeli Zamawiający nie będzie posiadał podpisu elektronicznego, Wykonawca nie wgra wniosku do wspomnianego generatora, tylko wydrukuje
C208: wypełniony wniosek i prześle Zamawiającemu dokumenty za pośrednictwem operatora pocztowego na adres zamieszkania wskazany w Umowie.
A209: 2. | B209: Wykonawca w przypadku opisanym w ust. 1 pkt. a ) powyżej przygotuje wniosek o dofinansowanie po otrzymaniu wszelkich, niezbędnych danych i dokumentów od Zamawiającego oraz po zawarciu przez niego umowy kredytu z Alior Bankiem. Natomiast w sytuacji wskazanej w ust.1 pkt. b) Wykonawca podejmie się przygotowania wniosku o dofinansowanie po podpisaniu protokołu odbioru pompy ciepła i opłacenia przez Zamawiającego faktury końcowej, pod warunkiem otrzymania od Zamawiającego wszystkich niezbędnych danych i dokumentów.
A213: 3. | B213: Zamawiający jest zobowiązany do założenia konta w generatorze wniosków o dofinansowanie GWD oraz podania adresu mailowego, na który to konto założył, aby Wykonawca mógł za pomocą tego portalu przesłać mu wniosek o dofinansowanie do podpisania. Sytuacja ta nie dotyczy Zamawiającego, który nie posiada profilu zaufanego lub podpisu kwalifikowanego bądź zdecydował się na procedurę Alior Banku.
A216: 4. | B216: Jeżeli Zamawiający otrzyma od Wykonawcy wypełniony wniosek o dofinansowanie, przesłany za pomocą operatora pocztowego, będzie zobowiązany do jego podpisania i samodzielnego złożenia w odpowiednim urzędzie.
A218: 5. | B218: Za niepodpisanie przez Zamawiającego wniosku o dofinansowanie, Wykonawca nie odpowiada.
A219: 6. | B219: Wykonawca nie podejmuje się dodatkowych kroków związanych z otrzymaniem przez Zamawiającego dofinansowania z programu Czyste Powietrze
B220: (poza wymienionymi w ust. 1 powyżej). Dalsze działania prowadzące do otrzymania wsparcia finansowego Zamawiający wykona we własnym zakresie.
A221: 7. | B221: Wykonawca nie gwarantuje Zamawiającemu otrzymania dofinansowania z programu Czyste Powietrze ani nie ponosi odpowiedzialności za termin rozpatrywania wniosków i wypłaty środków. Wykonawca nie odpowiada także za zakończenie programu przed złożeniem wniosku o dofinansowanie bądź za wydanie negatywnej decyzji w zakresie dofinasowania.
A224: 8. | B224: Zamawiający jest zobowiązany zapoznać się z zasadami programu i przeanalizować, czy spełnia wszystkie warunki.
A225: 9. | B225: Zamawiający jest także zobowiązany dostarczyć Wykonawcy wszelkie informacje i dokumenty niezbędne do przygotowania wniosku o dofinansowanie. Jeżeli Wykonawca ich nie otrzyma, nie podejmie się działań, o których mowa w ust. 1 powyżej.
A227: 10. | B227: Wykonawca ma prawo odmówić przygotowania wniosku o dofinansowanie, jeżeli po weryfikacji otrzymanych danych uzna, że Zamawiający nie spełnia warunków programu Czyste Powietrze.
B229: §4
A230: ="Wykonawca udziela "&IF('Panasonic (2)'!CH1=1,RIGHT(Oferta!S93,5),RIGHT('Oferta (2)'!S97,5))&" gwarancji na zamontowany sprzęt oraz wykonane prace instalacyjne w zakresie pompy ciepła od dnia podpisania protokołu" -> Wykonawca udziela 5 lat gwarancji na zamontowany sprzęt oraz wykonane prace instalacyjne w zakresie pompy ciepła od dnia podpisania protokołu | B230: Gwarancja
A231: 1. | B231: Wykonawca udziela …...... letniej gwarancji na zamontowany sprzęt oraz wykonane prace instalacyjne w zakresie pompy ciepła od dnia podpisania
B232: protokołu odbioru i przekazania jej do eksploatacji (dalej jako Gwarancja Wykonawcy).
A233: 2. | B233: Zasadą obowiązywania Gwarancji Wykonawcy jest dokonywanie przez Zamawiającego autoryzowanego serwisu pompy ciepła (dalej: serwis) co roku przez okres trwania tych gwarancji od dnia podpisania protokołu odbioru.
A235: 3. | B235: Mając na względzie zapisy wskazane powyżej, Zamawiający wyraża zgodę na dokonywanie corocznego serwisu przez Wykonawcę oraz zgadza się
B236: opłacić tę usługę każdorazowo na podstawie otrzymanej faktury pro forma od Wykonawcy w terminie 7 dni od wystawienia faktury.
A237: 4. | B237: Cena jednego serwisu jest wskazana w Cenniku Usług Dodatkowych Wykonawcy, który znajduje się na stronie internetowej www.arago.green oraz w
B238: siedzibie Wykonawcy. Niniejszy Cennik będzie także przesyłany Zamawiającemu drogą mailową wraz z wystawioną przez Wykonawcę fakturą pro
B239: forma.
A240: 5. | B240: Termin dokonania serwisu, po opłaceniu przez Zamawiającego faktury pro forma, będzie ustalany indywidualnie przez Strony drogą mailową lub
B241: telefoniczną.
A242: 6. | B242: Jeżeli Zamawiający nie dokona terminowo zapłaty zgodnie z ust. 3 powyżej, Wykonawca przyjmuje, że rezygnuje on z dokonania serwisu przez Wykonawcę, co skutkuje zakończeniem obowiązywania Gwarancji Wykonawcy wcześniej niż okres jej obowiązywania tj. po upływie roku od ostatniego, autoryzowanego serwisu.
A245: 7. | B245: Zamawiający może dokonywać zgłoszenia wady instalacji pompy ciepła, w trakcie obowiązywania gwarancji, telefonicznie (od poniedziałku do piątku w godzinach 8:00-16:00) pod nr + 48 600 991 359 lub drogą mailową na adres: bok@arago.green.
A247: 8. | B247: Wykonawca gwarantuje, że w sytuacji zgłoszenia przez Zamawiającego takiej awarii pompy ciepła, która uniemożliwia grzanie ciepłej wody lub grzanie centralnego ogrzewania bądź powoduje wyciek, który może narazić Zamawiającego na straty materialne, jego reakcja na otrzymane zgłoszenie nastąpi bez zbędnej zwłoki, lecz nie później niż w ciągu 72 godzin, licząc od chwili otrzymania zgłoszenia od Zamawiającego, z zastrzeżeniem ust.9 poniżej. Reakcja nie jest jednoznaczna z przyjazdem ekipy serwisowej do Zamawiającego.
A251: 9. | B251: Jeżeli Zamawiający dokona zgłoszenia, o którym mowa w ust. 8 powyżej, w dniu roboczym w godzinach od 7:00 do 12:00, Wykonawca zareaguje bez zbędnej zwłoki, lecz nie później niż w ciągu 72 godzin od otrzymania zgłoszenia, kontaktując się z Zamawiającym i wysyłając do niego, w razie potrzeby, swojego pracownika celem usunięcia powstałej awarii. Natomiast w sytuacji, gdy Wykonawca otrzyma od Zamawiającego zgłoszenie:
B254: a) | C254: w godzinach od północy tj. 00:00 do 06:59 w dniu roboczym, zostanie przyjęte, iż dokonano go o godzinie 7:00 tego dnia roboczego, w którym przekazano Wykonawcy zgłoszenie awarii;
B256: b) | C256: w godzinach po 12:00 do 23:59 w dniu roboczym, zostanie przyjęte, iż dokonano go o godzinie 7:00 dnia roboczego następującego po dniu, w którym przekazano Wykonawcy zgłoszenie awarii;
X259: …....................................
X260: (parafka Klienta) | AA260: 4/8
B261: c) | C261: w weekend lub dzień ustawowo wolny od pracy, zostanie przyjęte, iż dokonano go o godzinie 7:00 najbliższego dnia roboczego następującego po weekendzie lub dniu ustawowo wolnym od pracy, w którym przekazano Wykonawcy zgłoszenie awarii.
A263: 10. | B263: Zapisy wskazane w ust.8-9 powyżej dotyczą wyłącznie awarii zgłoszonej przez Zamawiającego, który posiada obowiązującą gwarancję na
B264: pompę ciepła zgodnie z warunkami niniejszego paragrafu.
A265: 11. | B265: Wykonawca zapewnia realizację Gwarancji Wykonawcy oraz serwisu pompy ciepła na terenie całej Polski. Zakres Gwarancji Wykonawcy w przypadku stwierdzenia wady obejmuje naprawę lub wymianę sprzętu bądź jego części na nowe.
A267: 12. | B267: Gwarancje udzielone w ramach zawartej Umowy nie wyłączają, nie ograniczają ani nie zawieszają uprawnień Zamawiającego wynikających z przepisów o rękojmi.
A269: 13. | B269: Zamawiający ponosi odpowiedzialność za wszelkie uszkodzenia, usterki lub utratę pompy ciepła lub jej części, powstałe z jego winy.
... 178 more rows

Sheet Umowa PC (hidden)
A6: Umowa wykonania instalacji pompy ciepła - | P6: ="ARG-PC/"&'Dane klienta'!D8&"/2022" -> ARG-PC/1234/2022
A7: dalej jako Umowa
W8: KONSUMENT
A9: zawarta dnia | E9: =TODAY() -> 2024-10-01 | H9: roku w | J9: =MID('Dane klienta'!D19,7,50) -> Brodnica | R9: pomiędzy:
A11: =IF('Dane klienta'!D11="","_________________________________________",'Dane klienta'!D11) -> Andrzej Nowak | L11: zamieszkałym / zamieszkałą w | T11: =IF('Dane klienta'!D19="","_________________________________________________",MID('Dane klienta'!D19,7,50)) -> Brodnica
A13: kod pocztowy: | E13: =IF('Dane klienta'!D19="","_________________________________________________",LEFT('Dane klienta'!D19,6)) -> 87-300 | G13: przy ul. | I13: =IF('Dane klienta'!D13="","___________________________________________",'Dane klienta'!D13) -> Podgórna 146 | U13: PESEL | W13: =IF('Dane klienta'!D14="","_____________________________________________",'Dane klienta'!D14) -> _____________________________________________
A15: e-mail: | D15: =IF('Dane klienta'!D18="","____________________________________________",'Dane klienta'!D18) -> ____________________________________________ | O15: nr telefonu: | S15: =IF('Dane klienta'!D17="","__________________________________________",'Dane klienta'!D17) -> __________________________________________ | W15: , działający/działająca:
C17: osobiście
C18: przez pełnomocnika | H18: =IF(B21=TRUE,'Dane klienta'!D15,"_______________________________________________________________________________________________") -> _______________________________________________________________________________________________ | Q18: na podstawie pisemnego pełnomocnictwa z dnia | X18: =IF(B21=TRUE,'Dane klienta'!D16,"________________________________") -> ________________________________
A20: dalej jako Zamawiający
B21: FALSE
A22: a
A23: Arago Sp. z o.o. z siedzibą w Brodnicy (87-300 ) pod adresem: ul. Podgórna 82A , posiadającą nr NIP: 9562326208, nr REGON: 367787398, wpisaną do
A24: rejestru przedsiębiorców przez Sąd Rejonowy w Toruniu, VII Wydział Gospodarczy KRS po numerem KRS 0000686904, reprezentowaną przez:
A25: ___________________________________________________________________
A26: na mocy stosownego pełnomocnictwa
A27: dalej jako Wykonawca
A28: zwanymi dalej łącznie Stronami, a każda z osobna Stroną.
B29: §1
B30: Przedmiot Umowy
A31: 1. | B31: Przedmiotem niniejszej Umowy jest sporządzenie specyfikacji, dostawa oraz montaż pompy ciepła typu powietrze-woda (dalej: pompa ciepła) wraz z
B32: niezbędnym wyposażeniem – dalej Przedmiot Umowy. Szczegóły techniczne znajdują się w Załączniku nr 1 do Umowy.
A33: 2. | B33: Przedmiot Umowy będzie wykonany na nieruchomości (dalej: Punkt Montażu) pod adresem:
C35: zamieszkania | J35: innym tj. | M35: =IF('Dane klienta'!D35=0,"_________________________________________________",'Dane klienta'!D35&", "&'Dane klienta'!D36) -> _________________________________________________
A36: 3. | B36: Zamawiający oświadcza, że posiada tytuł prawny do nieruchomości tj. prawo własności, współwłasność lub użytkowanie wieczyste, na której znajduje
B37: się Punkt Montażu. Dodatkowo oświadcza, że Punkt Montażu nie znajduje się pod nadzorem bądź w obszarze ochrony konserwatora zabytków, a także
B38: w obszarze Natura 2000.
A39: 3a. | B39: Zakupiony przez Zamawiającego, na mocy niniejszej Umowy, sprzęt zostanie dostarczony Zamawiającemu przez Wykonawcę na adres wskazany w
B40: ust. 2 powyżej najpóźniej w dniu rozpoczęcia montażu, przed upłynięciem terminu wskazanego w ust. 4 poniżej.
A41: 4. | B41: Montaż pompy ciepła (typu powietrze – woda) odbędzie się w terminie
C42: 12 tygodni – w przypadku pompy ciepła marki SPRSUN,
C43: 28 tygodni – w przypadku pompy ciepła marki Midea Group,
B44: licząc od dnia zakwalifikowania przez Wykonawcę Punktu Montażu do zamontowania pompy ciepła jako spełniającego stosowne normy i wymogi
B45: (dalej: audyt Wykonawcy) oraz (warunek łączny):
B46: a) | C46: wpłaty zaliczki, której wysokość oraz termin zapłaty został podany w §3 ust. 3, jeżeli Zamawiający opłaca Przedmiot Umowy ze środków własnych lub
B47: b) | C47: poinformowania Wykonawcy o zawarciu umowy kredytowej oraz wpłaty zaliczki, której wysokość i termin zapłaty został podany w §3 ust. 3, jeżeli Zamawiający opłaca Przedmiot Umowy środkami pozyskanymi z kredytu zewnętrznego lub zdecydował się na finansowanie: kredyt zewnętrzny z zaliczką stanowiącą środki własne lub
B50: c) | C50: otrzymania przez Wykonawcę informacji o zawarciu przez Zamawiającego umowy kredytowej za pośrednictwem Wykonawcy, jeżeli Zamawiający
C51: zdecydował się na finansowanie: kredyt za pośrednictwem Wykonawcy lub
B52: d) | C52: otrzymania przez Wykonawcę informacji o zawarciu przez Zamawiającego umowy kredytowej za pośrednictwem Wykonawcy oraz wpłaty zaliczki, której wysokość i termin zapłaty został podany w §3 ust. 3 oraz, jeżeli Zamawiający zdecydował się na finansowanie: kredyt pozyskany za pośrednictwem Wykonawcy z wkładem własnym stanowiącym środki własne bądź środki własne z zaliczką stanowiącą kredyt pozyskany za pośrednictwem Wykonawcy lub
B56: e) | C56: otrzymania przez Wykonawcę informacji o zawarciu przez Zamawiającego umowy kredytowej za pośrednictwem Wykonawcy oraz otrzymania informacji o wydaniu pozytywnej decyzji o dofinansowaniu na rzecz Zamawiającego, jeżeli Zamawiający zdecydował się na finansowanie: kredyt za pośrednictwem Wykonawcy – dedykowany produkt Alior Banku wraz z Programem Czyste Powietrze lub
B59: f) | C59: otrzymania przez Wykonawcę informacji o zawarciu przez Zamawiającego umowy kredytowej za pośrednictwem Wykonawcy, otrzymania informacji o wydaniu pozytywnej decyzji o dofinansowaniu na rzecz Zamawiającego oraz wpłaty zaliczki, której wysokość i termin zapłaty został podany w §3 ust. 3, jeżeli Zamawiający zdecydował się na finansowanie: kredyt za pośrednictwem Wykonawcy z wkładem własnym – dedykowany produkt Alior Banku wraz z Programem Czyste Powietrze.
B63: Wykonawca zastrzega, iż termin montażu może ulec wydłużeniu na podstawie warunków zawartych w § 2 ust. 3 Ogólnych Warunków Umowy.
A64: 5. | B64: Termin wskazany w ust. 4 powyżej dotyczy wyłącznie sytuacji, gdy Zamawiający podpisze oświadczenie zawarte w §5 Umowy. W innym przypadku termin rozpoczęcia montażu wskazany powyżej może ulec wydłużeniu o 7 dni roboczych.
X66: ______________________
X67: (parafka Klienta) | AA67: 1/8
A68: 6. | B68: Wykonawca po przeprowadzeniu audytu Wykonawcy prześle Zamawiającemu informację o wyniku tego audytu, wskazując, czy Punkt Montażu został zakwalifikowany pod montaż pompy ciepła. W sytuacji, gdy po przeprowadzeniu audytu Wykonawcy, okaże się, że Punkt Montażu nie spełnia warunków do montażu pompy ciepła, Umowa ulegnie rozwiązaniu.
A71: 7. | B71: Odbiór Przedmiotu Umowy nastąpi ostatniego dnia montażu pompy ciepła, o godzinie ustalonej przez Strony.
A72: 8. | B72: Zamawiający stanie się właścicielem pompy ciepła (tj. nabędzie prawo własności) w chwili, gdy spełnione zostaną wszystkie trzy warunki:
B73: a) | C73: pompa ciepła zostanie zamontowana;
B74: b) | C74: Zamawiający podpisze Protokół Odbioru;
B75: c) | C75: Zamawiający zapłaci całe wynagrodzenie wynikające z niniejszej Umowy.
A76: 9. | B76: Kontakt przez Zamawiającego w sprawach związanych z realizacją Przedmiotu Umowy powinien odbywać się mailowo pod adresem:
B77: bok@arago.green lub telefonicznie pod numerem: + 48 600 991 359.
A78: 10. | B78: Pełny zakres Przedmiotu Umowy, który zostanie wykonany przez Wykonawcę w ramach Umowy, został opisany w §2 ust.1 Ogólnych Warunków Umowy oraz Załączniku nr 1 do Umowy.
B80: §2
B81: Obowiązki i oświadczenia Zamawiającego
A82: 1. | B82: Ustala się, że Zamawiający:
B83: a) | C83: będzie współpracował z Wykonawcą w dobrej wierze w celu realizacji Przedmiotu Umowy oraz weźmie udział w szkoleniu z obsługi pompy ciepła;
B84: b) | C84: udostępni Miejsce Montażu z dostępem do mediów, w tym do bieżącej wody i prądu oraz podpisze protokół odbioru pompy ciepła niezwłocznie
C85: po zakończeniu prac;
B86: c) | C86: zobowiązuje się do przekazania informacji i dokumentów umożliwiających przeprowadzenie audytu Wykonawcy oraz realizację Przedmiotu Umowy,
C87: w tym: kwestionariusza doboru, wymiarów kotłowni oraz zdjęć i filmiku obiektu, w szczególności miejsca, gdzie ma zostać zamontowana pompa
C88: ciepła, starego źródła ciepła, połączeń hydraulicznych, tabliczek znamionowych i drogi transportu pompy ciepła do kotłowni;
B89: d) | C89: wykonana niezbędne prace adaptacyjne przed montażem Przedmiotu Umowy, w tym usunie wszelkie obiekty, które mogą uniemożliwić jego
C90: wykonanie.
A91: 2. | B91: Zamawiający oświadcza, że został poinformowany, iż do prawidłowej obsługi pompy ciepła przez aplikację oraz przeprowadzenia zdalnego serwisu
B92: przez Wykonawcę konieczne jest posiadanie przez niego stałego i stabilnego połączenia internetowego za pomocą przewodu LAN bądź routera WiFi,
B93: który zapewni bardzo dobry sygnał.
A94: 3. | B94: Zamawiający oświadcza, że podane Wykonawcy dane niezbędne do doboru pompy ciepła dla jego budynku są zgodne ze zużyciem jego obecnych
B95: nośników energii i ogólnym stanem faktycznym ściśle związanym z zakupem i montażem pompy ciepła. Wykonawca dokona doboru pompy ciepła
B96: zgodnie z zadeklarowanymi przez Zamawiającego danymi. Podanie nieprawdziwych bądź niewystarczająco precyzyjnych danych przez
B97: Zamawiającego może skutkować niepoprawnym doborem i wadliwą pracą pompy ciepła.
A98: 4. | B98: Zamawiający oświadcza, iż został poinformowany przez Wykonawcę, że zgodnie z Ustawą z dnia 15 maja 2015 r. o substancjach zubożających warstwę
B99: ozonową oraz o niektórych fluorowanych gazach cieplarnianych, należy dokonać rejestracji pompy ciepła: typu split, która zawiera co najmniej 5 ton
B100: ekwiwalentu CO2 oraz typu monoblock, która zawiera co najmniej 10 ton ekwiwalentu CO2 w Centralnym Rejestrze Operatorów (CRO), w terminie
B101: określonym we wspomnianej ustawie. Niewywiązanie się przez Zamawiającego z tego zobowiązania może wiązać się z nałożeniem na niego kary przez
B102: właściwy organ i odpowiedzialnością finansową.
A103: 5. | B103: Zamawiający oświadcza, iż Wykonawca przekazał mu informację o możliwości zmiany taryfy na G12w po zamontowaniu pompy ciepła i przedstawił
B104: korzyści, jakie mogą wyniknąć z tej zmiany. Weryfikacja warunków taryfy, zasad jej zmiany i możliwych korzyści finansowych zależy od indywidualnych
B105: warunków Zamawiającego, które posiada w chwili zamontowania pompy ciepła i które zostaną mu zaoferowane przez Operatora Systemu
B106: Dystrybucyjnego lub podmiot prowadzący działalność polegającą na obrocie energią elektryczną.
A107: 6. | B107: Zamawiający oświadcza, że będzie wykorzystywał Przedmiot Umowy wyłącznie na potrzeby gospodarstwa domowego.
B108: §3
B109: Finansowanie i Wynagrodzenie
A110: 1. | B110: Za wykonanie Przedmiotu Umowy Zamawiający zobowiązuje się do zapłaty Wykonawcy kwoty:
A111: =IF('Panasonic (2)'!CH1=1,Oferta!Q112,'Oferta (2)'!Q118) ->  | F111: ="(słownie:"&slownie(A111) -> (słownie:# Nieprawidłowy typ wartości! | Z111: ) zł brutto
A112: czyli | C112: =IF('Panasonic (2)'!CH1=1,Oferta!Q110,'Oferta (2)'!Q116) ->  | F112: (słownie: | I112: =slownie(C112) -> # Nieprawidłowy typ wartości! | Z112: ) zł netto
A113: powiększonej o należny podatek VAT w stawce wynikającej z powszechnie obowiązujących przepisów prawa.
A114: 2. | B114: Zamawiający oświadcza, że środki na pokrycie realizacji Przedmiotu Umowy stanowić będą:
C115: środki własne Zamawiającego;
A116: FALSE | C116: środki własne z zaliczką stanowiącą kredyt pozyskany za pośrednictwem Wykonawcy;
C117: kredyt pozyskany za pośrednictwem Wykonawcy; | Q117: FALSE
A118: FALSE | C118: kredyt pozyskany za pośrednictwem Wykonawcy – dedykowany produkt Alior Banku wraz z Programem Czyste Powietrze;
C119: kredyt zewnętrzny; | N119: FALSE | O119: FALSE
C120: kredyt zewnętrzny z zaliczką stanowiącą środki własne;
C121: kredyt pozyskany za pośrednictwem Wykonawcy z wkładem własnym stanowiącym środki własne;
A122: FALSE | C122: kredyt pozyskany za pośrednictwem Wykonawcy z wkładem własnym stanowiącym środki własne – dedykowany produkt Alior Banku wraz z Programem Czyste Powietrze
A124: 3. | B124: Zamawiający zapłaci Wykonawcy zaliczkę, poza przypadkiem wyboru w ust.2 powyżej kredytu za pośrednictwem Wykonawcy, w wysokości:
A125: FALSE | C125: 30 | D125: % całkowitej wartości Umowy brutto
A126: FALSE | C126: wkładu własnego (dotyczy wyłącznie kredytu za pośrednictwem Wykonawcy z wkładem własnym stanowiącym środki własne)
B127: tj. kwoty:
A128: =IF(A126=TRUE,($A$111*($C$125/100)),IF(A125=TRUE,IF('Panasonic (2)'!CH1=1,'Kalkulator doboru'!C67,'Kalkulator doboru - uproszczony'!B29),IF(G125=TRUE,A111,"__________________________"))) -> __________________________ | D128: (słownie: | G128: =IF(AND(A125=FALSE,A126=FALSE,G125=FALSE),"__________________________________________________________________________________________________________________________________________________________________",slownie(A128)) -> __________________________________________________________________________________________________________________________________________________________________ | Z128: ) zł brutto
X130: ______________________
X131: (parafka Klienta) | AA131: 2/8
A132: w terminie 3 dni:
B133: a) | C133: od dnia zawarcia Umowy, jeżeli Przedmiot Umowy będzie opłacony ze środków własnych Zamawiającego;
B134: b) | C134: od dnia zawarcia umowy kredytowej przez Zamawiającego z instytucją finansową bez pośrednictwa Wykonawcy, jeżeli Przedmiot Umowy będzie w
C135: całości opłacony z kredytu zewnętrznego;
B136: c) | C136: od dnia zawarcia umowy kredytowej przez Zamawiającego z instytucją finansową, jeżeli Przedmiot Umowy będzie opłacony z wkładu własnego oraz kredytu za pośrednictwem Wykonawcy bądź zaliczki i kredytu zewnętrznego bądź środków własnych i zaliczki stanowiącej kredyt.
A138: 4. | B138: Zaliczka z ust. 3 powyżej zostanie przekazana przez Zamawiającego na podstawie faktury pro forma wystawionej przez Wykonawcę w momencie
B139: zawarcia Umowy na numer rachunku bankowego: 62 1140 2088 0000 4958 1500 1003. Na podstawie otrzymanej wpłaty Wykonawca wystawi fakturę
B140: zaliczkową, która zostanie przesłana drogą elektroniczną oraz pocztą na wskazany przez Zamawiającego adres e-mail i adres korespondencyjny.
A141: 5. | B141: Pozostałą część wynagrodzenia stanowi kwota wskazana w ust.1 powyżej pomniejszona o kwotę wpłaconą przez Zamawiającego w myśl ust. 3 powyżej.
B142: Niniejsza kwota, z wyłączeniem kwoty stanowiącej wartość kredytu pozyskanego przez Zamawiającego za pośrednictwem Wykonawcy, zostanie zapłacona
B143: przez Zamawiającego na podstawie faktury VAT wystawionej po podpisaniu Protokołu Odbioru w terminie 3 dni od daty wystawienia.
A144: 6. | B144: W przypadku wyboru przez Zamawiającego finansowania za pośrednictwem Wykonawcy kwota kredytu zostanie przesłana przez bank bezpośrednio na konto bankowe Wykonawcy, zgodnie z warunkami zawartymi w umowie kredytowej
A146: 7. | B146: W sytuacji, gdy Zamawiający, mimo wsparcia Wykonawcy, nie otrzyma kredytu od instytucji finansowej i nie zdecyduje się na zmianę finansowania, Umowa ulegnie rozwiązaniu.
A148: 8. | B148: Jeżeli Umowa ulegnie rozwiązaniu na podstawie §1 ust. 6 Umowy, a Zamawiający wpłacił zaliczkę, o której mowa w §3 ust.3 Umowy, Wykonawca dokona jej zwrotu w terminie 14 dni, licząc od dnia rozwiązania Umowy, dokonując właściwych działań formalno-księgowych.
A150: 9. | B150: Udzielając Zamawiającemu wsparcia w pozyskaniu finansowania na zakup pompy ciepła, szacuje się, że rata finansowania w okresie
B151: =IF(AND(A125=TRUE,$A$116=TRUE),'kredyty '!$FQ$8,IF(OR($A$122=TRUE,$A$118=TRUE,$Q$117=TRUE,$N$119=TRUE),IF('Panasonic (2)'!CH1=1,'kredyty '!DK11,'kredyty (2) do uproszczonego'!DK11),"____________________")) -> ____________________ | D151: lat wyniesie | G151: =IF(AND(A125=TRUE,$A$116=TRUE),'kredyty '!$FQ$26,IF(OR($A$122=TRUE,$A$118=TRUE,$Q$117=TRUE,$N$119=TRUE),IF('Panasonic (2)'!CH1=1,'kredyty '!DK9,'kredyty (2) do uproszczonego'!DK9),"________________________")) -> ________________________ | K151: (słownie: | N151: =IF(OR($A$122=TRUE,$A$116=TRUE,$A$118=TRUE,$Q$117=TRUE,$N$119=TRUE),slownie(G151),"_____________________________________________________________________________________________________________") -> _____________________________________________________________________________________________________________ | AB151: ) zł,
B152: przy czym całkowity koszt finansowania nie może się zmienić o więcej niż 9%.
A153: 10. | B153: Zamawiający wyraża zgodę na wystawianie faktur elektronicznych i przesłanie ich na adres e-mail podany w Umowie.
